{"text_format":"1","workbook":"xlsx","n_sheets":10,"sheets":["Adviesformulier","Rekenblad","Deeltijd verblijf","Werkwijze rekenmodule","Meerzorg onderbouwing","PGB tarieven","Tarieven ZIN prestaties","Tarieven VPT","Tarieven ZZP","Ruimte behandeling basis MPT"],"not_rendered":{"charts":0,"images":1,"macros":1,"external_links":0,"defined_names":65,"comments":0,"pivot_tables":0},"unopened":[],"bounds":{"document_bytes":16777216,"sheet_cells":100000,"rows_first":2000,"rows_last":500,"rows_between":2000,"halvings":0,"cell_chars":16384,"cell_head_chars":4096},"cells_cut":0,"cells_raw":0,"read":"whole","date_system":"1900"}

{"sheet":"Adviesformulier","index":0,"n_rows":110,"n_cols":23,"rows_kept":110,"cut":false,"hidden":false,"merged":[[5,0,5,3],[5,5,5,10],[9,0,9,6],[9,7,9,11],[10,0,10,6],[10,7,10,11],[0,0,0,12],[2,0,2,12],[4,0,4,3],[4,5,4,10],[1,10,1,12],[12,0,12,6],[6,0,6,3],[24,1,24,12],[31,1,31,12],[34,5,35,11],[6,5,6,10],[12,7,12,11],[20,3,20,11],[11,0,11,6],[11,7,11,11],[36,5,37,11],[22,0,22,12],[28,6,30,12],[71,6,77,12],[38,5,39,11],[40,5,41,11],[42,5,43,11],[44,5,45,11],[55,6,57,12],[46,6,48,12],[70,4,70,10],[113,0,147,12],[78,1,79,12],[81,3,82,12],[83,3,84,12],[109,6,111,12],[89,6,92,12],[98,6,99,12],[93,1,94,12],[100,1,100,12],[103,6,104,12]]}
["Adviesformulier verantwoorde zorg thuis"]
[null,null,null,null,null,null,null,null,null,null,"Versie 29 november 2023"]
["Om te beoordelen of de door u aangevraagde zorg thuis verantwoord is, ontvangen wij graag uw professionele advies.",null,null,null,null,null,null,null,null,null,null,null,null,null,"Woont zelfstandig"]
["CLIENTGEGEVENS",null,null,null,null,null,null,null,null,null,null,null,null,null,"Woont geclusterd"]
["Naam",null,null,null,null,"Klik hier om tekst in te voeren",null,null,null,null,null,null,null,null,"Woont met partner (beide Wlz geïndiceerd)",null,null,null,null,null,null,null,{"$f":"IF(F5=\"Klik hier om een tekst in te voeren\",1,2)","v":2}]
["BSN",null,null,null,null,"Klik hier om tekst in te voeren",null,null,null,null,null,null,null,null,"Woont met partner (partner heeft geen Wlz indicatie)"]
["Woonsituatie",null,null,null,null,"Klik hier om een keuze te maken",null,null,null,null,null,null,null,null,"Woont bij ouder(s)/verzorger(s)"]
[null,null,null,null,null,null,null,null,null,null,null,null,null,null,"Klik hier om een keuze te maken"]
["CONTACTGEGEVENS ZORGAANBIEDER"]
["Naam contactpersoon:",null,null,null,null,null,null,"klik hier om tekst in te voeren"]
["Organisatie contactpersoon",null,null,null,null,null,null,"klik hier om tekst in te voeren"]
["Telefoonnummer contactpersoon",null,null,null,null,null,null,"klik hier om tekst in te voeren"]
["Bereikbaarheid contactpersoon",null,null,null,null,null,null,"klik hier om tekst in te voeren"]
[]
["ADVIES ZORGAANBIEDER VERANTWOORD THUIS VPT/MPT, EVENTUEEL IN COMBINATIE MET DTV"]
["1. ","Wat is uw advies voor (overbruggings) zorg thuis als betrokken zorgprofessional? "]
[null,null,null,"Regulier VPT of MPT, eventueel in combinatie met DTV is verantwoord",null,null,null,null,null,null,null,null,null,null,{"$f":"IF(B17=\"x\",1,0)","v":0}]
[null,null,null,"Regulier VPT of MPT, eventueel in combinatie met DTV is niet verantwoord",null,null,null,null,null,null,null,null,null,null,{"$f":"IF(B18=\"x\",1,0)","v":0},null,{"$f":"SUM(O17:O21)","v":0},{"$f":"IF(Q18=0,\"X\",\"\")","v":"X"}]
[null,null,null,"Overbruggingszorg thuis, eventueel in combinatie met DTV  tot opname is verantwoord",null,null,null,null,null,null,null,null,null,null,{"$f":"IF(B19=\"x\",1,0)","v":0}]
[null,null,null,"Overbruggingszorg thuis, eventueel in combinatie met DTV tot opname is niet verantwoord",null,null,null,null,null,null,null,null,null,null,{"$f":"IF(B20=\"x\",1,0)","v":0}]
[null,null,null,"Er is nog geen advies mogelijk, graag nader overleg met het zorgkantoor",null,null,null,null,null,null,null,null,null,null,{"$f":"IF(B21=\"x\",1,0)","v":0}]
[]
["Is zorg thuis verantwoord, maar is er sprake van hoge inzet behandeling, ga dan direct naar vraag 5"]
[]
["2. ","Kan de cliënt goed bepalen wat hij wil, zijn situatie goed inschatten en daarvoor zijn verantwoordelijkheid nemen (mate van zelfregie)? "]
[null,null,null,"Er is afdoende zelfregie",null,null,null,null,null,null,null,null,null,null,{"$f":"IF(B26=\"x\",1,0)","v":0},null,{"$f":"SUM(O25:O28)","v":0},{"$f":"IF(Q26=0,\"X\",\"\")","v":"X"}]
[null,null,null,"Er is verminderde zelfregie ",null,null,null,null,null,null,null,null,null,null,{"$f":"IF(B27=\"x\",1,0)","v":0}]
[null,null,null,"Er is geen sprake van zelfregie",null,null,null,null,null,null,null,null,null,null,{"$f":"IF(B28=\"X\",1,0)","v":0}]
[null,null,null,"Toelichting:"]
[]
[]
["3. ","Is er sprake van een gevaarscriterium als gevolg van ernstig verminderde zelfregie? "]
[null,null,null,"Nee",null,null,null,null,null,null,null,null,null,null,{"$f":"IF(B33=\"x\",1,0)","v":0},null,{"$f":"SUM(O32:O35)","v":0},{"$f":"IF(Q33=0,\"X\",\"\")","v":"X"}]
[null,null,null,"Ja, er is sprake van een gevaarscriterium omdat de cliënt:",null,null,null,null,null,null,null,null,null,null,{"$f":"IF(B34=\"x\",1,0)","v":0}]
[null,null,null,null,null,"een ernstig gevaar voor zichzelf vormt (is gedesoriënteerd in tijd en/of  plaats en/of persoon en/of kan gevaar niet inschatten).",null,null,null,null,null,null,null,null,null,null,null,{"$f":"IF(B34=\"X\",1,0)","v":0},{"$f":"IF(D35=\"X\",0,1)","v":1},null,{"$f":"IF(R35+S44=7,\"X\",\"\")","v":""}]
[]
[null,null,null,null,null,"zichzelf ernstig verwaarloost (ernstig tekort aan voeding/vocht/medicatie inname, lichamelijke verzorging en/of hygiene van de omgeving).",null,null,null,null,null,null,null,null,null,null,null,null,{"$f":"IF(D37=\"X\",0,1)","v":1}]
[]
[null,null,null,null,null,"met zijn gedrag een risico vormt voor mensen in zijn omgeving (door bijvoorbeeld gedragsproblematiek naar andere mensen).",null,null,null,null,null,null,null,null,null,null,null,null,{"$f":"IF(D39=\"X\",0,1)","v":1}]
[]
[null,null,null,null,null,"spullen in zijn omgeving kapot maakt en daardoor een risico vormt voor de algemene veiligheid.",null,null,null,null,null,null,null,null,null,null,null,null,{"$f":"IF(D41=\"X\",0,1)","v":1}]
[null,null,null,null,null,null,null,null,null,null,null,null,null,null,null,null,null,null,{"$f":"IF(D43=\"X\",0,1)","v":1}]
[null,null,null,null,null,"zelf niet adequaat kan alarmeren en er geen permanent 24 uurs toezicht is geborgd. Daardoor is er risico op acuut levensgevaar (bijvoorbeeld bij ernstige ademhalingsproblematiek en/of continue risico op verslikking).",null,null,null,null,null,null,null,null,null,null,null,null,{"$f":"IF(D45=\"X\",0,1)","v":1}]
[null,null,null,null,null,null,null,null,null,null,null,null,null,null,null,null,null,null,{"$f":"SUM(S35:S43)","v":6}]
[null,null,null,null,null,"er niet zeker van is dat bij acuut levensgevaar een (bekwame) zorgverlener of mantelzorger binnen 10 minuten aanwezig is of omdat medische zorg niet geborgd is binnen 30 minuten."]
[]
[null,null,null,"Toelichting:"]
[]
[]
["4.","Is noodzakelijke achterwacht (mantelzorg) ingeregeld?"]
[null,null,null,"Ja, noodzakelijke achterwacht is 24 uur per dag beschikbaar ",null,null,null,null,null,null,null,null,null,null,{"$f":"IF(B51=\"x\",1,0)","v":0}]
[null,null,null,"Ja, noodzakelijke achterwacht is 24 uur per dag beschikbaar, maar overbelasting dreigt",null,null,null,null,null,null,null,null,null,null,{"$f":"IF(B52=\"x\",1,0)","v":0}]
[null,null,null,"Nee, noodzakelijke achterwacht is niet 24 uur per dag in te regelen",null,null,null,null,null,null,null,null,null,null,{"$f":"IF(B53=\"x\",1,0)","v":0},null,{"$f":"SUM(O51:O55)","v":0},{"$f":"IF(Q53=0,\"X\",\"\")","v":"X"}]
[null,null,null,"Nee, de cliënt weigert noodzakelijke achterwacht",null,null,null,null,null,null,null,null,null,null,{"$f":"IF(B54=\"x\",1,0)","v":0}]
[null,null,null,"Nee, het is niet noodzakelijk om achterwacht in te regelen",null,null,null,null,null,null,null,null,null,null,{"$f":"IF(B55=\"X\",1,0)","v":0}]
[null,null,null,"Toelichting:"]
[]
[]
["5.","Is er noodzaak tot specifieke Wlz behandeling?"]
[null,null,null,"Nee, er is geen noodzaak tot Wlz behandeling",null,null,null,null,null,null,null,null,null,null,{"$f":"IF(B60=\"x\",1,0)","v":0}]
[null,null,null,"Ja, maar de cliënt ontvangt passende Wlz behandeling",null,null,null,null,null,null,null,null,null,null,{"$f":"IF(B61=\"x\",1,0)","v":0},null,{"$f":"SUM(O60:O64)","v":0},{"$f":"IF(Q61=0,\"X\",\"\")","v":"X"}]
[null,null,null,"Ja, Wlz behandeling is noodzakelijk maar de cliënt weigert dit",null,null,null,null,null,null,null,null,null,null,{"$f":"IF(B62=\"X\",1,0)","v":0}]
[null,null,null,"Ja, thuiswonend kind met ontwikkelperspectief",null,null,null,null,null,null,null,null,null,null,{"$f":"IF(B63=\"X\",1,0)","v":0}]
[null,null,null,"Ja er is extra behandeling noodzakelijk op de (al) geleverde WLZ behandeling. Deze behandeling  ",null,null,null,null,null,null,null,null,null,null,{"$f":"IF(B64=\"x\",1,0)","v":0}]
[null,null,null,"wordt niet vergoed vanuit de Zvw. Licht de volgende vragen altijd toe:"]
[null,null,null,"*","Welke diagnose maakt inzet van (extra) behandeling noodzakelijk?"]
[null,null,null,"*","Wie is eindverantwoordelijkheid voor de behandeling (arts/behandelaar)?"]
[null,null,null,"*","Welke methodiek wordt toegepast voor de behandeling?"]
[null,null,null,"*","Wat is het te behalen resultaat van de behandeling?"]
[null,null,null,"*","Hoe wordt het te behalen resultaat (verbeterdoel) getoetst?"]
[null,null,null,"*","Wat is het aantal benodigde (extra) uren behandeling (individueel) of dagdelen (groep) per week?"]
[null,null,null,"Toelichting:"]
[]
[]
[]
[]
[]
[]
["6.","Is de medische en/of gedragskundige zorg in de thuissituatie verantwoord (meerdere antwoorden mogelijk)? "]
[]
[null,null,null,"Ja, de huisarts is van mening dat medische zorg thuis verantwoord is",null,null,null,null,null,null,null,null,null,null,{"$f":"IF(B81=\"x\",1,0)","v":0}]
[null,null,null,"Nee, de huisarts is van mening dat medische zorg thuis niet verantwoord is maar er is geen sprake van een spoedsituatie voor opname (toelichten)",null,null,null,null,null,null,null,null,null,null,{"$f":"IF(B82=\"x\",1,0)","v":0},null,{"$f":"SUM(O81:O89)","v":0},"X"]
[]
[null,null,null,"Nee, de huisarts is van mening dat de medische zorg thuis niet verantwoord is, er is sprake van een spoedsituatie voor opname (toelichten)",null,null,null,null,null,null,null,null,null,null,{"$f":"IF(B84=\"X\",1,0)","v":0}]
[]
[null,null,null,"Nee, de huisarts is niet bereid mee te werken aan een advies",null,null,null,null,null,null,null,null,null,null,{"$f":"IF(B86=\"X\",1,0)","v":0}]
[null,null,null,"De betrokken AVG arts en/of gedragsdeskundige deelt de mening van de huisarts",null,null,null,null,null,null,null,null,null,null,{"$f":"IF(B87=\"X\",1,0)","v":0}]
[null,null,null,"De betrokken AVG arts en/of gedragsdeskundige deelt de mening v/d huisarts niet (toelichten)",null,null,null,null,null,null,null,null,null,null,{"$f":"IF(B88=\"X\",1,0)","v":0}]
[null,null,null,"Er is geen AVG arts of gedragsdeskundige bij deze cliënt betrokken",null,null,null,null,null,null,null,null,null,null,{"$f":"IF(B89=\"X\",1,0)","v":0}]
[]
[]
[]
[]
["7.","Zijn de noodzakelijke mobiliteitshulpmiddelen en woningaanpassingen thuis (en bij deeltijd verblijf ook in een instelling) georganiseerd?"]
[]
[null,null,null,"Er zijn geen mobiliteitshulmiddelen of woningaanpassingen nodig",null,null,null,null,null,null,null,null,null,null,{"$f":"IF(B96=\"X\",1,0)","v":0}]
[null,null,null,"Ja, dit is georganiseerd",null,null,null,null,null,null,null,null,null,null,{"$f":"IF(B97=\"X\",1,0)","v":0},null,{"$f":"SUM(O96:O98)","v":0},{"$f":"IF(Q97=0,\"X\",\"\")","v":"X"}]
[null,null,null,"Nee, dit is nog niet georganiseerd. (toelichten)",null,null,null,null,null,null,null,null,null,null,{"$f":"IF(B98=\"X\",1,0)","v":0}]
[null,null,null,"Toelichting"]
[]
["8.","Is er sprake van onvrijwillige zorg in het kader van de Wet zorg en dwang?"]
[null,null,null,"Nee, er is geen sprake van onvrijwillige zorg",null,null,null,null,null,null,null,null,null,null,{"$f":"IF(B102=\"X\",1,0)","v":0}]
[null,null,null,"Ja , er is sprake van onvrijwillige zorg (toelichten)",null,null,null,null,null,null,null,null,null,null,{"$f":"IF(B103=\"X\",1,0)","v":0},null,{"$f":"SUM(O102:O103)","v":0},{"$f":"IF(Q103=0,\"X\",\"\")","v":"X"}]
[null,null,null,"Toelichting:"]
[]
[]
["9. ","Is de cliënt en/of zijn mantelzorg het eens met uw advies? "]
[null,null,null,"Ja, ons advies wordt gedeeld ",null,null,null,null,null,null,null,null,null,null,{"$f":"IF(B108=\"x\",1,0)","v":0}]
[null,null,null,"Nee, ons advies wordt niet gedeeld (altijd toelichten)",null,null,null,null,null,null,null,null,null,null,{"$f":"IF(B109=\"x\",1,0)","v":0},null,{"$f":"SUM(O108:O112)","v":0},{"$f":"IF(Q109=0,\"X\",\"\")","v":"X"}]
[null,null,null,"Toelichting:"]

{"sheet":"Rekenblad","index":1,"n_rows":587,"n_cols":187,"rows_kept":587,"cut":false,"hidden":false,"merged":[[41,3,41,5],[39,3,39,5],[40,11,40,12],[26,11,26,12],[0,7,0,8],[7,6,7,7],[15,6,16,6],[9,6,9,7],[11,6,11,7],[8,8,8,11],[14,6,14,7],[4,5,5,7],[7,8,7,11],[98,9,98,10],[41,11,41,12],[1,56,1,62],[19,12,19,17],[18,12,18,17],[11,14,11,18],[9,14,10,17],[1,28,5,39],[1,21,5,26],[1,27,5,27],[1,19,5,20],[13,15,16,18],[23,16,23,17],[22,16,22,17],[21,16,21,17],[14,10,14,11],[99,9,99,10],[27,11,27,12],[28,11,28,12],[29,11,29,12],[30,11,30,12],[31,11,31,12],[32,11,32,12],[33,11,33,12],[34,11,34,12],[35,11,35,12],[36,11,36,12],[37,11,37,12],[94,9,94,10],[95,9,95,10],[96,9,96,10],[97,9,97,10]]}
[null,null,null,null,null,null,null,0.96399999999999997,null,null,null,null,"versie: 29-11-2023",null,null,null,null,null,null,{"$f":"IF($I$33>0,$M$6+$FS$8+$T$20,$M$6+$FS$8)","v":0},{"$f":"IFERROR(BR10,0)","v":0},{"$f":"M8/M6","v":{"$error":"#DIV/0!"}},null,null,null,null,null,null,null,null,null,null,null,null,null,null,null,null,null,null,null,null,null,null,null,null,null,null,null,null,null,"HH*Gunnings%",{"$f":"BA11*H1","v":38.309359999999998},null,null,null,null,null,null,null,null,null,null,null,null,null,null,null,null,null,null,null,null,null,null,null,null,null,null,null,null,null,null,null,null,null,null,null,null,null,null,null,null,null,null,null,null,null,null,null,null,null,null,null,null,null,null,null,null,null,null,null,null,null,null,null,null,null,null,{"$f":"VLOOKUP(DQ1,$DS$2:$DT$50,2,FALSE)","v":{"$error":"#N/A"}},{"$f":"G10","v":0},"Etmalen deeltijd verblijf",null,null,"meerzorg","ZZP","Dagbesteding","Meerzorg","Max uren +25%","Uren geleverd",null,null,null,null,{"$f":"G10","v":0},{"$f":"IFERROR(VLOOKUP(EE1,DV2:DX83,3,0),0)","v":0},{"$f":"IF(EF1=\"nee\",1,2)","v":2},{"$f":"IF(Q24=\"Meerzorg\",3,4)","v":4},{"$f":"SUM(EG1:EH1)","v":6},{"$f":"IF(EI1=4,\"Meerzorg is niet toegestaan bij dit ZZP tenzij client Wlz indiceerbaar is en recht op het vangnet heeft\",\" \")","v":" "},null,"Te kiezen leveringsvormen",null,null,"MPT","Deelrijd verblijf icm MPT","Logeren icm MPT","Overbruggingszorg","VPT","Opname","Opname2",null,"Z015 ZZP 1vv incl.db","V015 VPT 1vv excl.bh incl.db",null,null,null,"ZZP","100% prestatie",null,null,"100% per dag","100% per week","DTV",null,null,null,"ZZP's","Dagbesteding apart?",null,null,null,"Etmalen","Deeltijd verblijf icm zorg thuis",{"$f":"'Deeltijd verblijf'!M9","v":{"$error":"#N/A"}},null,null,null,null,"AGB","DTV","VBL"]
[null,"Naam:",null,"\"vul hier de naam van cliënt in\"",null,null,null,null,null,null,null,null,null,{"$f":"IFERROR(IF(OR($F$5=\"opname\",$F$5=\"VPT\"),$FI$7*$H$1,$BR$10),0)","v":0},null,null,null,null,null,"Koppeling tijdseenheid aan functie",null,"Koppeling grondslag aan ZZP's",null,null,null,null,null,"Gunningsperceptage","Koppeling prestaties bij bijbehorende functies",null,null,null,null,null,null,null,null,null,null,null,"Koppeling uren aan klasse",null,null,{"$f":"IF(OR(F5=\"Deeltijd verblijf icm MPT\",F5=\"logeren icm MPT\"),\"MPT\",F5)","v":"MPT"},null,null,null,null,null,null,"Koppeling prestatie aan tarief",null,null,null,"Berekening totaalbedragen:",null,"Berekening ZZP waarde",null,null,null,null,null,null,"Ruimte behandeling bepalen",null,"Keuzelijst EKT","Berekening EKT","Extramurale ruimte en beademing",null,{"$f":"IFERROR(VLOOKUP(Q23,BO12:BQ14,3,FALSE),0)","v":0},"Aanvraag akkoord?",null,null,null,"Logeren",null,null,"Omrekening naar huidige rekenmodule",null,null,null,null,null,null,null,null,null,"Dagbesteding",null,null,"PGBbedrag bepalen",null,null,null,null,null,null,null,null,null,null,null,null,"Opslag bepaling",null,null,null,null,null,null,null,null,null,null,null,null,null,null,null,null,null,3.5,"1vg","Licht",{"$f":"IF(D42=\"meerzorg\",\"ja\",\"nee\")","v":"nee"},"1GGZ B","ja","Nee",0,10,null,null,null,null,null,null,null,null,null,null,null,"MPT",null,null,"Bgind","Bgind","Bgind","Bgind","VPTprestatie","Verblijfsprestatie","Verblijfsprestatie",null,"Z025 ZZP 2vv incl.db","V025 VPT 2vv excl.bh incl.db",null,null,null,"1vv","Z015 ZZP 1vv incl.db","Opname",{"$f":"CONCATENATE(FB2,FD2)","v":"1vvOpname"},{"$f":"VLOOKUP(FC2,Tarieven_ZZP1,7,FALSE)","v":120.27},{"$f":"FF2*7","v":841.89},null,null,null,null,"1GGZ-W",1,null,null,null,1,"Logeren icm MPT",{"$f":"'Deeltijd verblijf'!M17","v":{"$error":"#N/A"}},null,null,null,null,{"$f":"E18","v":0},{"$f":"IF(B18=\"Deeltijd_verblijf\",1,0)","v":0},{"$f":"IF(B18=\"Verblijfsprestatie\",1,0)","v":0},{"$f":"SUM(FY2:FZ2)","v":0},{"$f":"IFERROR(IF(FX2=0,\"\",(IF(GA2=0,\"Nee\",\"Ja\"))),0)","v":""},{"$f":"E18","v":0},{"$f":"IFERROR(VLOOKUP(GC2,$GA$18:$GB$18,2,0),0)","v":0},{"$f":"IF(GD2=\"ja\",\"ja\",\"Nee\")","v":"Nee"}]
[null,"BSN",null,"\"vul hier het BSN van cliënt in\"",null,null,null,null,null,null,null,null,null,null,null,null,null,null,null,null,null,null,null,null,null,null,null,null,null,null,null,null,null,null,null,null,null,null,null,null,null,null,null,null,null,null,null,null,null,null,null,null,null,null,null,null,null,null,null,null,null,null,null,null,null,null,null,null,null,null,null,null,null,null,null,null,null,null,null,null,null,null,null,null,null,null,null,null,null,null,null,null,null,null,null,null,null,null,null,null,null,null,null,null,null,null,null,null,null,null,null,null,null,null,null,null,null,null,null,null,null,4,null,null,null,null,null,null,null,null,null,null,null,null,null,null,null,null,null,null,null,"VPT",null,null,"PV","PV","PV","PV","Dagbesteding","Dagbesteding","BHind",null,"Z031 ZZP 3vv excl.bh incl.db","V031 VPT 3vv excl.bh incl.db",null,null,null,"2vv","Z025 ZZP 2vv incl.db","Opname","2vvOpname",154.76,{"$f":"FF3*7","v":1083.32},null,null,null,null,"2GGZ-W",1,null,null,null,2,"MPT",{"$f":"IFERROR(IF(OR($F$5=\"opname\",$F$5=\"VPT\"),$FI$7*$H$1,$BR$10),0)","v":0},null,null,null,null,0,{"$f":"IF(B19=\"Deeltijd_verblijf\",1,0)","v":0},{"$f":"IF(B19=\"Verblijfsprestatie\",1,0)","v":0},{"$f":"SUM(FY3:FZ3)","v":0},{"$f":"IFERROR(IF(FX3=0,\"\",(IF(GA3=0,\"Nee\",\"Ja\"))),0)","v":""},{"$f":"E19","v":0},{"$f":"IFERROR(VLOOKUP(GC3,$GA$18:$GB$18,2,0),0)","v":0},{"$f":"IF(GD3=\"ja\",\"ja\",\"Nee\")","v":"Nee"}]
[null,"Datum aanvraag",null,"\"vul hier de dagtekening van verzending in\"",null,null,null,null,null,null,null,null,null,null,null,null,null,null,null,null,null,null,null,null,null,null,null,null,null,null,null,null,null,null,null,null,null,null,null,null,null,null,null,null,null,null,null,null,null,null,null,null,null,null,null,null,null,null,null,null,null,null,null,null,null,null,null,null,null,null,null,null,null,null,null,null,null,null,null,null,null,null,null,null,null,null,null,null,null,null,null,null,null,null,null,null,null,null,null,null,null,null,null,null,null,null,null,null,null,null,null,null,null,null,null,null,null,null,null,null,null,4.5,null,null,null,null,null,null,null,null,null,null,null,null,null,null,null,null,null,null,null,"Opname",null,null,"VP","VP","VP","VP","Bhind","Bhind",null,null,"Z033 ZZP 3vv incl.bh incl.db","V033 VPT 3vv incl.bh incl.db",null,null,null,"3vv","Z033 ZZP 3vv incl.bh incl.db","Opname","3vvOpname",221.65,1551.55,null,null,null,null,"3GGZ-W",1,null,null,null,3,"VPT",{"$f":"IFERROR(IF(OR($F$5=\"opname\",$F$5=\"VPT\"),$FI$7*$H$1,$BR$10),0)","v":0},null,null,null,null,0,{"$f":"IF(B20=\"Deeltijd_verblijf\",1,0)","v":0},{"$f":"IF(B20=\"Verblijfsprestatie\",1,0)","v":0},0,"",0,0,"Nee"]
[null,"Datum ingang ZTW",null,"\"vul hier de gewenste ingangsdatum zorgtoewijzing in\"",null,"MPT",null,null,"Aantal etmalen  verblijf p/w",null,null,null,{"$f":"IF(F5=\"MPT\",\"Ruimte\",IF(OR(F5=\"logeren icm MPT\",F5=\"deeltijd verblijf icm zorg thuis\"),\"Ruimte\",\"Financiële ruimte\"))","v":"Ruimte"},null,null,null,null,null,null,null,null,null,null,null,null,null,null,null,null,null,null,null,null,null,null,null,null,null,null,null,null,null,null,null,null,null,null,null,null,null,null,null,null,null,null,null,null,null,null,null,null,null,null,null,null,"Ja; Extra kosten thuis",{"$f":"$M$6*25%","v":0},null,null,null,null,null,null,null,null,null,null,null,null,null,null,null,null,null,null,null,null,null,null,null,null,null,null,null,null,null,null,null,null,null,null,null,null,null,null,null,null,null,null,null,null,null,null,null,null,null,null,null,null,null,null,null,null,null,null,null,null,null,null,null,null,null,null,null,null,null,null,null,null,null,null,"Deeltijd verblijf icm zorg thuis",null,null,"Logeren","BGgrp","BGgrp","BGgrp","BHgrp","BHgrp","VPT2",null,"Z041 ZZP 4vv excl.bh incl.db","V041 VPT 4vv excl.bh incl.db",null,null,null,"4vv","Z043 ZZP 4vv incl.bh incl.db","Opname","4vvOpname",214.3,1500.1000000000001,null,null,null,null,"4GGZ-W",1,null,null,null,3.5,"Opname",{"$f":"IFERROR(IF(OR($F$5=\"opname\",$F$5=\"VPT\"),$FI$7*$H$1,$BR$10),0)","v":0},null,null,null,null,0,0,0,0,"",0,0,"Nee"]
[null,"Aan te vragen zorg",null,null,null,null,null,null,null,null,null,null,{"$f":"IFERROR(VLOOKUP(F5,FR1:FS5,2,FALSE),0)","v":0},"Doelmatigheidsbedrag DTV en zorg thuis samen",null,null,null,null,null,null,null,null,null,null,null,null,null,null,null,null,null,null,null,null,null,null,null,null,null,null,null,null,null,null,null,null,null,null,null,null,null,null,null,null,null,null,null,"code","groep",null,null,null,null,null,null,"Ja; opgroeiend kind thuis jonger dan 23 jaar",{"$f":"$M$6*25%","v":0},"Tarief beademing",null,0,"Totale ruimte",null,{"$f":"$M$10+$FS$8+$BX$14","v":0},null,"Totaal ingezet",{"$f":"BD9","v":0},null,null,null,null,null,null,null,null,null,null,null,null,"code","groep","ZZP","ZZP","PV",null,"VP",null,"Bgind",null,"BGgrp",null,"ZZP-"," Totaal ","Totaal minus ophoging",25,"K8",null,"KD09",null,null,null,null,null,null,null,null,{"$f":"IFERROR(VLOOKUP(B18,$T$7:$U$19,2,FALSE),0)","v":0},{"$f":"IF(D18=\"F125 Dagactiviteit LZA\",\"Minuten\",0)","v":0},{"$f":"IF(DM6=\"minuten\",DM6,DL6)","v":0},{"$f":"E18","v":0},"Dagbesteding koppelen aan ZZP",null,null,"2vg","Licht",null,"2GGZ-W","ja","Nee",0,12.5,null,"Grensuren",{"$f":"IFERROR(IF(DU2=\"ja\",VLOOKUP($G$10,$DV$2:$DZ$35,4,FALSE),VLOOKUP($G$10,$DV$36:$DZ$83,4,FALSE)),0)","v":0},null,null,null,null,null,null,null,null,"Logeren icm MPT",null,null,"BGgrp","Bhgrp","Bhgrp","Bhgrp",null,null,"VPTprestatie",null,"Z043 ZZP 4vv incl.bh incl.db","V043 VPT 4vv incl.bh incl.db",null,null,null,"5vv","Z053 ZZP 5vv incl.bh incl.db","Opname","5vvOpname",354.78,2483.46,null,null,null,null,"5GGZ-W",1,null,null,null,4,null,null,null,null,null,null,0,0,0,0,"",0,0,"Nee"]
[null,null,null,null,null,null,null,null,null,null,null,null,{"$f":"FS3","v":0},"100%, hiermee worden toewijspercentages berekend",null,null,null,null,null,"Bgind","Minuten","SOM","PG","GGZ","VG","LG","ZG",0.7,"BH-IND","BH-GRP","BG-GRP","Deeltijd_verblijf","Schoonmaak","Logeren","VP","PV","Verblijf","VPT","Vervoer","BG-IND","omvang uren","Klasse","Functie","Totaal uren per functie","Gedeeld door 60","Afronding","Om 0 te compenceren",null,"Klasse","Compensatie K0 bij VP","F125 Dagactiviteit LZA","F125",{"$f":"VLOOKUP(AZ7,Tarieven_ZIN1,2,0)","v":14.76},null,"Bedrag aan Behandeling ind:",{"$f":"SUMIF($B$18:$G$31,\"Bhind\",$I$18:$I$31)","v":0},"1GGZ B",860,"ja",1,{"$f":"BH7/365*7","v":1.9178082191780823E-2},"JA",{"$f":"VLOOKUP(G10,BE7:BI54,5,FALSE)","v":{"$error":"#N/A"}},"1VV",{"$f":"VLOOKUP(BL7,'Ruimte behandeling basis MPT'!$A$2:$H$46,8,FALSE)","v":0},"Ja; ouder met kind jonger dan 18 die thuis woont",{"$f":"$M$6*25%","v":0},null,null,{"$f":"BK7","v":{"$error":"#N/A"}},"Totale omvang ZIN",null,{"$f":"I32","v":0},null,null,null,null,"Klasse","Omvang oud","Functie","Bedrag ","prestatie",null,null,null,null,null,"1GGZ B","wel","nvt",null,"code",null,null,null,null,null,null,null,null,"ophoging",null,null,null,"Totaal minuten/dagdelen","Uren/dagdelen","Max klasse",null,null,{"$f":"VLOOKUP(G$10,$CJ$7:$CL$54,2,FALSE)","v":{"$error":"#N/A"}},null,null,{"$f":"IF(G10=\"10VV\",DH9,DI9)","v":"Lijst4"},null,null,0,0,{"$f":"IF(DM7=\"minuten\",DM7,DL7)","v":0},{"$f":"E19","v":0},"Licht","Midden","Zwaar","3vg","Licht",null,"3GGZ-W","ja","Nee",0,16,null,null,null,null,null,null,null,null,null,null,null,"Verblijf2",null,null,"Bhgrp","Bhind","Bhind","Bhind",null,null,"BHind",null,"Z051 ZZP 5vv excl.bh incl.db","V051 VPT 5vv excl.bh incl.db",null,null,null,"6vv","Z063 ZZP 6vv incl.bh incl.db","Opname","6vvOpname",330.2,2311.4,{"$f":"IF(F5=\"Deeltijd verblijf icm zorg thuis\",CONCATENATE(G10,FH1),CONCATENATE(G10,F5))","v":"MPT"},{"$f":"IFERROR(VLOOKUP(FH7,FE2:FG136,3,FALSE),0)","v":0},null,null,"6GGZ B",2,null,null,null,4.5,null,null,null,null,null,null,0,0,0,0,"",0,0,"Nee"]
[null,"Wlz  sector (Som, PG, VG,LG of ZG)",null,null,null,null,null,null,"Vul weekbedrag PGB in:",null,null,null,null,{"$f":"IFERROR(IF(F5=\"MPT\",M8/M6,M8/U1),\" \")","v":" "},"Let op: percentage van MPT",null,null,null,null,"PV","Minuten","1VV","4VV","1GGZ-W","1LVG","1LG","1ZGvis",0.92,"H325 Behandeling lvg","H802 Dagbehandeling ouderen som en pg","F125 Dagactiviteit LZA","D031 DTV 3VV","H117 Huishoudelijke hulp","Z999 Logeren GHZ-VG","H104 Verpleging","H126 Persoonlijke verzorging","Z015 ZZP 1vv incl.db","V015 VPT 1vv excl.bh incl.db","H803 Vervoer dagbesteding/dagbehandeling V&V","H150 Begeleiding incl. beschikbaarheid",0,"Nvt","Bgind",{"$f":"SUMIF($B$18:$B$31,\"bgind\",$F$18:$F$31)","v":0},{"$f":"AR8/60","v":0},{"$f":"FLOOR(AS8,1)","v":0},{"$f":"IF(AR8>0,1,0)","v":0},{"$f":"IF(AT8+AU8<=1,AU8,AT8)","v":0},{"$f":"IFERROR(VLOOKUP(AV8,$AO$8:$AP$33,2,FALSE),\"K8\")","v":"Nvt"},null,"H104 Verpleging","H104",87.74,null,"Bedrag aan behandeling grp",{"$f":"SUMIF($B$18:$G$31,\"Bhgrp\",$I$18:$I$31)","v":0},"2GGZ B",862,"ja",1,{"$f":"BH8/365*7","v":1.9178082191780823E-2},null,null,"2VV",{"$f":"VLOOKUP(BL8,'Ruimte behandeling basis MPT'!$A$2:$H$46,8,FALSE)","v":0},"ja; sprake van betaalde arbeid",{"$f":"$M$6*25%","v":0},null,null,{"$f":"IFERROR(VLOOKUP(G10,BN16:BR31,5,FALSE),0)","v":0},null,null,{"$f":"(2+BU6)-BU7","v":2},null,null,null,null,"K0",0.5,"Bgind",0,"H302",null,null,null,null,null,"2GGZ B","wel","nvt","weg",860,0,{"$f":"CO8/52","v":0},0,{"$f":"CQ8/52","v":0},0,{"$f":"CS8/52","v":0},0,{"$f":"CU8/52","v":0},0,0,0,"Bgind",{"$f":"SUMIF($B$18:$B$31,\"bgind\",$F$18:$F$31)","v":0},{"$f":"DA8/60","v":0},25,{"$f":"DB8-DC8","v":-25},{"$f":"IF(DD8>0,DD8,0)","v":0},null,null,null,null,null,null,0,0,0,0,"F125 Dagactiviteit LZA","F125 Dagactiviteit LZA","F125 Dagactiviteit LZA","4vg","Licht",null,"4GGZ-W","ja","ja",0,18.5,null,null,null,null,null,null,null,null,null,null,null,"VolPT2",null,null,"Bhind","Schoonmaak","Schoonmaak","Schoonmaak",null,null,null,null,"Z053 ZZP 5vv incl.bh incl.db","V053 VPT 5vv incl.bh incl.db",null,null,null,"7vv","Z073 ZZP 7vv incl.bh incl.db","Opname","7vvOpname",430.2,3011.4,null,null,null,null,"7GGZ B",2,null,null,null,null,"Ruimte EKT",{"$f":"IF(OR($Q$22=\"\",$Q$22=\"Nee\",$BN$12<0),0,FS3/100*25)","v":0},null,null,null,null,0,0,0,0,"",0,0,"Nee"]
[null,null,null,null,null,null,null,null,null,null,null,null,"         Ruimte voor zorg in natura",null,null,null,null,null,null,"VP","Minuten","2VV","5VV","2GGZ-W","2LVG","2LG","2ZGvis",0.92500000000000004,"H329 Behandeling gedragswetenschapper","H804 Gespecialiseerde dagbehandeling Huntington lg of som","H132 Nachtverzorging","D041 DTV 4VV",null,"Z1000 Logeren GHZ-LG","H106 Verpleging speciaal","H120 Persoonlijke verzorging speciaal","Z025 ZZP 2vv incl.db","V025 VPT 2vv excl.bh incl.db","H881 Vervoer dagbesteding/dagbehandeling ghz - categorie 1","H152 Begeleiding speciaal 1 (nah)",1,"K1","PV",{"$f":"SUMIF($B$18:$B$31,\"PV\",$F$18:$F$31)","v":0},{"$f":"AR9/60","v":0},{"$f":"FLOOR(AS9,1)","v":0},{"$f":"IF(AR9>0,1,0)","v":0},{"$f":"IF(AT9+AU9<=1,AU9,AT9)","v":0},{"$f":"IFERROR(VLOOKUP(AV9,AO8:AP33,2,FALSE),\"k8\")","v":"Nvt"},null,"H106 Verpleging speciaal","H106",110.05,null,"Bedrag aan logeren",{"$f":"SUMIF($B$18:$G$31,\"logeren\",$I$18:$I$31)","v":0},"1GGZ-W",864,"ja",{"$f":"VLOOKUP(BE9,Tarieven_PGB0,13,FALSE)","v":53246},1021.1561643835616,null,null,"3VV",{"$f":"VLOOKUP(BL9,'Ruimte behandeling basis MPT'!$A$2:$H$46,8,FALSE)","v":189},"Ja; Cliënt is Wlz indiceerbaar",{"$f":"$M$6*25%","v":0},{"$f":"BR7-BR8","v":{"$error":"#N/A"}},null,null,{"$f":"IF(BU8>=0,1,0)","v":1},null,null,null,null,null,null,"K1",1,"PV",0,"H128",null,null,null,null,null,"3GGZ B","wel","nvt","weg",862,0,{"$f":"CO9/52","v":0},0,{"$f":"CQ9/52","v":0},0,{"$f":"CS9/52","v":0},0,{"$f":"CU9/52","v":0},0,0,0,"PV",{"$f":"SUMIF($B$18:$B$31,\"PV\",$F$18:$F$31)","v":0},{"$f":"DA9/60","v":0},25,{"$f":"DB9-DC9","v":-25},0,1,2,"lijst4","Lijst4","Lijst 3",null,0,0,0,0,"H132 Nachtverzorging","H132 Nachtverzorging","H132 Nachtverzorging","5vg","Midden",null,"5GGZ-W","ja","ja",0,20,null,null,null,null,null,null,null,null,null,null,null,null,null,null,"Schoonmaak","Deeltijd_verblijf","Logereb",null,null,null,null,null,"Z061 ZZP 6vv excl.bh incl.db","V061 VPT 6vv excl.bh incl.db",null,null,null,"8vv","Z083 ZZP 8vv incl.bh incl.db","Opname","8vvOpname",534.65,3742.5499999999997,null,null,null,null,"1VG",1,null,null,null,null,"EKT bij DTV",{"$f":"IF(OR($Q$22=\"\",$Q$22=\"Nee\",$BN$12<0),0,IF(F5=\"Deeltijd verblijf icm zorg thuis\",FS8/7*'Deeltijd verblijf'!L7,0)+'Deeltijd verblijf'!M6*25%)","v":0},null,null,null,null,0,0,0,0,"",0,0,"Nee"]
[null,"Geïndiceerd profiel",null,null,null,null,null,null,null,null,null,null,{"$f":"IF(M8>=0,M6-M8,\"fout, PGB bedrag\")","v":0},null,null,null,null,null,null,"BGgrp","Dagdelen","3VV","7VV","3GGZ-W","3LVG","3LG","3ZGvis",0.93,"H330 Behandeling paramedisch","H817 Dagbehandeling VG kind emg","H180 Nachtverpleging","D051 DTV 5VV",null,"Z1001 Logeren GHZ-LVG","H118 Verpleging speciaal aan kinderen tot 18 jaar incl. beschikbaarheid","H127 Persoonlijke verzorging incl. beschikbaarheid","Z031 ZZP 3vv excl.bh incl.db","V031 VPT 3vv excl.bh incl.db","H882 Vervoer dagbesteding/dagbehandeling ghz - categorie 2","H153 Begeleiding speciaal 2 (psy)",2,"K2","VP",{"$f":"SUMIF($B$18:$B$31,\"VP\",$F$18:$F$31)","v":0},{"$f":"AR10/60","v":0},{"$f":"FLOOR(AS10,1)","v":0},{"$f":"IF(AR10>0,1,0)","v":0},{"$f":"IF(AT10+AU10<=1,AU10,AT10)","v":0},{"$f":"IF(IFERROR(VLOOKUP(AV10,AO8:AP33,2,FALSE),\"K8\")=\"k8\",\"K7\",VLOOKUP(AV10,AO8:AP33,2,FALSE))","v":"Nvt"},{"$f":"IF(AND(AS10<1,AU10=1),\"K0\",AW10)","v":"Nvt"},"H118 Verpleging speciaal aan kinderen tot 18 jaar incl. beschikbaarheid","H118",142.94999999999999,null,null,null,"2GGZ-W",766,"ja",57739,1107.3232876712329,null,null,"4VV",{"$f":"VLOOKUP(BL10,'Ruimte behandeling basis MPT'!$A$2:$H$46,8,FALSE)","v":93.240000000000151},"Nee",0,null,null,{"$f":"IF(BR7=BR8,BR7,SUM(BR6:BR9))","v":{"$error":"#N/A"}},null,null,null,null,null,null,null,"K2",3,"VP",0,"H106",null,null,null,null,null,"4GGZ B","wel","nvt","1GGZ-W",864,0,0,0,0,0,0,0,0,0,0,0,"VP",{"$f":"SUMIF($B$18:$B$31,\"VP\",$F$18:$F$31)","v":0},{"$f":"DA10/60","v":0},20,{"$f":"DB10-DC10","v":-20},0,"Ja","Nvt",null,null,null,null,0,0,0,0,"H180 Nachtverpleging","H180 Nachtverpleging","H180 Nachtverpleging","6vg","Midden",null,"6GGZ B","ja","Nee",0,27,null,null,null,null,null,null,null,null,null,null,null,{"$f":"IFERROR(VLOOKUP(G10,FL2:FM49,2,FALSE),0)","v":0},null,null,null,"Logeren",null,null,"V015 VPT 1vv excl.bh incl.db",null,null,null,"Z063 ZZP 6vv incl.bh incl.db","V063 VPT 6vv incl.bh incl.db",null,null,null,"9vvb","Z097 ZZP 9bvv incl.bh incl.db","Opname","9vvbOpname",380.38,2662.66,null,null,null,null,"2VG",1,null,null,null,null,"EKT bij Logeren",0,null,null,null,null,0,0,0,0,"",0,0,"Nee"]
[null,null,null,null,null,null,null,null,null,null,null,null,"Maximale ruimte Extra kosten thuis",null,null,null,null,null,null,"Vervoer","Dag","4VV","9VVb","4GGZ-W","4LVG","4LG","4ZGvis",0.93500000000000005,"H331 Behandeling Families First lvg","H819 Dagbehandeling VG EMG volwassenen","H531 Dagbesteding basis","D061 DTV 6VV",null,"Z1002 Logeren GHZ-ZG","H119 Verpleging speciaal aan kinderen tot 18 jaar exclusief beschikbaarheid","H138 Thuiszorgtechnologie ten behoeve van persoonlijke verzorging ","Z041 ZZP 4vv excl.bh incl.db","V041 VPT 4vv excl.bh incl.db","H883 Vervoer dagbesteding/dagbehandeling ghz - categorie 3","H300 Begeleiding",3,"K2","Bhind",{"$f":"SUMIF($B$18:$B$31,\"bhind\",$F$18:$F$31)","v":0},{"$f":"AR11/60","v":0},{"$f":"FLOOR(AS11,1)","v":0},{"$f":"IF(AR11>0,1,0)","v":0},{"$f":"IF(AT11+AU11<=1,AU11,AT11)","v":0},{"$f":"IF(AV11>0,99,\"Nvt\")","v":"Nvt"},null,"H117 Schoonmaak","H117",39.74,null,"Totaal behandeling",{"$f":"SUM(BD7:BD8)","v":0},"3GGZ-W",768,"ja",64333,1233.7835616438356,null,null,"5VV",{"$f":"VLOOKUP(BL11,'Ruimte behandeling basis MPT'!$A$2:$H$46,8,FALSE)","v":116.40999999999997},{"$f":"IF(R21=\"ja\",BO6,BO10)","v":0},{"$f":"IFERROR(VLOOKUP(Q22,BN5:BO10,2,0),0)","v":0},null,null,{"$f":"SUM(BR7:BR9)","v":{"$error":"#N/A"}},"Behandeling ruimte",null,{"$f":"T20","v":0},null,"Toegestaan logeren",0,null,"K3",5.5,"Bhind",0,"H332",null,null,null,null,null,"5GGZ B","wel","nvt","2GGZ-W",766,0,0,0,0,0,0,0,0,0,0,0,"Bhind",{"$f":"SUMIF($B$18:$B$31,\"bhind\",$F$18:$F$31)","v":0},{"$f":"DA11/60","v":0},"nvt",{"$f":"IFERROR(DB11-DC11,0)","v":0},0,"Nee",null,"Ja; opgroeiend kind thuis jonger dan 23 jaar","Ja; opgroeiend kind thuis jonger dan 23 jaar","Extra overbruggingszorg (urgent of actief plaatsen)",null,0,0,0,0,"H531 Dagbesteding basis","H531 Dagbesteding basis","H531 Dagbesteding basis","7vg","Zwaar",null,"7GGZ B","ja","Nee",0,33,null,null,null,null,null,null,null,null,null,null,null,{"$f":"IF(F5=\"opname\",6,IF(F5=\"VPT\",10,IF(F5=\"deeltijd verblijf icm MPT\",20,IF(F5=\"logeren icm MPT\",30,0))))","v":0},null,null,null,null,null,null,"V025 VPT 2vv excl.bh incl.db",null,null,null,"Z071 ZZP 7vv excl.bh incl.db","V071 VPT 7vv excl.bh incl.db",null,null,null,"10vv","Z103 ZZP 10vv incl.bh incl.db","Opname","10vvOpname",595.94000000000005,4171.58,null,null,null,null,"3VG",1,null,null,null,null,null,null,null,null,null,null,0,0,0,0,"",0,0,"Nee"]
[null,"Is er sprake van PGB naast ZIN?",null,null,null,null,null,null,null,null,null,null,{"$f":"IF(F5=\"MPT\",FS8,IF(F5=\"deeltijd verblijf icm zorg thuis\",FS9,FS10))","v":0},null,"LET OP: Meerzorg gekozen, klik hier voor onderbouwing!",null,null,null,null,"Bhgrp","Dagdelen","6VV","10VV","5GGZ-W","5LVG","5LG","5ZGvis",0.94,"H332 Behandeling ZG visueel","H820 Dagbehandeling VG kind midden","H533 Dagbesteding psychogeriatrisch","D071 DTV 7VV",null,"Z1003 Logeren VV","H139 Thuiszorgtechnologie ten behoeve van verpleging",null,"Z051 ZZP 5vv excl.bh incl.db","V051 VPT 5vv excl.bh incl.db","H884 Vervoer dagbesteding/dagbehandeling ghz - categorie 4","H301 Begeleiding ZG visueel",4,"K3","BGgrp",{"$f":"AW16+AW19","v":0},"nvt",{"$f":"AR12","v":0},"nvt",{"$f":"IF(AT12<=9,AT12,9)","v":0},{"$f":"VLOOKUP(AV12,AQ16:AR25,2,FALSE)","v":"Nvt"},null,"H120 Persoonlijke verzorging speciaal","H120",87.74,null,null,null,"4GGZ-W",770,"ja",76768,1472.2630136986302,null,null,"6VV",{"$f":"VLOOKUP(BL12,'Ruimte behandeling basis MPT'!$A$2:$H$46,8,FALSE)","v":125.86000000000013},{"$f":"BO11-BN15","v":0},"ja invasieve beademing",0,{"$f":"BP12*7","v":0},null,"Aanvraag BH",null,{"$f":"I33","v":0},null,"per week",{"$f":"BX11/365*7","v":0},null,"K4",8.5,"BGgrp",0,"H822",null,null,null,null,null,"6GGZ B","wel","nvt","3GGZ-W",768,0,0,0,0,0,0,0,0,0,0,0,"BGgrp",{"$f":"DB19+DA20","v":0},{"$f":"CEILING(DA12,1)","v":0},9,{"$f":"DB12-DC12","v":-9},0,null,null,"Ja; ouder met kind jonger dan 18 die thuis woont","Ja; ouder met kind jonger dan 18 die thuis woont","Palliatief terminale zorg",null,0,0,0,0,"H533 Dagbesteding psychogeriatrisch","H533 Dagbesteding psychogeriatrisch","H533 Dagbesteding psychogeriatrisch","8vg","Midden",null,"1VG","ja","Nee",0,11.5,null,null,null,null,null,null,null,null,null,null,null,{"$f":"SUM(EL10:EL11)","v":0},null,null,null,null,null,"Z015 ZZP 1vv incl.db","V031 VPT 3vv excl.bh incl.db",null,null,null,"Z073 ZZP 7vv incl.bh incl.db","V073 VPT 7vv incl.bh incl.db",null,null,null,"1vg","Z415 ZZP 1vg incl.db","Opname","1vgOpname",155.28,1086.96,null,null,null,null,"4VG",1,null,null,null,null,"Ruimte BH",{"$f":"IF(AND($I$33>0,$F$5=\"MPT\"),$T$20,0)","v":0},null,null,null,null,0,0,0,0,"",0,0,"Nee"]
[null,{"$f":"IFERROR(VLOOKUP(\"verblijfsprestatie\",B18:G31,5,0),0)","v":0},{"$f":"IF(B13=7,0,1)","v":1},{"$f":"IF(AND(F5=\"opname\",C13=1),1,2)","v":2},null,null,null,null,null,null,null,null,null,null,"LET OP: inzet uren past binnen reguliere ZZP uren. Meerzorg niet toegestaan",null,null,null,null,"Schoonmaak","Minuten","7VV",null,null,"1SGLVG","6LG","1ZGaud",0.94499999999999995,"H333 Behandeling ZG auditief","H821 Dagbehandeling VG kind zwaar","H800 Dagbesteding somatisch ondersteunend","D081 DTV 8VV",null,"Z1004 Logeren GGZ wonen","H128 Verpleging extra",null,"Z061 ZZP 6vv excl.bh incl.db","V061 VPT 6vv excl.bh incl.db","H885 Vervoer dagbesteding/dagbehandeling ghz - categorie 5","H302 Begeleiding speciaal 2 (visueel)",5,"K3","BHgrp",{"$f":"SUMIF($B$18:$B$31,\"BHgrp\",$F$18:$F$31)","v":0},"nvt",{"$f":"AR13","v":0},"nvt",{"$f":"IF(AT13<=9,AT13,9)","v":0},{"$f":"VLOOKUP(AV13,AQ16:AR25,2,FALSE)","v":"Nvt"},null,"H126 Persoonlijke verzorging","H126",67.47,null,"Totale omvang zorg thuis:",{"$f":"SUM(I18:I31)-I33","v":0},"5GGZ-W",772,"ja",91650,1757.6712328767123,null,null,"7VV",{"$f":"VLOOKUP(BL13,'Ruimte behandeling basis MPT'!$A$2:$H$46,8,FALSE)","v":156.16999999999962},{"$f":"IF(R21=\"ja\",0,BR2)","v":0},"ja non-invasieve beademing",0,{"$f":"BP13*7","v":0},null,null,null,{"$f":"BU11-BU12","v":0},null,null,null,null,"K5",11.5,"BHgrp",0,"H822",null,null,null,null,null,"7GGZ B","wel","nvt","4GGZ-W",770,0,0,0,0,0,0,0,0,0,0,0,"BHgrp",{"$f":"SUMIF($B$18:$B$31,\"BHgrp\",$F$18:$F$31)","v":0},{"$f":"DA13","v":0},9,{"$f":"DB13-DC13","v":-9},0,null,null,"ja; sprake van betaalde arbeid","ja; sprake van betaalde arbeid","Meerzorg",null,0,0,0,0,"H800 Dagbesteding somatisch ondersteunend","H800 Dagbesteding somatisch ondersteunend","H800 Dagbesteding somatisch ondersteunend","1vv","BGgrp",null,"2VG","ja","Nee",0,14.5,null,null,null,null,null,null,null,null,null,null,null,null,null,null,null,null,null,"Z025 ZZP 2vv incl.db","V033 VPT 3vv incl.bh incl.db",null,null,null,"Z081 ZZP 8vv excl.bh incl.db","V081 VPT 8vv excl.bh incl.db",null,null,null,"2vg","Z425 ZZP 2vg incl.db","Opname","2vgOpname",172.91,1210.3699999999999,null,null,null,null,"5VG",1,null,null,null,null,"BH bij DTV",{"$f":"IF(AND($I$33>0,$F$5=\"Deeltijd verblijf icm zorg thuis\"),$T$20,0)","v":0},null,null,null,null,0,0,0,0,"",0,0,"Nee"]
[null,null,null,"LET OP: Verblijf moet 7 etmalen bevatten of keuze DTV!",null,"De rekenmodule is afgestemd met de cliënt:",null,null,null,null,null,null,"Ruimte voor behandeling",null,null,"\"Vul hier onderbouwing bijzondere situatie in\"",null,null,null,"Deeltijd_verblijf","Etmalen","8VV",null,null,"1VG","7LG","2ZGaud",0.95,"H334 Behandeling IOG lvg","H822 Dagbehandeling VG kind gedrag","H811 Dagbesteding VG licht","D430 DTV 3VG",null,"Z1006 Logeren GHZ-ZEVMB",null,null,"Z071 ZZP 7vv excl.bh incl.db","V071 VPT 7vv excl.bh incl.db","H321 Reiskosten prestaties behandeling (H325 t/m H331 en H334 t/m H336)","H303 Begeleiding ZG auditief",6,"K3","Logeren",{"$f":"SUMIF($B$18:$B$31,\"logeren\",$F$18:$F$31)","v":0},"nvt",{"$f":"AR14","v":0},"nvt",{"$f":"IF(AT14<=7,AT14,7)","v":0},{"$f":"VLOOKUP(AV14,AS16:AT23,2,FALSE)","v":"Nvt"},null,"H127 Persoonlijke verzorging incl. beschikbaarheid","H127",72.260000000000005,null,"MPT bedrag",{"$f":"BD13-BD11","v":0},"1VG",800,"ja",43344,831.25479452054799,null,null,"8VV",{"$f":"VLOOKUP(BL14,'Ruimte behandeling basis MPT'!$A$2:$H$46,8,FALSE)","v":118.93000000000006},null,"Nee",0,0,null,{"$f":"IF(BU13<0,3,0)","v":0},null,null,null,"Toeslag op te tellen",{"$f":"IF(BX12>=BX6,BX6,BX12)","v":0},null,"K6",14.5,null,null,null,null,null,null,null,null,"1VG","wel","nvt","5GGZ-W",772,0,0,0,0,0,0,0,0,0,0,0,"HV",{"$f":"SUMIF($B$18:$B$31,\"schoonmaak\",$F$18:$F$31)","v":0},{"$f":"DA14/60","v":0},25,{"$f":"DB14-DC14","v":-25},0,null,null,"Ja; Extra kosten thuis","Ja; Cliënt is Wlz indiceerbaar","Extra budget voor behandeling",null,0,0,0,0,"H811 Dagbesteding VG licht","H811 Dagbesteding VG licht","H811 Dagbesteding VG licht","2vv","BGgrp",null,"3VG","ja","Nee",0,17.5,null,null,null,null,null,null,null,null,null,null,null,null,null,null,null,null,null,"Z031 ZZP 3vv excl.bh incl.db","V041 VPT 4vv excl.bh incl.db",null,null,null,"Z083 ZZP 8vv incl.bh incl.db","V083 VPT 8vv incl.bh incl.db",null,null,null,"3vg","Z433 ZZP 3vg incl.bh incl.db","Opname","3vgOpname",225.66,1579.62,null,null,null,null,"6VG",1,null,null,null,null,"BH bij Logeren",{"$f":"IF(AND($I$33>0,$F$5=\"Logeren icm MPT\"),$T$20,0)","v":0},null,null,null,null,0,0,0,0,"",0,0,"Nee"]
[null,null,null,null,null,null,null,null,null,null,"bedrag incl EKT:",null,{"$f":"IF(F5=\"MPT\",FS12,IF(F5=\"deeltijd verblijf icm zorg thuis\",FS13,FS14))","v":0},{"$f":"IFERROR(M15/M17,0)","v":0},null,null,null,null,null,"Bhind","Minuten","9VVb",null,null,"2VG",null,"3ZGaud",0.95099999999999996,"H335 Behandeling som, pg, vg, lg, zg (SO)","H840 Dagbehandeling LG/NAH","H812 Dagbesteding VG midden","D440 DTV 4VG",null,null,null,null,"Z081 ZZP 8vv excl.bh incl.db","V081 VPT 8vv excl.bh incl.db","H337 Reiskosten prestatie behandeling (H332 en H333)","H304 Begeleiding speciaal 2 (auditief)",7,"K4","Schoonmaak",{"$f":"SUMIF($B$18:$B$31,\"Schoonmaak\",$F$18:$F$31)","v":0},{"$f":"AR15/60","v":0},{"$f":"FLOOR(AS15,1)","v":0},{"$f":"IF(AR15>0,1,0)","v":0},{"$f":"IF(AT15+AU15<=1,AU15,AT15)","v":0},{"$f":"IFERROR(VLOOKUP(AV15,$AO$8:$AP$33,2,FALSE),\"K8\")","v":"Nvt"},null,"H128 Verpleging extra","H128",93.99,null,null,null,"2VG",802,"ja",51297,983.77808219178075,null,null,"9VVb",{"$f":"VLOOKUP(BL15,'Ruimte behandeling basis MPT'!$A$2:$H$46,8,FALSE)","v":{"$error":"#N/A"}},{"$f":"IF(R25=\"ja\",BO10,0)","v":0},null,null,null,null,"incl beh",null,{"$f":"BU6+BU11","v":0},null,null,null,null,"K7",18,null,null,null,null,null,null,null,null,"2VG","wel","nvt","1LVG",780,0,0,0,0,0,0,0,0,0,0,0,null,null,null,null,null,null,null,null,"Nee","Ja; Extra kosten thuis","Overig",null,0,0,0,0,"H814 Dagbesteding VG kind licht","H812 Dagbesteding VG midden","H812 Dagbesteding VG midden","3vv","BGgrp",null,"4VG","ja","Nee",0,20,null,null,null,null,null,null,null,null,null,null,null,null,null,null,null,null,null,"Z033 ZZP 3vv incl.bh incl.db","V043 VPT 4vv incl.bh incl.db",null,null,null,"Z095 ZZP 9bvv excl.bh incl.db","V095 VPT 9bvv excl.bh incl.db",null,null,null,"4vg","Z443 ZZP 4vg incl.bh incl.db","Opname","4vgOpname",266.67,1866.69,null,null,null,null,"7VG",1,null,null,null,null,null,null,null,null,null,null,0,0,0,0,"",0,0,"Nee"]
[null,"Aangevraagde zorg op weekbasis",null,null,null,null,"Eenheid",null,null,null,{"$f":"IF(AND(Q22=\"Ja; Extra kosten thuis\",M15>0),1,0)","v":0},null,{"$f":"IF(M5=\"financiële ruimte\",\"Bedrag ZIN\",\"Bedrag ZIN\")","v":"Bedrag ZIN"},null,null,null,null,null,null,"Logeren","Etmalen","10VV",null,null,"3VG",null,"4ZGaud",0.95199999999999996,"H336 Behandeling som, pg, vg, lg, zg (AVG)","H891 Dagbehandeling  LVG","H813 Dagbesteding VG zwaar","D454 DTV 5VG",null,null,null,null,"Z095 ZZP 9bvv excl.bh incl.db","V095 VPT 9bvv excl.bh incl.db",null,"H306 Thuiszorgtechnologie ten behoeve van begeleiding",8,"K4",0,"Nvt",0,"Nvt",null,null,{"$f":"SUMIFS(F18:F31,B18:B31,\"BGgrp\",G18:G31,\"Dagdelen\")","v":0},null,"H132 Nachtverzorging","H132",63.92,null,null,null,"3VG",804,"ja",58473,1121.3999999999999,null,null,"10VV",{"$f":"VLOOKUP(BL16,'Ruimte behandeling basis MPT'!$A$2:$H$46,8,FALSE)","v":0},"1VV",750,"nvt",{"$f":"VLOOKUP(BN16,Tarieven_PGB0,13,FALSE)","v":19563},{"$f":"BQ16/365*7","v":375.1808219178082},"omvang",null,{"$f":"BU7+BU12","v":0},null,null,null,null,"K8",22.5,null,null,null,null,null,null,null,null,"3VG","wel","nvt","2LVG",781,0,0,0,0,0,0,0,0,0,0,0,null,null,"Voor voorwaardelijke opmaak \"opslag\"",null,null,null,null,null,null,"Nee","Gespecialiseerd verpleegkundig handelen",null,0,0,0,0,"H818 Dagactiviteit (begeleiding) VG kind gedrag","H814 Dagbesteding VG kind licht","H813 Dagbesteding VG zwaar","4vv","BGgrp",null,"5VG","ja","Ja",{"$f":"DZ16*1.25","v":31.875},25.5,null,null,null,null,null,null,null,null,null,null,null,null,{"$f":"IF(F5=\"deeltijd verblijf icm zorg thuis\",\"Deeltijd\",IF(F5=\"logeren icm MPT\",\"LOG\",F5))","v":"MPT"},null,null,null,null,"Z041 ZZP 4vv excl.bh incl.db","V051 VPT 5vv excl.bh incl.db",null,null,null,"Z097 ZZP 9bvv incl.bh incl.db","V097 VPT 9bvv incl.bhincl.db",null,null,null,"5vg","Z457 ZZP 5vg incl.bh incl.db","Opname","5vgOpname",345.1,2415.7000000000003,null,null,null,null,"8VG",1,null,null,null,null,null,null,null,null,null,null,null,null,null,{"$f":"SUM(GA2:GA15)","v":0}]
[null,"Soort zorg",null,"Prestatie","Leverende AGBcode","Aantal",null,"Tarief","Bedrag per week",null,"Percentage",null,{"$f":"M10+M12+M15","v":0},{"$f":"IFERROR(IF(F5=\"deeltijd verblijf icm zorg thuis\",(M17/'Deeltijd verblijf'!P2),(M17/M6)),0)","v":0},null,null,null,null,null,"verblijfsprestatie","Etmalen",null,null,null,"4VG",null,null,0.95299999999999996,"H338 Behandeling sglvg",null,"H814 Dagbesteding VG kind licht","D460 DTV 6VG",null,null,null,null,"Z101 ZZP 10vv excl.bh incl.db","V101 VPT 10vv excl.bh incl.db",null,"H307 Begeleiding ZIO (zorg in onderwijstijd",9,"K4",1,"KD01",1,"KE1",null,null,{"$f":"SUMIFS(F18:F31,B18:B31,\"BGgrp\",G18:G31,\"Minuten\")","v":0},null,"H138 Thuiszorgtechnologie ten behoeve van persoonlijke verzorging ","H138",67.209999999999994,null,null,null,"4VG",806,"ja",64178,1230.8109589041096,null,null,"1VG",{"$f":"VLOOKUP(BL17,'Ruimte behandeling basis MPT'!$A$2:$H$46,8,FALSE)","v":0},"2VV",751,"nvt",28366,{"$f":"BQ17/365*7","v":544.00547945205471},null,null,{"$f":"BU15-BU16","v":0},null,null,null,null,"KD01",1,null,null,null,null,null,null,null,null,"4VG","wel","nvt","3LVG",782,0,0,0,0,0,0,0,0,0,0,0,null,null,{"$f":"SUM(DE8:DE14)","v":0},null,null,null,null,null,null,null,"Combinatie van EKT en extra behandeling",null,0,0,0,null,"H831 Dagbesteding LG licht","H815 Dagbesteding VG kind midden","H814 Dagbesteding VG kind licht","5vv","BGgrp",null,"6VG","ja","Nee",{"$f":"DZ17*1.25","v":31.25},25,null,null,null,null,null,null,null,null,null,null,null,null,null,null,null,null,null,"Z043 ZZP 4vv incl.bh incl.db","V053 VPT 5vv incl.bh incl.db",null,null,null,"Z101 ZZP 10vv excl.bh incl.db","V101 VPT 10vv excl.bh incl.db",null,null,null,"6vg","Z463 ZZP 6vg incl.bh incl.db","Opname","6vgOpname",308.73,2161.11,null,null,null,null,"1LG",1]
[null,null,{"$f":"IF(B18=\"onklaar\",$DP$1,B18)","v":0},null,null,null,{"$f":"DN6","v":0},{"$f":"IFERROR(IF(OR(COUNTIF(B18:B31,\"VPTprestatie\")>1,(COUNTIF(B18:B31,\"verblijfsprestatie\")>1)),\"fout splitsing\",U30),U30)","v":0},{"$f":"IF(G18=\"minuten\",(H18/60)*F18,F18*H18)","v":0},null,{"$f":"IFERROR(IF($F$5=\"deeltijd verblijf icm zorg thuis\",(I18/'Deeltijd verblijf'!$P$2)*100%,I18/($T$28+$M$8)*100%),0)","v":0},null,null,null,null,null,null,null,null,"Dagbesteding","Dagdelen",null,null,null,"5VG",null,null,0.95399999999999996,null,null,"H815 Dagbesteding VG kind midden","D470 DTV 7VG",null,null,null,null,"Z033 ZZP 3vv incl.bh incl.db","V414 VPT 1vg excl.bh excl.db",null,null,10,"K5",2,"KD02",2,"KE2",null,null,{"$f":"AW17/60","v":0},null,"H139 Thuiszorgtechnologie ten behoeve van verpleging","H139",87.4,null,null,null,"5VG",808,"ja",81844,1569.6109589041096,null,null,"2VG",{"$f":"VLOOKUP(BL18,'Ruimte behandeling basis MPT'!$A$2:$H$46,8,FALSE)","v":0},"3VV",752,"nvt",34530,662.21917808219177,{"$f":"IF(BU17<0,0,4)","v":4},null,null,null,null,null,null,"KD02",2,null,null,null,null,null,null,null,null,"5VG","wel","nvt","4LVG",783,0,0,0,0,0,0,0,0,0,0,0,null,null,null,null,null,null,null,null,null,null,"Toeslag thuiswonend kind <18",null,0,0,0,null,"H834 Dagbesteding LG kind licht","H818 Dagactiviteit (begeleiding) VG kind gedrag","H815 Dagbesteding VG kind midden","6vv","BGgrp",null,"7VG","ja","Ja",45,36,null,null,null,null,null,null,null,null,null,null,null,null,null,null,null,null,null,"Z051 ZZP 5vv excl.bh incl.db","V061 VPT 6vv excl.bh incl.db",null,null,null,"Z103 ZZP 10vv incl.bh incl.db","V103 VPT 10vv incl.bhincl.db",null,null,null,"7vg","Z473 ZZP 7vg incl.bh incl.db","Opname","7vgOpname",435.2,3046.4,null,null,null,null,"2LG",1,null,null,null,null,null,null,null,null,null,null,null,null,"Ja",{"$f":"VLOOKUP(FZ18,GB2:GC15,2,0)","v":{"$error":"#N/A"}},"ja"]
[null,null,{"$f":"IF(B19=\"onklaar\",$DP$1,B19)","v":0},null,null,null,0,{"$f":"U31","v":0},0,null,{"$f":"IFERROR(IF($F$5=\"deeltijd verblijf icm zorg thuis\",(I19/'Deeltijd verblijf'!$P$2)*100%,I19/($T$28+$M$8)*100%),0)","v":0},null,"Vervolgactie na rekenmodule",null,null,null,null,null,null,"VPTprestatie","Etmalen",null,null,null,"6VG",null,null,0.95499999999999996,null,null,"H816 Dagbesteding VG kind zwaar","D480 DTV 8VG",null,null,null,null,"Z043 ZZP 4vv incl.bh incl.db","V424 VPT 2vg excl.bh excl.db",null,null,11,"K5",3,"KD03",3,"KE3",null,null,{"$f":"CEILING(AW18,1)","v":0},null,"H150 Begeleiding incl. beschikbaarheid","H150",80.930000000000007,null,null,null,"6VG",810,"ja",76968,1476.0986301369862,null,null,"3VG",{"$f":"VLOOKUP(BL19,'Ruimte behandeling basis MPT'!$A$2:$H$46,8,FALSE)","v":191.58999999999992},"4VV",753,"nvt",46265,887.27397260273983,{"$f":"IF(BU8=0,8,0)","v":0},null,null,null,null,null,null,"KD03",3,null,null,null,null,null,null,null,null,"6VG","wel","nvt","5LVG",784,0,0,0,0,0,0,0,0,0,0,0,null,{"$f":"SUMIFS(F18:F31,B18:B31,\"BGgrp\",G18:G31,\"minuten\")","v":0},{"$f":"DA19/60","v":0},null,null,null,null,null,null,null,"Maatwerk ivm dure dagbesteding/ behandeling ",null,0,0,0,null,"H851 Dagbesteding ZG auditief licht","H831 Dagbesteding LG licht","H816 Dagbesteding VG kind zwaar","7vv","BGgrp",null,"8VG","ja","Ja",37.5,30,null,null,null,null,null,null,null,null,null,null,null,null,null,null,null,null,null,"Z053 ZZP 5vv incl.bh incl.db","V063 VPT 6vv incl.bh incl.db",null,null,null,"Z414 ZZP 1vg excl.db","V414 VPT 1vg excl.bh excl.db",null,null,null,"8vg","Z483 ZZP 8vg incl.bh incl.db","Opname","8vgOpname",422.19,2955.33,null,null,null,null,"3LG",1,null,null,null,null,null,null,null,null,null,null,null,null,"Nee"]
[null,null,0,null,null,null,0,0,0,null,{"$f":"IFERROR(IF($F$5=\"deeltijd verblijf icm zorg thuis\",(I20/'Deeltijd verblijf'!$P$2)*100%,I20/($T$28+$M$8)*100%),0)","v":0},null,{"$f":"IFERROR(IF(Q24=\"gespecialiseerde verpleging\",BT22,VLOOKUP(BS20,BS22:BT276,2,FALSE)),\" \")","v":"Eerst zorgvraag invullen"},null,null,null,null,null,null,{"$f":"IF(FS8>0,U20*125%,U20)","v":0},{"$f":"IFERROR(VLOOKUP($G$10,$BL$7:$BM$88,2,FALSE),0)","v":0},null,null,null,"7VG",null,null,0.95599999999999996,null,null,"H818 Dagactiviteit (begeleiding) VG kind gedrag","D624 DTV 2LG",null,null,null,null,"Z053 ZZP 5vv incl.bh incl.db","V430 VPT 3vg excl.bh excl.db",null,null,12,"K5",4,"KD04",4,"KE4",null,null,null,null,"H152 Begeleiding speciaal 1 (nah)","H152",121.29,null,null,null,"7VG",812,"ja",102172,1959.46301369863,null,null,"4VG",{"$f":"VLOOKUP(BL20,'Ruimte behandeling basis MPT'!$A$2:$H$46,8,FALSE)","v":327.18000000000006},"5VV",754,"nvt",62772,1203.8465753424657,{"$f":"IF(AND(BS21=2085,M17<I35),2,BS21)","v":1105},{"$f":"IF(E45=0,100,0)","v":100},{"$f":"IF(R21=\"ja\",80,0)","v":0},{"$f":"IF(G12=\"ja\",500,0)","v":0},{"$f":"IF(R21=\"ja\",1000,0)","v":0},{"$f":"IF(Q24=\"palliatief terminale zorg\",1000,0)","v":0},null,"KD04",4,null,null,null,null,null,null,null,null,"7VG","wel","nvt","1SGLVG",790,0,0,0,0,0,0,0,0,0,0,0,null,{"$f":"SUMIFS(F18:F31,B18:B31,\"BGgrp\",G18:G31,\"Dagdelen\")","v":0},null,null,null,null,null,null,{"$f":"IF($F$5=\"opname\",\"Verblijf\",IF($F$5=\"MPT\",\"MPT\",IF($F$5=\"VPT\",\"VPT\",\"DTV\")))","v":"MPT"},null,"Toeslag logeren",null,null,null,null,null,"H854 Dagbesteding ZG kind auditief licht","H832 Dagbesteding LG midden","H818 Dagactiviteit (begeleiding) VG kind gedrag","8vv","BGgrp",null,"1LG","ja","Nee",18.125,14.5,null,null,null,null,null,null,null,null,null,null,null,null,null,null,null,null,null,"Z061 ZZP 6vv excl.bh incl.db","V071 VPT 7vv excl.bh incl.db",null,null,null,"Z415 ZZP 1vg incl.db","V415 VPT 1vg excl.bh incl.db",null,null,null,"1lvg","Z513 ZZP 1lvg incl.bh incl.db","Opname","1lvgOpname",264.35000000000002,1850.4500000000003,null,null,null,null,"4LG",1]
[null,null,0,null,null,null,0,0,0,null,{"$f":"IFERROR(IF($F$5=\"deeltijd verblijf icm zorg thuis\",(I21/'Deeltijd verblijf'!$P$2)*100%,I21/($T$28+$M$8)*100%),0)","v":0},null,"Aanvraag past niet. Is er sprake van een bijzondere situatie?",null,null,null,null,null,null,{"$f":"BX14","v":0},"F125",null,null,null,"8VG",null,null,0.95699999999999996,null,null,"H831 Dagbesteding LG licht","D640 DTV 4LG",null,null,null,null,"Z063 ZZP 6vv incl.bh incl.db","V440 VPT 4vg excl.bh excl.db",null,null,13,"K6",5,"KD05",5,"KE5",null,null,null,null,"H153 Begeleiding speciaal 2 (psy)","H153",129.36000000000001,null,null,null,"8VG",814,"ja",90048,1726.9479452054795,null,null,"5VG",{"$f":"VLOOKUP(BL21,'Ruimte behandeling basis MPT'!$A$2:$H$46,8,FALSE)","v":275.17},"6VV",755,"nvt",62772,1203.8465753424657,{"$f":"IF(AND(F5=\"opname\",SUM(F18:F20)=16),1,IF(AND(F5=\"VPT\",SUM(F18:F20)=16),1,$BS$14+$BS$18+$BS$9+$BS$19+$BT$20+$BU$20+$BV$20+$BW$20+$BX$21))","v":1105},null,null,null,null,{"$f":"IF(OR(BX20=1000,K35<126%),1000,0)","v":1000},null,"KD05",5,null,null,null,null,null,null,null,null,"8VG","wel","nvt","1VG",800,0,0,0,0,0,0,0,0,0,0,0,null,null,null,null,null,null,null,null,{"$f":"IF($F$5=\"opname\",\"Verblijf\",IF($F$5=\"MPT\",\"MPT\",IF($F$5=\"VPT\",\"VPT\",\"DTV\")))","v":"MPT"},null,"Nee",null,null,null,null,null,"H871 Dagbesteding ZG visueel licht","H834 Dagbesteding LG kind licht","H831 Dagbesteding LG licht","9vv","BGgrp",null,"2LG","ja","Nee",25,20,null,null,null,null,null,null,null,null,null,null,null,null,null,null,null,null,null,"Z063 ZZP 6vv incl.bh incl.db","V073 VPT 7vv incl.bh incl.db",null,null,null,"Z424 ZZP 2vg excl.db","V424 VPT 2vg excl.bh excl.db",null,null,null,"2lvg","Z523 ZZP 2lvg incl.bh incl.db","Opname","2lvgOpname",317.67,2223.69,null,null,null,null,"5LG",1]
[null,null,0,null,null,null,0,0,0,null,{"$f":"IFERROR(IF($F$5=\"deeltijd verblijf icm zorg thuis\",(I22/'Deeltijd verblijf'!$P$2)*100%,I22/($T$28+$M$8)*100%),0)","v":0},null,"Is er sprake van extra kosten thuis?",null,null,null,null,null,null,{"$f":"IF(M20=\"PGB: rekenmodule voorleggen aan zorgkantoor\",1,0)","v":0},null,null,null,null,null,null,null,0.95799999999999996,null,null,"H832 Dagbesteding LG midden","D650 DTV 5LG",null,null,null,null,"Z073 ZZP 7vv incl.bh incl.db","V454 VPT 5vg excl.bh excl.db",null,null,14,"K6",6,"KD06",6,"KE6",null,null,null,null,"H180 Nachtverpleging","H180",119.21,null,null,null,"1LG",820,"ja",56274,1079.2273972602741,null,null,"6VG",{"$f":"VLOOKUP(BL22,'Ruimte behandeling basis MPT'!$A$2:$H$46,8,FALSE)","v":363.30000000000007},"7VV",756,"nvt",78631,1507.9917808219179,1,"Zorg aanvragen via iWLZ, geen extra toestemming vereist",null,null,null,null,null,"KD06",6,null,null,null,null,null,null,null,null,"1LG","wel","nvt","2VG",802,0,0,0,0,0,0,0,0,0,0,0,null,null,null,null,null,null,null,null,"MPT",null,null,null,null,null,null,null,"H874 Dagbesteding ZG kind visueel licht","H835 Dagbesteding LG kind midden","H832 Dagbesteding LG midden","10vv","BGgrp",null,"3LG","ja","Nee",25,20,null,null,null,null,null,null,null,null,null,null,null,null,null,null,null,null,null,"Z071 ZZP 7vv excl.bh incl.db","V081 VPT 8vv excl.bh incl.db",null,null,null,"Z425 ZZP 2vg incl.db","V425 VPT 2vg excl.bh incl.db",null,null,null,"3lvg","Z533 ZZP 3lvg incl.bh incl.db","Opname","3lvgOpname",414.68,2902.76,null,null,null,null,"6LG",1]
[null,null,0,null,null,null,{"$f":"DN11","v":0},0,0,null,{"$f":"IFERROR(IF($F$5=\"deeltijd verblijf icm zorg thuis\",(I23/'Deeltijd verblijf'!$P$2)*100%,I23/($T$28+$M$8)*100%),0)","v":0},null,"Is er spake van een toeslag in verband met beademing?",null,null,null,null,null,null,{"$f":"IF(I32>T1,2,0)","v":0},null,null,null,"EKT","Beademing","Extra overbruggingszorg (urgent of actief plaatsen)",null,0.95899999999999996,null,null,"H833 Dagbesteding LG zwaar","D660 DTV 6LG",null,null,null,null,"Z083 ZZP 8vv incl.bh incl.db","V460 VPT 6vg excl.bh excl.db",null,null,15,"K6",7,"KD07",7,"KE7",null,null,null,null,"H300 Begeleiding","H300",75.569999999999993,null,null,null,"2LG",822,"ja",67245,1289.6301369863013,null,null,"7VG",{"$f":"VLOOKUP(BL23,'Ruimte behandeling basis MPT'!$A$2:$H$46,8,FALSE)","v":632.7299999999999},"8VV",757,"nvt",93844,1799.7479452054793,2,"Rekenmodule voorleggen aan Zorgkantoor",null,null,null,null,null,"KD07",7,null,null,null,null,null,null,null,null,"2LG","wel","nvt","3VG",804,0,0,0,0,0,0,0,0,0,0,0,null,null,null,null,null,null,null,null,"MPT",null,null,null,null,null,null,null,null,"H851 Dagbesteding ZG auditief licht","H833 Dagbesteding LG zwaar","1lg","Zwaar",null,"4LG","ja","Nee",28.75,23,null,null,null,null,null,null,null,null,null,null,null,null,null,null,null,null,null,"Z073 ZZP 7vv incl.bh incl.db","V083 VPT 8vv incl.bh incl.db",null,null,null,"Z430 ZZP 3vg excl.bh excl.db","V430 VPT 3vg excl.bh excl.db",null,null,null,"4lvg","Z543 ZZP 4lvg incl.bh incl.db","Opname","4lvgOpname",477.32,3341.24,null,null,null,null,"7LG",1]
[null,null,0,null,null,null,0,0,0,null,{"$f":"IFERROR(IF($F$5=\"deeltijd verblijf icm zorg thuis\",(I24/'Deeltijd verblijf'!$P$2)*100%,I24/($T$28+$M$8)*100%),0)","v":0},null,"Is er sprake van een overige reden?",null,null,null,null,null,null,{"$f":"SUM(T22:T23)","v":0},null,"Ja; sprake van thuiswonend kind","Ja; sprake van thuiswonend kind",{"$f":"IF(Q22=\"Ja; extra kosten thuis\",X26,IF(Q22=\"Ja; ouder met kind jonger dan 18 die thuis woont\",X27,IF(Q22=\"Ja; sprake van betaalde arbeid\",X28,\"\")))","v":""},{"$f":"IF(Q23=\"ja invasieve beademing\",\"invasieve beademing\",IF(Q23=\"ja non-invasieve beademing\",\"non-invasieve beademing\",\"\"))","v":""},"Palliatief terminale zorg (PTZ)",null,0.96,null,null,"H834 Dagbesteding LG kind licht","D670 DTV 7LG",null,null,null,null,"Z097 ZZP 9bvv incl.bh incl.db","V470 VPT 7vg excl.bh excl.db",null,null,16,"K7",8,"KD08",null,null,null,null,null,null,"H301 Begeleiding ZG visueel","H301",134.94,null,null,null,"3LG",824,"ja",62564,1199.8575342465754,null,null,"8VG",{"$f":"VLOOKUP(BL24,'Ruimte behandeling basis MPT'!$A$2:$H$46,8,FALSE)","v":376.66999999999985},"9vvb",191,"nvt",60178,1154.0986301369862,3,"Rekenmodule voorleggen aan Zorgkantoor",null,3357,null,null,null,"KD08",8,null,null,null,null,null,null,null,null,"3LG","wel","nvt","4VG",806,0,0,0,0,0,0,0,0,0,0,0,null,null,null,null,null,null,null,null,"MPT",null,null,null,null,null,null,null,null,"H852 Dagbesteding ZG auditief midden","H834 Dagbesteding LG kind licht","2lg","Midden",null,"5LG","ja","Ja",35.625,28.5,null,null,null,null,null,null,null,null,null,null,null,null,null,null,null,null,null,"Z081 ZZP 8vv excl.bh incl.db","V095 VPT 9bvv excl.bh incl.db",null,null,null,"Z431 ZZP 3vg excl.bh incl.db","V431 VPT 3vg excl.bh incl.db",null,null,null,"5lvg","Z553 ZZP 5lvg incl.bh incl.db","Opname","5lvgOpname",455.6,3189.2000000000003,null,null,null,null,"1ZGvis",1]
[null,null,0,null,null,null,0,0,0,null,{"$f":"IFERROR(IF($F$5=\"deeltijd verblijf icm zorg thuis\",(I25/'Deeltijd verblijf'!$P$2)*100%,I25/($T$28+$M$8)*100%),0)","v":0},null,"Is er sprake van een kleinschalige woonvoorziening?",null,null,null,null,null,null,null,null,"ja; sprake van betaalde arbeid","ja; sprake van betaalde arbeid","Overig",{"$f":"IF(Q24=\"extra overbruggingszorg (urgent of actief actief plaatsen)\",Z23,IF(Q24=\"palliatief terminale zorg\",Z24,IF(Q24=\"meerzorg\",Z25,IF(Q24=\"extra budget voor behandeling\",Z26,IF(Q24=\"overig\",Z27,IF(Q24=\"Gespecialiseerde verpleging\",Z28,\"\"))))))","v":""},"Meerzorg",null,0.96399999999999997,null,null,"H835 Dagbesteding LG kind midden","H401 DTV 1GGZ-W",null,null,null,null,"Z103 ZZP 10vv incl.bh incl.db","V480 VPT 8vg excl.bh excl.db",null,null,17,"K7",9,"KD09",null,null,null,null,null,null,"H302 Begeleiding speciaal 2 (visueel)","H302",165.84,null,null,null,"4LG",826,"ja",67245,1289.6301369863013,null,null,"1LVG",{"$f":"VLOOKUP(BL25,'Ruimte behandeling basis MPT'!$A$2:$H$46,8,FALSE)","v":0},"10VV",759,"nvt",102230,1960.5753424657535,4,"Rekenmodule voorleggen aan Zorgkantoor",null,{"$f":"BV24/365","v":9.1972602739726028},null,null,null,"KD09",9,null,"Bedrag",null,null,null,null,null,null,"4LG","wel","nvt","5VG",808,0,0,0,0,0,0,0,0,0,0,0,null,null,null,null,null,null,null,null,"MPT",null,null,null,null,null,null,null,null,"H854 Dagbesteding ZG kind auditief licht","H835 Dagbesteding LG kind midden","3lg","Zwaar",null,"6LG","ja","Ja",35.625,28.5,null,null,null,null,null,null,null,null,null,null,null,null,null,null,null,null,null,"Z083 ZZP 8vv incl.bh incl.db",null,null,null,null,"Z432 ZZP 3vg incl.bh excl.db","V432 VPT 3vg incl.bh excl.db",null,null,null,"1sglvg","Z573 ZZP 1sglvg incl.bh incl.db","Opname","1sglvgOpname",536.82000000000005,3757.7400000000002,null,null,null,null,"2ZGvis",1]
[null,null,0,null,null,null,0,0,0,null,{"$f":"IFERROR(IF($F$5=\"deeltijd verblijf icm zorg thuis\",(I26/'Deeltijd verblijf'!$P$2)*100%,I26/($T$28+$M$8)*100%),0)","v":0},"Zorg aan te vragen conform iWLZ",null,null,null,null,null,null,null,{"$f":"IF(I33<M15,I33,M15)","v":0},null,"Ja; sprake van terminale zorg","Nee","Extra kosten thuis",null,"Extra budget voor behandeling",null,0.96499999999999997,null,null,"H836 Dagbesteding LG kind zwaar","H402 DTV 2GGZ-W",null,null,null,null,"Z212 ZZP 1ggz-b incl.bh excl.db","V513 VPT 1lvg incl.bh incl.db",null,null,18,"K7",null,null,null,null,null,null,null,null,"H303 Begeleiding ZG auditief","H303",112.67,null,null,null,"5LG",828,"ja",79899,1532.3095890410959,null,null,"2LVG",{"$f":"VLOOKUP(BL26,'Ruimte behandeling basis MPT'!$A$2:$H$46,8,FALSE)","v":0},"1LVG",780,"nvt",36647,702.81917808219168,5,"Zorg aanvragen via iWLZ, geen extra toestemming vereist",null,{"$f":"BV25*7","v":64.38082191780822},null,null,null,null,"BG-IND",{"$f":"IFERROR(VLOOKUP(N28,$BZ$8:$CA$25,2,FALSE),0)","v":0},0,"H302",{"$f":"CB26*CC26","v":0},null,null,null,null,"5LG","wel","nvt","6VG",810,0,0,0,0,0,0,0,0,0,0,0,null,null,null,null,null,null,null,null,"MPT",null,null,null,null,null,null,null,null,"H855 Dagbesteding ZG kind auditief midden","H836 Dagbesteding LG kind zwaar","4lg","Midden",null,"7LG","ja","Ja",38.125,30.5,null,null,26,32,{"$f":"EC26+ED26","v":58},null,null,null,null,null,null,null,null,null,null,null,null,"Z095 ZZP 9bvv excl.bh incl.db",null,null,null,null,"Z433 ZZP 3vg incl.bh incl.db","V433 VPT 3vg incl.bh incl.db",null,null,null,"1lg","Z615 ZZP 1lg incl.db","Opname","1lgOpname",208.75,1461.25,null,null,null,null,"3ZGvis",1]
[null,null,0,null,null,null,0,{"$f":"U39","v":0},0,null,{"$f":"IFERROR(IF($F$5=\"deeltijd verblijf icm zorg thuis\",(I27/'Deeltijd verblijf'!$P$2)*100%,I27/($T$28+$M$8)*100%),0)","v":0},"AGBcode",null,"Percentage","Opname","Leveringsvorm","Doelmatig",{"$f":"IFERROR(IF((SUM(N28:N38)+N8)<101%,\"Ja\",\"Nee\"),0)","v":0},null,null,null,"Nee",null,"Extra kosten thuis",null,"Overig",null,0.97,null,null,"H001G Dagbesteding ggz wonen-1","H403 DTV 3GGZ-W",null,null,null,null,"Z222 ZZP 2ggz-b incl.bh excl.db","V523 VPT 2lvg incl.bh incl.db",null,null,19,"K7",null,null,null,null,null,null,null,null,"H304 Begeleiding speciaal 2 (auditief)","H304",143.62,null,null,null,"6LG",830,"ja",87753,1682.9342465753425,null,null,"3LVG",{"$f":"VLOOKUP(BL27,'Ruimte behandeling basis MPT'!$A$2:$H$46,8,FALSE)","v":0},"2LVG",781,"nvt",52506,1006.9643835616438,6,"Rekenmodule voorleggen aan Zorgkantoor",null,null,null,null,null,null,"BG-GRP",{"$f":"IFERROR(VLOOKUP(N29,$BZ$8:$CA$25,2,FALSE),0)","v":0},0,"H822",0,null,null,null,null,"6LG","wel","nvt","7VG",812,0,0,0,0,0,0,0,0,0,0,0,null,null,null,null,null,null,null,null,"MPT",null,null,null,null,null,null,null,null,"H871 Dagbesteding ZG visueel licht","H851 Dagbesteding ZG auditief licht","5lg","Zwaar",null,"1ZGvis","ja","Nee",15.625,12.5,null,null,null,null,{"$f":"EE26/2","v":29},null,null,null,null,null,null,null,null,null,null,null,null,"Z097 ZZP 9bvv incl.bh incl.db",null,null,null,null,"Z440 ZZP 4vg excl.bh excl.db","V440 VPT 4vg excl.bh excl.db",null,null,null,"2lg","Z625 ZZP 2lg incl.db","Opname","2lgOpname",242.15,1695.05,null,null,null,null,"4ZGvis",1]
[null,null,{"$f":"IF(B28=\"onklaar\",$DP$1,B28)","v":0},null,null,null,0,{"$f":"U41","v":0},0,null,{"$f":"IFERROR(IF($F$5=\"deeltijd verblijf icm zorg thuis\",(I28/'Deeltijd verblijf'!$P$2)*100%,I28/($T$28+$M$8)*100%),0)","v":0},{"$f":"IFERROR(VLOOKUP(M93,E93:F106,2,0),\" \")","v":0},null,{"$f":"IFERROR(SUMIF($E$18:$E$31,L28,$K$18:$K$31),0)","v":0},{"$f":"IFERROR(VLOOKUP(L28,$GC$2:$GE$15,3,0),\"\")","v":"Nee"},{"$f":"IF($N28>0,$DH20,\"\")","v":""},"EKT",{"$f":"IF(Q22=\"Ja; Extra kosten thuis\",\"Extra kosten thuis\",\"\")","v":""},null,{"$f":"M10","v":0},null,null,null,"Persoon met SOM, LG en/of ZG beperking met betaalde arbeid of die opleiding/studie volgt",null,"Gespecialiseerd Verpleegkundig Handelen (GVP) ",null,0.97499999999999998,null,null,"H002G Dagbesteding ggz wonen-2","H404 DTV 4GGZ-W",null,null,null,null,"Z232 ZZP 3ggz-b incl.bh excl.db","V533 VPT 3lvg incl.bh incl.db",null,null,20,"K8",null,null,null,null,null,null,null,null,"H306 Thuiszorgtechnologie ten behoeve van begeleiding","H306",75.260000000000005,null,null,null,"7LG",832,"ja",92389,1771.8438356164384,null,null,"4LVG",{"$f":"VLOOKUP(BL28,'Ruimte behandeling basis MPT'!$A$2:$H$46,8,FALSE)","v":0},"3LVG",782,"nvt",62341,1195.5808219178082,7,"Rekenmodule voorleggen aan Zorgkantoor",null,null,null,null,null,null,"VP",{"$f":"IFERROR(VLOOKUP(N30,$BZ$8:$CA$25,2,FALSE),0)","v":0},0,"H106",0,null,null,null,null,"7LG","wel","nvt","8VG",814,0,0,0,0,0,0,0,0,0,0,0,null,null,null,null,null,null,null,null,"MPT",null,null,null,null,null,null,null,null,"H872 Dagbesteding ZG visueel midden","H852 Dagbesteding ZG auditief midden","6lg","Midden",null,"2ZGvis","ja","Nee",20.625,16.5,null,null,null,null,null,null,null,null,null,null,null,null,null,null,null,null,null,"Z101 ZZP 10vv excl.bh incl.db",{"$f":"IF(OR(B18=\"verblijfsprestatie\",B18=\"vptprestatie\"),1,0)","v":0},null,null,null,"Z441 ZZP 4vg excl.bh incl.db","V441 VPT 4vg excl.bh incl.db",null,null,null,"3lg","Z633 ZZP 3lg incl.bh incl.db","Opname","3lgOpname",241.09,1687.63,null,null,null,null,"5ZGvis",1]
[null,null,0,null,null,null,0,{"$f":"U42","v":0},0,null,{"$f":"IFERROR(IF($F$5=\"deeltijd verblijf icm zorg thuis\",(I29/'Deeltijd verblijf'!$P$2)*100%,I29/($T$28+$M$8)*100%),0)","v":0},{"$f":"IFERROR(VLOOKUP(M94,E94:F107,2,0),\" \")","v":" "},null,0,{"$f":"IFERROR(VLOOKUP(L29,$GC$2:$GE$15,3,0),\"\")","v":""},{"$f":"IF($N29>0,$DH21,\"\")","v":""},"Beademing",{"$f":"IF(Q23=\"ja non-invasieve beademing\",\" non-invasieve beademing\",IF(Q23=\"Ja invasieve beademing\",\"invasieve beademing\",\"\"))","v":""},null,null,null,null,null,{"$f":"IF(Y25=\"\",\"\",1)","v":""},null,null,null,1,null,null,"H003G Dagbesteding ggz wonen-3","H405 DTV 5GGZ-W",null,null,null,null,"Z242 ZZP 4ggz-b incl.bh excl.db","V543 VPT 4lvg incl.bh incl.db",null,null,21,"K8",null,null,null,null,null,null,null,null,null,null,{"$f":"IFERROR(VLOOKUP(AZ29,Tarieven_ZIN1,2,0),0)","v":0},null,null,null,"1ZGvis",840,"ja",46612,893.92876712328768,null,null,"5LVG",{"$f":"VLOOKUP(BL29,'Ruimte behandeling basis MPT'!$A$2:$H$46,8,FALSE)","v":0},"4LVG",783,"nvt",80878,1551.0849315068494,8,"Zorg aanvragen via iWLZ, geen extra toestemming vereist",null,null,null,null,null,null,"PV",{"$f":"IFERROR(VLOOKUP(N31,$BZ$8:$CA$25,2,FALSE),0)","v":0},0,"H128",0,null,null,null,null,"1ZGvis","wel","nvt","1LG",820,0,0,0,0,0,0,0,0,0,0,0,null,null,null,null,null,null,null,null,"MPT",null,null,null,null,null,null,null,null,"H874 Dagbesteding ZG kind visueel licht","H853 Dagbesteding ZG auditief zwaar","7lg","Licht",null,"3ZGvis","ja","Nee",26.25,21,null,null,null,null,null,null,null,null,null,null,null,null,null,null,null,null,null,"Z103 ZZP 10vv incl.bh incl.db",0,null,null,null,"Z442 ZZP 4vg incl.bh excl.db","V442 VPT 4vg incl.bh excl.db",null,null,null,"4lg","Z643 ZZP 4lg incl.bh incl.db","Opname","4lgOpname",309.73,2168.11,null,null,null,null,"1ZGaud",1]
[null,null,0,null,null,null,0,{"$f":"U43","v":0},0,null,{"$f":"IFERROR(IF($F$5=\"deeltijd verblijf icm zorg thuis\",(I30/'Deeltijd verblijf'!$P$2)*100%,I30/($T$28+$M$8)*100%),0)","v":0},{"$f":"IFERROR(VLOOKUP(M95,E95:F108,2,0),\" \")","v":" "},null,0,"","","Overig",{"$f":"Q24","v":0},null,null,{"$f":"IFERROR(IF($B18=\"schoonmaak\",$BA$1,IF($B18=\"Logeren\",X30,IF($B18=\"BGgrp\",VLOOKUP(D18,$AY$7:$BA$401,3,0)*$H$1,$V30))),0)","v":0},{"$f":"IFERROR(IF(B18=\"BGgrp\",U30,(VLOOKUP(LEFT(D18,4),$AZ$7:$BA$633,2,FALSE)*$H$1+IF($B18=\"Logeren\",VLOOKUP(LEFT(D18,5),$AZ$7:$BB$628,3,FALSE),0))),0)","v":0},{"$f":"W64","v":0},{"$f":"W30*$H$1","v":0},null,null,null,null,null,null,"H004G Dagbesteding ggz wonen-4","D710 DTV ZGaud1",null,null,null,null,"Z252 ZZP 5ggz-b incl.bh excl.db","V553 VPT 5lvg incl.bh incl.db",null,null,22,"K8",null,null,null,null,null,null,null,null,"H325 Behandeling lvg","H325",{"$f":"IFERROR(VLOOKUP(AZ30,Tarieven_ZIN1,2,0),0)","v":157.22999999999999},null,null,null,"2ZGvis",842,"ja",59201,1135.3616438356166,null,null,"1SGLVG",{"$f":"VLOOKUP(BL30,'Ruimte behandeling basis MPT'!$A$2:$H$46,8,FALSE)","v":0},"5LVG",784,"nvt",80878,1551.0849315068494,0,"Rekenmodule voorleggen aan Zorgkantoor",null,null,null,null,null,null,"BH-GRP",{"$f":"IFERROR(VLOOKUP(N32,$BZ$8:$CA$25,2,FALSE),0)","v":0},0,"H822",0,null,null,null,null,"2ZGvis","wel","nvt","2LG",822,0,0,0,0,0,0,0,0,0,0,0,null,null,null,null,null,null,null,null,"MPT",null,null,null,null,null,null,null,null,"H875 Dagbesteding ZG kind visueel midden","H854 Dagbesteding ZG kind auditief licht","1ggzb","BGgrp",null,"4ZGvis","ja","Nee",37.5,30,null,null,null,null,null,null,null,null,null,null,null,null,null,null,null,null,null,null,0,null,null,null,"Z443 ZZP 4vg incl.bh incl.db","V443 VPT 4vg incl.bh incl.db",null,null,null,"5lg","Z653 ZZP 5lg incl.bh incl.db","Opname","5lgOpname",333.43,2334.0100000000002,null,null,null,null,"2ZGaud",1]
[null,null,0,null,null,null,0,{"$f":"U44","v":0},0,null,{"$f":"IFERROR(IF($F$5=\"deeltijd verblijf icm zorg thuis\",(I31/'Deeltijd verblijf'!$P$2)*100%,I31/($T$28+$M$8)*100%),0)","v":0},{"$f":"IFERROR(IFERROR(VLOOKUP(M96,E96:F109,2,0),\" \"),\" \")","v":" "},null,0,"","",null,null,null,null,0,0,{"$f":"W65","v":0},{"$f":"W31*$H$1","v":0},null,null,null,null,null,null,"H005G Dagbesteding ggz wonen-5","D720 DTV ZGaud2",null,null,null,null,"Z262 ZZP 6ggz-b incl.bh excl.db","V573 VPT 1sglvg incl.bh incl.db",null,null,23,"K8",null,null,null,null,null,null,null,null,null,null,{"$f":"IFERROR(VLOOKUP(AZ31,Tarieven_ZIN1,2,0),0)","v":0},null,null,null,"3ZGvis",844,"ja",69310,1329.2328767123288,null,null,"1LG",{"$f":"VLOOKUP(BL31,'Ruimte behandeling basis MPT'!$A$2:$H$46,8,FALSE)","v":0},"1SGLVG",790,"nvt",72737,1394.9561643835616,2085,"Zorg aanvragen via iWLZ, geen extra toestemming vereist",null,null,null,null,null,null,"BH-IND",{"$f":"IFERROR(VLOOKUP(N33,$BZ$8:$CA$25,2,FALSE),0)","v":0},0,"H332",0,null,null,null,null,"3ZGvis","wel","nvt","3LG",824,0,0,0,0,0,0,0,0,0,0,0,null,null,null,null,null,null,null,null,null,null,null,null,null,null,null,null,null,null,"H855 Dagbesteding ZG kind auditief midden","2ggzb","BGgrp",null,"5ZGvis","ja","Ja",41.25,33,null,null,null,null,null,null,null,null,null,null,null,null,null,null,null,{"$f":"IF(F5=\"deeltijd verblijf icm MPT\",\"Opname\",F5)","v":"MPT"},null,{"$f":"CONCATENATE($EP$31,$G$8,B18)","v":"MPT"},0,null,null,null,"Z454 ZZP 5vg excl.bh excl.db","V454 VPT 5vg excl.bh excl.db",null,null,null,"6lg","Z663 ZZP 6lg incl.bh incl.db","Opname","6lgOpname",413.5,2894.5,null,null,null,null,"3ZGaud",1]
[null,{"$f":"IF(M5=\"extramurale ruimte\",\"Totale omvang ZIN thuis excl. Behandeling\",\"Totale omvang ZIN\")","v":"Totale omvang ZIN"},null,null,null,null,null,null,{"$f":"IF(M6=\"extramurale ruimte\",BD14,BD14+BD11)","v":0},null,{"$f":"IFERROR(IF($F$5=\"deeltijd verblijf icm zorg thuis\",(I32/'Deeltijd verblijf'!P2),(I32/M6)),0)","v":0},{"$f":"IFERROR(IFERROR(VLOOKUP(M97,E97:F110,2,0),\" \"),\" \")","v":" "},null,0,"","",null,null,null,null,0,0,0,0,null,null,null,null,null,null,"H851 Dagbesteding ZG auditief licht","D730 DTV ZGaud3",null,null,null,null,"Z272 ZZP 7ggz-b incl.bh excl.db","V614 VPT 1lg excl.bh excl.db",null,null,24,"K8",null,null,null,null,null,null,null,null,null,null,{"$f":"IFERROR(VLOOKUP(AZ32,Tarieven_ZIN1,2,0),0)","v":0},null,null,null,"4ZGvis",846,"ja",93798,1798.8657534246574,null,null,"2LG",{"$f":"VLOOKUP(BL32,'Ruimte behandeling basis MPT'!$A$2:$H$46,8,FALSE)","v":0},null,null,null,null,null,85,"Rekenmodule voorleggen aan Zorgkantoor",null,null,null,null,null,null,null,null,null,"totaal EM",{"$f":"SUM(CE26:CE31)","v":0},null,null,null,null,"4ZGvis","wel","nvt","4LG",826,0,0,0,0,0,0,0,0,0,0,0,null,null,null,null,null,null,null,null,null,null,null,null,null,null,null,null,null,null,"H856 Dagbesteding ZG kind auditief zwaar","3ggzb","BGgrp",null,"1ZGaud","ja","Nee",24.375,19.5,null,null,null,null,null,null,null,null,null,null,null,null,null,null,null,null,null,"MPT",0,null,null,null,"Z455 ZZP 5vg excl.bh incl.db","V455 VPT 5vg excl.bh incl.db",null,null,null,"7lg","Z673 ZZP 7lg incl.bh incl.db","Opname","7lgOpname",427.09,2989.6299999999997,null,null,null,null,"4ZGaud",1]
[null,{"$f":"IF(M5=\"ruimte\",\"Totale omvang behandeling\",\" \")","v":"Totale omvang behandeling"},null,null,null,null,null,null,{"$f":"IF(M5=\"ruimte\",BD11,0)","v":0},null,{"$f":"IFERROR(IF($F$5=\"deeltijd verblijf icm zorg thuis\",(I33/'Deeltijd verblijf'!$P$2),(I33/$M$6)),0)","v":0},{"$f":"IFERROR(VLOOKUP(M98,E98:F111,2,0),\" \")","v":" "},null,0,"","",null,null,null,null,0,0,0,0,null,{"$f":"IFERROR(VLOOKUP($Q$22,$T$46:$V$50,2,FALSE),0)","v":0},{"$f":"IF(Z33=0,1,2)","v":1},{"$f":"IF(AA36=\"ja\",4,2)","v":2},null,null,"H852 Dagbesteding ZG auditief midden","D740 DTV Zgaud4",null,null,null,null,"Z213 ZZP 1ggz-b incl.bh incl.db","V624 VPT 2lg excl.bh excl.db",null,null,25,"K8",null,null,null,null,null,null,null,null,"H329 Behandeling gedragswetenschapper","H329",154.74,null,null,null,"5ZGvis",848,"ja",101753,1951.4273972602737,null,null,"3LG",{"$f":"VLOOKUP(BL33,'Ruimte behandeling basis MPT'!$A$2:$H$46,8,FALSE)","v":201.25000000000011},null,null,null,null,null,84,"Rekenmodule voorleggen aan Zorgkantoor",null,null,null,null,null,null,null,null,null,null,null,null,null,null,null,"5ZGvis","wel","nvt","5LG",828,0,0,0,0,0,0,0,0,0,0,0,null,null,null,null,null,null,null,null,null,null,null,null,null,null,null,null,null,null,"H871 Dagbesteding ZG visueel licht","4ggzb","BGgrp",null,"2ZGaud","ja","Nee",48.125,38.5,null,null,null,null,null,null,null,null,null,null,null,null,null,null,null,null,null,"MPT",0,null,null,null,"Z456 ZZP 5vg incl.bh excl.db","V456 VPT 5vg incl.bh excl.db",null,null,null,"1zgaud","Z713 ZZP 1zg-auditief incl.bh incl.db","Opname","1zgaudOpname",260.89999999999998,1826.2999999999997,null,null,null,null,"10VV",2]
[null,"PGB bedrag",null,null,null,null,null,null,{"$f":"M8","v":0},null,{"$f":"IFERROR(IF($F$5=\"deeltijd verblijf icm zorg thuis\",(I34/'Deeltijd verblijf'!$P$2),(I34/$M$6)),0)","v":0}," ",null,0,"","",null,null,null,{"$f":"IF(OR(F5=\"MPT\",F5=\"VPT\"),1,IF(F5=\"\",0,2))","v":1},0,0,0,0,null,{"$f":"IFERROR(VLOOKUP(Q24,U53:U56,1,FALSE),0)","v":0},{"$f":"IF(Z34=0,1,2)","v":1},{"$f":"SUM(AA33:AB33)","v":3},null,null,"H853 Dagbesteding ZG auditief zwaar","D814 DTV ZGvis1",null,null,null,null,"Z223 ZZP 2ggz-b incl.bh incl.db","V630 VPT 3lg excl.bh excl.db",null,null,5,"K3",null,null,null,null,null,null,null,null,"H330 Behandeling paramedisch","H330",109.92,null,null,null,"1ZGaud",850,"ja",65017,1246.9013698630138,null,null,"4LG",{"$f":"VLOOKUP(BL34,'Ruimte behandeling basis MPT'!$A$2:$H$46,8,FALSE)","v":314.65000000000009},null,null,null,null,null,83,"Rekenmodule voorleggen aan Zorgkantoor",null,null,null,null,null,null,null,null,null,null,null,"ZZP waarde-PGB",null,{"$f":"M10","v":0},null,"1ZGaud","wel","nvt","6LG",830,0,0,0,0,0,0,0,0,0,0,0,null,null,null,null,null,null,null,null,null,null,null,null,null,null,null,null,null,null,"H872 Dagbesteding ZG visueel midden","5ggzb","BGgrp",null,"3ZGaud","ja","Ja",58.75,47,null,null,null,null,null,null,null,null,null,null,null,null,null,null,null,null,null,"MPT",0,null,null,null,"Z457 ZZP 5vg incl.bh incl.db","V457 VPT 5vg incl.bh incl.db",null,null,null,"2zgaud","Z723 ZZP 2zg-auditief incl.bh incl.db","Opname","2zgaudOpname",479.71,3357.97,null,null,null,null,"1VV",2]
[null,"Totale zorg",null,null,null,null,null,null,{"$f":"SUM(I32:I34)","v":0},null,{"$f":"SUM(K32:K34)","v":0}," ",null,0,"","",null,null,null,{"$f":"T34+N28","v":1},0,0,0,0,null,null,null,null,null,null,"H854 Dagbesteding ZG kind auditief licht","D824 DTV ZGvis2",null,null,null,null,"Z233 ZZP 3ggz-b incl.bh incl.db","V640 VPT 4lg excl.bh excl.db",null,null,6,"K3",null,null,null,null,null,null,null,null,"H331 Behandeling Families First lvg","H331",163.89,null,null,null,"2ZGaud",852,"ja",116685,2237.794520547945,null,null,"5LG",{"$f":"VLOOKUP(BL35,'Ruimte behandeling basis MPT'!$A$2:$H$46,8,FALSE)","v":321.37},null,null,null,null,null,80,"Rekenmodule voorleggen aan Zorgkantoor",null,null,null,null,null,null,null,null,null,null,null,"Totaal EM ZIN",null,{"$f":"CE32","v":0},null,"2ZGaud","wel","nvt","7LG",832,0,0,0,0,0,0,0,0,0,0,0,null,null,null,null,null,null,null,null,null,null,null,null,null,null,null,null,null,null,"H873 Dagbesteding ZG visueel zwaar","1zgvis","Midden",null,"4ZGaud","ja","Nee",35,28,null,null,null,null,null,null,null,null,null,null,null,null,null,null,null,null,null,"MPT",0,null,null,null,"Z460 ZZP 6vg excl.bh excl.db","V460 VPT 6vg excl.bh excl.db",null,null,null,"3zgaud","Z733 ZZP 3zg-auditief incl.bh incl.db","Opname","3zgaudOpname",562.4,3936.7999999999997,null,null,null,null,"2VV",2]
[null,"Let op: Overschrijding ivm duurdere dagbesteding:",null,null,null,null,null,null,{"$f":"D38","v":0},null,null," ",null,0,"","",null,null,null,null,0,0,0,0,null,{"$f":"IFERROR(IF(AA36=\"ja\",\"toeslag beademing\",VLOOKUP(Q24,U52:U56,1,0)),0)","v":0},{"$f":"LEFT(Q23,2)","v":""},null,null,null,"H855 Dagbesteding ZG kind auditief midden","D830 DTV ZGvis3",null,null,null,null,"Z243 ZZP 4ggz-b incl.bh incl.db","V650 VPT 5lg excl.bh excl.db",null,null,7,"K4",null,null,null,null,null,null,null,null,"H332 Behandeling ZG visueel","H332",178.35,null,null,null,"3ZGaud",854,"ja",138210,2650.6027397260273,null,null,"6LG",{"$f":"VLOOKUP(BL36,'Ruimte behandeling basis MPT'!$A$2:$H$46,8,FALSE)","v":437.98999999999995},null,null,null,null,null,88,"Rekenmodule voorleggen aan Zorgkantoor",null,null,null,null,null,null,null,null,null,null,null,null,null,{"$f":"CH34-CH35","v":0},null,"3ZGaud","wel","nvt","1ZGvis",840,0,0,0,0,0,0,0,0,0,0,0,null,null,null,null,null,null,null,null,null,null,null,null,null,null,null,null,null,null,"H874 Dagbesteding ZG kind visueel licht","2zgvis","Licht",null,"1GGZ B","nee","Nee",8.75,7,null,null,null,null,null,null,null,null,null,null,null,null,null,null,null,null,null,"MPT",0,null,null,null,"Z461 ZZP 6vg excl.bh incl.db","V461 VPT 6vg excl.bh incl.db",null,null,null,"4zgaud","Z743 ZZP 4zg-auditief incl.bh incl.db","Opname","4zgaudOpname",362.49,2537.4300000000003,null,null,null,null,"3VV",2]
[null,"Let op: Overschrijding ivm duurdere behandeling",null,null,null,null,null,null,{"$f":"D43","v":0},null,null," ",null,0,"","",null,null,null,null,0,0,0,0,null,null,null,{"$f":"IF(SUM($I$32:$I$33)-($M$10+$T$20)<=0,SUM($I$32:$I$33),$M$10+$T$20)","v":0},null,null,"H856 Dagbesteding ZG kind auditief zwaar","D840 DTV ZGvis4",null,null,null,null,"Z253 ZZP 5ggz-b incl.bh incl.db","V660 VPT 6lg excl.bh excl.db",null,null,8,"K4",null,null,null,null,null,null,null,null,"H333 Behandeling ZG auditief","H333",158.27000000000001,null,null,null,"4ZGaud",856,"ja",87927,1686.2712328767125,null,null,"7LG",{"$f":"VLOOKUP(BL37,'Ruimte behandeling basis MPT'!$A$2:$H$46,8,FALSE)","v":468.15999999999997},null,null,null,null,null,101,"Eerst zorgvraag invullen",null,null,null,null,null,null,null,null,null,null,null,null,null,null,null,"4ZGaud","wel","nvt","2ZGvis",842,0,0,0,0,0,0,0,0,0,0,0,null,null,null,null,null,null,null,null,null,null,null,null,null,null,null,null,null,null,"H875 Dagbesteding ZG kind visueel midden","3zgvis","Licht",null,"2GGZ B","nee","Nee",12.5,10,null,null,null,null,null,null,null,null,null,null,null,null,null,null,null,null,null,"MPT",0,null,null,null,"Z462 ZZP 6vg incl.bh excl.db","V462 VPT 6vg incl.bh excl.db",null,null,null,"1zgvis","Z815 ZZP 1zg-visueel incl.db","Opname","1zgvisOpname",192.44,1347.08,null,null,null,null,"4VV",2]
[null,{"$f":"SUMIF(B18:B31,\"bggrp\",I18:I31)","v":0},{"$f":"IFERROR('Deeltijd verblijf'!M6*125%,0)","v":0},{"$f":"IF(C38>0,B38-C38,0)","v":0},null,null,null,null,null,null,{"$f":"IFERROR(I38/M6,0)","v":0}," ",null,0,"","",null,null,null,null,0,0,0,0,null,null,null,{"$f":"IF(BR6>0,BR8+T20,AB37)","v":0},null,null,"H871 Dagbesteding ZG visueel licht","D850 DTV ZGvis5",null,null,null,null,"Z263 ZZP 6ggz-b incl.bh incl.db","V670 VPT 7lg excl.bh excl.db",null,null,9,"K4",null,null,null,null,null,null,null,null,"H334 Behandeling IOG lvg","H334",142.44,null,null,null,"10VV",759,"nvt",102230,1960.5753424657535,null,null,"1GGZ-W",{"$f":"VLOOKUP(BL38,'Ruimte behandeling basis MPT'!$A$2:$H$46,8,FALSE)","v":{"$error":"#N/A"}},null,null,null,null,null,102,"Eerst zorgvraag invullen",null,null,null,null,null,null,null,null,null,null,null,null,null,null,null,"1VV","Niet","nvt","3ZGvis",844,0,0,0,0,0,0,0,0,0,0,0,null,null,null,null,null,null,null,null,null,null,null,null,null,null,null,null,null,null,"H876 Dagbesteding ZG kind visueel zwaar","4zgvis","Zwaar",null,"3GGZ B","nee","Nee",16.25,13,null,null,null,null,null,null,null,null,null,null,null,null,null,null,null,null,null,"MPT",0,null,null,null,"Z463 ZZP 6vg incl.bh incl.db","V463 VPT 6vg incl.bh incl.db",null,null,null,"2zgvis","Z825 ZZP 2zg-visueel incl.db","Opname","2zgvisOpname",238.25,1667.75,null,null,null,null,"5VV",2]
[null,null,null,null,null,null,null,null,{"$f":"IFERROR((N8+N17),0)","v":0},null,null,null,null,null,null,null,null,null,null,null,0,0,0,0,null,null,null,null,null,null,"H872 Dagbesteding ZG visueel midden",null,null,null,null,null,"Z273 ZZP 7ggz-b incl.bh incl.db","V210G VPT 1 ggz wonen excl. BH excl. DB",null,null,null,null,null,null,null,null,null,null,null,null,"H119 Verpleging speciaal aan kinderen tot 18 jaar exclusief beschikbaarheid","H119",{"$f":"VLOOKUP(AZ39,Tarieven_ZIN1,2,0)","v":110.07},null,null,null,null,null,null,null,null,null,null,"2GGZ-W",{"$f":"VLOOKUP(BL39,'Ruimte behandeling basis MPT'!$A$2:$H$46,8,FALSE)","v":{"$error":"#N/A"}},null,null,null,null,null,null,null,null,null,null,null,null,null,null,null,null,null,null,null,null,null,null,null,null,null,null,null,null,null,null,null,null,null,null,null,null,null,null,null,null,null,null,null,null,null,null,null,null,null,null,null,null,null,null,null,null,null,null,null,null,null,null,null,null,null,null,null,null,null,null,null,null,null,null,null,null,null,null,null,null,null,null,"MPT",null,null,null,null,"Z470 ZZP 7vg excl.bh excl.db","V470 VPT 7vg excl.bh excl.db",null,null,null,"3zgvis","Z833 ZZP 3zg-visueel incl.bh incl.db","Opname","3zgvisOpname",294.55,2061.85]
[null,null,null,null,null,null,null,null,null,null,null,null,null,null,null,null,null,null,null,null,0,0,0,0,null,null,null,null,null,null,"H873 Dagbesteding ZG visueel zwaar",null,null,null,null,null,"Z212G ZZP 1 ggz wonen incl. BH excl. DB","V220G VPT 2 ggz wonen excl. BH excl. DB",null,null,10,"K5",null,null,null,null,null,null,null,null,"H335 Behandeling som, pg, vg, lg, zg (SO)","H335",193.03,null,null,null,"1VV",750,"nvt",{"$f":"VLOOKUP(BE40,Tarieven_PGB0,13,FALSE)","v":19563},375.1808219178082,null,null,"3GGZ-W",{"$f":"VLOOKUP(BL40,'Ruimte behandeling basis MPT'!$A$2:$H$46,8,FALSE)","v":{"$error":"#N/A"}},null,null,null,null,null,103,"Eerst zorgvraag invullen",null,null,null,null,null,null,null,null,null,null,null,null,null,null,null,"2VV","Niet","nvt","4ZGvis",846,0,0,0,0,0,0,0,0,0,0,0,null,null,null,null,null,null,null,null,null,null,null,null,null,null,null,null,null,null,null,"5zgvis","Zwaar",null,"4GGZ B","nee","Nee",19.375,15.5,null,null,null,null,null,null,null,null,null,null,null,null,null,null,null,null,null,"MPT",{"$f":"IF(OR(B29=\"verblijfsprestatie\",B29=\"vptprestatie\"),1,0)","v":0},null,null,null,"Z471 ZZP 7vg excl.bh incl.db","V471 VPT 7vg excl.bh incl.db",null,null,null,"4zgvis","Z843 ZZP 4zg-visueel incl.bh incl.db","Opname","4zgvisOpname",380.84,2665.8799999999997,null,null,null,null,"6VV",2]
[null,null,null,null,null,null,null,null,null,null,null,null,null,{"$f":"D46/7","v":0},null,null,null,null,null,null,0,0,0,0,null,null,null,null,null,null,"H874 Dagbesteding ZG kind visueel licht",null,null,null,null,null,"Z222G ZZP 2 ggz wonen incl. BH excl. DB","V230G VPT 3 ggz wonen excl. BH excl. DB",null,null,11,"K5",null,null,null,null,null,null,null,null,"H336 Behandeling som, pg, vg, lg, zg (AVG)","H336",193.03,null,null,null,"2VV",751,"nvt",28366,544.00547945205471,null,null,"4GGZ-W",{"$f":"VLOOKUP(BL41,'Ruimte behandeling basis MPT'!$A$2:$H$46,8,FALSE)","v":{"$error":"#N/A"}},null,null,null,null,null,104,"Eerst zorgvraag invullen",null,null,null,null,null,null,null,null,null,null,null,null,null,null,null,"3VV","Niet","nvt","5ZGvis",848,0,0,0,0,0,0,0,0,0,0,0,null,null,null,null,null,null,null,null,null,null,null,null,null,null,null,null,null,null,null,"1zgaud","Licht",null,"5GGZ B","nee","Nee",20,16,null,null,null,null,null,null,null,null,null,null,null,null,null,null,null,null,null,"MPT",{"$f":"IF(OR(B30=\"verblijfsprestatie\",B30=\"vptprestatie\"),1,0)","v":0},null,null,null,"Z472 ZZP 7vg incl.bh excl.db","V472 VPT 7vg incl.bh excl.db",null,null,null,"5zgvis","Z853 ZZP 5zg-visueel incl.bh incl.db","Opname","5zgvisOpname",420.43,2943.01,null,null,null,null,"7VV",2]
[null,{"$f":"SUMIF(B18:B31,\"BHgrp\",I18:I31)","v":0},null,{"$f":"SUM(B42:B43)","v":0},null,null,null,null,null,null,null,null,null,{"$f":"N41*7","v":0},null,null,null,null,null,null,0,0,0,0,null,null,null,null,null,null,"H875 Dagbesteding ZG kind visueel midden",null,null,null,null,null,"Z232G ZZP 3 ggz wonen incl. BH excl. DB","V240G VPT 4 ggz wonen excl. BH excl. DB",null,null,12,"K5",null,null,null,null,null,null,null,null,"H338 Behandeling sglvg","H338",358.37,null,null,null,"3VV",752,"nvt",34530,{"$f":"BH42/365*7","v":662.21917808219177},null,null,"5GGZ-W",{"$f":"VLOOKUP(BL42,'Ruimte behandeling basis MPT'!$A$2:$H$46,8,FALSE)","v":{"$error":"#N/A"}},null,null,null,null,null,105,"Eerst zorgvraag invullen",null,null,null,null,null,null,null,null,null,null,null,null,null,null,null,"4VV","Niet","nvt","1ZGaud",850,0,0,0,0,0,0,0,0,0,0,0,null,null,null,null,null,null,null,null,null,null,null,null,null,null,null,null,null,null,null,"2zgaud","Midden",null,"6GGZ B","nee","Nee",28.75,23,null,null,null,null,null,null,null,null,null,null,null,null,null,null,null,null,null,"MPT",{"$f":"IF(OR(B31=\"verblijfsprestatie\",B31=\"vptprestatie\"),1,0)","v":0},null,null,null,"Z473 ZZP 7vg incl.bh incl.db","V473 VPT 7vg incl.bh incl.db",null,null,null,"1GGZ-W","Z213G ZZP 1 ggz wonen incl. BH incl. DB","Opname",{"$f":"CONCATENATE(FB42,FD42)","v":"1GGZ-WOpname"},254.1,1778.7,null,null,null,null,"8VV",2]
[null,{"$f":"SUMIF(B18:B31,\"Bhind\",I18:I31)","v":0},null,{"$f":"D42-M15","v":0},null,null,null,null,null,null,null,null,null,null,null,null,null,null,null,null,0,0,0,0,null,null,null,null,null,null,"H876 Dagbesteding ZG kind visueel zwaar",null,null,null,null,null,"Z242G ZZP 4 ggz wonen incl. BH excl. DB","V250G VPT 5 ggz beveiligd wonen excl. BH excl. DB",null,null,13,"K6",null,null,null,null,null,null,null,null,"H531 Dagbesteding basis","H531",48.7,null,null,null,"4VV",753,"nvt",46265,887.27397260273983,null,null,"1ZGaud",{"$f":"VLOOKUP(BL43,'Ruimte behandeling basis MPT'!$A$2:$H$46,8,FALSE)","v":0},null,null,null,null,null,106,"Eerst zorgvraag invullen",null,null,null,null,null,null,null,null,null,null,null,null,null,null,null,"5VV","Niet","nvt","2ZGaud",852,0,0,0,0,0,0,0,0,0,0,0,null,null,null,null,null,null,null,null,null,null,null,null,null,null,null,null,null,null,null,"3zgaud","Zwaar",null,"7GGZ B","nee","Nee",33.125,26.5,null,null,null,null,null,null,null,null,null,null,null,null,null,null,null,null,null,"MPT",null,null,null,null,"Z480 ZZP 8vg excl.bh excl.db","V480 VPT 8vg excl.bh excl.db",null,null,null,"2GGZ-W","Z223G ZZP 2 ggz wonen incl. BH incl. DB","Opname",{"$f":"CONCATENATE(FB43,FD43)","v":"2GGZ-WOpname"},269.11,1883.77,null,null,null,null,"9vvb",2]
[null,null,null,{"$f":"IFERROR(IF($B$43=\"restant\",$G$44,$E$45-$I$56-$I$40-$I$42),0)","v":0},null,null,{"$f":"IF(I33=0,I45,I44)-I39","v":0},null,{"$f":"I45+IF(M44<0,0,M44)","v":0},null,null,null,{"$f":"T20-I33","v":0},{"$f":"IF(SUM($I$32:$I$33)-($BR$11+IF($I$33>0,$T$20,0))<=0,SUM($I$32:$I$33),$BR$11+IF($I$33>0,$T$20,0))","v":{"$error":"#N/A"}},{"$f":"SUM(M44:N44)","v":{"$error":"#N/A"}},null,null,null,null,null,0,0,0,0,null,null,null,null,null,null,"H308 Dagbesteding vg kind licht ZIO (zorg in onderwijstijd)",null,null,null,null,null,"Z252G ZZP 5 ggz beveiligd wonen  incl. BH excl. DB","V211G VPT 1 ggz wonen excl. BH incl. DB",null,null,14,"K6",null,null,null,null,null,null,null,null,"H533 Dagbesteding psychogeriatrisch","H533",70.040000000000006,null,null,null,"5VV",754,"nvt",62772,1203.8465753424657,null,null,"2ZGaud",{"$f":"VLOOKUP(BL44,'Ruimte behandeling basis MPT'!$A$2:$H$46,8,FALSE)","v":33.040000000000191},null,null,null,null,null,107,"Eerst zorgvraag invullen",null,null,null,null,null,null,null,null,null,null,null,null,null,null,null,"6VV","Niet","nvt","3ZGaud",854,0,0,0,0,0,0,0,0,0,0,0,null,null,null,null,null,null,null,null,null,null,null,null,null,null,null,null,null,null,null,"4zgaud","Licht",null,"1VG","nee","Nee",8.125,6.5,null,null,null,null,null,null,null,null,null,null,null,null,null,null,null,null,null,"MPT",null,null,null,null,"Z481 ZZP 8vg excl.bh incl.db","V481 VPT 8vg excl.bh incl.db",null,null,null,"3GGZ-W","Z233G ZZP 3 ggz wonen incl. BH incl. DB","Opname","3GGZ-WOpname",281.22000000000003,1968.5400000000002,null,null,null,null,"1LVG",2]
[null,null,null,null,{"$f":"I35","v":0},null,null,null,{"$f":"IF(AND(G53=1,I33=0),M6-E45,IF(AND(G53=1,I33>0),M6-E45-G46,T1-E45))","v":0},null,null,null,null,null,null,null,{"$f":"IF(D42=0,1,0)","v":1},{"$f":"I35-I40-I41","v":0},null,null,null,null,null,null,null,null,null,{"$f":"IF(BN12=0,0,IF(BN12<0,0,SUM($I$32:$I$33)-$I$38))","v":0},null,null,"H309 Dagbesteding lg kind licht ZIO (zorg in onderwijstijd)",null,null,null,null,null,"Z213G ZZP 1 ggz wonen incl. BH incl. DB","V221G VPT 2 ggz wonen excl. BH incl. DB",null,null,15,"K6",null,null,null,null,null,null,null,null,"H800 Dagbesteding somatisch ondersteunend","H800",67.55,null,null,null,"6VV",755,"nvt",62772,1203.8465753424657,null,null,"3ZGaud",{"$f":"VLOOKUP(BL45,'Ruimte behandeling basis MPT'!$A$2:$H$46,8,FALSE)","v":49.349999999999682},null,null,null,null,null,108,"Eerst zorgvraag invullen",null,null,null,null,null,null,null,null,null,null,null,null,null,null,null,"7VV","Niet","nvt","4ZGaud",856,0,0,0,0,0,0,0,0,0,0,0,null,null,null,null,null,null,null,null,null,null,null,null,null,null,null,null,null,null,null,"1lvg","BGgrp",null,"2VG","nee","Nee",11.875,9.5,null,null,null,null,null,null,null,null,null,null,null,null,null,null,null,null,null,"MPTTotale omvang ZIN",null,null,null,null,"Z482 ZZP 8vg incl.bh excl.db","V482 VPT 8vg incl.bh excl.db",null,null,null,"4GGZ-W","Z243G ZZP 4 ggz wonen incl. BH incl. DB","Opname","4GGZ-WOpname",444.89,3114.23,null,null,null,null,"2LVG",2]
[null,{"$f":"E45-I38","v":0},null,{"$f":"IF($D$50>=0,$D$50,IF(SUM($I$38:$I$42)<($M$6+$D$48),$M$6+$D$48-$I$38-$I$39-$I$41-$I$40-$I$42,IF($D$47-$D$49>0,$D$47-$D$49,$D$49-$D$47)))","v":0},null,null,{"$f":"IF(G47>0,G47,H47)","v":0},null,null,null,null,null,{"$f":"M6-I32","v":0},null,null,null,{"$f":"IFERROR(IF(D42= \"Gespecialiseerde verpleging\",10,IF(D42=\"extra budget voor behandeling\",1,IF(Q24=\"meerzorg\",3,IF(D42=\"toeslag beademing\",2,IF(AND(D42=0,Q24=\"overig\"),3,5))))),0)","v":5},{"$f":"IF(Q48=1,V56,IF(Q48=2,V57,IF(Q48=5,0,IF(Q48=6,V54,V53))))","v":0},null,null,null,null,null,null,null,null,null,null,null,null,"H310 Dagbesteding zg kind auditief licht ZIO (zorg in onderwijstijd)",null,null,null,null,null,"Z223G ZZP 2 ggz wonen incl. BH incl. DB","V231G VPT 3 ggz wonen excl. BH incl. DB",null,null,16,"K7",null,null,null,null,null,null,null,null,"H802 Dagbehandeling ouderen som en pg","H802",80.77,null,null,null,"7VV",756,"nvt",78631,1507.9917808219179,null,null,"4ZGaud",{"$f":"VLOOKUP(BL46,'Ruimte behandeling basis MPT'!$A$2:$H$46,8,FALSE)","v":201.04},null,null,null,null,null,109,"Eerst zorgvraag invullen",null,null,null,null,null,null,null,null,null,null,null,null,null,null,null,"8VV","Niet","nvt","1VV",750,0,0,0,0,0,0,0,0,0,0,0,null,null,null,null,null,null,null,null,null,null,null,null,null,null,null,null,null,null,null,"2lvg","BGgrp",null,"3VG","nee","Nee",15.625,12.5,null,null,null,null,null,null,null,null,null,null,null,null,null,null,null,null,null,null,null,null,null,null,"Z483 ZZP 8vg incl.bh incl.db","V483 VPT 8vg incl.bh incl.db",null,null,null,"5GGZ-W","Z253G ZZP 5 ggz beveiligd wonen incl. BH incl. DB","Opname","5GGZ-WOpname",521.49,3650.4300000000003,null,null,null,null,"3LVG",2]
[null,null,null,{"$f":"I35","v":0},null,"verschil",{"$f":"T20-I33","v":0},{"$f":"I33-T20","v":0},{"$f":"IF($G$55=1,$N$44-$G$47,$N$44)","v":{"$error":"#N/A"}},null,null,null,{"$f":"T20-I33","v":0},null,null,null,{"$f":"IFERROR(IF(D42=\"palliatief terminale zorg\",1,IF(D42=\"Extra overbruggingszorg (urgent of actief plaatsen)\",2,0)),0)","v":0},null,null,"Ja; Extra kosten thuis","Ja; Extra kosten thuis",{"$f":"SUM($I$32:$I$33)-$I$38-$I$41","v":0},{"$f":"$M$6*25%","v":0},{"$f":"V47-W47","v":0},{"$f":"IF(X47>0,W47,V47)","v":0},null,null,null,null,null,"H311 Dagbesteding zg kind visueel licht ZIO (zorg in onderwijstijd)",null,null,null,null,null,"Z233G ZZP 3 ggz wonen incl. BH incl. DB","V241G VPT 4 ggz wonen excl. BH incl. DB",null,null,17,"K7",null,null,null,null,null,null,null,null,"H804 Gespecialiseerde dagbehandeling Huntington lg of som","H804",101.62,null,null,null,"8VV",757,"nvt",93844,1799.7479452054793,null,null,"1ZGvis",{"$f":"VLOOKUP(BL47,'Ruimte behandeling basis MPT'!$A$2:$H$46,8,FALSE)","v":0},null,null,null,null,null,600,"PGB: Rekenmodule voorleggen aan Zorgkantoor",null,null,null,null,null,null,null,null,null,null,null,null,null,null,null,"9vvb","Niet","nvt","2VV",751,0,0,0,0,0,0,0,0,0,0,0,null,null,null,null,null,null,null,null,null,null,null,null,null,null,null,null,null,null,null,"3lvg","BGgrp",null,"4VG","nee","Nee",18.75,15,null,null,null,null,null,null,null,null,null,null,null,null,null,null,null,null,null,null,null,null,null,null,"Z513 ZZP 1lvg incl.bh incl.db","V513 VPT 1lvg incl.bh incl.db",null,null,null,"1vv","V015 VPT 1vv excl.bh incl.db","VPT","1vvVPT",{"$f":"VLOOKUP(FC47,Tarieven_VPT1,7,FALSE)","v":87.17},{"$f":"FF47*7","v":610.19000000000005},null,null,null,null,"4LVG",2]
[null,null,null,{"$f":"IF(I33=0,0,M15)","v":0},{"$f":"IF(OR(Q24<>\"\",Q24<>\"Nee\"),1,2)","v":1},"geen beh",{"$f":"IF(T20=0,0,1)","v":0},null,{"$f":"IF(M10-I47>0,E45,I47)","v":{"$error":"#N/A"}},null,null,null,{"$f":"E45-T1","v":0},null,null,"Palliatief terminale zorg",{"$f":"SUM(Q46:Q47)","v":5},null,null,"Ja; Extra kosten thuis",null,{"$f":"SUM($I$32:$I$33)-$I$38-$I$41","v":0},{"$f":"$M$6*25%","v":0},{"$f":"V48-W48","v":0},{"$f":"IF(X48>0,W48,V48)","v":0},null,null,null,null,null,null,null,null,null,null,null,"Z243G ZZP 4 ggz wonen incl. BH incl. DB","V251G VPT 5 ggz beveiligd wonen excl. BH incl. DB",null,null,18,"K7",null,null,null,null,null,null,null,null,"H811 Dagbesteding VG licht","H811",46.45,null,null,null,"9vvb",191,"nvt",60178,1154.0986301369862,null,null,"2ZGvis",{"$f":"VLOOKUP(BL48,'Ruimte behandeling basis MPT'!$A$2:$H$46,8,FALSE)","v":0},null,null,null,null,null,601,"PGB: Rekenmodule voorleggen aan Zorgkantoor",null,null,null,null,null,null,null,null,null,null,null,null,null,null,null,"10VV","Niet","nvt","3VV",752,0,0,0,0,0,0,0,0,0,0,0,null,null,null,null,null,null,null,null,null,null,null,null,null,null,null,null,null,null,null,"4lvg","BGgrp",null,"5VG","nee","Ja",23.125,18.5,null,null,null,null,null,null,null,null,null,null,null,null,null,null,null,null,null,"Z210G ZZP 1 ggz wonen excl. BH excl. DB","V210G VPT 1 ggz wonen excl. BH excl. DB",null,null,null,"Z523 ZZP 2lvg incl.bh incl.db","V523 VPT 2lvg incl.bh incl.db",null,null,null,"2vv","V025 VPT 2vv excl.bh incl.db","VPT","2vvVPT",115.4,807.80000000000007,null,null,null,null,"5LVG",2]
[null,null,null,{"$f":"D48+M17+FS8+M8","v":0},null,null,null,null,{"$f":"IF(M6-I48<0,M6,I48)","v":{"$error":"#N/A"}},null,null,null,{"$f":"IF(I33=0,1,0)","v":1},null,null,null,null,null,null,"Ja; Extra kosten thuis",null,{"$f":"SUM($I$32:$I$33)-$I$38-$I$41","v":0},{"$f":"$M$6*25%","v":0},{"$f":"V49-W49","v":0},{"$f":"IF(X50>0,W50,V50)","v":0},null,null,null,null,null,null,null,null,null,null,null,"Z253G ZZP 5 ggz beveiligd wonen incl. BH incl. DB","V710 VPT 1zg-auditief excl.bh excl.db",null,null,19,"K7",null,null,null,null,null,null,null,null,"H812 Dagbesteding VG midden","H812",65.34,null,null,null,"1LVG",780,"nvt",36647,702.81917808219168,null,null,"3ZGvis",{"$f":"VLOOKUP(BL49,'Ruimte behandeling basis MPT'!$A$2:$H$46,8,FALSE)","v":112.35000000000008},null,null,null,null,null,602,"PGB: Rekenmodule voorleggen aan Zorgkantoor",null,null,null,null,null,null,null,null,null,null,null,null,null,null,null,"1LVG","Niet","nvt","4VV",753,0,0,0,0,0,0,0,0,0,0,0,null,null,null,null,null,null,null,null,null,null,null,null,null,null,null,null,null,null,null,"5lvg","BGgrp",null,"6VG","nee","Nee",23.75,19,null,null,null,null,null,null,null,null,null,null,null,null,null,null,null,null,null,"Z211G ZZP 1 ggz wonen excl. BH incl. DB","V211G VPT 1 ggz wonen excl. BH incl. DB",null,null,null,"Z533 ZZP 3lvg incl.bh incl.db","V533 VPT 3lvg incl.bh incl.db",null,null,null,"3vv","V033 VPT 3vv incl.bh incl.db","VPT","3vvVPT",179.8,1258.6000000000001,null,null,null,null,"1SGLVG",2]
[null,null,null,{"$f":"IF(B43=\"overschrijding\",D49-D47,D47-D49-I40-I42)","v":0},{"$f":"IF($E$20=E19,3,0)","v":3},null,null,null,{"$f":"IF($T$20-$I$33>0,$I$33,$T$20)","v":0},null,null,null,{"$f":"IF(M46<0,1,0)","v":0},null,null,null,null,null,null,"Ja; Extra kosten thuis","betaalde arbeid",{"$f":"SUM($I$32:$I$33)-$I$38-$I$41","v":0},{"$f":"$M$6*25%","v":0},{"$f":"V50-W50","v":0},{"$f":"IF(X51>0,W51,V51)","v":0},null,null,null,null,null,null,null,null,null,null,null,"Z211G ZZP 1 ggz wonen excl. BH incl. DB","V740 VPT 4zg-auditief excl.bh excl.db",null,null,20,"K8",null,null,null,null,null,null,null,null,"H813 Dagbesteding VG zwaar","H813",111.44,null,null,null,"2LVG",781,"nvt",52506,1006.9643835616438,null,null,"4ZGvis",{"$f":"VLOOKUP(BL50,'Ruimte behandeling basis MPT'!$A$2:$H$46,8,FALSE)","v":166.59999999999988},null,null,null,null,null,603,"PGB: Rekenmodule voorleggen aan Zorgkantoor",null,null,null,null,null,null,null,null,null,null,null,null,null,null,null,"2LVG","Niet","nvt","5VV",754,0,0,0,0,0,0,0,0,0,0,0,null,null,null,null,null,null,null,null,null,null,null,null,null,null,null,null,null,null,null,"1sglvg","BGgrp",null,"7VG","nee","Ja",30,24,null,null,null,null,null,null,null,null,null,null,null,null,null,null,null,null,null,"Z212G ZZP 1 ggz wonen incl. BH excl. DB","V220G VPT 2 ggz wonen excl. BH excl. DB",null,null,null,"Z543 ZZP 4lvg incl.bh incl.db","V543 VPT 4lvg incl.bh incl.db",null,null,null,"4vv","V043 VPT 4vv incl.bh incl.db","VPT","4vvVPT",157.08000000000001,1099.5600000000002]
[null,null,null,{"$f":"IF($E$19=E19,2,0)","v":2},3,null,{"$f":"IF(OR(G47>0,G47<0),1,100)","v":100},null,{"$f":"IF(I49-M6=0,I49+I50,I49)","v":{"$error":"#N/A"}},null,null,null,{"$f":"IF(M47<0,3,4)","v":4},null,{"$f":"I35-M6-FS8-T26","v":0},null,null,null,null,"Ja; Extra kosten thuis","Wlz indiceerbaar",{"$f":"SUM($I$32:$I$33)-$I$38-$I$41","v":0},{"$f":"$M$6*25%","v":0},{"$f":"V51-W51","v":0},{"$f":"Y50","v":0},null,null,null,null,null,null,null,null,null,null,null,"Z221G ZZP 2 ggz wonen excl. BH incl. DB","V730 VPT 3zg-auditief excl.bh excl.db",null,null,21,"K8",null,null,null,null,null,null,null,null,"H814 Dagbesteding VG kind licht","H814",86.97,null,null,null,"3LVG",782,"nvt",62341,1195.5808219178082,null,null,"5ZGvis",{"$f":"VLOOKUP(BL51,'Ruimte behandeling basis MPT'!$A$2:$H$46,8,FALSE)","v":213.07999999999998},null,null,null,null,null,604,"PGB: Rekenmodule voorleggen aan Zorgkantoor",null,null,null,null,null,null,null,null,null,null,null,null,null,null,null,"3LVG","Niet","nvt","6VV",755,0,0,0,0,0,0,0,0,0,0,0,null,null,null,null,null,null,null,null,null,null,null,null,null,null,null,null,null,null,null,null,null,null,"8VG","nee","Ja",28.75,23,null,null,null,null,null,null,null,null,null,null,null,null,null,null,null,null,null,"Z213G ZZP 1 ggz wonen incl. BH incl. DB","V221G VPT 2 ggz wonen excl. BH incl. DB",null,null,null,"Z553 ZZP 5lvg incl.bh incl.db","V553 VPT 5lvg incl.bh incl.db",null,null,null,"5vv","V053 VPT 5vv incl.bh incl.db","VPT","5vvVPT",301.14999999999998,2108.0499999999997]
[null,{"$f":"IF($E$18=E19,1,0)","v":1},null,2,3,null,null,null,{"$f":"IF(M8>0,M6-M8,0)","v":0},null,null,null,{"$f":"SUM(M49:M51)","v":5},null,null,null,null,null,null,10,"Gespecialiseerde verpleging",{"$f":"$D$111-$I$38-$I$40-$I$39-I40","v":0},null,null,null,null,null,null,null,null,null,null,null,null,null,null,"Z231G ZZP 3 ggz wonen excl. BH incl. DB","V720 VPT 2zg-auditief excl.bh excl.db",null,null,22,"K8",null,null,null,null,null,null,null,null,"H815 Dagbesteding VG kind midden","H815",107.01,null,null,null,"4LVG",783,"nvt",80878,1551.0849315068494,null,null,null,null,null,null,null,null,null,605,"Bedrag PGB controleren bij het Zorgkantoor, daarna ZIN aanvragen",null,null,null,null,null,null,null,null,null,null,null,null,null,null,null,"4LVG","Niet","nvt","7VV",756,0,0,0,0,0,0,0,0,0,0,0,null,null,null,null,null,null,null,null,null,null,null,null,null,null,null,null,null,null,null,null,null,null,"1LG","nee","Nee",11.25,9,null,null,null,null,null,null,null,null,null,null,null,null,null,null,null,null,null,"Z220G ZZP 2 ggz wonen excl. BH excl. DB","V230G VPT 3 ggz wonen excl. BH excl. DB",null,null,null,"Z573 ZZP 1sglvg incl.bh incl.db","V573 VPT 1sglvg incl.bh incl.db",null,null,null,"6vv","V063 VPT 6vv incl.bh incl.db","VPT","6vvVPT",269.67,1887.69]
[null,1,null,2,3,null,{"$f":"IF(G48+G51=2,1,0)","v":0},null,{"$f":"IF(T20-I33>0,I52,T1-FS8)","v":0},null,null,null,{"$f":"IF(M52=5,M44,M48)","v":0},null,null,null,null,null,null,3,"Extra overbruggingszorg (urgent of actief plaatsen)",{"$f":"$D$111-$I$38-$I$40-$I$39-I41","v":0},null,null,null,null,null,null,null,null,null,null,null,null,null,null,"Z241G ZZP 4 ggz wonen excl. BH incl. DB","V814 VPT 1zg-visueel excl.bh excl.db",null,null,23,"K8",null,null,null,null,null,null,null,null,"H816 Dagbesteding VG kind zwaar","H816",159.26,null,null,null,"5LVG",784,"nvt",80878,1551.0849315068494,null,null,null,null,null,null,null,null,null,606,"PGB: Rekenmodule voorleggen aan Zorgkantoor",null,null,null,null,null,null,null,null,null,null,null,null,null,null,null,"5LVG","Niet","nvt","8VV",757,0,0,0,0,0,0,0,0,0,0,0,null,null,null,null,null,null,null,null,null,null,null,null,null,null,null,null,null,null,null,null,null,null,"2LG","nee","Nee",18.125,14.5,null,null,null,null,null,null,null,null,null,null,null,null,null,null,null,null,null,"Z221G ZZP 2 ggz wonen excl. BH incl. DB","V231G VPT 3 ggz wonen excl. BH incl. DB",null,null,null,"Z614 ZZP 1lg excl.db","V614 VPT 1lg excl.bh excl.db",null,null,null,"7vv","V073 VPT 7vv incl.bh incl.db","VPT","7vvVPT",369.53,2586.71]
[null,1,null,2,3,null,{"$f":"IF(M10-E45>=0,1,0)","v":1},null,{"$f":"IF(M8>0,I53,I51)","v":{"$error":"#N/A"}},null,null,null,{"$f":"IF(I38+D46>E45,E45-I38,M53)","v":0},null,null,null,null,null,null,3,"Palliatief terminale zorg",{"$f":"$D$111-$I$38-$I$40-$I$39-I41","v":0},null,null,null,null,null,null,null,null,null,null,null,null,null,null,"Z251G ZZP 5 ggz beveiligd wonen excl. BH incl. DB","V824 VPT 2zg-visueel excl.bh excl.db",null,null,24,"K8",null,null,null,null,null,null,null,null,"H817 Dagbehandeling VG kind emg","H817",184.19,null,null,null,"1SGLVG",790,"nvt",72737,1394.9561643835616,null,null,null,null,null,null,null,null,null,607,"PGB: Rekenmodule voorleggen aan Zorgkantoor",null,null,null,null,null,null,null,null,null,null,null,null,null,null,null,"1SGLVG","Niet","nvt","9bVV",191,0,0,0,0,0,0,0,0,0,0,0,null,null,null,null,null,null,null,null,null,null,null,null,null,null,null,null,null,null,null,null,null,null,"3LG","nee","Nee",18.125,14.5,null,null,null,null,null,null,null,null,null,null,null,null,null,null,null,null,null,"Z222G ZZP 2 ggz wonen incl. BH excl. DB","V240G VPT 4 ggz wonen excl. BH excl. DB",null,null,null,"Z615 ZZP 1lg incl.db","V615 VPT 1lg excl.bh incl.db",null,null,null,"8vv","V083 VPT 8vv incl.bh incl.db","VPT","8vvVPT",475.94,3331.58]
[null,1,null,2,3,null,{"$f":"SUM(G53:G54)","v":1},null,{"$f":"IF(L62=2,I50,I54)","v":{"$error":"#N/A"}},null,null,null,{"$f":"IF(D46+I38>E45,6,0)","v":0},null,null,null,null,null,null,3,"Meerzorg",{"$f":"$D$111-$I$38-$I$40-$I$39-I41","v":0},null,null,null,null,null,{"$f":"E45-I38-I40","v":0},null,null,null,null,null,null,null,null,"Z210G ZZP 1 ggz wonen excl. BH excl. DB","V830 VPT 3zg-visueel excl.bh excl.db",null,null,25,"K8",null,null,null,null,null,null,null,null,"H818 Dagactiviteit (begeleiding) VG kind gedrag","H818",159.26,null,null,null,null,null,null,null,null,null,null,null,null,null,null,null,null,null,608,"PGB: Rekenmodule voorleggen aan Zorgkantoor",null,null,null,null,null,null,null,null,null,null,null,null,null,null,null,null,null,null,"10VV",759,0,0,0,0,0,0,0,0,0,0,0,null,null,null,null,null,null,null,null,null,null,null,null,null,null,null,null,null,null,null,null,null,null,"4LG","nee","Nee",21.875,17.5,null,null,null,null,null,null,null,null,null,null,null,null,null,null,null,null,null,"Z223G ZZP 2 ggz wonen incl. BH incl. DB","V241G VPT 4 ggz wonen excl. BH incl. DB",null,null,null,"Z624 ZZP 2lg excl.db","V624 VPT 2lg excl.bh excl.db",null,null,null,"9vvb","V097 VPT 9bvv incl.bhincl.db","VPT","9vvbVPT",318.86,2232.02]
[null,1,null,2,3,{"$f":"als","v":{"$error":"#NAME?"}},null,null,{"$f":"IF(E45-O57>0,O57,I55)","v":{"$error":"#N/A"}},null,null,null,null,null,null,null,null,null,null,1,"Extra budget voor behandeling",{"$f":"IF(W60=3,V59,IF(W60=4,U59,0))","v":0},null,null,"ja invasieve beademing",{"$f":"BQ12","v":0},{"$f":"IFERROR(VLOOKUP(Q23,Y56:Z57,2),0)","v":0},null,null,null,null,null,null,null,null,null,"Z220G ZZP 2 ggz wonen excl. BH excl. DB","V840 VPT 4zg-visueel excl.bh excl.db",null,null,null,null,null,null,null,null,null,null,null,null,"H819 Dagbehandeling VG EMG volwassenen","H819",134.47,null,null,null,null,null,null,null,null,null,null,null,null,null,null,null,null,null,609,"PGB: Rekenmodule voorleggen aan Zorgkantoor",null,null,null,null,null,null,null,null,null,null,null,null,null,null,null,null,null,null,null,null,null,null,null,null,null,null,null,null,null,null,null,null,null,null,null,null,null,null,null,null,null,null,null,null,null,null,null,null,null,null,null,null,null,"5LG","nee","Ja",28.75,23,null,null,null,null,null,null,null,null,null,null,null,null,null,null,null,null,null,"Z230G ZZP 3 ggz wonen excl. BH excl. DB","V250G VPT 5 ggz beveiligd wonen excl. BH excl. DB",null,null,null,"Z625 ZZP 2lg incl.db","V625 VPT 2lg excl.bh incl.db",null,null,null,"10vv","V103 VPT 10vv incl.bhincl.db","VPT","10vvVPT",543.82000000000005,3806.7400000000002]
[null,1,null,2,3,null,{"$f":"IF(T20-I33>=0,1,0)","v":1},null,null,null,null,null,null,null,{"$f":"IF(I33=0,M17,M17-M15)","v":0},null,{"$f":"E45-I38","v":0},null,null,2,"toeslag beademing",{"$f":"IF(AB55>AA56,AA56,AB55)","v":0},null,null,"ja non-invasieve beademing",{"$f":"BQ13","v":0},null,null,null,null,null,null,null,null,null,null,"Z230G ZZP 3 ggz wonen excl. BH excl. DB","V850 VPT 5zg-visueel excl.bh excl.db",null,null,null,null,null,null,null,null,null,null,null,null,"H820 Dagbehandeling VG kind midden","H820",131.29,null,null,null,null,null,null,null,null,null,null,null,null,null,null,null,null,null,610,"PGB: Rekenmodule voorleggen aan Zorgkantoor",null,null,null,null,null,null,null,null,null,null,null,null,null,null,null,{"$f":"VLOOKUP(G10,CJ7:CL54,2,FALSE)","v":{"$error":"#N/A"}},null,null,null,null,null,null,null,null,null,null,null,null,null,null,null,null,null,null,null,null,null,null,null,null,null,null,null,null,null,null,null,null,null,null,null,null,null,"6LG","nee","Ja",28.75,23,null,null,null,null,null,null,null,null,null,null,null,null,null,null,null,null,null,"Z231G ZZP 3 ggz wonen excl. BH incl. DB","V251G VPT 5 ggz beveiligd wonen excl. BH incl. DB",null,null,null,"Z630 ZZP 3lg excl.bh excl.db","V630 VPT 3lg excl.bh excl.db",null,null,null,"1vg","V415 VPT 1vg excl.bh incl.db","VPT","1vgVPT",117.73,824.11]
[null,1,null,2,3,null,{"$f":"IF(M6-I35<0,3,4)","v":4},null,null,null,null,null,null,null,null,null,null,null,null,null,null,{"$f":"M10-I32","v":0},{"$f":"IF(V58<1,1,2)","v":1},null,null,null,null,null,null,null,null,null,null,null,null,null,"Z240G ZZP 4 ggz wonen excl. BH excl. DB",null,null,null,null,null,null,null,null,null,null,null,null,null,"H821 Dagbehandeling VG kind zwaar","H821",184.19,null,null,null,null,null,null,null,null,null,null,null,null,null,null,null,null,null,611,"PGB: Rekenmodule voorleggen aan Zorgkantoor",null,null,null,null,null,null,null,null,null,null,null,null,null,null,null,null,null,null,null,null,null,"Telling",null,null,null,null,null,null,null,null,null,null,null,null,null,null,null,null,null,null,null,null,null,null,null,null,null,null,null,null,null,null,null,"7LG","nee","Ja",32.5,26,null,null,null,null,null,null,null,null,null,null,null,null,null,null,null,null,null,"Z232G ZZP 3 ggz wonen incl. BH excl. DB",null,null,null,null,"Z631 ZZP 3lg excl.bh incl.db","V631 VPT 3lg excl.bh incl.db",null,null,null,"2vg","V425 VPT 2vg excl.bh incl.db","VPT","2vgVPT",131.80000000000001,922.60000000000014]
[null,1,null,2,3,null,{"$f":"G58+G57","v":5},null,null,null,null,null,null,null,null,null,null,null,null,{"$f":"IF(U59<V59,U59,V59)","v":0},{"$f":"IF(U60>0,U60,U61)","v":0},{"$f":"I33","v":0},{"$f":"IF(V59<1,1,2)","v":1},null,null,null,null,null,null,null,null,null,null,null,null,null,"Z250G ZZP 5 ggz beveiligd wonen excl. BH excl. DB",null,null,null,null,null,null,null,null,null,null,null,null,null,"H822 Dagbehandeling VG kind gedrag","H822",219.08,null,null,null,null,null,null,null,null,null,null,null,null,null,null,null,null,null,612,"PGB: Rekenmodule voorleggen aan Zorgkantoor",null,null,null,null,null,null,null,null,null,null,null,null,null,null,null,null,null,null,"PV",{"$f":"VLOOKUP($G$10,$CM$8:$CX$55,4,FALSE)","v":{"$error":"#N/A"}},null,0,{"$f":"IFERROR(VLOOKUP(H12,$CM$59:$CN$62,2,FALSE),0)","v":0},{"$f":"IFERROR(VLOOKUP(I14,$CM$59:$CN$62,2,FALSE),0)","v":0},{"$f":"IFERROR(VLOOKUP(J14,$CM$59:$CN$62,2,FALSE),0)","v":0},null,null,null,null,null,null,null,null,null,null,null,null,null,null,null,null,null,null,null,null,null,null,null,null,null,null,null,null,"1ZGvis","nee","Nee",8.125,6.5,null,null,null,null,null,null,null,null,null,null,null,null,null,null,null,null,null,"Z233G ZZP 3 ggz wonen incl. BH incl. DB",null,null,null,null,"Z632 ZZP 3lg incl.bh excl.db","V632 VPT 3lg incl.bh excl.db",null,null,null,"3vg","V433 VPT 3vg incl.bh incl.db","VPT","3vgVPT",190.36,1332.52]
[null,1,null,2,3,null,{"$f":"IF(G59=4,I45,I44)","v":0},null,null,"Geen Zin",null,{"$f":"IF(I32=0,1,0)","v":1},null,null,null,null,null,null,null,null,{"$f":"$M$17-($I$32+$I$33)","v":0},null,{"$f":"SUM(W58:W59)","v":2},null,null,null,null,null,null,null,null,null,null,null,null,null,"Z414 ZZP 1vg excl.db",null,null,null,null,null,null,null,null,null,null,null,null,null,"H831 Dagbesteding LG licht","H831",66.38,null,null,null,null,null,null,null,null,null,null,null,null,null,null,null,null,null,613,"PGB: Rekenmodule voorleggen aan Zorgkantoor",null,null,null,null,null,null,null,null,null,null,null,null,null,null,null,"wel","Niet",null,"VP",{"$f":"VLOOKUP($G$10,$CM$8:$CX$55,6,FALSE)","v":{"$error":"#N/A"}},null,{"$f":"IFERROR(VLOOKUP(G16,$CM$59:$CN$62,2,FALSE),0)","v":0},0,0,0,null,null,null,null,null,null,null,null,null,null,null,null,null,null,null,null,null,null,null,null,null,null,null,null,null,null,null,null,"2ZGvis","nee","Nee",14.375,11.5,null,null,null,null,null,null,null,null,null,null,null,null,null,null,null,null,null,"Z240G ZZP 4 ggz wonen excl. BH excl. DB",null,null,null,null,"Z633 ZZP 3lg incl.bh incl.db","V633 VPT 3lg incl.bh incl.db",null,null,null,"4vg","V443 VPT 4vg incl.bh incl.db","VPT","4vgVPT",221.3,1549.1000000000001]
[null,1,null,2,3,null,null,null,null,"BH Pos",null,{"$f":"IF($T$20-$I$33>0,1,0)","v":0},null,null,null,null,null,null,null,null,{"$f":"($I$32+$I$33)-M17","v":0},null,null,null,null,null,null,null,null,null,null,null,null,null,null,null,"Z424 ZZP 2vg excl.db",null,null,null,null,null,null,null,null,null,null,null,null,null,"H832 Dagbesteding LG midden","H832",77.72,null,null,null,null,null,null,null,null,null,null,null,null,null,null,null,null,null,614,"PGB: Rekenmodule voorleggen aan Zorgkantoor",null,null,null,null,null,null,null,null,null,null,null,null,null,null,null,"Ja","Nvt",null,"Bgind",{"$f":"VLOOKUP($G$10,$CM$8:$CX$55,8,FALSE)","v":{"$error":"#N/A"}},null,0,0,0,0,null,null,null,null,null,null,null,null,null,null,null,null,null,null,null,null,null,null,null,null,null,null,null,null,null,null,null,null,"3ZGvis","nee","Nee",20,16,null,null,null,null,null,null,null,null,null,null,null,null,null,null,null,null,null,"Z241G ZZP 4 ggz wonen excl. BH incl. DB",null,null,null,null,"Z640 ZZP 4lg excl.bh excl.db","V640 VPT 4lg excl.bh excl.db",null,null,null,"5vg","V457 VPT 5vg incl.bh incl.db","VPT","5vgVPT",304.77999999999997,2133.46]
[null,1,null,2,3,null,null,null,null,null,null,{"$f":"SUM(L60:L61)","v":1},null,null,null,null,null,null,null,null,null,null,null,null,null,null,null,null,null,null,null,null,null,null,null,null,"Z415 ZZP 1vg incl.db",null,null,null,null,null,null,null,null,null,null,null,null,null,"H833 Dagbesteding LG zwaar","H833",85.14,null,null,null,null,null,null,null,null,null,null,null,null,null,null,null,null,null,615,"PGB: Rekenmodule voorleggen aan Zorgkantoor",null,null,null,null,null,null,null,null,null,null,null,null,null,null,null,"Nee",null,null,"BGgrp",{"$f":"VLOOKUP($G$10,$CM$8:$CX$55,10,FALSE)","v":{"$error":"#N/A"}},null,0,0,0,0,null,null,null,null,null,null,null,null,null,null,null,null,null,null,null,null,null,null,null,null,null,null,null,null,null,null,null,null,"4ZGvis","nee","Nee",28.75,23,null,null,null,null,null,null,null,null,null,null,null,null,null,null,null,null,null,"Z242G ZZP 4 ggz wonen incl. BH excl. DB",null,null,null,null,"Z641 ZZP 4lg excl.bh incl.db","V641 VPT 4lg excl.bh incl.db",null,null,null,"6vg","V463 VPT 6vg incl.bh incl.db","VPT","6vgVPT",259.89,1819.23]
[null,1,null,2,null,null,null,null,null,null,null,null,null,{"$f":"IF(I33>P65,P65,I33)","v":0},null,null,null,null,null,null,null,null,"Logeren",null,null,null,null,null,null,null,null,null,null,null,null,null,"Z425 ZZP 2vg incl.db",null,null,null,null,null,null,null,null,null,null,null,null,null,"H834 Dagbesteding LG kind licht","H834",94.9,null,null,null,null,null,null,null,null,null,null,null,null,null,null,null,null,null,616,"PGB: Rekenmodule voorleggen aan Zorgkantoor",null,null,null,null,null,null,null,null,null,null,null,null,null,null,null,null,null,null,null,null,null,null,null,null,null,null,null,null,null,null,null,null,null,null,null,null,null,null,null,null,null,null,null,null,null,null,null,null,null,null,null,null,null,"5ZGvis","nee","Ja",32.5,26,null,null,null,null,null,null,null,null,null,null,null,null,null,null,null,null,null,"Z243G ZZP 4 ggz wonen incl. BH incl. DB",null,null,null,null,"Z642 ZZP 4lg incl.bh excl.db","V642 VPT 4lg incl.bh excl.db",null,null,null,"7vg","V473 VPT 7vg incl.bh incl.db","VPT","7vgVPT",300.58,2104.06]
[null,1,null,{"$f":"IF(E19=\"\",1,0)","v":1},null,null,null,null,null,null,null,null,null,{"$f":"IF(AND(I40=0,I33>1),I33,0)","v":0},null,null,null,null,null,null,null,null,{"$f":"IFERROR(VLOOKUP(D18,Tarieven_ZIN_Logeren,3,0),0)","v":0},null,null,null,null,null,null,null,null,null,null,null,null,null,"Z430 ZZP 3vg excl.bh excl.db",null,null,null,null,null,null,null,null,null,null,null,null,null,"H835 Dagbesteding LG kind midden","H835",109.85,null,null,null,null,null,null,null,null,null,null,null,null,null,null,null,null,null,617,"PGB: Rekenmodule voorleggen aan Zorgkantoor",null,null,null,null,null,null,null,null,null,null,null,null,null,null,null,null,null,null,null,null,null,null,null,null,null,null,null,null,null,null,null,null,null,null,null,null,null,null,null,null,null,null,null,null,null,null,null,null,null,null,null,null,null,"1ZGaud","nee","Nee",15.625,12.5,null,null,null,null,null,null,null,null,null,null,null,null,null,null,null,null,null,"Z250G ZZP 5 ggz beveiligd wonen excl. BH excl. DB",null,null,null,null,"Z643 ZZP 4lg incl.bh incl.db","V643 VPT 4lg incl.bh incl.db",null,null,null,"8vg","V483 VPT 8vg incl.bh incl.db","VPT","8vgVPT",373.33,2613.31]
[null,{"$f":"IF(E18=\"\",1,0)","v":1},null,null,null,null,null,null,null,null,null,null,null,null,null,{"$f":"IF($T$20-$I$33>0,$I$33,$T$20)","v":0},null,{"$f":"IF(B18=\"Deeltijd_verblijf\",$I$6-F18,0)","v":0},null,null,null,null,0,null,null,null,null,null,null,null,null,null,null,null,null,null,"Z440 ZZP 4vg excl.bh excl.db",null,null,null,null,null,null,null,null,null,null,null,null,null,"H836 Dagbesteding LG kind zwaar","H836",132.13,null,null,null,null,null,null,null,null,null,null,null,null,null,null,null,null,null,618,"PGB: Rekenmodule voorleggen aan Zorgkantoor",null,null,null,null,null,null,null,null,null,null,null,null,null,null,null,null,null,null,null,null,null,null,null,null,null,null,null,null,null,null,null,null,null,null,null,null,null,null,null,null,null,null,null,null,null,null,null,null,null,null,null,null,null,"2ZGaud","nee","Nee",36.875,29.5,null,null,null,null,null,null,null,null,null,null,null,null,null,null,null,null,null,"Z251G ZZP 5 ggz beveiligd wonen excl. BH incl. DB",null,null,null,null,"Z650 ZZP 5lg excl.bh excl.db","V650 VPT 5lg excl.bh excl.db",null,null,null,"1GGZ-W","V211G VPT 1 ggz wonen excl. BH incl. DB","VPT","1GGZ-WVPT",181.46,{"$f":"FF65*7","v":1270.22}]
[null,null,null,null,null,null,null,null,null,null,null,null,null,{"$f":"IF(N65=2,N64,N63)","v":0},null,null,null,{"$f":"IF(B19=\"Deeltijd_verblijf\",$I$6-F19,0)","v":0},null,null,null,null,0,null,null,null,null,null,null,null,null,null,null,null,null,null,"Z454 ZZP 5vg excl.bh excl.db",null,null,null,null,null,null,null,null,null,null,null,null,null,"H840 Dagbehandeling LG/NAH","H840",{"$f":"VLOOKUP(AZ66,Tarieven_ZIN1,2,0)","v":119.11},null,null,null,null,null,null,null,null,null,null,null,null,null,null,null,null,null,619,"PGB: Rekenmodule voorleggen aan Zorgkantoor",null,null,null,null,null,null,null,null,null,null,null,null,null,null,null,null,null,null,null,null,null,null,null,null,null,null,null,null,null,null,null,null,null,null,null,null,null,null,null,null,null,null,null,null,null,null,null,null,null,null,null,null,null,"3ZGaud","nee","Ja",43.75,35,null,null,null,null,null,null,null,null,null,null,null,null,null,"OpnameGGZVerblijfsprestatie",null,null,null,"Z252G ZZP 5 ggz beveiligd wonen  incl. BH excl. DB",null,null,null,null,"Z651 ZZP 5lg excl.bh incl.db","V651 VPT 5lg excl.bh incl.db",null,null,null,"2GGZ-W","V221G VPT 2 ggz wonen excl. BH incl. DB","VPT","2GGZ-WVPT",212.97,1490.79]
[null,{"$f":"IF($E$21=E22,4,0)","v":4},{"$f":"IF($E$22=E23,5,0)","v":5},{"$f":"IF($E$23=E24,6,0)","v":6},{"$f":"IF($E$24=E25,7,0)","v":7},null,null,null,null,null,null,null,null,{"$f":"IF(N66>P65,P65,N66)","v":0},null,null,null,0,null,null,null,null,0,null,null,null,null,null,null,null,null,null,null,null,null,null,"Z460 ZZP 6vg excl.bh excl.db",null,null,null,null,null,null,null,null,null,null,null,null,null,null,null,{"$f":"IFERROR(VLOOKUP(AZ67,Tarieven_ZIN1,2,0),0)","v":0},null,null,null,null,null,null,null,null,null,null,null,null,null,null,null,null,null,620,"PGB: Rekenmodule voorleggen aan Zorgkantoor",null,null,null,null,null,null,null,null,null,null,null,null,null,null,null,null,null,null,null,null,null,null,null,null,null,null,null,null,null,null,null,null,null,null,null,null,null,null,null,null,null,null,null,null,null,null,null,null,null,null,null,null,null,"4ZGaud","nee","Nee",26.25,21,null,null,null,null,null,null,null,null,null,null,null,null,null,null,null,null,null,"Z253G ZZP 5 ggz beveiligd wonen incl. BH incl. DB",null,null,null,null,"Z652 ZZP 5lg incl.bh excl.db","V652 VPT 5lg incl.bh excl.db",null,null,null,"3GGZ-W","V231G VPT 3 ggz wonen excl. BH incl. DB","VPT","3GGZ-WVPT",227.45,1592.1499999999999]
[null,4,5,6,7,null,null,null,null,null,null,null,null,null,null,null,null,0,null,null,null,null,0,null,null,null,null,null,null,null,null,null,null,null,null,null,"Z470 ZZP 7vg excl.bh excl.db",null,null,null,null,null,null,null,null,null,null,null,null,null,"H001G Dagbesteding ggz wonen-1","H001",63.81,null,null,null,null,null,null,null,null,null,null,null,null,null,null,null,null,null,621,"PGB: Rekenmodule voorleggen aan Zorgkantoor",null,null,null,null,null,null,null,null,null,null,null,null,null,null,null,null,null,null,null,null,null,null,null,null,null,null,null,null,null,null,null,null,null,null,null,null,null,null,null,null,null,null,null,null,null,null,null,null,null,null,null,null,null,"10VV","nvt","Nee",35.625,28.5,null,null,null,null,null,null,null,null,null,null,null,null,null,null,null,null,null,null,null,null,null,null,"Z653 ZZP 5lg incl.bh incl.db","V653 VPT 5lg incl.bh incl.db",null,null,null,"4GGZ-W","V241G VPT 4 ggz wonen excl. BH incl. DB","VPT","4GGZ-WVPT",276.12,1932.8400000000001]
[null,4,5,6,7,null,null,{"$f":"I32+I33","v":0},null,null,null,null,null,null,null,null,null,0,null,null,null,null,0,null,null,null,null,null,null,null,null,null,null,null,null,null,"Z480 ZZP 8vg excl.bh excl.db",null,null,null,null,null,null,null,null,null,null,null,null,null,"H002G Dagbesteding ggz wonen-2","H002",72.83,null,null,null,null,null,null,null,null,null,null,null,null,null,null,null,null,null,622,"PGB: Rekenmodule voorleggen aan Zorgkantoor",null,null,null,null,null,null,null,null,null,null,null,null,null,null,null,null,null,null,null,null,null,null,null,null,null,null,null,null,null,null,null,null,null,null,null,null,null,null,null,null,null,null,null,null,null,null,null,null,null,null,null,null,null,"1VV","nvt","Nee",5.625,4.5,null,null,null,null,null,null,null,null,null,null,null,null,null,null,null,null,null,null,null,null,null,null,"Z660 ZZP 6lg excl.bh excl.db","V660 VPT 6lg excl.bh excl.db",null,null,null,"5GGZ-W","V251G VPT 5 ggz beveiligd wonen excl. BH incl. DB","VPT","5GGZ-WVPT",374.39,2620.73]
[null,4,5,6,7,null,null,{"$f":"IF(H69>M6-M8,1,2)","v":2},null,null,null,null,null,null,null,null,null,0,null,null,null,null,0,null,null,null,null,null,null,null,null,null,null,null,null,null,"Z431 ZZP 3vg excl.bh incl.db",null,null,null,null,null,null,null,null,null,null,null,null,null,"H003G Dagbesteding ggz wonen-3","H003",62.32,null,null,null,null,null,null,null,null,null,null,null,null,null,null,null,null,null,623,"PGB: Rekenmodule voorleggen aan Zorgkantoor",null,null,null,null,null,null,null,null,null,null,null,null,null,null,null,null,null,null,null,null,null,null,null,null,null,null,null,null,null,null,null,null,null,null,null,null,null,null,null,null,null,null,null,null,null,null,null,null,null,null,null,null,null,"2VV","nvt","Nee",8.75,7,null,null,null,null,null,null,null,null,null,null,null,null,null,null,null,null,null,null,null,null,null,null,"Z661 ZZP 6lg excl.bh incl.db","V661 VPT 6lg excl.bh incl.db",null,null,null,"1lvg","V513 VPT 1lvg incl.bh incl.db","VPT","1lvgVPT",223.63,1565.4099999999999]
[null,4,5,6,7,null,null,{"$f":"IF(I32>M6-M8,5,6)","v":6},null,6,{"$f":"M6-M8","v":0},null,null,null,null,null,null,0,null,null,null,null,0,null,null,null,null,null,null,null,null,null,null,null,null,null,"Z441 ZZP 4vg excl.bh incl.db",null,null,null,null,null,null,null,null,null,null,null,null,null,"H004G Dagbesteding ggz wonen-4","H004",{"$f":"VLOOKUP(AZ71,Tarieven_ZIN1,2,0)","v":78.88},null,null,null,null,null,null,null,null,null,null,null,null,null,null,null,null,null,624,"PGB: Rekenmodule voorleggen aan Zorgkantoor",null,null,null,null,null,null,null,null,null,null,null,null,null,null,null,null,null,null,null,null,null,null,null,null,null,null,null,null,null,null,null,null,null,null,null,null,null,null,null,null,null,null,null,null,null,null,null,null,null,null,null,null,null,"3VV","nvt","Nee",13.75,11,null,null,null,null,null,null,null,null,null,null,null,null,null,null,null,null,null,null,null,null,null,null,"Z662 ZZP 6lg incl.bh excl.db","V662 VPT 6lg incl.bh excl.db",null,null,null,"2lvg","V523 VPT 2lvg incl.bh incl.db","VPT","2lvgVPT",276.95999999999998,1938.7199999999998]
[null,4,5,6,7,null,null,null,null,7,{"$f":"M6-M8","v":0},null,null,null,null,null,null,0,null,null,null,null,0,null,null,null,null,null,null,null,null,null,null,null,null,null,"Z455 ZZP 5vg excl.bh incl.db",null,null,null,null,null,null,null,null,null,null,null,null,null,"H005G Dagbesteding ggz wonen-5","H005",101.37,null,null,null,null,null,null,null,null,null,null,null,null,null,null,null,null,null,625,"PGB: Rekenmodule voorleggen aan Zorgkantoor",null,null,null,null,null,null,null,null,null,null,null,null,null,null,null,null,null,null,null,null,null,null,null,null,null,null,null,null,null,null,null,null,null,null,null,null,null,null,null,null,null,null,null,null,null,null,null,null,null,null,null,null,null,"4VV","nvt","Nee",15.625,12.5,null,null,null,null,null,null,null,null,null,null,null,null,null,null,null,null,null,null,null,null,null,null,"Z663 ZZP 6lg incl.bh incl.db","V663 VPT 6lg incl.bh incl.db",null,null,null,"3lvg","V533 VPT 3lvg incl.bh incl.db","VPT","3lvgVPT",359.6,2517.2000000000003]
[null,4,5,6,7,null,null,{"$f":"IF(AND(I33>0,I33-M15>0,I35<(M6+M15)),9,0)","v":0},null,16,{"$f":"H69-M15","v":0},null,null,null,null,null,null,0,null,null,null,null,0,null,null,null,null,null,null,null,null,null,null,null,null,null,"Z461 ZZP 6vg excl.bh incl.db",null,null,null,null,null,null,null,null,null,null,null,null,null,"H851 Dagbesteding ZG auditief licht","H851",66.47,null,null,null,null,null,null,null,null,null,null,null,null,null,null,null,null,null,626,"PGB: Rekenmodule voorleggen aan Zorgkantoor",null,null,null,null,null,null,null,null,null,null,null,null,null,null,null,null,null,null,null,null,null,null,null,null,null,null,null,null,null,null,null,null,null,null,null,null,null,null,null,null,null,null,null,null,null,null,null,null,null,null,null,null,null,"5VV","nvt","Nee",21.25,17,null,null,null,null,null,null,null,null,null,null,null,null,null,null,null,null,null,null,null,null,null,null,"Z670 ZZP 7lg excl.bh excl.db","V670 VPT 7lg excl.bh excl.db",null,null,null,"4lvg","V543 VPT 4lvg incl.bh incl.db","VPT","4lvgVPT",422.24,2955.6800000000003]
[null,4,5,6,null,null,null,{"$f":"SUM(H70:H73)","v":8},null,17,{"$f":"I35-I34-I41","v":0},null,null,null,null,null,null,0,null,null,null,null,0,null,null,null,null,null,null,null,null,null,null,null,null,null,"Z471 ZZP 7vg excl.bh incl.db",null,null,null,null,null,null,null,null,null,null,null,null,null,"H852 Dagbesteding ZG auditief midden","H852",79.81,null,null,null,null,null,null,null,null,null,null,null,null,null,null,null,null,null,627,"PGB: Rekenmodule voorleggen aan Zorgkantoor",null,null,null,null,null,null,null,null,null,null,null,null,null,null,null,null,null,null,null,null,null,null,null,null,null,null,null,null,null,null,null,null,null,null,null,null,null,null,null,null,null,null,null,null,null,null,null,null,null,null,null,null,null,"6VV","nvt","Nee",21.25,17,null,null,null,null,null,null,null,null,null,null,null,null,null,null,null,null,null,null,null,null,null,null,"Z671 ZZP 7lg excl.bh incl.db","V671 VPT 7lg excl.bh incl.db",null,null,null,"5lvg","V553 VPT 5lvg incl.bh incl.db","VPT","5lvgVPT",399.65,2797.5499999999997]
[null,4,5,null,null,null,null,null,null,8,{"$f":"I32+I33","v":0},null,null,null,null,null,null,0,null,null,null,null,0,null,null,null,null,null,null,null,null,null,null,null,null,null,"Z481 ZZP 8vg excl.bh incl.db",null,null,null,null,null,null,null,null,null,null,null,null,null,"H853 Dagbesteding ZG auditief zwaar","H853",95.05,null,null,null,null,null,null,null,null,null,null,null,null,null,null,null,null,null,628,"PGB: Rekenmodule voorleggen aan Zorgkantoor",null,null,null,null,null,null,null,null,null,null,null,null,null,null,null,null,null,null,null,null,null,null,null,null,null,null,null,null,null,null,null,null,null,null,null,null,null,null,null,null,null,null,null,null,null,null,null,null,null,null,null,null,null,"7VV","nvt","Ja",28.75,23,null,null,null,null,null,null,null,null,null,null,null,null,null,null,null,null,null,null,null,null,null,null,"Z672 ZZP 7lg incl.bh excl.db","V672 VPT 7lg incl.bh excl.db",null,null,null,"1sglvg","V573 VPT 1sglvg incl.bh incl.db","VPT",{"$f":"CONCATENATE(FB75,FD75)","v":"1sglvgVPT"},451.02,3157.14]
[null,4,null,null,null,null,null,null,null,9,{"$f":"H69-M15","v":0},null,null,null,null,null,null,0,null,null,null,null,0,null,null,null,null,null,null,null,null,null,null,null,null,null,"Z432 ZZP 3vg incl.bh excl.db",null,null,null,null,null,null,null,null,null,null,null,null,null,"H854 Dagbesteding ZG kind auditief licht","H854",101.63,null,null,null,null,null,null,null,null,null,null,null,null,null,null,null,null,null,629,"PGB: Rekenmodule voorleggen aan Zorgkantoor",null,null,null,null,null,null,null,null,null,null,null,null,null,null,null,null,null,null,null,null,null,null,null,null,null,null,null,null,null,null,null,null,null,null,null,null,null,null,null,null,null,null,null,null,null,null,null,null,null,null,null,null,null,"8VV","nvt","Ja",35.625,28.5,null,null,null,null,null,null,null,null,null,null,null,null,null,null,null,null,null,null,null,null,null,null,"Z673 ZZP 7lg incl.bh incl.db","V673 VPT 7lg incl.bh incl.db",null,null,null,"1lg","V615 VPT 1lg excl.bh incl.db","VPT","1lgVPT",168.19,1177.33]
[null,null,null,null,null,null,null,null,null,null,null,null,null,null,null,null,null,0,null,null,null,null,0,null,null,null,null,null,null,null,null,null,null,null,null,null,"Z442 ZZP 4vg incl.bh excl.db",null,null,null,null,null,null,null,null,null,null,null,null,null,"H855 Dagbesteding ZG kind auditief midden","H855",122.54,null,null,null,null,null,null,null,null,null,null,null,null,null,null,null,null,null,630,"PGB: Rekenmodule voorleggen aan Zorgkantoor",null,null,null,null,null,null,null,null,null,null,null,null,null,null,null,null,null,null,null,null,null,null,null,null,null,null,null,null,null,null,null,null,null,null,null,null,null,null,null,null,null,null,null,null,null,null,null,null,null,null,null,null,null,"9vvb","nvt","Nee",25,20,null,null,null,null,null,null,null,null,null,null,null,null,null,null,null,null,null,null,null,null,null,null,"Z710 ZZP 1zg-auditief excl.bh excl.db","V710 VPT 1zg-auditief excl.bh excl.db",null,null,null,"2lg","V625 VPT 2lg excl.bh incl.db","VPT","2lgVPT",200.5,1403.5]
[null,null,null,null,null,null,null,null,null,null,null,null,null,null,null,null,null,0,null,null,null,null,null,null,null,null,null,null,null,null,null,null,null,null,null,null,"Z456 ZZP 5vg incl.bh excl.db",null,null,null,null,null,null,null,null,null,null,null,null,null,"H856 Dagbesteding ZG kind auditief zwaar","H856",149.31,null,null,null,null,null,null,null,null,null,null,null,null,null,null,null,null,null,631,"PGB: Rekenmodule voorleggen aan Zorgkantoor",null,null,null,null,null,null,null,null,null,null,null,null,null,null,null,null,null,null,null,null,null,null,null,null,null,null,null,null,null,null,null,null,null,null,null,null,null,null,null,null,null,null,null,null,null,null,null,null,null,null,null,null,null,"1LVG","nvt","Nee",20,16,null,null,null,null,null,null,null,null,null,null,null,null,null,null,null,null,null,null,null,null,null,null,"Z711 ZZP 1zg-auditief excl.bh incl.db","V711 VPT 1zg-auditief excl.bh incl.db",null,null,null,"3lg","V633 VPT 3lg incl.bh incl.db","VPT","3lgVPT",208.78,1461.46]
[null,{"$f":"IF($E$25=E26,8,0)","v":8},{"$f":"IF($E$26=E27,9,0)","v":9},{"$f":"IF($E$27=E28,10,0)","v":10},{"$f":"IF($E$28=E29,11,0)","v":11},null,null,null,null,null,null,null,null,null,null,null,null,0,null,null,null,null,null,null,null,null,null,null,null,null,null,null,null,null,null,null,"Z462 ZZP 6vg incl.bh excl.db",null,null,null,null,null,null,null,null,null,null,null,null,null,"H871 Dagbesteding ZG visueel licht","H871",64.7,null,null,null,null,null,null,null,null,null,null,null,null,null,null,null,null,null,632,"PGB: Rekenmodule voorleggen aan Zorgkantoor",null,null,null,null,null,null,null,null,null,null,null,null,null,null,null,null,null,null,null,null,null,null,null,null,null,null,null,null,null,null,null,null,null,null,null,null,null,null,null,null,null,null,null,null,null,null,null,null,null,null,null,null,null,"2LVG","nvt","Nee",24.375,19.5,null,null,null,null,null,null,null,null,null,null,null,null,null,null,null,null,null,null,null,null,null,null,"Z712 ZZP 1zg-auditief incl.bh excl.db","V712 VPT 1zg-auditief incl.bh excl.db",null,null,null,"4lg","V643 VPT 4lg incl.bh incl.db","VPT","4lgVPT",260.52999999999997,1823.7099999999998]
[null,8,{"$f":"IF($E$26=E28,9,0)","v":9},{"$f":"IF($E$27=E29,10,0)","v":10},{"$f":"IF($E$28=E30,11,0)","v":11},null,null,null,null,null,null,null,null,null,null,null,null,0,null,null,null,null,null,null,null,null,null,null,null,null,null,null,null,null,null,null,"Z472 ZZP 7vg incl.bh excl.db",null,null,null,null,null,null,null,null,null,null,null,null,null,"H872 Dagbesteding ZG visueel midden","H872",69.930000000000007,null,null,null,null,null,null,null,null,null,null,null,null,null,null,null,null,null,633,"PGB: Rekenmodule voorleggen aan Zorgkantoor",null,null,null,null,null,null,null,null,null,null,null,null,null,null,null,null,null,null,null,null,null,null,null,null,null,null,null,null,null,null,null,null,null,null,null,null,null,null,null,null,null,null,null,null,null,null,null,null,null,null,null,null,null,"3LVG","nvt","Nee",26.875,21.5,null,null,null,null,null,null,null,null,null,null,null,null,null,null,null,null,null,null,null,null,null,null,"Z713 ZZP 1zg-auditief incl.bh incl.db","V713 VPT 1zg-auditief incl.bh incl.db",null,null,null,"5lg","V653 VPT 5lg incl.bh incl.db","VPT","5lgVPT",290.94,2036.58]
[null,8,{"$f":"IF($E$26=E29,9,0)","v":9},{"$f":"IF($E$27=E30,10,0)","v":10},{"$f":"IF($E$28=E31,11,0)","v":11},null,null,null,null,null,null,null,null,null,null,null,null,null,null,null,null,null,null,null,null,null,null,null,null,null,null,null,null,null,null,null,"Z482 ZZP 8vg incl.bh excl.db",null,null,null,null,null,null,null,null,null,null,null,null,null,"H873 Dagbesteding ZG visueel zwaar","H873",80.19,null,null,null,null,null,null,null,null,null,null,null,null,null,null,null,null,null,634,"PGB: Rekenmodule voorleggen aan Zorgkantoor",null,null,null,null,null,null,null,null,null,null,null,null,null,null,null,null,null,null,null,null,null,null,null,null,null,null,null,null,null,null,null,null,null,null,null,null,null,null,null,null,null,null,null,null,null,null,null,null,null,null,null,null,null,"4LVG","nvt","Ja",31.875,25.5,null,null,null,null,null,null,null,null,null,null,null,null,null,null,null,null,null,null,null,null,null,null,"Z740 ZZP 4zg-auditief excl.bh excl.db","V740 VPT 4zg-auditief excl.bh excl.db",null,null,null,"6lg","V663 VPT 6lg incl.bh incl.db","VPT","6lgVPT",365.38,2557.66]
[null,8,{"$f":"IF($E$26=E30,9,0)","v":9},{"$f":"IF($E$27=E31,10,0)","v":10},null,null,null,null,null,null,null,null,null,null,null,null,null,null,null,null,null,null,null,null,null,null,null,null,null,null,null,null,null,null,null,null,"Z433 ZZP 3vg incl.bh incl.db",null,null,null,null,null,null,null,null,null,null,null,null,null,"H874 Dagbesteding ZG kind visueel licht","H874",85.73,null,null,null,null,null,null,null,null,null,null,null,null,null,null,null,null,null,635,"PGB: Rekenmodule voorleggen aan Zorgkantoor",null,null,null,null,null,null,null,null,null,null,null,null,null,null,null,null,null,null,null,null,null,null,null,null,null,null,null,null,null,null,null,null,null,null,null,null,null,null,null,null,null,null,null,null,null,null,null,null,null,null,null,null,null,"5LVG","nvt","Ja",{"$f":"DZ82*1.25","v":31.875},25.5,null,null,null,null,null,null,null,null,null,null,null,null,null,null,null,null,null,null,null,null,null,null,"Z741 ZZP 4zg-auditief excl.bh incl.db","V741 VPT 4zg-auditief excl.bh incl.db",null,null,null,"7lg","V673 VPT 7lg incl.bh incl.db","VPT","7lgVPT",379.02,2653.14]
[null,8,{"$f":"IF($E$26=E31,9,0)","v":9},null,null,null,null,null,null,null,null,null,null,null,null,null,null,null,null,null,null,null,null,null,null,null,null,null,null,null,null,null,null,null,null,null,"Z443 ZZP 4vg incl.bh incl.db",null,null,null,null,null,null,null,null,null,null,null,null,null,"H875 Dagbesteding ZG kind visueel midden","H875",99.21,null,null,null,null,null,null,null,null,null,null,null,null,null,null,null,null,null,636,"PGB: Rekenmodule voorleggen aan Zorgkantoor",null,null,null,null,null,null,null,null,null,null,null,null,null,null,null,null,null,null,null,null,null,null,null,null,null,null,null,null,null,null,null,null,null,null,null,null,null,null,null,null,null,null,null,null,null,null,null,null,null,null,null,null,null,"1SGLVG","nvt","Ja",{"$f":"DZ83*1.25","v":34.375},27.5,null,null,null,null,null,null,null,null,null,null,null,null,null,null,null,null,null,null,null,null,null,null,"Z742 ZZP 4zg-auditief incl.bh excl.db","V742 VPT 4zg-auditief incl.bh excl.db",null,null,null,"1zgaud","V713 VPT 1zg-auditief incl.bh incl.db","VPT","1zgaudVPT",223.25,1562.75]
[null,8,null,null,null,null,null,null,null,null,null,null,null,null,null,null,null,null,null,null,null,null,null,null,null,null,null,null,null,null,null,null,null,null,null,null,"Z457 ZZP 5vg incl.bh incl.db",null,null,null,null,null,null,null,null,null,null,null,null,null,"H876 Dagbesteding ZG kind visueel zwaar","H876",121.56,null,null,null,null,null,null,null,null,null,null,null,null,null,null,null,null,null,637,"PGB: Rekenmodule voorleggen aan Zorgkantoor",null,null,null,null,null,null,null,null,null,null,null,null,null,null,null,null,null,null,null,null,null,null,null,null,null,null,null,null,null,null,null,null,null,null,null,null,null,null,null,null,null,null,null,null,null,null,null,null,null,null,null,null,null,null,null,null,null,null,null,null,null,null,null,null,null,null,null,null,null,null,null,null,null,null,null,null,null,null,null,null,"Z743 ZZP 4zg-auditief incl.bh incl.db","V743 VPT 4zg-auditief incl.bh incl.db",null,null,null,"4zgaud","V743 VPT 4zg-auditief incl.bh incl.db","VPT",{"$f":"CONCATENATE(FB84,FD86)","v":"4zgaudVPT"},308.06,2156.42]
[null,null,null,null,null,null,null,null,null,null,null,null,null,null,null,null,null,null,null,null,null,null,null,null,null,null,null,null,null,null,null,null,null,null,null,null,"Z463 ZZP 6vg incl.bh incl.db",null,null,null,null,null,null,null,null,null,null,null,null,null,"H891 Dagbehandeling  LVG","H891",171.74,null,null,null,null,null,null,null,null,null,null,null,null,null,null,null,null,null,638,"PGB: Rekenmodule voorleggen aan Zorgkantoor",null,null,null,null,null,null,null,null,null,null,null,null,null,null,null,null,null,null,null,null,null,null,null,null,null,null,null,null,null,null,null,null,null,null,null,null,null,null,null,null,null,null,null,null,null,null,null,null,null,null,null,null,null,null,null,null,null,null,null,null,null,null,null,null,null,null,null,null,null,null,null,null,null,null,null,null,null,null,null,null,"Z720 ZZP 2zg-auditief excl.bh excl.db","V720 VPT 2zg-auditief excl.bh excl.db",null,null,null,"2zgaud","V723 VPT 2zg-auditief incl.bh incl.db","VPT",{"$f":"CONCATENATE(FB85,FD84)","v":"2zgaudVPT"},442.13,3094.91]
[null,null,null,null,null,null,null,null,null,null,null,null,null,null,null,null,null,null,null,null,null,null,null,null,null,null,null,null,null,null,null,null,null,null,null,null,"Z473 ZZP 7vg incl.bh incl.db",null,null,null,null,null,null,null,null,null,null,null,null,null,"H307 Begeleiding ZIO (zorg in onderwijstijd","H307",65,null,null,null,null,null,null,null,null,null,null,null,null,null,null,null,null,null,639,"PGB: Rekenmodule voorleggen aan Zorgkantoor",null,null,null,null,null,null,null,null,null,null,null,null,null,null,null,null,null,null,null,null,null,null,null,null,null,null,null,null,null,null,null,null,null,null,null,null,null,null,null,null,null,null,null,null,null,null,null,null,null,null,null,null,null,null,null,null,null,null,null,null,null,null,null,null,null,null,null,null,null,null,null,null,null,null,null,null,null,null,null,null,"Z721 ZZP 2zg-auditief excl.bh incl.db","V721 VPT 2zg-auditief excl.bh incl.db",null,null,null,"3zgaud","V733 VPT 3zg-auditief incl.bh incl.db","VPT",{"$f":"CONCATENATE(FB86,FD85)","v":"3zgaudVPT"},521.97,3653.79]
[null,{"$f":"IF($E$29=E30,12,0)","v":12},{"$f":"IF(E30=E31,13,0)","v":13},null,null,null,null,null,null,null,null,null,null,null,null,null,null,null,null,null,null,null,null,null,null,null,null,null,null,null,null,null,null,null,null,null,"Z483 ZZP 8vg incl.bh incl.db",null,null,null,null,null,null,null,null,null,null,null,null,null,"H308 Dagbesteding vg kind licht ZIO (zorg in onderwijstijd)","H308",75.53,null,null,null,null,null,null,null,null,null,null,null,null,null,null,null,null,null,500,"PGB: Rekenmodule voorleggen aan Zorgkantoor",null,null,null,null,null,null,null,null,null,null,null,null,null,null,null,null,null,null,null,null,null,null,null,null,null,null,null,null,null,null,null,null,null,null,null,null,null,null,null,null,null,null,null,null,null,null,null,null,null,null,null,null,null,null,null,null,null,null,null,null,null,null,null,null,null,null,null,null,null,null,null,null,null,null,null,null,null,null,null,null,"Z722 ZZP 2zg-auditief incl.bh excl.db","V722 VPT 2zg-auditief incl.bh excl.db",null,null,null,"1zgvis","V815 VPT 1zg-visueel excl.bh incl.db","VPT","1zgvisVPT",155.56,1088.92]
[null,{"$f":"IF($E$29=E31,12,0)","v":12},null,null,null,null,null,null,null,null,null,null,null,null,null,null,null,null,null,null,null,null,null,null,null,null,null,null,null,null,null,null,null,null,null,null," ",null,null,null,null,null,null,null,null,null,null,null,null,null,"H309 Dagbesteding lg kind licht ZIO (zorg in onderwijstijd)","H309",80.209999999999994,null,null,null,null,null,null,null,null,null,null,null,null,null,null,null,null,null,501,"Bedrag PGB controleren bij het Zorgkantoor, daarna ZIN aanvragen",null,null,null,null,null,null,null,null,null,null,null,null,null,null,null,null,null,null,null,null,null,null,null,null,null,null,null,null,null,null,null,null,null,null,null,null,null,null,null,null,null,null,null,null,null,null,null,null,null,null,null,null,null,null,null,null,null,null,null,null,null,null,null,null,null,null,null,null,null,null,null,null,null,null,null,null,null,null,null,null,"Z723 ZZP 2zg-auditief incl.bh incl.db","V723 VPT 2zg-auditief incl.bh incl.db",null,null,null,"2zgvis","V825 VPT 2zg-visueel excl.bh incl.db","VPT","2zgvisVPT",201.37,1409.5900000000001]
[null,null,null,null,null,null,null,null,null,null,null,null,null,null,null,null,null,null,null,null,null,null,null,null,null,null,null,null,null,null,null,null,null,null,null,null,"Z513 ZZP 1lvg incl.bh incl.db",null,null,null,null,null,null,null,null,null,null,null,null,null,"H310 Dagbesteding zg kind auditief licht ZIO (zorg in onderwijstijd)","H310",85.89,null,null,null,null,null,null,null,null,null,null,null,null,null,null,null,null,null,502,"PGB: Rekenmodule voorleggen aan Zorgkantoor",null,null,null,null,null,null,null,null,null,null,null,null,null,null,null,null,null,null,null,null,null,null,null,null,null,null,null,null,null,null,null,null,null,null,null,null,null,null,null,null,null,null,null,null,null,null,null,null,null,null,null,null,null,null,null,null,null,null,null,null,null,null,null,null,null,null,null,null,null,null,null,null,null,null,null,null,null,null,null,null,"Z730 ZZP 3zg-auditief excl.bh excl.db","V730 VPT 3zg-auditief excl.bh excl.db",null,null,null,"3zgvis","V833 VPT 3zg-visueel incl.bh incl.db","VPT","3zgvisVPT",256.97000000000003,1798.7900000000002]
[null,null,null,null,null,"Aantal dubbel",{"$f":"COUNTIF(E93:E106,\"dubbel\")","v":0},null,null,null,null,null,null,null,null,null,null,null,null,null,null,null,null,null,null,null,null,null,null,null,null,null,null,null,null,null,"Z523 ZZP 2lvg incl.bh incl.db",null,null,null,null,null,null,null,null,null,null,null,null,null,"H311 Dagbesteding zg kind visueel licht ZIO (zorg in onderwijstijd)","H311",72.48,null,null,null,null,null,null,null,null,null,null,null,null,null,null,null,null,null,503,"PGB: Rekenmodule voorleggen aan Zorgkantoor",null,null,null,null,null,null,null,null,null,null,null,null,null,null,null,null,null,null,null,null,null,null,null,null,null,null,null,null,null,null,null,null,null,null,null,null,null,null,null,null,null,null,null,null,null,null,null,null,null,null,null,null,null,null,null,null,null,null,null,null,null,null,null,null,null,null,null,null,null,null,null,null,null,null,null,null,null,null,null,null,"Z731 ZZP 3zg-auditief excl.bh incl.db","V731 VPT 3zg-auditief excl.bh incl.db",null,null,null,"4zgvis","V843 VPT 4zg-visueel incl.bh incl.db","VPT","4zgvisVPT",338.27,2367.89]
[null,null,null,null,null,null,null,null,null,null,null,null,null,null,null,null,null,null,null,null,null,null,null,null,null,null,null,null,null,null,null,null,null,null,null,null,"Z533 ZZP 3lvg incl.bh incl.db",null,null,null,null,null,null,null,null,null,null,null,null,null,"D041 DTV 4VV","D041",{"$f":"VLOOKUP(AZ91,Tarieven_ZIN1,2,0)","v":189.42},null,null,null,null,null,null,null,null,null,null,null,null,null,null,null,null,null,504,"PGB: Rekenmodule voorleggen aan Zorgkantoor",null,null,null,null,null,null,null,null,null,null,null,null,null,null,null,null,null,null,null,null,null,null,null,null,null,null,null,null,null,null,null,null,null,null,null,null,null,null,null,null,null,null,null,null,null,null,null,null,null,null,null,null,null,null,null,null,null,null,null,null,null,null,null,null,null,null,null,null,null,null,null,null,null,null,null,null,null,null,null,null,"Z732 ZZP 3zg-auditief incl.bh excl.db","V732 VPT 3zg-auditief incl.bh excl.db",null,null,null,"5zgvis","V853 VPT 5zg-visueel incl.bh incl.db","VPT","5zgvisVPT",372.14,{"$f":"FF91*7","v":2604.98}]
[null,null,null,null,null,null,null,null,null,null,null,null,null,null,null,null,null,null,null,null,null,null,null,null,null,null,null,null,null,null,null,null,null,null,null,null,"Z543 ZZP 4lvg incl.bh incl.db",null,null,null,null,null,null,null,null,null,null,null,null,null,"D051 DTV 5VV","D051",331.14,null,null,null,null,null,null,null,null,null,null,null,null,null,null,null,null,null,505,"Bedrag PGB controleren bij het Zorgkantoor, daarna ZIN aanvragen",null,null,null,null,null,null,null,null,null,null,null,null,null,null,null,null,null,null,null,null,null,null,null,null,null,null,null,null,null,null,null,null,null,null,null,null,null,null,null,null,null,null,null,null,null,null,null,null,null,null,null,null,null,null,null,null,null,null,null,null,null,null,null,null,null,null,null,null,null,null,null,null,null,null,null,null,null,null,null,null,"Z733 ZZP 3zg-auditief incl.bh incl.db","V733 VPT 3zg-auditief incl.bh incl.db",null,null,null,null,null,"1VV",{"$f":"CONCATENATE(FD92,$FH$1)","v":"1VVDTV"},1,{"$f":"FF92*7","v":7}]
[null,{"$f":"IF(AND(B65=0,B52=1),E18,IF(AND(B65=0,B52=0),E18,\"geen AGB\"))","v":"geen AGB"},"1e",{"$f":"E18","v":0},1,{"$f":"E18","v":0},1,null,null,null,null,null,1,null,null,null,null,null,null,null,null,null,null,null,null,null,null,null,null,null,null,null,null,null,null,null,"Z553 ZZP 5lvg incl.bh incl.db",null,null,null,null,null,null,null,null,null,null,null,null,null,"D061 DTV 6VV","D061",305.14,null,null,null,null,null,null,null,null,null,null,null,null,null,null,null,null,null,506,"PGB: Rekenmodule voorleggen aan Zorgkantoor",null,null,null,null,null,null,null,null,null,null,null,null,null,null,null,null,null,null,null,null,null,null,null,null,null,null,null,null,null,null,null,null,null,null,null,null,null,null,null,null,null,null,null,null,null,null,null,null,null,null,null,null,null,null,null,null,null,null,null,null,null,null,null,null,null,null,null,null,null,null,null,null,null,null,null,null,null,null,null,null,"Z814 ZZP 1zg-visueel excl.db","V814 VPT 1zg-visueel excl.bh excl.db",null,null,null,null,null,"2VV",{"$f":"CONCATENATE(FD93,$FH$1)","v":"2VVDTV"},1,7]
[null,{"$f":"IF(AND(D64=1,D51=2),\"\",IF(AND(D51=0,D64=0),\"\",E19))","v":""},"2e",0,{"$f":"IF(D94<>D93,E93+1,E93)","v":1},0,{"$f":"IF(E94=2,2,IF($E$95=3,3,IF($E$96=4,4,IF($E$97=5,5,IF($E$98=6,6,IF($E$99=7,7,IF($E$100=8,8,IF($E$101=9,9,IF($E$102=10,10,IF($E$103=11,11,IF($E$104=12,12,IF($E$105=13,13,IF($E$106=14,14,\"onwaar\")))))))))))))","v":"onwaar"},null,null,null,null,null,2,null,null,null,null,null,null,null,null,null,null,null,null,null,null,null,null,null,null,null,null,null,null,null," ",null,null,null,null,null,null,null,null,null,null,null,null,null,"D071 DTV 7VV","D071",390.8,null,null,null,null,null,null,null,null,null,null,null,null,null,null,null,null,null,507,"PGB: Rekenmodule voorleggen aan Zorgkantoor",null,null,null,null,null,null,null,null,null,null,null,null,null,null,null,null,null,null,null,null,null,null,null,null,null,null,null,null,null,null,null,null,null,null,null,null,null,null,null,null,null,null,null,null,null,null,null,null,null,null,null,null,null,null,null,null,null,null,null,null,null,null,null,null,null,null,null,null,null,null,null,null,null,null,null,null,null,null,null,null,"Z815 ZZP 1zg-visueel incl.db","V815 VPT 1zg-visueel excl.bh incl.db",null,null,null,null,"D031 DTV 3VV","3VV","3VVDTV",1,{"$f":"FF94*7","v":7}]
[null,null,"3e",0,{"$f":"IF(AND(D95<>D94,D95<>D93),E94+1,E94)","v":1},0,{"$f":"IF($E$96=4,4,IF($E$97=5,5,IF($E$98=6,6,IF($E$99=7,7,IF($E$100=8,8,IF($E$101=9,9,IF($E$102=10,10,IF($E$103=11,11,IF($E$104=12,12,IF($E$105=13,13,IF($E$106=14,14,\"onwaar\")))))))))))","v":"onwaar"},null,null,null,null,null,3,null,null,null,null,null,null,null,null,null,null,null,null,null,null,null,null,null,null,null,null,null,null,null,"Z573 ZZP 1sglvg incl.bh incl.db",null,null,null,null,null,null,null,null,null,null,null,null,null,"D081 DTV 8VV","D081",507.31,null,null,null,null,null,null,null,null,null,null,null,null,null,null,null,null,null,508,"Bedrag PGB controleren bij het Zorgkantoor, daarna ZIN aanvragen",null,null,null,null,null,null,null,null,null,null,null,null,null,null,null,null,null,null,null,null,null,null,null,null,null,null,null,null,null,null,null,null,null,null,null,null,null,null,null,null,null,null,null,null,null,null,null,null,null,null,null,null,null,null,null,null,null,null,null,null,null,null,null,null,null,null,null,null,null,null,null,null,null,null,null,null,null,null,null,null,"Z824 ZZP 2zg-visueel excl.db","V824 VPT 2zg-visueel excl.bh excl.db",null,null,null,null,"D041 DTV 4VV","4VV","4VVDTV",{"$f":"VLOOKUP(FC95,Tarieven_ZIN0,3,0)","v":189.42},{"$f":"FF95*7","v":1325.9399999999998}]
[null,null,"4e",0,{"$f":"IF(AND(D96<>D95,D96<>D94,D96<>D93),E95+1,E95)","v":1},0,{"$f":"IF(E96=2,2,IF($E$95=3,3,IF($E$96=4,4,IF($E$97=5,5,IF($E$98=6,6,IF($E$99=7,7,IF($E$100=8,8,IF($E$101=9,9,IF($E$102=10,10,IF($E$103=11,11,IF($E$104=12,12,IF($E$105=13,13,IF($E$106=14,14,\"onwaar\")))))))))))))","v":"onwaar"},null,null,null,null,null,4,null,null,null,null,null,null,null,null,null,null,null,null,null,null,null,null,null,null,null,null,null,null,null," ",null,null,null,null,null,null,null,null,null,null,null,null,null,"D430 DTV 3VG","D430",157.62,null,null,null,null,null,null,null,null,null,null,null,null,null,null,null,null,null,509,"PGB: Rekenmodule voorleggen aan Zorgkantoor",null,null,null,null,null,null,null,null,null,null,null,null,null,null,null,null,null,null,null,null,null,null,null,null,null,null,null,null,null,null,null,null,null,null,null,null,null,null,null,null,null,null,null,null,null,null,null,null,null,null,null,null,null,null,null,null,null,null,null,null,null,null,null,null,null,null,null,null,null,null,null,null,null,null,null,null,null,null,null,null,"Z825 ZZP 2zg-visueel incl.db","V825 VPT 2zg-visueel excl.bh incl.db",null,null,null,null,"D051 DTV 5VV","5VV","5VVDTV",{"$f":"VLOOKUP(FC96,Tarieven_ZIN0,3,0)","v":331.14},2317.98]
[null,null,"5e",0,{"$f":"IF(AND(D97<>D96,D97<>D95,D97<>D94,D97<>D93),E96+1,E96)","v":1},0,"onwaar",null,null,null,null,null,5,null,{"$f":"IF(AND(D98<>D97,D98<>D96,D98<>D95,D96<>D94,D96<>D93),E97+1,E97)","v":1},null,null,null,null,null,null,null,null,null,null,null,null,null,null,null,null,null,null,null,null,null,"Z614 ZZP 1lg excl.db",null,null,null,null,null,null,null,null,null,null,null,null,null,"D440 DTV 4VG","D440",191.2,null,null,null,null,null,null,null,null,null,null,null,null,null,null,null,null,null,510,"PGB: Rekenmodule voorleggen aan Zorgkantoor",null,null,null,null,null,null,null,null,null,null,null,null,null,null,null,null,null,null,null,null,null,null,null,null,null,null,null,null,null,null,null,null,null,null,null,null,null,null,null,null,null,null,null,null,null,null,null,null,null,null,null,null,null,null,null,null,null,null,null,null,null,null,null,null,null,null,null,null,null,null,null,null,null,null,null,null,null,null,null,null,"Z830 ZZP 3zg-visueel excl.bh excl.db","V830 VPT 3zg-visueel excl.bh excl.db",null,null,null,null,"D061 DTV 6VV","6VV","6VVDTV",{"$f":"VLOOKUP(FC97,Tarieven_ZIN0,3,0)","v":305.14},2135.98]
[null,null,"6e",0,{"$f":"IF(AND(D98<>D97,D98<>D96,D98<>D95,D98<>D94,D98<>D93),E97+1,E97)","v":1},0,"onwaar",null,null,null,null,null,6,null,{"$f":"IF(AND(D98<>D97,D98<>D96,D98<>D95,D98<>D94,D98<>D93),D98+1,D98)","v":0},null,null,null,null,null,null,null,null,null,null,null,null,null,null,null,null,null,null,null,null,null,"Z624 ZZP 2lg excl.db",null,null,null,null,null,null,null,null,null,null,null,null,null,"D454 DTV 5VG","D454",231.41,null,null,null,null,null,null,null,null,null,null,null,null,null,null,null,null,null,511,"PGB: Rekenmodule voorleggen aan Zorgkantoor",null,null,null,null,null,null,null,null,null,null,null,null,null,null,null,null,null,null,null,null,null,null,null,null,null,null,null,null,null,null,null,null,null,null,null,null,null,null,null,null,null,null,null,null,null,null,null,null,null,null,null,null,null,null,null,null,null,null,null,null,null,null,null,null,null,null,null,null,null,null,null,null,null,null,null,null,null,null,null,null,"Z832 ZZP 3zg-visueel incl.bh excl.db","V832 VPT 3zg-visueel incl.bh excl.db",null,null,null,null,"D071 DTV 7VV","7VV","7VVDTV",{"$f":"VLOOKUP(FC98,Tarieven_ZIN0,3,0)","v":390.8},2735.6]
[null,null,"7e",0,{"$f":"IF(AND(D99<>D98,D99<>D97,D99<>D96,D99<>D95,D99<>D94,D99<>D93),E98+1,E98)","v":1},0,"onwaar",null,null,null,null,null,7,null,null,null,null,null,null,null,null,null,null,null,null,null,null,null,null,null,null,null,null,null,null,null,"Z615 ZZP 1lg incl.db",null,null,null,null,null,null,null,null,null,null,null,null,null,"D460 DTV 6VG","D460",202.06,null,null,null,null,null,null,null,null,null,null,null,null,null,null,null,null,null,512,"PGB: Rekenmodule voorleggen aan Zorgkantoor",null,null,null,null,null,null,null,null,null,null,null,null,null,null,null,null,null,null,null,null,null,null,null,null,null,null,null,null,null,null,null,null,null,null,null,null,null,null,null,null,null,null,null,null,null,null,null,null,null,null,null,null,null,null,null,null,null,null,null,null,null,null,null,null,null,null,null,null,null,null,null,null,null,null,null,null,null,null,null,null,"Z831 ZZP 3zg-visueel excl.bh incl.db","V831 VPT 3zg-visueel excl.bh incl.db",null,null,null,null,"D081 DTV 8VV","8VV","8VVDTV",{"$f":"VLOOKUP(FC99,Tarieven_ZIN0,3,0)","v":507.31},3551.17]
[null,null,"8e",0,{"$f":"IF(AND(D100<>D99,D100<>D98,D100<>D97,D100<>D96,D100<>D95,D100<>D94,D100<>D93),E99+1,E99)","v":1},0,"onwaar",null,null,null,null,null,8,null,null,null,null,null,null,null,null,null,null,null,null,null,null,null,null,null,null,null,null,null,null,null,"Z625 ZZP 2lg incl.db",null,null,null,null,null,null,null,null,null,null,null,null,null,"D470 DTV 7VG","D470",250.88,null,null,null,null,null,null,null,null,null,null,null,null,null,null,null,null,null,513,"PGB: Rekenmodule voorleggen aan Zorgkantoor",null,null,null,null,null,null,null,null,null,null,null,null,null,null,null,null,null,null,null,null,null,null,null,null,null,null,null,null,null,null,null,null,null,null,null,null,null,null,null,null,null,null,null,null,null,null,null,null,null,null,null,null,null,null,null,null,null,null,null,null,null,null,null,null,null,null,null,null,null,null,null,null,null,null,null,null,null,null,null,null,"Z833 ZZP 3zg-visueel incl.bh incl.db","V833 VPT 3zg-visueel incl.bh incl.db",null,null,null,null,null,"9VV","9VVDTV",1,7]
[null,null,"9e",0,{"$f":"IF(AND(D101<>D100,D101<>D99,D101<>D98,D101<>D97,D101<>D96,D101<>D95,D101<>D94,D101<>D93),E100+1,E100)","v":1},0,"onwaar",null,null,null,null,null,9,null,null,null,null,null,null,null,null,null,null,null,null,null,null,null,null,null,null,null,null,null,null,null,"Z630 ZZP 3lg excl.bh excl.db",null,null,null,null,null,null,null,null,null,null,null,null,null,"D480 DTV 8VG","D480",274.48,null,null,null,null,null,null,null,null,null,null,null,null,null,null,null,null,null,514,"PGB: Rekenmodule voorleggen aan Zorgkantoor",null,null,null,null,null,null,null,null,null,null,null,null,null,null,null,null,null,null,null,null,null,null,null,null,null,null,null,null,null,null,null,null,null,null,null,null,null,null,null,null,null,null,null,null,null,null,null,null,null,null,null,null,null,null,null,null,null,null,null,null,null,null,null,null,null,null,null,null,null,null,null,null,null,null,null,null,null,null,null,null,"Z840 ZZP 4zg-visueel excl.bh excl.db","V840 VPT 4zg-visueel excl.bh excl.db",null,null,null,null,null,"10VV","10VVDTV",1,7]
[null,null,"10e",0,{"$f":"IF(AND(D102<>D101,D102<>D100,D102<>D99,D102<>D98,D102<>D97,D102<>D96,D102<>D95,D102<>D94,D102<>D93),E101+1,E101)","v":1},0,"onwaar",null,null,null,null,null,10,null,null,null,null,null,null,null,null,null,null,null,null,null,null,null,null,null,null,null,null,null,null,null,"Z640 ZZP 4lg excl.bh excl.db",null,null,null,null,null,null,null,null,null,null,null,null,null,"D624 DTV 2LG","D624",185.51,null,null,null,null,null,null,null,null,null,null,null,null,null,null,null,null,null,515,"PGB: Rekenmodule voorleggen aan Zorgkantoor",null,null,null,null,null,null,null,null,null,null,null,null,null,null,null,null,null,null,null,null,null,null,null,null,null,null,null,null,null,null,null,null,null,null,null,null,null,null,null,null,null,null,null,null,null,null,null,null,null,null,null,null,null,null,null,null,null,null,null,null,null,null,null,null,null,null,null,null,null,null,null,null,null,null,null,null,null,null,null,null,"Z841 ZZP 4zg-visueel excl.bh incl.db","V841 VPT 4zg-visueel excl.bh incl.db",null,null,null,null,null,"1VG","1VGDTV",1,7]
[null,null,"11e",0,null,0,"onwaar",null,null,null,null,null,11,null,null,null,null,null,null,null,null,null,null,null,null,null,null,null,null,null,null,null,null,null,null,null,"Z650 ZZP 5lg excl.bh excl.db",null,null,null,null,null,null,null,null,null,null,null,null,null,"D640 DTV 4LG","D640",{"$f":"VLOOKUP(AZ103,Tarieven_ZIN1,2,0)","v":220.61},null,null,null,null,null,null,null,null,null,null,null,null,null,null,null,null,null,516,"PGB: Rekenmodule voorleggen aan Zorgkantoor",null,null,null,null,null,null,null,null,null,null,null,null,null,null,null,null,null,null,null,null,null,null,null,null,null,null,null,null,null,null,null,null,null,null,null,null,null,null,null,null,null,null,null,null,null,null,null,null,null,null,null,null,null,null,null,null,null,null,null,null,null,null,null,null,null,null,null,null,null,null,null,null,null,null,null,null,null,null,null,null,"Z842 ZZP 4zg-visueel incl.bh excl.db","V842 VPT 4zg-visueel incl.bh excl.db",null,null,null,null,null,"2VG","2VGDTV",1,7]
[null,null,"12e",0,null,0,"onwaar",null,null,null,null,null,12,null,null,null,null,null,null,null,null,null,null,null,null,null,null,null,null,null,null,null,null,null,null,null,"Z660 ZZP 6lg excl.bh excl.db",null,null,null,null,null,null,null,null,null,null,null,null,null,"D650 DTV 5LG","D650",220.61,null,null,null,null,null,null,null,null,null,null,null,null,null,null,null,null,null,580,"PGB: Rekenmodule voorleggen aan Zorgkantoor",null,null,null,null,null,null,null,null,null,null,null,null,null,null,null,null,null,null,null,null,null,null,null,null,null,null,null,null,null,null,null,null,null,null,null,null,null,null,null,null,null,null,null,null,null,null,null,null,null,null,null,null,null,null,null,null,null,null,null,null,null,null,null,null,null,null,null,null,null,null,null,null,null,null,null,null,null,null,null,null,"Z843 ZZP 4zg-visueel incl.bh incl.db","V843 VPT 4zg-visueel incl.bh incl.db",null,null,null,null,"D430 DTV 3VG","3VG","3VGDTV",{"$f":"VLOOKUP(FC104,Tarieven_ZIN0,3,0)","v":157.62},1103.3400000000001]
[null,null,"13e",0,null,0,"onwaar",null,null,null,null,null,13,null,null,null,null,null,null,null,null,null,null,null,null,null,null,null,null,null,null,null,null,null,null,null,"Z670 ZZP 7lg excl.bh excl.db",null,null,null,null,null,null,null,null,null,null,null,null,null,"D660 DTV 6LG","D660",311.11,null,null,null,null,null,null,null,null,null,null,null,null,null,null,null,null,null,584,"PGB: Rekenmodule voorleggen aan Zorgkantoor",null,null,null,null,null,null,null,null,null,null,null,null,null,null,null,null,null,null,null,null,null,null,null,null,null,null,null,null,null,null,null,null,null,null,null,null,null,null,null,null,null,null,null,null,null,null,null,null,null,null,null,null,null,null,null,null,null,null,null,null,null,null,null,null,null,null,null,null,null,null,null,null,null,null,null,null,null,null,null,null,"Z850 ZZP 5zg-visueel excl.bh excl.db","V850 VPT 5zg-visueel excl.bh excl.db",null,null,null,null,"D440 DTV 4VG","4VG","4VGDTV",191.2,1338.3999999999999]
[null,null,"14e",0,null,0,"onwaar",null,null,null,null,null,14,null,null,null,null,null,null,null,null,null,null,null,null,null,null,null,null,null,null,null,null,null,null,null,"Z631 ZZP 3lg excl.bh incl.db",null,null,null,null,null,null,null,null,null,null,null,null,null,"D670 DTV 7LG","D670",335.25,null,null,null,null,null,null,null,null,null,null,null,null,null,null,null,null,null,585,"PGB: Rekenmodule voorleggen aan Zorgkantoor",null,null,null,null,null,null,null,null,null,null,null,null,null,null,null,null,null,null,null,null,null,null,null,null,null,null,null,null,null,null,null,null,null,null,null,null,null,null,null,null,null,null,null,null,null,null,null,null,null,null,null,null,null,null,null,null,null,null,null,null,null,null,null,null,null,null,null,null,null,null,null,null,null,null,null,null,null,null,null,null,"Z851 ZZP 5zg-visueel excl.bh incl.db","V851 VPT 5zg-visueel excl.bh incl.db",null,null,null,null,"D454 DTV 5VG","5VG","5VGDTV",231.41,1619.87]
[null,null,null,null,null,null,null,null,null,null,null,null,null,null,null,null,null,null,null,null,null,null,null,null,null,null,null,null,null,null,null,null,null,null,null,null,"Z641 ZZP 4lg excl.bh incl.db",null,null,null,null,null,null,null,null,null,null,null,null,null,"H401 DTV 1GGZ-W","H401",185.13,null,null,null,null,null,null,null,null,null,null,null,null,null,null,null,null,1,{"$f":"BR107+1000","v":1001},"Zorg aanvragen via iWLZ, geen extra toestemming vereist",null,null,null,null,null,null,null,null,null,null,null,null,null,null,null,null,null,null,null,null,null,null,null,null,null,null,null,null,null,null,null,null,null,null,null,null,null,null,null,null,null,null,null,null,null,null,null,null,null,null,null,null,null,null,null,null,null,null,null,null,null,null,null,null,null,null,null,null,null,null,null,null,null,null,null,null,null,null,null,null,"Z852 ZZP 5zg-visueel incl.bh excl.db","V852 VPT 5zg-visueel incl.bh excl.db",null,null,null,null,"D460 DTV 6VG","6VG","6VGDTV",202.06,1414.42]
[null,null,null,null,null,null,null,null,null,null,null,null,null,null,null,null,null,null,null,null,null,null,null,null,null,null,null,null,null,null,null,null,null,null,null,null,"Z651 ZZP 5lg excl.bh incl.db",null,null,null,null,null,null,null,null,null,null,null,null,null,"H402 DTV 2GGZ-W","H402",217.43,null,null,null,null,null,null,null,null,null,null,null,null,null,null,null,null,2,{"$f":"BR108+1000","v":1002},"Rekenmodule voorleggen aan Zorgkantoor",null,null,null,null,null,null,null,null,null,null,null,null,null,null,null,null,null,null,null,null,null,null,null,null,null,null,null,null,null,null,null,null,null,null,null,null,null,null,null,null,null,null,null,null,null,null,null,null,null,null,null,null,null,null,null,null,null,null,null,null,null,null,null,null,null,null,null,null,null,null,null,null,null,null,null,null,null,null,null,null,"Z853 ZZP 5zg-visueel incl.bh incl.db","V853 VPT 5zg-visueel incl.bh incl.db",null,null,null,null,"D470 DTV 7VG","7VG","7VGDTV",250.88,1756.1599999999999]
[null,null,null,{"$f":"IF(M15>I33,I33-M15,0)","v":0},null,null,null,null,null,null,null,null,null,null,null,null,null,null,null,null,null,null,null,null,null,null,null,null,null,null,null,null,null,null,null,null,"Z661 ZZP 6lg excl.bh incl.db",null,null,null,null,null,null,null,null,null,null,null,null,null,"H403 DTV 3GGZ-W","H403",234.29,null,null,null,null,null,null,null,null,null,null,null,null,null,null,null,null,3,1003,"Rekenmodule voorleggen aan Zorgkantoor",null,null,null,null,null,null,null,null,null,null,null,null,null,null,null,null,null,null,null,null,null,null,null,null,null,null,null,null,null,null,null,null,null,null,null,null,null,null,null,null,null,null,null,null,null,null,null,null,null,null,null,null,null,null,null,null,null,null,null,null,null,null,null,null,null,null,null,null,null,null,null,null,null,null,null,null,null,null,null,null,"H900 Dagbesteding vg licht (vg1-vg4)",null,null,null,null,null,"D480 DTV 8VG","8VG","8VGDTV",274.48,1921.3600000000001]
[null,null,null,{"$f":"IF(AND(M15>0,Q24=\"extra budget voor behandeling\"),1,0)","v":0},null,null,null,null,null,null,null,null,null,null,null,null,null,null,null,null,null,null,null,null,null,null,null,null,null,null,null,null,null,null,null,null,"Z671 ZZP 7lg excl.bh incl.db",null,null,null,null,null,null,null,null,null,null,null,null,null,"H404 DTV 4GGZ-W","H404",285.81,null,null,null,null,null,null,null,null,null,null,null,null,null,null,null,null,4,1004,"Rekenmodule voorleggen aan Zorgkantoor",null,null,null,null,null,null,null,null,null,null,null,null,null,null,null,null,null,null,null,null,null,null,null,null,null,null,null,null,null,null,null,null,null,null,null,null,null,null,null,null,null,null,null,null,null,null,null,null,null,null,null,null,null,null,null,null,null,null,null,null,null,null,null,null,null,null,null,null,null,null,null,null,null,null,null,null,null,null,null,null,"H903 Dagbesteding vg midden (vg5)",null,null,null,null,null,null,"1LVG","1LVGDTV",1,7]
[null,"Totaal ingezette zorg",null,{"$f":"SUM(I32:I34)-I33","v":0},null,null,"zorg",null,null,null,null,null,null,null,null,null,null,null,null,null,null,null,null,null,null,null,null,null,null,null,null,null,null,null,null,null,"Z632 ZZP 3lg incl.bh excl.db",null,null,null,null,null,null,null,null,null,null,null,null,null,"H405 DTV 5GGZ-W","H405",372.55,null,null,null,null,null,null,null,null,null,null,null,null,null,null,null,null,5,1005,"Zorg aanvragen via iWLZ, geen extra toestemming vereist",null,null,null,null,null,null,null,null,null,null,null,null,null,null,null,null,null,null,null,null,null,null,null,null,null,null,null,null,null,null,null,null,null,null,null,null,null,null,null,null,null,null,null,null,null,null,null,null,null,null,null,null,null,null,null,null,null,null,null,null,null,null,null,null,null,null,null,null,null,null,null,null,null,null,null,null,null,null,null,null,"H904 Dagbesteding vg midden (vg6)",null,null,null,null,null,null,"2LVG","2LVGDTV",1,7]
[null,"Totale ruimte",null,{"$f":"IF(I33<M15,M10+T26-I33+I42+I39,M10+T26+FS8+I42+I39)","v":0},{"$f":"D112","v":0},null,"ruimte",null,null,null,null,null,null,null,null,null,null,null,null,null,null,null,null,null,null,null,null,null,null,null,null,null,null,null,null,null,"Z642 ZZP 4lg incl.bh excl.db",null,null,null,null,null,null,null,null,null,null,null,null,null,"D720 DTV ZGaud2","D720",383.87,null,null,null,null,null,null,null,null,null,null,null,null,null,null,null,null,6,1006,"Rekenmodule voorleggen aan Zorgkantoor",null,null,null,null,null,null,null,null,null,null,null,null,null,null,null,null,null,null,null,null,null,null,null,null,null,null,null,null,null,null,null,null,null,null,null,null,null,null,null,null,null,null,null,null,null,null,null,null,null,null,null,null,null,null,null,null,null,null,null,null,null,null,null,null,null,null,null,null,null,null,null,null,null,null,null,null,null,null,null,null,"H906 Dagbesteding vg zwaar (vg8)",null,null,null,null,null,null,"3LVG","3LVGDTV",1,7]
[null,null,null,{"$f":"IF(AND(FS8>0,D122=0),0,D118)","v":0},{"$f":"IF(D113>0,\"Restant\",\"Overschrijding\")","v":"Overschrijding"},null,null,null,null,null,null,null,null,null,null,null,null,null,null,null,null,null,null,null,null,null,null,null,null,null,null,null,null,null,null,null,"Z652 ZZP 5lg incl.bh excl.db",null,null,null,null,null,null,null,null,null,null,null,null,null,"D730 DTV ZGaud3","D730",432.16,null,null,null,null,null,null,null,null,null,null,null,null,null,null,null,null,7,1007,"Rekenmodule voorleggen aan Zorgkantoor",null,null,null,null,null,null,null,null,null,null,null,null,null,null,null,null,null,null,null,null,null,null,null,null,null,null,null,null,null,null,null,null,null,null,null,null,null,null,null,null,null,null,null,null,null,null,null,null,null,null,null,null,null,null,null,null,null,null,null,null,null,null,null,null,null,null,null,null,null,null,null,null,null,null,null,null,null,null,null,null,"H902 Dagbesteding vg zwaar (vg7)",null,null,null,null,null,null,"4LVG","4LVGDTV",1,7]
[null,null,null,null,{"$f":"IF(AND(D113=0,FS8>0),0,IF(E113=\"overschrijding\",D111-E112,D113))","v":0},null,null,null,null,null,null,null,null,null,null,null,null,null,null,null,null,null,null,null,null,null,null,null,null,null,null,null,null,null,null,null,"Z662 ZZP 6lg incl.bh excl.db",null,null,null,null,null,null,null,null,null,null,null,null,null,"D740 DTV Zgaud4","D740",250.83,null,null,null,null,null,null,null,null,null,null,null,null,null,null,null,null,8,1008,"Zorg aanvragen via iWLZ, geen extra toestemming vereist",null,null,null,null,null,null,null,null,null,null,null,null,null,null,null,null,null,null,null,null,null,null,null,null,null,null,null,null,null,null,null,null,null,null,null,null,null,null,null,null,null,null,null,null,null,null,null,null,null,null,null,null,null,null,null,null,null,null,null,null,null,null,null,null,null,null,null,null,null,null,null,null,null,null,null,null,null,null,null,null,"H910 Dagbesteding lg licht (lg7)",null,null,null,null,null,null,"5LVG","5LVGDTV",1,7]
[null,null,null,null,null,null,null,null,null,null,null,null,null,null,null,null,null,null,null,null,null,null,null,null,null,null,null,null,null,null,null,null,null,null,null,null,"Z672 ZZP 7lg incl.bh excl.db",null,null,null,null,null,null,null,null,null,null,null,null,null,"D824 DTV ZGvis2","D824",185.26,null,null,null,null,null,null,null,null,null,null,null,null,null,null,null,null,0,1000,"Rekenmodule voorleggen aan Zorgkantoor",null,null,null,null,null,null,null,null,null,null,null,null,null,null,null,null,null,null,null,null,null,null,null,null,null,null,null,null,null,null,null,null,null,null,null,null,null,null,null,null,null,null,null,null,null,null,null,null,null,null,null,null,null,null,null,null,null,null,null,null,null,null,null,null,null,null,null,null,null,null,null,null,null,null,null,null,null,null,null,null,"H913 Dagbesteding lg midden (lg2 en lg4)",null,null,null,null,null,null,"1SGLVG","1SGLVGDTV",1,7]
[null,null,null,null,null,null,null,null,null,null,null,null,null,null,null,null,null,null,null,null,null,null,null,null,null,null,null,null,null,null,null,null,null,null,null,null,"Z633 ZZP 3lg incl.bh incl.db",null,null,null,null,null,null,null,null,null,null,null,null,null,"D830 DTV ZGvis3","D830",225.76,null,null,null,null,null,null,null,null,null,null,null,null,null,null,null,null,13,1013," ",null,null,null,null,null,null,null,null,null,null,null,null,null,null,null,null,null,null,null,null,null,null,null,null,null,null,null,null,null,null,null,null,null,null,null,null,null,null,null,null,null,null,null,null,null,null,null,null,null,null,null,null,null,null,null,null,null,null,null,null,null,null,null,null,null,null,null,null,null,null,null,null,null,null,null,null,null,null,null,null,"H914 Dagbesteding lg midden (lg6)",null,null,null,null,null,null,"1LG","1LGDTV",1,7]
[null,null,null,null,null,null,null,null,null,null,null,null,null,null,null,null,null,null,null,null,null,null,null,null,null,null,null,null,null,null,null,null,null,null,null,null,"Z643 ZZP 4lg incl.bh incl.db",null,null,null,null,null,null,null,null,null,null,null,null,null,"D840 DTV ZGvis4","D840",282.91000000000003,null,null,null,null,null,null,null,null,null,null,null,null,null,null,null,null,85,1085,"Rekenmodule voorleggen aan Zorgkantoor",null,null,null,null,null,null,null,null,null,null,null,null,null,null,null,null,null,null,null,null,null,null,null,null,null,null,null,null,null,null,null,null,null,null,null,null,null,null,null,null,null,null,null,null,null,null,null,null,null,null,null,null,null,null,null,null,null,null,null,null,null,null,null,null,null,null,null,null,null,null,null,null,null,null,null,null,null,null,null,null,"H915 Dagbesteding lg zwaar (lg1 en lg3)",null,null,null,null,null,"D624 DTV 2LG","2LG","2LGDTV",{"$f":"VLOOKUP(FC117,Tarieven_ZIN0,3,0)","v":185.51},1298.57]
[null,null,null,{"$f":"$E$112-$D$111","v":0},null,null,null,null,null,null,null,null,null,null,null,null,null,null,null,null,null,null,null,null,null,null,null,null,null,null,null,null,null,null,null,null,"Z653 ZZP 5lg incl.bh incl.db",null,null,null,null,null,null,null,null,null,null,null,null,null,"D850 DTV ZGvis5","D850",315.49,null,null,null,null,null,null,null,null,null,null,null,null,null,null,null,null,84,1084,"Rekenmodule voorleggen aan Zorgkantoor",null,null,null,null,null,null,null,null,null,null,null,null,null,null,null,null,null,null,null,null,null,null,null,null,null,null,null,null,null,null,null,null,null,null,null,null,null,null,null,null,null,null,null,null,null,null,null,null,null,null,null,null,null,null,null,null,null,null,null,null,null,null,null,null,null,null,null,null,null,null,null,null,null,null,null,null,null,null,null,null,"H916 Dagbesteding lg zwaar (lg5)",null,null,null,null,null,null,"3LG","3LGDTV",1,7]
[null,null,null,null,null,null,null,null,null,null,null,null,null,null,null,null,null,null,null,null,null,null,null,null,null,null,null,null,null,null,null,null,null,null,null,null,"Z663 ZZP 6lg incl.bh incl.db",null,null,null,null,null,null,null,null,null,null,null,null,null,"Z999 Logeren GHZ-VG","Z999",346.32,null,null,null,null,null,null,null,null,null,null,null,null,null,null,null,null,83,1083,"Rekenmodule voorleggen aan Zorgkantoor",null,null,null,null,null,null,null,null,null,null,null,null,null,null,null,null,null,null,null,null,null,null,null,null,null,null,null,null,null,null,null,null,null,null,null,null,null,null,null,null,null,null,null,null,null,null,null,null,null,null,null,null,null,null,null,null,null,null,null,null,null,null,null,null,null,null,null,null,null,null,null,null,null,null,null,null,null,null,null,null,"H001G Dagbesteding ggz wonen-1",null,null,null,null,null,"D640 DTV 4LG","4LG","4LGDTV",{"$f":"VLOOKUP(FC119,Tarieven_ZIN0,3,0)","v":220.61},1544.27]
[null,null,null,null,null,null,null,null,null,null,null,null,null,null,null,null,null,null,null,null,null,null,null,null,null,null,null,null,null,null,null,null,null,null,null,null,"Z673 ZZP 7lg incl.bh incl.db",null,null,null,null,null,null,null,null,null,null,null,null,null,"Z1000 Logeren GHZ-LG ","Z1000",388.66,null,null,null,null,null,null,null,null,null,null,null,null,null,null,null,null,80,1080,"Rekenmodule voorleggen aan Zorgkantoor",null,null,null,null,null,null,null,null,null,null,null,null,null,null,null,null,null,null,null,null,null,null,null,null,null,null,null,null,null,null,null,null,null,null,null,null,null,null,null,null,null,null,null,null,null,null,null,null,null,null,null,null,null,null,null,null,null,null,null,null,null,null,null,null,null,null,null,null,null,null,null,null,null,null,null,null,null,null,null,null,"H002G Dagbesteding ggz wonen-2",null,null,null,null,null,"D650 DTV 5LG","5LG","5LGDTV",220.61,1544.27]
[null,null,null,{"$f":"D118-FS8","v":0},null,null,null,null,null,null,null,null,null,null,null,null,null,null,null,null,null,null,null,null,null,null,null,null,null,null,null,null,null,null,null,null,"Z710 ZZP 1zg-auditief excl.bh excl.db",null,null,null,null,null,null,null,null,null,null,null,null,null,"Z1001 Logeren GHZ-LVG","Z1001",378.13,null,null,null,null,null,null,null,null,null,null,null,null,null,null,null,null,88,1088,"Zorg aanvragen via iWLZ, geen extra toestemming vereist",null,null,null,null,null,null,null,null,null,null,null,null,null,null,null,null,null,null,null,null,null,null,null,null,null,null,null,null,null,null,null,null,null,null,null,null,null,null,null,null,null,null,null,null,null,null,null,null,null,null,null,null,null,null,null,null,null,null,null,null,null,null,null,null,null,null,null,null,null,null,null,null,null,null,null,null,null,null,null,null,"H003G Dagbesteding ggz wonen-3",null,null,null,null,null,"D660 DTV 6LG","6LG","6LGDTV",311.11,2177.77]
[null,null,null,{"$f":"IF(OR(D121>2,D121<2),1,0)","v":1},null,null,null,null,null,null,null,null,null,null,null,null,null,null,null,null,null,null,null,null,null,null,null,null,null,null,null,null,null,null,null,null,"Z720 ZZP 2zg-auditief excl.bh excl.db",null,null,null,null,null,null,null,null,null,null,null,null,null,"Z1004 Logeren GGZ wonen","Z1004",246.5,null,null,null,null,null,null,null,null,null,null,null,null,null,null,null,null,101,1101,"Eerst zorgvraag invullen",null,null,null,null,null,null,null,null,null,null,null,null,null,null,null,null,null,null,null,null,null,null,null,null,null,null,null,null,null,null,null,null,null,null,null,null,null,null,null,null,null,null,null,null,null,null,null,null,null,null,null,null,null,null,null,null,null,null,null,null,null,null,null,null,null,null,null,null,null,null,null,null,null,null,null,null,null,null,null,null,"H004G Dagbesteding ggz wonen-4",null,null,null,null,null,"D670 DTV 7LG","7LG","7LGDTV",335.25,2346.75]
[null,null,null,null,null,null,null,null,null,null,null,null,null,null,null,null,null,null,null,null,null,null,null,null,null,null,null,null,null,null,null,null,null,null,null,null,"Z730 ZZP 3zg-auditief excl.bh excl.db",null,null,null,null,null,null,null,null,null,null,null,null,null,"Z1002 Logeren GHZ-ZG","Z1002",530.30999999999995,null,null,null,null,null,null,null,null,null,null,null,null,null,null,null,null,102,1102,"Eerst zorgvraag invullen",null,null,null,null,null,null,null,null,null,null,null,null,null,null,null,null,null,null,null,null,null,null,null,null,null,null,null,null,null,null,null,null,null,null,null,null,null,null,null,null,null,null,null,null,null,null,null,null,null,null,null,null,null,null,null,null,null,null,null,null,null,null,null,null,null,null,null,null,null,null,null,null,null,null,null,null,null,null,null,null,"H005G Dagbesteding ggz wonen-5",null,null,null,null,null,"H401 DTV 1GGZ-W","1GGZ-W","1GGZ-WDTV",185.13,1295.9099999999999]
[null,null,null,null,null,null,null,null,null,null,null,null,null,null,null,null,null,null,null,null,null,null,null,null,null,null,null,null,null,null,null,null,null,null,null,null,"Z740 ZZP 4zg-auditief excl.bh excl.db",null,null,null,null,null,null,null,null,null,null,null,null,null,"Z1003 Logeren VV","Z1003",312.42,null,null,null,null,null,null,null,null,null,null,null,null,null,null,null,null,null,null,null,null,null,null,null,null,null,null,null,null,null,null,null,null,null,null,null,null,null,null,null,null,null,null,null,null,null,null,null,null,null,null,null,null,null,null,null,null,null,null,null,null,null,null,null,null,null,null,null,null,null,null,null,null,null,null,null,null,null,null,null,null,null,null,null,null,null,null,null,null,null,null,null,null,null,null,null,null,null,null,null,"H920 Dagbesteding zg aud licht (zg aud1 en zg aud4)",null,null,null,null,null,"H402 DTV 2GGZ-W","2GGZ-W","2GGZ-WDTV",217.43,1522.01]
[null,"Ruimte",null,null,null,null,null,null,null,null,null,null,null,null,null,null,null,null,null,null,null,null,null,null,null,null,null,null,null,null,null,null,null,null,null,null,"Z711 ZZP 1zg-auditief excl.bh incl.db",null,null,null,null,null,null,null,null,null,null,null,null,null,"Z1006 Logeren GHZ-ZEVMB","Z1006",566.63,null,null,null,null,null,null,null,null,null,null,null,null,null,null,null,null,103,1103,"Eerst zorgvraag invullen",null,null,null,null,null,null,null,null,null,null,null,null,null,null,null,null,null,null,null,null,null,null,null,null,null,null,null,null,null,null,null,null,null,null,null,null,null,null,null,null,null,null,null,null,null,null,null,null,null,null,null,null,null,null,null,null,null,null,null,null,null,null,null,null,null,null,null,null,null,null,null,null,null,null,null,null,null,null,null,null,"H921 Dagbesteding zg aud midden (zg aud2)",null,null,null,null,null,"H403 DTV 3GGZ-W","3GGZ-W","3GGZ-WDTV",234.29,1640.03]
[null,"Ruimte ZZP",null,{"$f":"$M$6","v":0},null,null,null,null,null,null,null,null,null,null,null,null,null,null,null,null,null,null,null,null,null,null,null,null,null,null,null,null,null,null,null,null,"Z721 ZZP 2zg-auditief excl.bh incl.db",null,null,null,null,null,null,null,null,null,null,null,null,null,"V015 VPT 1vv excl.bh incl.db","V015",{"$f":"VLOOKUP(AZ126,Tarieven_VPT0,9,FALSE)","v":87.17},null,null,null,null,null,null,null,null,null,null,null,null,null,null,null,null,104,1104,"Eerst zorgvraag invullen",null,null,null,null,null,null,null,null,null,null,null,null,null,null,null,null,null,null,null,null,null,null,null,null,null,null,null,null,null,null,null,null,null,null,null,null,null,null,null,null,null,null,null,null,null,null,null,null,null,null,null,null,null,null,null,null,null,null,null,null,null,null,null,null,null,null,null,null,null,null,null,null,null,null,null,null,null,null,null,null,"H922 Dagbesteding zg aud zwaar (zg aud3)",null,null,null,null,null,"H404 DTV 4GGZ-W","4GGZ-W","4GGZ-WDTV",285.81,2000.67]
[null,"Ruimte EKT",null,{"$f":"$FS$8","v":0},null,"Ruimte minus uitgegeven",null,null,null,null,null,null,null,null,null,null,null,null,null,null,null,null,null,null,null,null,null,null,null,null,null,null,null,null,null,null,"Z731 ZZP 3zg-auditief excl.bh incl.db",null,null,null,null,null,null,null,null,null,null,null,null,null,"V025 VPT 2vv excl.bh incl.db","V025",115.4,null,null,null,null,null,null,null,null,null,null,null,null,null,null,null,null,105,1105,"Eerst zorgvraag invullen",null,null,null,null,null,null,null,null,null,null,null,null,null,null,null,null,null,null,null,null,null,null,null,null,null,null,null,null,null,null,null,null,null,null,null,null,null,null,null,null,null,null,null,null,null,null,null,null,null,null,null,null,null,null,null,null,null,null,null,null,null,null,null,null,null,null,null,null,null,null,null,null,null,null,null,null,null,null,null,null,"H930 Dagbesteding zg vis licht (zg vis2 en zg vis3)",null,null,null,null,null,"H405 DTV 5GGZ-W","5GGZ-W","5GGZ-WDTV",372.55,2607.85]
[null,"Ruimte behandeling",null,{"$f":"IF(E141=\"ja\",$M$15,D133)","v":0},null,{"$f":"D129-D135","v":0},null,null,null,null,null,null,null,null,null,null,null,null,null,null,null,null,null,null,null,null,null,null,null,null,null,null,null,null,null,null,"Z741 ZZP 4zg-auditief excl.bh incl.db",null,null,null,null,null,null,null,null,null,null,null,null,null,"V031 VPT 3vv excl.bh incl.db","V031",152.80000000000001,null,null,null,null,null,null,null,null,null,null,null,null,null,null,null,null,106,1106,"Eerst zorgvraag invullen",null,null,null,null,null,null,null,null,null,null,null,null,null,null,null,null,null,null,null,null,null,null,null,null,null,null,null,null,null,null,null,null,null,null,null,null,null,null,null,null,null,null,null,null,null,null,null,null,null,null,null,null,null,null,null,null,null,null,null,null,null,null,null,null,null,null,null,null,null,null,null,null,null,null,null,null,null,null,null,null,"H931 Dagbesteding zg vis midden (zg vis1)",null,null,null,null,null,"D710 DTV ZGaud1","1ZGAUD","1ZGAUDDTV",1,7]
[null,"Totaal ruimte",null,{"$f":"SUM($D$126:$D$128)","v":0},null,null,null,null,null,null,null,null,null,null,null,null,null,null,null,null,null,null,null,null,null,null,null,null,null,null,null,null,null,null,null,null,"Z712 ZZP 1zg-auditief incl.bh excl.db",null,null,null,null,null,null,null,null,null,null,null,null,null,"V041 VPT 4vv excl.bh incl.db","V041",143.76,null,null,null,null,null,null,null,null,null,null,null,null,null,null,null,null,107,1107,"Eerst zorgvraag invullen",null,null,null,null,null,null,null,null,null,null,null,null,null,null,null,null,null,null,null,null,null,null,null,null,null,null,null,null,null,null,null,null,null,null,null,null,null,null,null,null,null,null,null,null,null,null,null,null,null,null,null,null,null,null,null,null,null,null,null,null,null,null,null,null,null,null,null,null,null,null,null,null,null,null,null,null,null,null,null,null,"H933 Dagbesteding zg vis zwaar (zg vis4)",null,null,null,null,null,"D740 DTV Zgaud4","4ZGAUD","4ZGAUDDTV",{"$f":"VLOOKUP(FC129,Tarieven_ZIN0,3,0)","v":250.83},1755.8100000000002]
[null,null,null,null,null,"Uitgegeven minus ruimte",null,null,null,null,null,null,null,null,null,null,null,null,null,null,null,null,null,null,null,null,null,null,null,null,null,null,null,null,null,null,"Z722 ZZP 2zg-auditief incl.bh excl.db",null,null,null,null,null,null,null,null,null,null,null,null,null,"V051 VPT 5vv excl.bh incl.db","V051",284.52,null,null,null,null,null,null,null,null,null,null,null,null,null,null,null,null,108,1108,"Eerst zorgvraag invullen",null,null,null,null,null,null,null,null,null,null,null,null,null,null,null,null,null,null,null,null,null,null,null,null,null,null,null,null,null,null,null,null,null,null,null,null,null,null,null,null,null,null,null,null,null,null,null,null,null,null,null,null,null,null,null,null,null,null,null,null,null,null,null,null,null,null,null,null,null,null,null,null,null,null,null,null,null,null,null,null,"H934 Dagbesteding zg vis zwaar (zg vis5)",null,null,null,null,null,"D720 DTV ZGaud2","2ZGAUD","2ZGAUDDTV",{"$f":"VLOOKUP(FC130,Tarieven_ZIN0,3,0)","v":383.87},2687.09]
[null,"Uitgegeven",null,null,null,{"$f":"D135-D129","v":0},null,null,null,null,null,null,null,null,null,null,null,null,null,null,null,null,null,null,null,null,null,null,null,null,null,null,null,null,null,null,"Z732 ZZP 3zg-auditief incl.bh excl.db",null,null,null,null,null,null,null,null,null,null,null,null,null,"V061 VPT 6vv excl.bh incl.db","V061",251.69,null,null,null,null,null,null,null,null,null,null,null,null,null,null,null,null,109,1109,"Eerst zorgvraag invullen",null,null,null,null,null,null,null,null,null,null,null,null,null,null,null,null,null,null,null,null,null,null,null,null,null,null,null,null,null,null,null,null,null,null,null,null,null,null,null,null,null,null,null,null,null,null,null,null,null,null,null,null,null,null,null,null,null,null,null,null,null,null,null,null,null,null,null,null,null,null,null,null,null,null,null,null,null,null,null,null,null,null,null,null,null,null,"D730 DTV ZGaud3","3ZGAUD","3ZGAUDDTV",{"$f":"VLOOKUP(FC131,Tarieven_ZIN0,3,0)","v":432.16},3025.1200000000003]
[null,"ZIN EXCL BH",null,{"$f":"$I$32","v":0},null,null,null,null,null,null,null,null,null,null,null,null,null,null,null,null,null,null,null,null,null,null,null,null,null,null,null,null,null,null,null,null,"Z742 ZZP 4zg-auditief incl.bh excl.db",null,null,null,null,null,null,null,null,null,null,null,null,null,"V071 VPT 7vv excl.bh incl.db","V071",347.22,null,null,null,null,null,null,null,null,null,null,null,null,null,null,null,null,600,1600,"PGB: Rekenmodule voorleggen aan Zorgkantoor",null,null,null,null,null,null,null,null,null,null,null,null,null,null,null,null,null,null,null,null,null,null,null,null,null,null,null,null,null,null,null,null,null,null,null,null,null,null,null,null,null,null,null,null,null,null,null,null,null,null,null,null,null,null,null,null,null,null,null,null,null,null,null,null,null,null,null,null,null,null,null,null,null,null,null,null,null,null,null,null,null,null,null,null,null,null,"D814 DTV ZGvis1","1ZGVIS","1ZGVISDTV",1,7]
[null,"ZIN BH",null,{"$f":"$I$33","v":0},null,null,null,null,null,null,null,null,null,null,null,null,null,null,null,null,null,null,null,null,null,null,null,null,null,null,null,null,null,null,null,null,"Z713 ZZP 1zg-auditief incl.bh incl.db",null,null,null,null,null,null,null,null,null,null,null,null,null,"V081 VPT 8vv excl.bh incl.db","V081",458.95,null,null,null,null,null,null,null,null,null,null,null,null,null,null,null,null,601,1601,"PGB: Rekenmodule voorleggen aan Zorgkantoor",null,null,null,null,null,null,null,null,null,null,null,null,null,null,null,null,null,null,null,null,null,null,null,null,null,null,null,null,null,null,null,null,null,null,null,null,null,null,null,null,null,null,null,null,null,null,null,null,null,null,null,null,null,null,null,null,null,null,null,null,null,null,null,null,null,null,null,null,null,null,null,null,null,null,null,null,null,null,null,null,null,null,null,null,null,null,"D824 DTV ZGvis2","2ZGVIS","2ZGVISDTV",{"$f":"VLOOKUP(FC133,Tarieven_ZIN0,3,0)","v":185.26},1296.82]
[null,"PGB",null,{"$f":"$M$8","v":0},null,null,null,null,null,null,null,null,null,null,null,null,null,null,null,null,null,null,null,null,null,null,null,null,null,null,null,null,null,null,null,null,"Z723 ZZP 2zg-auditief incl.bh incl.db",null,null,null,null,null,null,null,null,null,null,null,null,null,"V095 VPT 9bvv excl.bh incl.db","V095",248.17,null,null,null,null,null,null,null,null,null,null,null,null,null,null,null,null,602,1602,"PGB: Rekenmodule voorleggen aan Zorgkantoor",null,null,null,null,null,null,null,null,null,null,null,null,null,null,null,null,null,null,null,null,null,null,null,null,null,null,null,null,null,null,null,null,null,null,null,null,null,null,null,null,null,null,null,null,null,null,null,null,null,null,null,null,null,null,null,null,null,null,null,null,null,null,null,null,null,null,null,null,null,null,null,null,null,null,null,null,null,null,null,null,null,null,null,null,null,null,"D830 DTV ZGvis3","3ZGVIS","3ZGVISDTV",{"$f":"VLOOKUP(FC134,Tarieven_ZIN0,3,0)","v":225.76},1580.32]
[null,"Totaal uitgegeven",null,{"$f":"SUM($D$132:$D$134)","v":0},null,null,null,null,null,null,null,null,null,null,null,null,null,null,null,null,null,null,null,null,null,null,null,null,null,null,null,null,null,null,null,null,"Z733 ZZP 3zg-auditief incl.bh incl.db",null,null,null,null,null,null,null,null,null,null,null,null,null,"V101 VPT 10vv excl.bh incl.db","V101",550.54,null,null,null,null,null,null,null,null,null,null,null,null,null,null,null,null,603,1603,"PGB: Rekenmodule voorleggen aan Zorgkantoor",null,null,null,null,null,null,null,null,null,null,null,null,null,null,null,null,null,null,null,null,null,null,null,null,null,null,null,null,null,null,null,null,null,null,null,null,null,null,null,null,null,null,null,null,null,null,null,null,null,null,null,null,null,null,null,null,null,null,null,null,null,null,null,null,null,null,null,null,null,null,null,null,null,null,null,null,null,null,null,null,null,null,null,null,null,null,"D840 DTV ZGvis4","4ZGVIS","4ZGVISDTV",{"$f":"VLOOKUP(FC135,Tarieven_ZIN0,3,0)","v":282.91000000000003},1980.3700000000001]
[null,null,null,null,null,null,null,null,null,null,null,null,null,null,null,null,null,null,null,null,null,null,null,null,null,null,null,null,null,null,null,null,null,null,null,null,"Z743 ZZP 4zg-auditief incl.bh incl.db",null,null,null,null,null,null,null,null,null,null,null,null,null,"V033 VPT 3vv incl.bh incl.db","V033",179.8,null,null,null,null,null,null,null,null,null,null,null,null,null,null,null,null,604,1604,"PGB: Rekenmodule voorleggen aan Zorgkantoor",null,null,null,null,null,null,null,null,null,null,null,null,null,null,null,null,null,null,null,null,null,null,null,null,null,null,null,null,null,null,null,null,null,null,null,null,null,null,null,null,null,null,null,null,null,null,null,null,null,null,null,null,null,null,null,null,null,null,null,null,null,null,null,null,null,null,null,null,null,null,null,null,null,null,null,null,null,null,null,null,null,null,null,null,null,null,"D850 DTV ZGvis5","5ZGVIS","5ZGVISDTV",{"$f":"VLOOKUP(FC136,Tarieven_ZIN0,3,0)","v":315.49},2208.4300000000003]
[null,{"$f":"IF(D129-D135<0,\"Overschrijding\",\"Restant\")","v":"Restant"},null,{"$f":"IF($B$137=\"overschrijding\",$F$131,$F$128)","v":0},null,null,null,null,null,null,null,null,null,null,null,null,null,null,null,null,null,null,null,null,null,null,null,null,null,null,null,null,null,null,null,null,"Z814 ZZP 1zg-visueel excl.db",null,null,null,null,null,null,null,null,null,null,null,null,null,"V043 VPT 4vv incl.bh incl.db","V043",157.08000000000001,null,null,null,null,null,null,null,null,null,null,null,null,null,null,null,null,605,1605,"Bedrag PGB controleren bij het Zorgkantoor, daarna ZIN aanvragen"]
[null,null,null,null,null,null,null,null,null,null,null,null,null,null,null,null,null,null,null,null,null,null,null,null,null,null,null,null,null,null,null,null,null,null,null,null,"Z824 ZZP 2zg-visueel excl.db",null,null,null,null,null,null,null,null,null,null,null,null,null,"V053 VPT 5vv incl.bh incl.db","V053",301.14999999999998,null,null,null,null,null,null,null,null,null,null,null,null,null,null,null,null,606,1606,"PGB: Rekenmodule voorleggen aan Zorgkantoor"]
[null,"Indien B137 \"restant\" is, geldt de regel dat de ruimte voor behandeling alleen voor behandeling ingezet wordt. Dus wordt de rekenmethode anders",null,null,null,null,null,null,null,null,null,null,null,null,null,null,null,null,null,null,null,null,null,null,null,null,null,null,null,null,null,null,null,null,null,null,"Z815 ZZP 1zg-visueel incl.db",null,null,null,null,null,null,null,null,null,null,null,null,null,"V063 VPT 6vv incl.bh incl.db","V063",269.67,null,null,null,null,null,null,null,null,null,null,null,null,null,null,null,null,607,1607,"PGB: Rekenmodule voorleggen aan Zorgkantoor"]
[null,null,null,null,null,null,null,null,null,null,null,null,null,null,null,null,null,null,null,null,null,null,null,null,null,null,null,null,null,null,null,null,null,null,null,null,"Z825 ZZP 2zg-visueel incl.db",null,null,null,null,null,null,null,null,null,null,null,null,null,"V073 VPT 7vv incl.bh incl.db","V073",369.53,null,null,null,null,null,null,null,null,null,null,null,null,null,null,null,null,608,1608,"PGB: Rekenmodule voorleggen aan Zorgkantoor"]
[null,"Is behandeling-INZET meer dan de ruimte?",null,null,{"$f":"IF(D127-D133<0,\"ja\",\"nee\")","v":"nee"},null,null,null,null,null,null,null,null,null,null,null,null,null,null,null,null,null,null,null,null,null,null,null,null,null,null,null,null,null,null,null,"Z830 ZZP 3zg-visueel excl.bh excl.db",null,null,null,null,null,null,null,null,null,null,null,null,null,"V083 VPT 8vv incl.bh incl.db","V083",475.94,null,null,null,null,null,null,null,null,null,null,null,null,null,null,null,null,609,1609,"PGB: Rekenmodule voorleggen aan Zorgkantoor"]
[null,"Is er sprake EKT?",null,null,{"$f":"IF(D127>0,\"ja\",\"nee\")","v":"nee"},null,null,null,null,null,null,null,null,null,null,null,null,null,null,null,null,null,null,null,null,null,null,null,null,null,null,null,null,null,null,null,"Z840 ZZP 4zg-visueel excl.bh excl.db",null,null,null,null,null,null,null,null,null,null,null,null,null,"V097 VPT 9bvv incl.bhincl.db","V097",318.86,null,null,null,null,null,null,null,null,null,null,null,null,null,null,null,null,610,1610,"PGB: Rekenmodule voorleggen aan Zorgkantoor"]
[null,null,null,null,null,null,null,null,null,null,null,null,null,null,null,null,null,null,null,null,null,null,null,null,null,null,null,null,null,null,null,null,null,null,null,null,"Z850 ZZP 5zg-visueel excl.bh excl.db",null,null,null,null,null,null,null,null,null,null,null,null,null,"V103 VPT 10vv incl.bhincl.db","V103",543.82000000000005,null,null,null,null,null,null,null,null,null,null,null,null,null,null,null,null,611,1611,"PGB: Rekenmodule voorleggen aan Zorgkantoor"]
[null,null,null,null,null,null,null,null,null,null,null,null,null,null,null,null,null,null,null,null,null,null,null,null,null,null,null,null,null,null,null,null,null,null,null,null,"Z831 ZZP 3zg-visueel excl.bh incl.db",null,null,null,null,null,null,null,null,null,null,null,null,null,"V414 VPT 1vg excl.bh excl.db","V414",67.989999999999995,null,null,null,null,null,null,null,null,null,null,null,null,null,null,null,null,612,1612,"PGB: Rekenmodule voorleggen aan Zorgkantoor"]
[null,null,null,null,null,null,null,null,null,null,null,null,null,null,null,null,null,null,null,null,null,null,null,null,null,null,null,null,null,null,null,null,null,null,null,null,"Z841 ZZP 4zg-visueel excl.bh incl.db",null,null,null,null,null,null,null,null,null,null,null,null,null,"V424 VPT 2vg excl.bh excl.db","V424",83.34,null,null,null,null,null,null,null,null,null,null,null,null,null,null,null,null,613,1613,"PGB: Rekenmodule voorleggen aan Zorgkantoor"]
[null,"Ruimte",null,null,null,null,null,null,null,null,null,null,null,null,null,null,null,null,null,null,null,null,null,null,null,null,null,null,null,null,null,null,null,null,null,null,"Z851 ZZP 5zg-visueel excl.bh incl.db",null,null,null,null,null,null,null,null,null,null,null,null,null,"V415 VPT 1vg excl.bh incl.db","V415",117.73,null,null,null,null,null,null,null,null,null,null,null,null,null,null,null,null,614,1614,"PGB: Rekenmodule voorleggen aan Zorgkantoor"]
[null,"Ruimte ZZP",null,{"$f":"$M$6","v":0},null,null,null,null,null,null,null,null,null,null,null,null,null,null,null,null,null,null,null,null,null,null,null,null,null,null,null,null,null,null,null,null,"Z832 ZZP 3zg-visueel incl.bh excl.db",null,null,null,null,null,null,null,null,null,null,null,null,null,"V425 VPT 2vg excl.bh incl.db","V425",131.80000000000001,null,null,null,null,null,null,null,null,null,null,null,null,null,null,null,null,615,1615,"PGB: Rekenmodule voorleggen aan Zorgkantoor"]
[null,"Ruimte EKT",null,{"$f":"$FS$8","v":0},null,null,null,null,null,null,null,null,null,null,null,null,null,null,null,null,null,null,null,null,null,null,null,null,null,null,null,null,null,null,null,null,"Z842 ZZP 4zg-visueel incl.bh excl.db",null,null,null,null,null,null,null,null,null,null,null,null,null,"V430 VPT 3vg excl.bh excl.db","V430",115.64,null,null,null,null,null,null,null,null,null,null,null,null,null,null,null,null,616,1616,"PGB: Rekenmodule voorleggen aan Zorgkantoor"]
[null,"Ruimte behandeling",null,{"$f":"IF(E141=\"nee\",D133,D128)","v":0},null,null,null,null,null,null,null,null,null,null,null,null,null,null,null,null,null,null,null,null,null,null,null,null,null,null,null,null,null,null,null,null,"Z852 ZZP 5zg-visueel incl.bh excl.db",null,null,null,null,null,null,null,null,null,null,null,null,null,"V440 VPT 4vg excl.bh excl.db","V440",141.91999999999999,null,null,null,null,null,null,null,null,null,null,null,null,null,null,null,null,617,1617,"PGB: Rekenmodule voorleggen aan Zorgkantoor"]
[null,"Totaal ruimte",null,{"$f":"SUM(D147:D149)","v":0},null,null,null,null,null,null,null,null,null,null,null,null,null,null,null,null,null,null,null,null,null,null,null,null,null,null,null,null,null,null,null,null,"Z833 ZZP 3zg-visueel incl.bh incl.db",null,null,null,null,null,null,null,null,null,null,null,null,null,"V454 VPT 5vg excl.bh excl.db","V454",192.34,null,null,null,null,null,null,null,null,null,null,null,null,null,null,null,null,618,1618,"PGB: Rekenmodule voorleggen aan Zorgkantoor"]
[null,null,null,null,null,null,null,null,null,null,null,null,null,null,null,null,null,null,null,null,null,null,null,null,null,null,null,null,null,null,null,null,null,null,null,null,"Z843 ZZP 4zg-visueel incl.bh incl.db",null,null,null,null,null,null,null,null,null,null,null,null,null,"V460 VPT 6vg excl.bh excl.db","V460",150.6,null,null,null,null,null,null,null,null,null,null,null,null,null,null,null,null,619,1619,"PGB: Rekenmodule voorleggen aan Zorgkantoor"]
[null,"Uitgegeven",null,null,null,null,null,null,null,null,null,null,null,null,null,null,null,null,null,null,null,null,null,null,null,null,null,null,null,null,null,null,null,null,null,null,"Z853 ZZP 5zg-visueel incl.bh incl.db",null,null,null,null,null,null,null,null,null,null,null,null,null,"V470 VPT 7vg excl.bh excl.db","V470",212.36,null,null,null,null,null,null,null,null,null,null,null,null,null,null,null,null,620,1620,"PGB: Rekenmodule voorleggen aan Zorgkantoor"]
[null,"ZIN EXCL BH",null,{"$f":"$I$32","v":0},null,null,null,null,null,null,null,null,null,null,null,null,null,null,null,null,null,null,null,null,null,null,null,null,null,null,null,null,null,null,null,null,null,null,null,null,null,null,null,null,null,null,null,null,null,null,"V480 VPT 8vg excl.bh excl.db","V480",224.72,null,null,null,null,null,null,null,null,null,null,null,null,null,null,null,null,621,1621,"PGB: Rekenmodule voorleggen aan Zorgkantoor"]
[null,"ZIN BH",null,{"$f":"$I$33","v":0},null,null,null,null,null,null,null,null,null,null,null,null,null,null,null,null,null,null,null,null,null,null,null,null,null,null,null,null,null,null,null,null,null,null,null,null,null,null,null,null,null,null,null,null,null,null,"V431 VPT 3vg excl.bh incl.db","V431",161.69999999999999,null,null,null,null,null,null,null,null,null,null,null,null,null,null,null,null,622,1622,"PGB: Rekenmodule voorleggen aan Zorgkantoor"]
[null,"PGB",null,{"$f":"$M$8","v":0},null,null,null,null,null,null,null,null,null,null,null,null,null,null,null,null,null,null,null,null,null,null,null,null,null,null,null,null,null,null,null,null,null,null,null,null,null,null,null,null,null,null,null,null,null,null,"V441 VPT 4vg excl.bh incl.db","V441",186.9,null,null,null,null,null,null,null,null,null,null,null,null,null,null,null,null,623,1623,"PGB: Rekenmodule voorleggen aan Zorgkantoor"]
[null,"Totaal uitgegeven",null,{"$f":"SUM(D153:D155)","v":0},null,null,null,null,null,null,null,null,null,null,null,null,null,null,null,null,null,null,null,null,null,null,null,null,null,null,null,null,null,null,null,null,null,null,null,null,null,null,null,null,null,null,null,null,null,null,"V455 VPT 5vg excl.bh incl.db","V455",262.66000000000003,null,null,null,null,null,null,null,null,null,null,null,null,null,null,null,null,624,1624,"PGB: Rekenmodule voorleggen aan Zorgkantoor"]
[null,null,null,null,null,null,null,null,null,null,null,null,null,null,null,null,null,null,null,null,null,null,null,null,null,null,null,null,null,null,null,null,null,null,null,null,null,null,null,null,null,null,null,null,null,null,null,null,null,null,"V461 VPT 6vg excl.bh incl.db","V461",218.99,null,null,null,null,null,null,null,null,null,null,null,null,null,null,null,null,625,1625,"PGB: Rekenmodule voorleggen aan Zorgkantoor"]
[null,{"$f":"IF(D150-D156<0,\"Overschrijding\",\"Restant\")","v":"Restant"},null,{"$f":"IF((D147-D156)<0,0,E158)","v":0},{"$f":"IF($B$137=\"overschrijding\",$F$131,$F$128)","v":0},null,null,null,null,null,null,null,null,null,null,null,null,null,null,null,null,null,null,null,null,null,null,null,null,null,null,null,null,null,null,null,null,null,null,null,null,null,null,null,null,null,null,null,null,null,"V471 VPT 7vg excl.bh incl.db","V471",{"$f":"VLOOKUP(AZ158,Tarieven_VPT0,9,FALSE)","v":291.04000000000002},null,null,null,null,null,null,null,null,null,null,null,null,null,null,null,null,626,1626,"PGB: Rekenmodule voorleggen aan Zorgkantoor"]
[null,null,null,null,null,null,null,null,null,null,null,null,null,null,null,null,null,null,null,null,null,null,null,null,null,null,null,null,null,null,null,null,null,null,null,null,null,null,null,null,null,null,null,null,null,null,null,null,null,null,"V481 VPT 8vg excl.bh incl.db","V481",321.31,null,null,null,null,null,null,null,null,null,null,null,null,null,null,null,null,627,1627,"PGB: Rekenmodule voorleggen aan Zorgkantoor"]
[null,null,null,null,null,null,null,null,null,null,null,null,null,null,null,null,null,null,null,null,null,null,null,null,null,null,null,null,null,null,null,null,null,null,null,null,null,null,null,null,null,null,null,null,null,null,null,null,null,null,"V432 VPT 3vg incl.bh excl.db","V432",143.01,null,null,null,null,null,null,null,null,null,null,null,null,null,null,null,null,628,1628,"PGB: Rekenmodule voorleggen aan Zorgkantoor"]
[null,null,null,null,null,null,null,null,null,null,null,null,null,null,null,null,null,null,null,null,null,null,null,null,null,null,null,null,null,null,null,null,null,null,null,null,null,null,null,null,null,null,null,null,null,null,null,null,null,null,"V442 VPT 4vg incl.bh excl.db","V442",188.66,null,null,null,null,null,null,null,null,null,null,null,null,null,null,null,null,629,1629,"PGB: Rekenmodule voorleggen aan Zorgkantoor"]
[null,null,null,null,null,null,null,null,null,null,null,null,null,null,null,null,null,null,null,null,null,null,null,null,null,null,null,null,null,null,null,null,null,null,null,null,null,null,null,null,null,null,null,null,null,null,null,null,null,null,"V456 VPT 5vg incl.bh excl.db","V456",231.65,null,null,null,null,null,null,null,null,null,null,null,null,null,null,null,null,630,1630,"PGB: Rekenmodule voorleggen aan Zorgkantoor"]
[null,null,null,null,null,null,null,null,null,null,null,null,null,null,null,null,null,null,null,null,null,null,null,null,null,null,null,null,null,null,null,null,null,null,null,null,null,null,null,null,null,null,null,null,null,null,null,null,null,null,"V462 VPT 6vg incl.bh excl.db","V462",202.5,null,null,null,null,null,null,null,null,null,null,null,null,null,null,null,null,631,1631,"PGB: Rekenmodule voorleggen aan Zorgkantoor"]
[null,null,null,null,null,null,null,null,null,null,null,null,null,null,null,null,null,null,null,null,null,null,null,null,null,null,null,null,null,null,null,null,null,null,null,null,null,null,null,null,null,null,null,null,null,null,null,null,null,null,"V472 VPT 7vg incl.bh excl.db","V472",302.75,null,null,null,null,null,null,null,null,null,null,null,null,null,null,null,null,632,1632,"PGB: Rekenmodule voorleggen aan Zorgkantoor"]
[null,null,null,null,null,null,null,null,null,null,null,null,null,null,null,null,null,null,null,null,null,null,null,null,null,null,null,null,null,null,null,null,null,null,null,null,null,null,null,null,null,null,null,null,null,null,null,null,null,null,"V482 VPT 8vg incl.bh excl.db","V482",278.52999999999997,null,null,null,null,null,null,null,null,null,null,null,null,null,null,null,null,633,1633,"PGB: Rekenmodule voorleggen aan Zorgkantoor"]
[null,null,null,null,null,null,null,null,null,null,null,null,null,null,null,null,null,null,null,null,null,null,null,null,null,null,null,null,null,null,null,null,null,null,null,null,null,null,null,null,null,null,null,null,null,null,null,null,null,null,"V433 VPT 3vg incl.bh incl.db","V433",190.36,null,null,null,null,null,null,null,null,null,null,null,null,null,null,null,null,634,1634,"PGB: Rekenmodule voorleggen aan Zorgkantoor"]
[null,null,null,null,null,null,null,null,null,null,null,null,null,null,null,null,null,null,null,null,null,null,null,null,null,null,null,null,null,null,null,null,null,null,null,null,null,null,null,null,null,null,null,null,null,null,null,null,null,null,"V443 VPT 4vg incl.bh incl.db","V443",221.3,null,null,null,null,null,null,null,null,null,null,null,null,null,null,null,null,635,1635,"PGB: Rekenmodule voorleggen aan Zorgkantoor"]
[null,null,null,null,null,null,null,null,null,null,null,null,null,null,null,null,null,null,null,null,null,null,null,null,null,null,null,null,null,null,null,null,null,null,null,null,null,null,null,null,null,null,null,null,null,null,null,null,null,null,"V457 VPT 5vg incl.bh incl.db","V457",304.77999999999997,null,null,null,null,null,null,null,null,null,null,null,null,null,null,null,null,636,1636,"PGB: Rekenmodule voorleggen aan Zorgkantoor"]
[null,null,null,null,null,null,null,null,null,null,null,null,null,null,null,null,null,null,null,null,null,null,null,null,null,null,null,null,null,null,null,null,null,null,null,null,null,null,null,null,null,null,null,null,null,null,null,null,null,null,"V463 VPT 6vg incl.bh incl.db","V463",259.89,null,null,null,null,null,null,null,null,null,null,null,null,null,null,null,null,637,1637,"PGB: Rekenmodule voorleggen aan Zorgkantoor"]
[null,null,null,null,null,null,null,null,null,null,null,null,null,null,null,null,null,null,null,null,null,null,null,null,null,null,null,null,null,null,null,null,null,null,null,null,null,null,null,null,null,null,null,null,null,null,null,null,null,null,"V473 VPT 7vg incl.bh incl.db","V473",300.58,null,null,null,null,null,null,null,null,null,null,null,null,null,null,null,null,638,1638,"PGB: Rekenmodule voorleggen aan Zorgkantoor"]
[null,null,null,null,null,null,null,null,null,null,null,null,null,null,null,null,null,null,null,null,null,null,null,null,null,null,null,null,null,null,null,null,null,null,null,null,null,null,null,null,null,null,null,null,null,null,null,null,null,null,"V483 VPT 8vg incl.bh incl.db","V483",373.33,null,null,null,null,null,null,null,null,null,null,null,null,null,null,null,null,639,1639,"PGB: Rekenmodule voorleggen aan Zorgkantoor"]
[null,null,null,null,null,null,null,null,null,null,null,null,null,null,null,null,null,null,null,null,null,null,null,null,null,null,null,null,null,null,null,null,null,null,null,null,null,null,null,null,null,null,null,null,null,null,null,null,null,null,"V513 VPT 1lvg incl.bh incl.db","V513",223.63,null,null,null,null,null,null,null,null,null,null,null,null,null,null,null,null,500,{"$f":"BR172+1000","v":1500},"PGB: Rekenmodule voorleggen aan Zorgkantoor"]
[null,null,null,null,null,null,null,null,null,null,null,null,null,null,null,null,null,null,null,null,null,null,null,null,null,null,null,null,null,null,null,null,null,null,null,null,null,null,null,null,null,null,null,null,null,null,null,null,null,null,"V523 VPT 2lvg incl.bh incl.db","V523",276.95999999999998,null,null,null,null,null,null,null,null,null,null,null,null,null,null,null,null,501,1501,"Bedrag PGB controleren bij het Zorgkantoor, daarna ZIN aanvragen"]
[null,null,null,null,null,null,null,null,null,null,null,null,null,null,null,null,null,null,null,null,null,null,null,null,null,null,null,null,null,null,null,null,null,null,null,null,null,null,null,null,null,null,null,null,null,null,null,null,null,null,"V533 VPT 3lvg incl.bh incl.db","V533",359.6,null,null,null,null,null,null,null,null,null,null,null,null,null,null,null,null,502,1502,"PGB: Rekenmodule voorleggen aan Zorgkantoor"]
[null,null,null,null,null,null,null,null,null,null,null,null,null,null,null,null,null,null,null,null,null,null,null,null,null,null,null,null,null,null,null,null,null,null,null,null,null,null,null,null,null,null,null,null,null,null,null,null,null,null,"V543 VPT 4lvg incl.bh incl.db","V543",422.24,null,null,null,null,null,null,null,null,null,null,null,null,null,null,null,null,503,1503,"PGB: Rekenmodule voorleggen aan Zorgkantoor"]
[null,null,null,null,null,null,null,null,null,null,null,null,null,null,null,null,null,null,null,null,null,null,null,null,null,null,null,null,null,null,null,null,null,null,null,null,null,null,null,null,null,null,null,null,null,null,null,null,null,null,"V553 VPT 5lvg incl.bh incl.db","V553",399.65,null,null,null,null,null,null,null,null,null,null,null,null,null,null,null,null,504,1504,"PGB: Rekenmodule voorleggen aan Zorgkantoor"]
[null,null,null,null,null,null,null,null,null,null,null,null,null,null,null,null,null,null,null,null,null,null,null,null,null,null,null,null,null,null,null,null,null,null,null,null,null,null,null,null,null,null,null,null,null,null,null,null,null,null,"V573 VPT 1sglvg incl.bh incl.db","V573",451.02,null,null,null,null,null,null,null,null,null,null,null,null,null,null,null,null,505,1505,"Bedrag PGB controleren bij het Zorgkantoor, daarna ZIN aanvragen"]
[null,null,null,null,null,null,null,null,null,null,null,null,null,null,null,null,null,null,null,null,null,null,null,null,null,null,null,null,null,null,null,null,null,null,null,null,null,null,null,null,null,null,null,null,null,null,null,null,null,null,"V614 VPT 1lg excl.bh excl.db","V614",98.71,null,null,null,null,null,null,null,null,null,null,null,null,null,null,null,null,506,1506,"PGB: Rekenmodule voorleggen aan Zorgkantoor"]
[null,null,null,null,null,null,null,null,null,null,null,null,null,null,null,null,null,null,null,null,null,null,null,null,null,null,null,null,null,null,null,null,null,null,null,null,null,null,null,null,null,null,null,null,null,null,null,null,null,null,"V624 VPT 2lg excl.bh excl.db","V624",143.94,null,null,null,null,null,null,null,null,null,null,null,null,null,null,null,null,507,1507,"PGB: Rekenmodule voorleggen aan Zorgkantoor"]
[null,null,null,null,null,null,null,null,null,null,null,null,null,null,null,null,null,null,null,null,null,null,null,null,null,null,null,null,null,null,null,null,null,null,null,null,null,null,null,null,null,null,null,null,null,null,null,null,null,null,"V615 VPT 1lg excl.bh incl.db","V615",168.19,null,null,null,null,null,null,null,null,null,null,null,null,null,null,null,null,508,1508,"Bedrag PGB controleren bij het Zorgkantoor, daarna ZIN aanvragen"]
[null,null,null,null,null,null,null,null,null,null,null,null,null,null,null,null,null,null,null,null,null,null,null,null,null,null,null,null,null,null,null,null,null,null,null,null,null,null,null,null,null,null,null,null,null,null,null,null,null,null,"V625 VPT 2lg excl.bh incl.db","V625",200.5,null,null,null,null,null,null,null,null,null,null,null,null,null,null,null,null,509,1509,"PGB: Rekenmodule voorleggen aan Zorgkantoor"]
[null,null,null,null,null,null,null,null,null,null,null,null,null,null,null,null,null,null,null,null,null,null,null,null,null,null,null,null,null,null,null,null,null,null,null,null,null,null,null,null,null,null,null,null,null,null,null,null,null,null,"V630 VPT 3lg excl.bh excl.db","V630",112.08,null,null,null,null,null,null,null,null,null,null,null,null,null,null,null,null,510,1510,"PGB: Rekenmodule voorleggen aan Zorgkantoor"]
[null,null,null,null,null,null,null,null,null,null,null,null,null,null,null,null,null,null,null,null,null,null,null,null,null,null,null,null,null,null,null,null,null,null,null,null,null,null,null,null,null,null,null,null,null,null,null,null,null,null,"V640 VPT 4lg excl.bh excl.db","V640",175.07,null,null,null,null,null,null,null,null,null,null,null,null,null,null,null,null,511,1511,"PGB: Rekenmodule voorleggen aan Zorgkantoor"]
[null,null,null,null,null,null,null,null,null,null,null,null,null,null,null,null,null,null,null,null,null,null,null,null,null,null,null,null,null,null,null,null,null,null,null,null,null,null,null,null,null,null,null,null,null,null,null,null,null,null,"V650 VPT 5lg excl.bh excl.db","V650",177.34,null,null,null,null,null,null,null,null,null,null,null,null,null,null,null,null,512,1512,"PGB: Rekenmodule voorleggen aan Zorgkantoor"]
[null,null,null,null,null,null,null,null,null,null,null,null,null,null,null,null,null,null,null,null,null,null,null,null,null,null,null,null,null,null,null,null,null,null,null,null,null,null,null,null,null,null,null,null,null,null,null,null,null,null,"V660 VPT 6lg excl.bh excl.db","V660",246.3,null,null,null,null,null,null,null,null,null,null,null,null,null,null,null,null,513,1513,"PGB: Rekenmodule voorleggen aan Zorgkantoor"]
[null,null,null,null,null,null,null,null,null,null,null,null,null,null,null,null,null,null,null,null,null,null,null,null,null,null,null,null,null,null,null,null,null,null,null,null,null,null,null,null,null,null,null,null,null,null,null,null,null,null,"V670 VPT 7lg excl.bh excl.db","V670",278.7,null,null,null,null,null,null,null,null,null,null,null,null,null,null,null,null,514,1514,"PGB: Rekenmodule voorleggen aan Zorgkantoor"]
[null,null,null,null,null,null,null,null,null,null,null,null,null,null,null,null,null,null,null,null,null,null,null,null,null,null,null,null,null,null,null,null,null,null,null,null,null,null,null,null,null,null,null,null,null,null,null,null,null,null,"V631 VPT 3lg excl.bh incl.db","V631",184.55,null,null,null,null,null,null,null,null,null,null,null,null,null,null,null,null,515,1515,"PGB: Rekenmodule voorleggen aan Zorgkantoor"]
[null,null,null,null,null,null,null,null,null,null,null,null,null,null,null,null,null,null,null,null,null,null,null,null,null,null,null,null,null,null,null,null,null,null,null,null,null,null,null,null,null,null,null,null,null,null,null,null,null,null,"V641 VPT 4lg excl.bh incl.db","V641",233.37,null,null,null,null,null,null,null,null,null,null,null,null,null,null,null,null,516,1516,"PGB: Rekenmodule voorleggen aan Zorgkantoor"]
[null,null,null,null,null,null,null,null,null,null,null,null,null,null,null,null,null,null,null,null,null,null,null,null,null,null,null,null,null,null,null,null,null,null,null,null,null,null,null,null,null,null,null,null,null,null,null,null,null,null,"V651 VPT 5lg excl.bh incl.db","V651",246.11,null,null,null,null,null,null,null,null,null,null,null,null,null,null,null,null,580,1580,"PGB: Rekenmodule voorleggen aan Zorgkantoor"]
[null,null,null,null,null,null,null,null,null,null,null,null,null,null,null,null,null,null,null,null,null,null,null,null,null,null,null,null,null,null,null,null,null,null,null,null,null,null,null,null,null,null,null,null,null,null,null,null,null,null,"V661 VPT 6lg excl.bh incl.db","V661",{"$f":"VLOOKUP(AZ190,Tarieven_VPT0,9,FALSE)","v":301.04000000000002},null,null,null,null,null,null,null,null,null,null,null,null,null,null,null,null,584,1584,"PGB: Rekenmodule voorleggen aan Zorgkantoor"]
[null,null,null,null,null,null,null,null,null,null,null,null,null,null,null,null,null,null,null,null,null,null,null,null,null,null,null,null,null,null,null,null,null,null,null,null,null,null,null,null,null,null,null,null,null,null,null,null,null,null,"V671 VPT 7lg excl.bh incl.db","V671",335.67,null,null,null,null,null,null,null,null,null,null,null,null,null,null,null,null,585,1585,"PGB: Rekenmodule voorleggen aan Zorgkantoor"]
[null,null,null,null,null,null,null,null,null,null,null,null,null,null,null,null,null,null,null,null,null,null,null,null,null,null,null,null,null,null,null,null,null,null,null,null,null,null,null,null,null,null,null,null,null,null,null,null,null,null,"V632 VPT 3lg incl.bh excl.db","V632",140.83000000000001,null,null,null,null,null,null,null,null,null,null,null,null,null,null,null,null,1001,{"$f":"BR192+1000","v":2001},"Zorg aanvragen via iWLZ, geen extra toestemming vereist"]
[null,null,null,null,null,null,null,null,null,null,null,null,null,null,null,null,null,null,null,null,null,null,null,null,null,null,null,null,null,null,null,null,null,null,null,null,null,null,null,null,null,null,null,null,null,null,null,null,null,null,"V642 VPT 4lg incl.bh excl.db","V642",220.02,null,null,null,null,null,null,null,null,null,null,null,null,null,null,null,null,1002,{"$f":"BR193+1000","v":2002},"Zorg aanvragen via iWLZ, geen extra toestemming vereist"]
[null,null,null,null,null,null,null,null,null,null,null,null,null,null,null,null,null,null,null,null,null,null,null,null,null,null,null,null,null,null,null,null,null,null,null,null,null,null,null,null,null,null,null,null,null,null,null,null,null,null,"V652 VPT 5lg incl.bh excl.db","V652",223.25,null,null,null,null,null,null,null,null,null,null,null,null,null,null,null,null,1003,2003,"Zorg aanvragen via iWLZ, geen extra toestemming vereist"]
[null,null,null,null,null,null,null,null,null,null,null,null,null,null,null,null,null,null,null,null,null,null,null,null,null,null,null,null,null,null,null,null,null,null,null,null,null,null,null,null,null,null,null,null,null,null,null,null,null,null,"V662 VPT 6lg incl.bh excl.db","V662",308.87,null,null,null,null,null,null,null,null,null,null,null,null,null,null,null,null,1004,2004,"Zorg aanvragen via iWLZ, geen extra toestemming vereist"]
[null,null,null,null,null,null,null,null,null,null,null,null,null,null,null,null,null,null,null,null,null,null,null,null,null,null,null,null,null,null,null,null,null,null,null,null,null,null,null,null,null,null,null,null,null,null,null,null,null,null,"V672 VPT 7lg incl.bh excl.db","V672",345.58,null,null,null,null,null,null,null,null,null,null,null,null,null,null,null,null,1005,2005,"Zorg aanvragen via iWLZ, geen extra toestemming vereist"]
[null,null,null,null,null,null,null,null,null,null,null,null,null,null,null,null,null,null,null,null,null,null,null,null,null,null,null,null,null,null,null,null,null,null,null,null,null,null,null,null,null,null,null,null,null,null,null,null,null,null,"V633 VPT 3lg incl.bh incl.db","V633",208.78,null,null,null,null,null,null,null,null,null,null,null,null,null,null,null,null,1006,2006,"Zorg aanvragen via iWLZ, geen extra toestemming vereist"]
[null,null,null,null,null,null,null,null,null,null,null,null,null,null,null,null,null,null,null,null,null,null,null,null,null,null,null,null,null,null,null,null,null,null,null,null,null,null,null,null,null,null,null,null,null,null,null,null,null,null,"V643 VPT 4lg incl.bh incl.db","V643",260.52999999999997,null,null,null,null,null,null,null,null,null,null,null,null,null,null,null,null,1007,2007,"Zorg aanvragen via iWLZ, geen extra toestemming vereist"]
[null,null,null,null,null,null,null,null,null,null,null,null,null,null,null,null,null,null,null,null,null,null,null,null,null,null,null,null,null,null,null,null,null,null,null,null,null,null,null,null,null,null,null,null,null,null,null,null,null,null,"V653 VPT 5lg incl.bh incl.db","V653",290.94,null,null,null,null,null,null,null,null,null,null,null,null,null,null,null,null,1008,2008,"Zorg aanvragen via iWLZ, geen extra toestemming vereist"]
[null,null,null,null,null,null,null,null,null,null,null,null,null,null,null,null,null,null,null,null,null,null,null,null,null,null,null,null,null,null,null,null,null,null,null,null,null,null,null,null,null,null,null,null,null,null,null,null,null,null,"V663 VPT 6lg incl.bh incl.db","V663",365.38,null,null,null,null,null,null,null,null,null,null,null,null,null,null,null,null,1000,2000,"Zorg aanvragen via iWLZ, geen extra toestemming vereist"]
[null,null,null,null,null,null,null,null,null,null,null,null,null,null,null,null,null,null,null,null,null,null,null,null,null,null,null,null,null,null,null,null,null,null,null,null,null,null,null,null,null,null,null,null,null,null,null,null,null,null,"V673 VPT 7lg incl.bh incl.db","V673",379.02,null,null,null,null,null,null,null,null,null,null,null,null,null,null,null,null,1013,2013,"Zorg aanvragen via iWLZ, geen extra toestemming vereist"]
[null,null,null,null,null,null,null,null,null,null,null,null,null,null,null,null,null,null,null,null,null,null,null,null,null,null,null,null,null,null,null,null,null,null,null,null,null,null,null,null,null,null,null,null,null,null,null,null,null,null,"V210G VPT 1 ggz wonen excl. BH excl. DB","V210",138.41,null,null,null,null,null,null,null,null,null,null,null,null,null,null,null,null,1085,2085,"Zorg aanvragen via iWLZ, geen extra toestemming vereist"]
[null,null,null,null,null,null,null,null,null,null,null,null,null,null,null,null,null,null,null,null,null,null,null,null,null,null,null,null,null,null,null,null,null,null,null,null,null,null,null,null,null,null,null,null,null,null,null,null,null,null,"V220G VPT 2 ggz wonen excl. BH excl. DB","V220",166.37,null,null,null,null,null,null,null,null,null,null,null,null,null,null,null,null,1084,2084,"Zorg aanvragen via iWLZ, geen extra toestemming vereist"]
[null,null,null,null,null,null,null,null,null,null,null,null,null,null,null,null,null,null,null,null,null,null,null,null,null,null,null,null,null,null,null,null,null,null,null,null,null,null,null,null,null,null,null,null,null,null,null,null,null,null,"V230G VPT 3 ggz wonen excl. BH excl. DB","V230",181.21,null,null,null,null,null,null,null,null,null,null,null,null,null,null,null,null,1083,2083,"Zorg aanvragen via iWLZ, geen extra toestemming vereist"]
[null,null,null,null,null,null,null,null,null,null,null,null,null,null,null,null,null,null,null,null,null,null,null,null,null,null,null,null,null,null,null,null,null,null,null,null,null,null,null,null,null,null,null,null,null,null,null,null,null,null,"V240G VPT 4 ggz wonen excl. BH excl. DB","V240",227.98,null,null,null,null,null,null,null,null,null,null,null,null,null,null,null,null,1080,2080,"Zorg aanvragen via iWLZ, geen extra toestemming vereist"]
[null,null,null,null,null,null,null,null,null,null,null,null,null,null,null,null,null,null,null,null,null,null,null,null,null,null,null,null,null,null,null,null,null,null,null,null,null,null,null,null,null,null,null,null,null,null,null,null,null,null,"V250G VPT 5 ggz beveiligd wonen excl. BH excl. DB","V250",304.08,null,null,null,null,null,null,null,null,null,null,null,null,null,null,null,null,1088,2088,"Zorg aanvragen via iWLZ, geen extra toestemming vereist"]
[null,null,null,null,null,null,null,null,null,null,null,null,null,null,null,null,null,null,null,null,null,null,null,null,null,null,null,null,null,null,null,null,null,null,null,null,null,null,null,null,null,null,null,null,null,null,null,null,null,null,"V211G VPT 1 ggz wonen excl. BH incl. DB","V211",181.46,null,null,null,null,null,null,null,null,null,null,null,null,null,null,null,null,1101,2101,"Zorg aanvragen via iWLZ, geen extra toestemming vereist"]
[null,null,null,null,null,null,null,null,null,null,null,null,null,null,null,null,null,null,null,null,null,null,null,null,null,null,null,null,null,null,null,null,null,null,null,null,null,null,null,null,null,null,null,null,null,null,null,null,null,null,"V221G VPT 2 ggz wonen excl. BH incl. DB","V221",212.97,null,null,null,null,null,null,null,null,null,null,null,null,null,null,null,null,1102,2102,"Zorg aanvragen via iWLZ, geen extra toestemming vereist"]
[null,null,null,null,null,null,null,null,null,null,null,null,null,null,null,null,null,null,null,null,null,null,null,null,null,null,null,null,null,null,null,null,null,null,null,null,null,null,null,null,null,null,null,null,null,null,null,null,null,null,"V231G VPT 3 ggz wonen excl. BH incl. DB","V231",227.45]
[null,null,null,null,null,null,null,null,null,null,null,null,null,null,null,null,null,null,null,null,null,null,null,null,null,null,null,null,null,null,null,null,null,null,null,null,null,null,null,null,null,null,null,null,null,null,null,null,null,null,"V241G VPT 4 ggz wonen excl. BH incl. DB","V241",276.12,null,null,null,null,null,null,null,null,null,null,null,null,null,null,null,null,1103,{"$f":"BR210+1000","v":2103},"Zorg aanvragen via iWLZ, geen extra toestemming vereist"]
[null,null,null,null,null,null,null,null,null,null,null,null,null,null,null,null,null,null,null,null,null,null,null,null,null,null,null,null,null,null,null,null,null,null,null,null,null,null,null,null,null,null,null,null,null,null,null,null,null,null,"V251G VPT 5 ggz beveiligd wonen excl. BH incl. DB","V251",374.39,null,null,null,null,null,null,null,null,null,null,null,null,null,null,null,null,1104,{"$f":"BR211+1000","v":2104},"Zorg aanvragen via iWLZ, geen extra toestemming vereist"]
[null,null,null,null,null,null,null,null,null,null,null,null,null,null,null,null,null,null,null,null,null,null,null,null,null,null,null,null,null,null,null,null,null,null,null,null,null,null,null,null,null,null,null,null,null,null,null,null,null,null,"V710 VPT 1zg-auditief excl.bh excl.db","V710",167.89,null,null,null,null,null,null,null,null,null,null,null,null,null,null,null,null,1105,2105,"Zorg aanvragen via iWLZ, geen extra toestemming vereist"]
[null,null,null,null,null,null,null,null,null,null,null,null,null,null,null,null,null,null,null,null,null,null,null,null,null,null,null,null,null,null,null,null,null,null,null,null,null,null,null,null,null,null,null,null,null,null,null,null,null,null,"V740 VPT 4zg-auditief excl.bh excl.db","V740",202.94,null,null,null,null,null,null,null,null,null,null,null,null,null,null,null,null,1106,2106,"Zorg aanvragen via iWLZ, geen extra toestemming vereist"]
[null,null,null,null,null,null,null,null,null,null,null,null,null,null,null,null,null,null,null,null,null,null,null,null,null,null,null,null,null,null,null,null,null,null,null,null,null,null,null,null,null,null,null,null,null,null,null,null,null,null,"V720 VPT 2zg-auditief excl.bh excl.db","V720",343.01,null,null,null,null,null,null,null,null,null,null,null,null,null,null,null,null,1107,2107,"Zorg aanvragen via iWLZ, geen extra toestemming vereist"]
[null,null,null,null,null,null,null,null,null,null,null,null,null,null,null,null,null,null,null,null,null,null,null,null,null,null,null,null,null,null,null,null,null,null,null,null,null,null,null,null,null,null,null,null,null,null,null,null,null,null,"V730 VPT 3zg-auditief excl.bh excl.db","V730",393.04,null,null,null,null,null,null,null,null,null,null,null,null,null,null,null,null,1108,2108,"Zorg aanvragen via iWLZ, geen extra toestemming vereist"]
[null,null,null,null,null,null,null,null,null,null,null,null,null,null,null,null,null,null,null,null,null,null,null,null,null,null,null,null,null,null,null,null,null,null,null,null,null,null,null,null,null,null,null,null,null,null,null,null,null,null,"V711 VPT 1zg-auditief excl.bh incl.db","V711",214.65,null,null,null,null,null,null,null,null,null,null,null,null,null,null,null,null,1109,2109,"Zorg aanvragen via iWLZ, geen extra toestemming vereist"]
[null,null,null,null,null,null,null,null,null,null,null,null,null,null,null,null,null,null,null,null,null,null,null,null,null,null,null,null,null,null,null,null,null,null,null,null,null,null,null,null,null,null,null,null,null,null,null,null,null,null,"V741 VPT 4zg-auditief excl.bh incl.db","V741",279.51,null,null,null,null,null,null,null,null,null,null,null,null,null,null,null,null,1600,2600,"Zorg aanvragen via iWLZ, geen extra toestemming vereist"]
[null,null,null,null,null,null,null,null,null,null,null,null,null,null,null,null,null,null,null,null,null,null,null,null,null,null,null,null,null,null,null,null,null,null,null,null,null,null,null,null,null,null,null,null,null,null,null,null,null,null,"V721 VPT 2zg-auditief excl.bh incl.db","V721",403.24,null,null,null,null,null,null,null,null,null,null,null,null,null,null,null,null,1601,2601,"Zorg aanvragen via iWLZ, geen extra toestemming vereist"]
[null,null,null,null,null,null,null,null,null,null,null,null,null,null,null,null,null,null,null,null,null,null,null,null,null,null,null,null,null,null,null,null,null,null,null,null,null,null,null,null,null,null,null,null,null,null,null,null,null,null,"V731 VPT 3zg-auditief excl.bh incl.db","V731",444.9,null,null,null,null,null,null,null,null,null,null,null,null,null,null,null,null,1602,2602,"Zorg aanvragen via iWLZ, geen extra toestemming vereist"]
[null,null,null,null,null,null,null,null,null,null,null,null,null,null,null,null,null,null,null,null,null,null,null,null,null,null,null,null,null,null,null,null,null,null,null,null,null,null,null,null,null,null,null,null,null,null,null,null,null,null,"V712 VPT 1zg-auditief incl.bh excl.db","V712",158.35,null,null,null,null,null,null,null,null,null,null,null,null,null,null,null,null,1603,2603,"Zorg aanvragen via iWLZ, geen extra toestemming vereist"]
[null,null,null,null,null,null,null,null,null,null,null,null,null,null,null,null,null,null,null,null,null,null,null,null,null,null,null,null,null,null,null,null,null,null,null,null,null,null,null,null,null,null,null,null,null,null,null,null,null,null,"V742 VPT 4zg-auditief incl.bh excl.db","V742",231.66,null,null,null,null,null,null,null,null,null,null,null,null,null,null,null,null,1604,2604,"Zorg aanvragen via iWLZ, geen extra toestemming vereist"]
[null,null,null,null,null,null,null,null,null,null,null,null,null,null,null,null,null,null,null,null,null,null,null,null,null,null,null,null,null,null,null,null,null,null,null,null,null,null,null,null,null,null,null,null,null,null,null,null,null,null,"V722 VPT 2zg-auditief incl.bh excl.db","V722",{"$f":"VLOOKUP(AZ222,Tarieven_VPT0,9,FALSE)","v":347.73},null,null,null,null,null,null,null,null,null,null,null,null,null,null,null,null,1605,2605,"Zorg aanvragen via iWLZ, geen extra toestemming vereist"]
[null,null,null,null,null,null,null,null,null,null,null,null,null,null,null,null,null,null,null,null,null,null,null,null,null,null,null,null,null,null,null,null,null,null,null,null,null,null,null,null,null,null,null,null,null,null,null,null,null,null,"V732 VPT 3zg-auditief incl.bh excl.db","V732",400.09,null,null,null,null,null,null,null,null,null,null,null,null,null,null,null,null,1606,2606,"Zorg aanvragen via iWLZ, geen extra toestemming vereist"]
[null,null,null,null,null,null,null,null,null,null,null,null,null,null,null,null,null,null,null,null,null,null,null,null,null,null,null,null,null,null,null,null,null,null,null,null,null,null,null,null,null,null,null,null,null,null,null,null,null,null,"V713 VPT 1zg-auditief incl.bh incl.db","V713",223.25,null,null,null,null,null,null,null,null,null,null,null,null,null,null,null,null,1607,2607,"Zorg aanvragen via iWLZ, geen extra toestemming vereist"]
[null,null,null,null,null,null,null,null,null,null,null,null,null,null,null,null,null,null,null,null,null,null,null,null,null,null,null,null,null,null,null,null,null,null,null,null,null,null,null,null,null,null,null,null,null,null,null,null,null,null,"V743 VPT 4zg-auditief incl.bh incl.db","V743",308.06,null,null,null,null,null,null,null,null,null,null,null,null,null,null,null,null,1608,2608,"Zorg aanvragen via iWLZ, geen extra toestemming vereist"]
[null,null,null,null,null,null,null,null,null,null,null,null,null,null,null,null,null,null,null,null,null,null,null,null,null,null,null,null,null,null,null,null,null,null,null,null,null,null,null,null,null,null,null,null,null,null,null,null,null,null,"V723 VPT 2zg-auditief incl.bh incl.db","V723",442.13,null,null,null,null,null,null,null,null,null,null,null,null,null,null,null,null,1609,2609,"Zorg aanvragen via iWLZ, geen extra toestemming vereist"]
[null,null,null,null,null,null,null,null,null,null,null,null,null,null,null,null,null,null,null,null,null,null,null,null,null,null,null,null,null,null,null,null,null,null,null,null,null,null,null,null,null,null,null,null,null,null,null,null,null,null,"V733 VPT 3zg-auditief incl.bh incl.db","V733",521.97,null,null,null,null,null,null,null,null,null,null,null,null,null,null,null,null,1610,2610,"Zorg aanvragen via iWLZ, geen extra toestemming vereist"]
[null,null,null,null,null,null,null,null,null,null,null,null,null,null,null,null,null,null,null,null,null,null,null,null,null,null,null,null,null,null,null,null,null,null,null,null,null,null,null,null,null,null,null,null,null,null,null,null,null,null,"V814 VPT 1zg-visueel excl.bh excl.db","V814",89.19,null,null,null,null,null,null,null,null,null,null,null,null,null,null,null,null,1611,2611,"Zorg aanvragen via iWLZ, geen extra toestemming vereist"]
[null,null,null,null,null,null,null,null,null,null,null,null,null,null,null,null,null,null,null,null,null,null,null,null,null,null,null,null,null,null,null,null,null,null,null,null,null,null,null,null,null,null,null,null,null,null,null,null,null,null,"V824 VPT 2zg-visueel excl.bh excl.db","V824",144,null,null,null,null,null,null,null,null,null,null,null,null,null,null,null,null,1612,2612,"Zorg aanvragen via iWLZ, geen extra toestemming vereist"]
[null,null,null,null,null,null,null,null,null,null,null,null,null,null,null,null,null,null,null,null,null,null,null,null,null,null,null,null,null,null,null,null,null,null,null,null,null,null,null,null,null,null,null,null,null,null,null,null,null,null,"V815 VPT 1zg-visueel excl.bh incl.db","V815",155.56,null,null,null,null,null,null,null,null,null,null,null,null,null,null,null,null,1613,2613,"Zorg aanvragen via iWLZ, geen extra toestemming vereist"]
[null,null,null,null,null,null,null,null,null,null,null,null,null,null,null,null,null,null,null,null,null,null,null,null,null,null,null,null,null,null,null,null,null,null,null,null,null,null,null,null,null,null,null,null,null,null,null,null,null,null,"V825 VPT 2zg-visueel excl.bh incl.db","V825",201.37,null,null,null,null,null,null,null,null,null,null,null,null,null,null,null,null,1614,2614,"Zorg aanvragen via iWLZ, geen extra toestemming vereist"]
[null,null,null,null,null,null,null,null,null,null,null,null,null,null,null,null,null,null,null,null,null,null,null,null,null,null,null,null,null,null,null,null,null,null,null,null,null,null,null,null,null,null,null,null,null,null,null,null,null,null,"V830 VPT 3zg-visueel excl.bh excl.db","V830",184.6,null,null,null,null,null,null,null,null,null,null,null,null,null,null,null,null,1615,2615,"Zorg aanvragen via iWLZ, geen extra toestemming vereist"]
[null,null,null,null,null,null,null,null,null,null,null,null,null,null,null,null,null,null,null,null,null,null,null,null,null,null,null,null,null,null,null,null,null,null,null,null,null,null,null,null,null,null,null,null,null,null,null,null,null,null,"V840 VPT 4zg-visueel excl.bh excl.db","V840",240.85,null,null,null,null,null,null,null,null,null,null,null,null,null,null,null,null,1616,2616,"Zorg aanvragen via iWLZ, geen extra toestemming vereist"]
[null,null,null,null,null,null,null,null,null,null,null,null,null,null,null,null,null,null,null,null,null,null,null,null,null,null,null,null,null,null,null,null,null,null,null,null,null,null,null,null,null,null,null,null,null,null,null,null,null,null,"V850 VPT 5zg-visueel excl.bh excl.db","V850",267.33999999999997,null,null,null,null,null,null,null,null,null,null,null,null,null,null,null,null,1617,2617,"Zorg aanvragen via iWLZ, geen extra toestemming vereist"]
[null,null,null,null,null,null,null,null,null,null,null,null,null,null,null,null,null,null,null,null,null,null,null,null,null,null,null,null,null,null,null,null,null,null,null,null,null,null,null,null,null,null,null,null,null,null,null,null,null,null,"V831 VPT 3zg-visueel excl.bh incl.db","V831",240.39,null,null,null,null,null,null,null,null,null,null,null,null,null,null,null,null,1618,2618,"Zorg aanvragen via iWLZ, geen extra toestemming vereist"]
[null,null,null,null,null,null,null,null,null,null,null,null,null,null,null,null,null,null,null,null,null,null,null,null,null,null,null,null,null,null,null,null,null,null,null,null,null,null,null,null,null,null,null,null,null,null,null,null,null,null,"V841 VPT 4zg-visueel excl.bh incl.db","V841",313.06,null,null,null,null,null,null,null,null,null,null,null,null,null,null,null,null,1619,2619,"Zorg aanvragen via iWLZ, geen extra toestemming vereist"]
[null,null,null,null,null,null,null,null,null,null,null,null,null,null,null,null,null,null,null,null,null,null,null,null,null,null,null,null,null,null,null,null,null,null,null,null,null,null,null,null,null,null,null,null,null,null,null,null,null,null,"V851 VPT 5zg-visueel excl.bh incl.db","V851",339.17,null,null,null,null,null,null,null,null,null,null,null,null,null,null,null,null,1620,2620,"Zorg aanvragen via iWLZ, geen extra toestemming vereist"]
[null,null,null,null,null,null,null,null,null,null,null,null,null,null,null,null,null,null,null,null,null,null,null,null,null,null,null,null,null,null,null,null,null,null,null,null,null,null,null,null,null,null,null,null,null,null,null,null,null,null,"V832 VPT 3zg-visueel incl.bh excl.db","V832",200.65,null,null,null,null,null,null,null,null,null,null,null,null,null,null,null,null,1621,2621,"Zorg aanvragen via iWLZ, geen extra toestemming vereist"]
[null,null,null,null,null,null,null,null,null,null,null,null,null,null,null,null,null,null,null,null,null,null,null,null,null,null,null,null,null,null,null,null,null,null,null,null,null,null,null,null,null,null,null,null,null,null,null,null,null,null,"V842 VPT 4zg-visueel incl.bh excl.db","V842",264.64999999999998,null,null,null,null,null,null,null,null,null,null,null,null,null,null,null,null,1622,2622,"Zorg aanvragen via iWLZ, geen extra toestemming vereist"]
[null,null,null,null,null,null,null,null,null,null,null,null,null,null,null,null,null,null,null,null,null,null,null,null,null,null,null,null,null,null,null,null,null,null,null,null,null,null,null,null,null,null,null,null,null,null,null,null,null,null,"V852 VPT 5zg-visueel incl.bh excl.db","V852",297.77999999999997,null,null,null,null,null,null,null,null,null,null,null,null,null,null,null,null,1623,2623,"Zorg aanvragen via iWLZ, geen extra toestemming vereist"]
[null,null,null,null,null,null,null,null,null,null,null,null,null,null,null,null,null,null,null,null,null,null,null,null,null,null,null,null,null,null,null,null,null,null,null,null,null,null,null,null,null,null,null,null,null,null,null,null,null,null,"V833 VPT 3zg-visueel incl.bh incl.db","V833",256.97000000000003,null,null,null,null,null,null,null,null,null,null,null,null,null,null,null,null,1624,2624,"Zorg aanvragen via iWLZ, geen extra toestemming vereist"]
[null,null,null,null,null,null,null,null,null,null,null,null,null,null,null,null,null,null,null,null,null,null,null,null,null,null,null,null,null,null,null,null,null,null,null,null,null,null,null,null,null,null,null,null,null,null,null,null,null,null,"V843 VPT 4zg-visueel incl.bh incl.db","V843",338.27,null,null,null,null,null,null,null,null,null,null,null,null,null,null,null,null,1625,2625,"Zorg aanvragen via iWLZ, geen extra toestemming vereist"]
[null,null,null,null,null,null,null,null,null,null,null,null,null,null,null,null,null,null,null,null,null,null,null,null,null,null,null,null,null,null,null,null,null,null,null,null,null,null,null,null,null,null,null,null,null,null,null,null,null,null,"V853 VPT 5zg-visueel incl.bh incl.db","V853",372.14,null,null,null,null,null,null,null,null,null,null,null,null,null,null,null,null,1626,2626,"Zorg aanvragen via iWLZ, geen extra toestemming vereist"]
[null,null,null,null,null,null,null,null,null,null,null,null,null,null,null,null,null,null,null,null,null,null,null,null,null,null,null,null,null,null,null,null,null,null,null,null,null,null,null,null,null,null,null,null,null,null,null,null,null,null,"H900 Dagbesteding vg licht (vg1 en vg4)","H900",{"$f":"VLOOKUP(AZ244,Tarieven_ZZP0,9,FALSE)","v":38.67},null,null,null,null,null,null,null,null,null,null,null,null,null,null,null,null,1627,2627,"Zorg aanvragen via iWLZ, geen extra toestemming vereist"]
[null,null,null,null,null,null,null,null,null,null,null,null,null,null,null,null,null,null,null,null,null,null,null,null,null,null,null,null,null,null,null,null,null,null,null,null,null,null,null,null,null,null,null,null,null,null,null,null,null,null,"H903 Dagbesteding vg midden (vg5)","H903",58.56,null,null,null,null,null,null,null,null,null,null,null,null,null,null,null,null,1628,2628,"Zorg aanvragen via iWLZ, geen extra toestemming vereist"]
[null,null,null,null,null,null,null,null,null,null,null,null,null,null,null,null,null,null,null,null,null,null,null,null,null,null,null,null,null,null,null,null,null,null,null,null,null,null,null,null,null,null,null,null,null,null,null,null,null,null,"H904 Dagbesteding vg midden (vg6)","H904",58.64,null,null,null,null,null,null,null,null,null,null,null,null,null,null,null,null,1629,2629,"Zorg aanvragen via iWLZ, geen extra toestemming vereist"]
[null,null,null,null,null,null,null,null,null,null,null,null,null,null,null,null,null,null,null,null,null,null,null,null,null,null,null,null,null,null,null,null,null,null,null,null,null,null,null,null,null,null,null,null,null,null,null,null,null,null,"H905 Dagbesteding vg midden (vg8)","H906",105.63,null,null,null,null,null,null,null,null,null,null,null,null,null,null,null,null,1630,2630,"Zorg aanvragen via iWLZ, geen extra toestemming vereist"]
[null,null,null,null,null,null,null,null,null,null,null,null,null,null,null,null,null,null,null,null,null,null,null,null,null,null,null,null,null,null,null,null,null,null,null,null,null,null,null,null,null,null,null,null,null,null,null,null,null,null,"H902 Dagbesteding vg zwaar (vg7)","H902",104.21,null,null,null,null,null,null,null,null,null,null,null,null,null,null,null,null,1631,2631,"Zorg aanvragen via iWLZ, geen extra toestemming vereist"]
[null,null,null,null,null,null,null,null,null,null,null,null,null,null,null,null,null,null,null,null,null,null,null,null,null,null,null,null,null,null,null,null,null,null,null,null,null,null,null,null,null,null,null,null,null,null,null,null,null,null,"H910 Dagbesteding lg licht (lg7)","H910",57.42,null,null,null,null,null,null,null,null,null,null,null,null,null,null,null,null,1632,2632,"Zorg aanvragen via iWLZ, geen extra toestemming vereist"]
[null,null,null,null,null,null,null,null,null,null,null,null,null,null,null,null,null,null,null,null,null,null,null,null,null,null,null,null,null,null,null,null,null,null,null,null,null,null,null,null,null,null,null,null,null,null,null,null,null,null,"H913 Dagbesteding lg midden (lg2 en lg4)","H913",65.84,null,null,null,null,null,null,null,null,null,null,null,null,null,null,null,null,1633,2633,"Zorg aanvragen via iWLZ, geen extra toestemming vereist"]
[null,null,null,null,null,null,null,null,null,null,null,null,null,null,null,null,null,null,null,null,null,null,null,null,null,null,null,null,null,null,null,null,null,null,null,null,null,null,null,null,null,null,null,null,null,null,null,null,null,null,"H914 Dagbesteding lg midden (lg6)","H914",68.64,null,null,null,null,null,null,null,null,null,null,null,null,null,null,null,null,1634,2634,"Zorg aanvragen via iWLZ, geen extra toestemming vereist"]
[null,null,null,null,null,null,null,null,null,null,null,null,null,null,null,null,null,null,null,null,null,null,null,null,null,null,null,null,null,null,null,null,null,null,null,null,null,null,null,null,null,null,null,null,null,null,null,null,null,null,"H915 Dagbesteding lg zwaar (lg1 en lg3)","H915",73.17,null,null,null,null,null,null,null,null,null,null,null,null,null,null,null,null,1635,2635,"Zorg aanvragen via iWLZ, geen extra toestemming vereist"]
[null,null,null,null,null,null,null,null,null,null,null,null,null,null,null,null,null,null,null,null,null,null,null,null,null,null,null,null,null,null,null,null,null,null,null,null,null,null,null,null,null,null,null,null,null,null,null,null,null,null,"H916 Dagbesteding lg zwaar (lg5)","H916",73.89,null,null,null,null,null,null,null,null,null,null,null,null,null,null,null,null,1636,2636,"Zorg aanvragen via iWLZ, geen extra toestemming vereist"]
[null,null,null,null,null,null,null,null,null,null,null,null,null,null,null,null,null,null,null,null,null,null,null,null,null,null,null,null,null,null,null,null,null,null,null,null,null,null,null,null,null,null,null,null,null,null,null,null,null,null,"H920 Dagbesteding zg aud licht (zg aud1 en zg aud4)","H920",57.48,null,null,null,null,null,null,null,null,null,null,null,null,null,null,null,null,1637,2637,"Zorg aanvragen via iWLZ, geen extra toestemming vereist"]
[null,null,null,null,null,null,null,null,null,null,null,null,null,null,null,null,null,null,null,null,null,null,null,null,null,null,null,null,null,null,null,null,null,null,null,null,null,null,null,null,null,null,null,null,null,null,null,null,null,null,"H921 Dagbesteding zg aud midden (zg aud2)","H921",70.930000000000007,null,null,null,null,null,null,null,null,null,null,null,null,null,null,null,null,1638,2638,"Zorg aanvragen via iWLZ, geen extra toestemming vereist"]
[null,null,null,null,null,null,null,null,null,null,null,null,null,null,null,null,null,null,null,null,null,null,null,null,null,null,null,null,null,null,null,null,null,null,null,null,null,null,null,null,null,null,null,null,null,null,null,null,null,null,"H922 Dagbesteding zg aud zwaar (zg aud3)","H922",87.1,null,null,null,null,null,null,null,null,null,null,null,null,null,null,null,null,1639,2639,"Zorg aanvragen via iWLZ, geen extra toestemming vereist"]
[null,null,null,null,null,null,null,null,null,null,null,null,null,null,null,null,null,null,null,null,null,null,null,null,null,null,null,null,null,null,null,null,null,null,null,null,null,null,null,null,null,null,null,null,null,null,null,null,null,null,"H930 Dagbesteding zg vis licht (zg vis2 en zg vis3)","H930",56.01,null,null,null,null,null,null,null,null,null,null,null,null,null,null,null,null,1500,2500,"Zorg aanvragen via iWLZ, geen extra toestemming vereist"]
[null,null,null,null,null,null,null,null,null,null,null,null,null,null,null,null,null,null,null,null,null,null,null,null,null,null,null,null,null,null,null,null,null,null,null,null,null,null,null,null,null,null,null,null,null,null,null,null,null,null,"H931 Dagbesteding zg vis midden (zg vis1)","H931",61.19,null,null,null,null,null,null,null,null,null,null,null,null,null,null,null,null,1501,2501,"Zorg aanvragen via iWLZ, geen extra toestemming vereist"]
[null,null,null,null,null,null,null,null,null,null,null,null,null,null,null,null,null,null,null,null,null,null,null,null,null,null,null,null,null,null,null,null,null,null,null,null,null,null,null,null,null,null,null,null,null,null,null,null,null,null,"H933 Dagbesteding zg vis zwaar (zg vis4)","H933",72.650000000000006,null,null,null,null,null,null,null,null,null,null,null,null,null,null,null,null,1502,2502,"Zorg aanvragen via iWLZ, geen extra toestemming vereist"]
[null,null,null,null,null,null,null,null,null,null,null,null,null,null,null,null,null,null,null,null,null,null,null,null,null,null,null,null,null,null,null,null,null,null,null,null,null,null,null,null,null,null,null,null,null,null,null,null,null,null,"H934 Dagbesteding zg vis zwaar (zg vis5)","H934",74.260000000000005,null,null,null,null,null,null,null,null,null,null,null,null,null,null,null,null,1503,2503,"Zorg aanvragen via iWLZ, geen extra toestemming vereist"]
[null,null,null,null,null,null,null,null,null,null,null,null,null,null,null,null,null,null,null,null,null,null,null,null,null,null,null,null,null,null,null,null,null,null,null,null,null,null,null,null,null,null,null,null,null,null,null,null,null,null,"Z015 ZZP 1vv incl.db","Z015",120.27,null,null,null,null,null,null,null,null,null,null,null,null,null,null,null,null,1504,2504,"Zorg aanvragen via iWLZ, geen extra toestemming vereist"]
[null,null,null,null,null,null,null,null,null,null,null,null,null,null,null,null,null,null,null,null,null,null,null,null,null,null,null,null,null,null,null,null,null,null,null,null,null,null,null,null,null,null,null,null,null,null,null,null,null,null,"Z025 ZZP 2vv incl.db","Z025",154.76,null,null,null,null,null,null,null,null,null,null,null,null,null,null,null,null,1505,2505,"Zorg aanvragen via iWLZ, geen extra toestemming vereist"]
[null,null,null,null,null,null,null,null,null,null,null,null,null,null,null,null,null,null,null,null,null,null,null,null,null,null,null,null,null,null,null,null,null,null,null,null,null,null,null,null,null,null,null,null,null,null,null,null,null,null,"Z031 ZZP 3vv excl.bh incl.db","Z031",193.19,null,null,null,null,null,null,null,null,null,null,null,null,null,null,null,null,1506,2506,"Zorg aanvragen via iWLZ, geen extra toestemming vereist"]
[null,null,null,null,null,null,null,null,null,null,null,null,null,null,null,null,null,null,null,null,null,null,null,null,null,null,null,null,null,null,null,null,null,null,null,null,null,null,null,null,null,null,null,null,null,null,null,null,null,null,"Z041 ZZP 4vv excl.bh incl.db","Z041",184.9,null,null,null,null,null,null,null,null,null,null,null,null,null,null,null,null,1507,2507,"Zorg aanvragen via iWLZ, geen extra toestemming vereist"]
[null,null,null,null,null,null,null,null,null,null,null,null,null,null,null,null,null,null,null,null,null,null,null,null,null,null,null,null,null,null,null,null,null,null,null,null,null,null,null,null,null,null,null,null,null,null,null,null,null,null,"Z051 ZZP 5vv excl.bh incl.db","Z051",326.58,null,null,null,null,null,null,null,null,null,null,null,null,null,null,null,null,1508,2508,"Zorg aanvragen via iWLZ, geen extra toestemming vereist"]
[null,null,null,null,null,null,null,null,null,null,null,null,null,null,null,null,null,null,null,null,null,null,null,null,null,null,null,null,null,null,null,null,null,null,null,null,null,null,null,null,null,null,null,null,null,null,null,null,null,null,"Z061 ZZP 6vv excl.bh incl.db","Z061",300.56,null,null,null,null,null,null,null,null,null,null,null,null,null,null,null,null,1509,2509,"Zorg aanvragen via iWLZ, geen extra toestemming vereist"]
[null,null,null,null,null,null,null,null,null,null,null,null,null,null,null,null,null,null,null,null,null,null,null,null,null,null,null,null,null,null,null,null,null,null,null,null,null,null,null,null,null,null,null,null,null,null,null,null,null,null,"Z071 ZZP 7vv excl.bh incl.db","Z071",386.15,null,null,null,null,null,null,null,null,null,null,null,null,null,null,null,null,1510,2510,"Zorg aanvragen via iWLZ, geen extra toestemming vereist"]
[null,null,null,null,null,null,null,null,null,null,null,null,null,null,null,null,null,null,null,null,null,null,null,null,null,null,null,null,null,null,null,null,null,null,null,null,null,null,null,null,null,null,null,null,null,null,null,null,null,null,"Z081 ZZP 8vv excl.bh incl.db","Z081",502.45,null,null,null,null,null,null,null,null,null,null,null,null,null,null,null,null,1511,2511,"Zorg aanvragen via iWLZ, geen extra toestemming vereist"]
[null,null,null,null,null,null,null,null,null,null,null,null,null,null,null,null,null,null,null,null,null,null,null,null,null,null,null,null,null,null,null,null,null,null,null,null,null,null,null,null,null,null,null,null,null,null,null,null,null,null,"Z095 ZZP 9bvv excl.bh incl.db","Z095",284.70999999999998,null,null,null,null,null,null,null,null,null,null,null,null,null,null,null,null,1512,2512,"Zorg aanvragen via iWLZ, geen extra toestemming vereist"]
[null,null,null,null,null,null,null,null,null,null,null,null,null,null,null,null,null,null,null,null,null,null,null,null,null,null,null,null,null,null,null,null,null,null,null,null,null,null,null,null,null,null,null,null,null,null,null,null,null,null,"Z101 ZZP 10vv excl.bh incl.db","Z101",586.23,null,null,null,null,null,null,null,null,null,null,null,null,null,null,null,null,1513,2513,"Zorg aanvragen via iWLZ, geen extra toestemming vereist"]
[null,null,null,null,null,null,null,null,null,null,null,null,null,null,null,null,null,null,null,null,null,null,null,null,null,null,null,null,null,null,null,null,null,null,null,null,null,null,null,null,null,null,null,null,null,null,null,null,null,null,"Z033 ZZP 3vv incl.bh incl.db","Z033",221.65,null,null,null,null,null,null,null,null,null,null,null,null,null,null,null,null,1514,2514,"Zorg aanvragen via iWLZ, geen extra toestemming vereist"]
[null,null,null,null,null,null,null,null,null,null,null,null,null,null,null,null,null,null,null,null,null,null,null,null,null,null,null,null,null,null,null,null,null,null,null,null,null,null,null,null,null,null,null,null,null,null,null,null,null,null,"Z043 ZZP 4vv incl.bh incl.db","Z043",214.3,null,null,null,null,null,null,null,null,null,null,null,null,null,null,null,null,1515,2515,"Zorg aanvragen via iWLZ, geen extra toestemming vereist"]
[null,null,null,null,null,null,null,null,null,null,null,null,null,null,null,null,null,null,null,null,null,null,null,null,null,null,null,null,null,null,null,null,null,null,null,null,null,null,null,null,null,null,null,null,null,null,null,null,null,null,"Z053 ZZP 5vv incl.bh incl.db","Z053",354.78,null,null,null,null,null,null,null,null,null,null,null,null,null,null,null,null,1516,2516,"Zorg aanvragen via iWLZ, geen extra toestemming vereist"]
[null,null,null,null,null,null,null,null,null,null,null,null,null,null,null,null,null,null,null,null,null,null,null,null,null,null,null,null,null,null,null,null,null,null,null,null,null,null,null,null,null,null,null,null,null,null,null,null,null,null,"Z063 ZZP 6vv incl.bh incl.db","Z063",330.2,null,null,null,null,null,null,null,null,null,null,null,null,null,null,null,null,1580,2580,"Zorg aanvragen via iWLZ, geen extra toestemming vereist"]
[null,null,null,null,null,null,null,null,null,null,null,null,null,null,null,null,null,null,null,null,null,null,null,null,null,null,null,null,null,null,null,null,null,null,null,null,null,null,null,null,null,null,null,null,null,null,null,null,null,null,"Z073 ZZP 7vv incl.bh incl.db","Z073",430.2,null,null,null,null,null,null,null,null,null,null,null,null,null,null,null,null,1584,{"$f":"BR275+1000","v":2584},"Zorg aanvragen via iWLZ, geen extra toestemming vereist"]
[null,null,null,null,null,null,null,null,null,null,null,null,null,null,null,null,null,null,null,null,null,null,null,null,null,null,null,null,null,null,null,null,null,null,null,null,null,null,null,null,null,null,null,null,null,null,null,null,null,null,"Z083 ZZP 8vv incl.bh incl.db","Z083",{"$f":"VLOOKUP(AZ276,Tarieven_ZZP0,9,FALSE)","v":534.65},null,null,null,null,null,null,null,null,null,null,null,null,null,null,null,null,1585,{"$f":"BR276+1000","v":2585},"Zorg aanvragen via iWLZ, geen extra toestemming vereist"]
[null,null,null,null,null,null,null,null,null,null,null,null,null,null,null,null,null,null,null,null,null,null,null,null,null,null,null,null,null,null,null,null,null,null,null,null,null,null,null,null,null,null,null,null,null,null,null,null,null,null,"Z097 ZZP 9bvv incl.bh incl.db","Z097",380.38]
[null,null,null,null,null,null,null,null,null,null,null,null,null,null,null,null,null,null,null,null,null,null,null,null,null,null,null,null,null,null,null,null,null,null,null,null,null,null,null,null,null,null,null,null,null,null,null,null,null,null,"Z103 ZZP 10vv incl.bh incl.db","Z103",595.94000000000005]
[null,null,null,null,null,null,null,null,null,null,null,null,null,null,null,null,null,null,null,null,null,null,null,null,null,null,null,null,null,null,null,null,null,null,null,null,null,null,null,null,null,null,null,null,null,null,null,null,null,null,null,null,{"$f":"IFERROR(VLOOKUP(AZ279,Tarieven_ZZP0,9,FALSE),0)","v":0}]
[null,null,null,null,null,null,null,null,null,null,null,null,null,null,null,null,null,null,null,null,null,null,null,null,null,null,null,null,null,null,null,null,null,null,null,null,null,null,null,null,null,null,null,null,null,null,null,null,null,null,null,null,0]
[null,null,null,null,null,null,null,null,null,null,null,null,null,null,null,null,null,null,null,null,null,null,null,null,null,null,null,null,null,null,null,null,null,null,null,null,null,null,null,null,null,null,null,null,null,null,null,null,null,null,null,null,0]
[null,null,null,null,null,null,null,null,null,null,null,null,null,null,null,null,null,null,null,null,null,null,null,null,null,null,null,null,null,null,null,null,null,null,null,null,null,null,null,null,null,null,null,null,null,null,null,null,null,null,null,null,0]
[null,null,null,null,null,null,null,null,null,null,null,null,null,null,null,null,null,null,null,null,null,null,null,null,null,null,null,null,null,null,null,null,null,null,null,null,null,null,null,null,null,null,null,null,null,null,null,null,null,null,null,null,0]
[null,null,null,null,null,null,null,null,null,null,null,null,null,null,null,null,null,null,null,null,null,null,null,null,null,null,null,null,null,null,null,null,null,null,null,null,null,null,null,null,null,null,null,null,null,null,null,null,null,null,null,null,0]
[null,null,null,null,null,null,null,null,null,null,null,null,null,null,null,null,null,null,null,null,null,null,null,null,null,null,null,null,null,null,null,null,null,null,null,null,null,null,null,null,null,null,null,null,null,null,null,null,null,null,null,null,0]
[null,null,null,null,null,null,null,null,null,null,null,null,null,null,null,null,null,null,null,null,null,null,null,null,null,null,null,null,null,null,null,null,null,null,null,null,null,null,null,null,null,null,null,null,null,null,null,null,null,null,null,null,0]
[null,null,null,null,null,null,null,null,null,null,null,null,null,null,null,null,null,null,null,null,null,null,null,null,null,null,null,null,null,null,null,null,null,null,null,null,null,null,null,null,null,null,null,null,null,null,null,null,null,null,null,null,0]
[null,null,null,null,null,null,null,null,null,null,null,null,null,null,null,null,null,null,null,null,null,null,null,null,null,null,null,null,null,null,null,null,null,null,null,null,null,null,null,null,null,null,null,null,null,null,null,null,null,null,null,null,0]
[null,null,null,null,null,null,null,null,null,null,null,null,null,null,null,null,null,null,null,null,null,null,null,null,null,null,null,null,null,null,null,null,null,null,null,null,null,null,null,null,null,null,null,null,null,null,null,null,null,null,null,null,0]
[null,null,null,null,null,null,null,null,null,null,null,null,null,null,null,null,null,null,null,null,null,null,null,null,null,null,null,null,null,null,null,null,null,null,null,null,null,null,null,null,null,null,null,null,null,null,null,null,null,null,null,null,0]
[null,null,null,null,null,null,null,null,null,null,null,null,null,null,null,null,null,null,null,null,null,null,null,null,null,null,null,null,null,null,null,null,null,null,null,null,null,null,null,null,null,null,null,null,null,null,null,null,null,null,null,null,0]
[null,null,null,null,null,null,null,null,null,null,null,null,null,null,null,null,null,null,null,null,null,null,null,null,null,null,null,null,null,null,null,null,null,null,null,null,null,null,null,null,null,null,null,null,null,null,null,null,null,null,"Z414 ZZP 1vg excl.db","Z414",99.26]
[null,null,null,null,null,null,null,null,null,null,null,null,null,null,null,null,null,null,null,null,null,null,null,null,null,null,null,null,null,null,null,null,null,null,null,null,null,null,null,null,null,null,null,null,null,null,null,null,null,null,"Z424 ZZP 2vg excl.db","Z424",115.8]
[null,null,null,null,null,null,null,null,null,null,null,null,null,null,null,null,null,null,null,null,null,null,null,null,null,null,null,null,null,null,null,null,null,null,null,null,null,null,null,null,null,null,null,null,null,null,null,null,null,null,"Z415 ZZP 1vg incl.db","Z415",155.28]
[null,null,null,null,null,null,null,null,null,null,null,null,null,null,null,null,null,null,null,null,null,null,null,null,null,null,null,null,null,null,null,null,null,null,null,null,null,null,null,null,null,null,null,null,null,null,null,null,null,null,"Z425 ZZP 2vg incl.db","Z425",172.91]
[null,null,null,null,null,null,null,null,null,null,null,null,null,null,null,null,null,null,null,null,null,null,null,null,null,null,null,null,null,null,null,null,null,null,null,null,null,null,null,null,null,null,null,null,null,null,null,null,null,null,"Z430 ZZP 3vg excl.bh excl.db","Z430",153.97999999999999]
[null,null,null,null,null,null,null,null,null,null,null,null,null,null,null,null,null,null,null,null,null,null,null,null,null,null,null,null,null,null,null,null,null,null,null,null,null,null,null,null,null,null,null,null,null,null,null,null,null,null,"Z440 ZZP 4vg excl.bh excl.db","Z440",187.65]
[null,null,null,null,null,null,null,null,null,null,null,null,null,null,null,null,null,null,null,null,null,null,null,null,null,null,null,null,null,null,null,null,null,null,null,null,null,null,null,null,null,null,null,null,null,null,null,null,null,null,"Z454 ZZP 5vg excl.bh excl.db","Z454",227.47]
[null,null,null,null,null,null,null,null,null,null,null,null,null,null,null,null,null,null,null,null,null,null,null,null,null,null,null,null,null,null,null,null,null,null,null,null,null,null,null,null,null,null,null,null,null,null,null,null,null,null,"Z460 ZZP 6vg excl.bh excl.db","Z460",198.55]
[null,null,null,null,null,null,null,null,null,null,null,null,null,null,null,null,null,null,null,null,null,null,null,null,null,null,null,null,null,null,null,null,null,null,null,null,null,null,null,null,null,null,null,null,null,null,null,null,null,null,"Z470 ZZP 7vg excl.bh excl.db","Z470",247.4]
[null,null,null,null,null,null,null,null,null,null,null,null,null,null,null,null,null,null,null,null,null,null,null,null,null,null,null,null,null,null,null,null,null,null,null,null,null,null,null,null,null,null,null,null,null,null,null,null,null,null,"Z480 ZZP 8vg excl.bh excl.db","Z480",269.39]
[null,null,null,null,null,null,null,null,null,null,null,null,null,null,null,null,null,null,null,null,null,null,null,null,null,null,null,null,null,null,null,null,null,null,null,null,null,null,null,null,null,null,null,null,null,null,null,null,null,null,"Z431 ZZP 3vg excl.bh incl.db","Z431",207.14]
[null,null,null,null,null,null,null,null,null,null,null,null,null,null,null,null,null,null,null,null,null,null,null,null,null,null,null,null,null,null,null,null,null,null,null,null,null,null,null,null,null,null,null,null,null,null,null,null,null,null,"Z441 ZZP 4vg excl.bh incl.db","Z441",241.26]
[null,null,null,null,null,null,null,null,null,null,null,null,null,null,null,null,null,null,null,null,null,null,null,null,null,null,null,null,null,null,null,null,null,null,null,null,null,null,null,null,null,null,null,null,null,null,null,null,null,null,"Z455 ZZP 5vg excl.bh incl.db","Z455",297.77999999999997]
[null,null,null,null,null,null,null,null,null,null,null,null,null,null,null,null,null,null,null,null,null,null,null,null,null,null,null,null,null,null,null,null,null,null,null,null,null,null,null,null,null,null,null,null,null,null,null,null,null,null,"Z461 ZZP 6vg excl.bh incl.db","Z461",267.52999999999997]
[null,null,null,null,null,null,null,null,null,null,null,null,null,null,null,null,null,null,null,null,null,null,null,null,null,null,null,null,null,null,null,null,null,null,null,null,null,null,null,null,null,null,null,null,null,null,null,null,null,null,"Z471 ZZP 7vg excl.bh incl.db","Z471",326.08]
[null,null,null,null,null,null,null,null,null,null,null,null,null,null,null,null,null,null,null,null,null,null,null,null,null,null,null,null,null,null,null,null,null,null,null,null,null,null,null,null,null,null,null,null,null,null,null,null,null,null,"Z481 ZZP 8vg excl.bh incl.db","Z481",{"$f":"VLOOKUP(AZ307,Tarieven_ZZP0,9,FALSE)","v":365.96}]
[null,null,null,null,null,null,null,null,null,null,null,null,null,null,null,null,null,null,null,null,null,null,null,null,null,null,null,null,null,null,null,null,null,null,null,null,null,null,null,null,null,null,null,null,null,null,null,null,null,null,"Z432 ZZP 3vg incl.bh excl.db","Z432",174.21]
[null,null,null,null,null,null,null,null,null,null,null,null,null,null,null,null,null,null,null,null,null,null,null,null,null,null,null,null,null,null,null,null,null,null,null,null,null,null,null,null,null,null,null,null,null,null,null,null,null,null,"Z442 ZZP 4vg incl.bh excl.db","Z442",218.45]
[null,null,null,null,null,null,null,null,null,null,null,null,null,null,null,null,null,null,null,null,null,null,null,null,null,null,null,null,null,null,null,null,null,null,null,null,null,null,null,null,null,null,null,null,null,null,null,null,null,null,"Z456 ZZP 5vg incl.bh excl.db","Z456",278.01]
[null,null,null,null,null,null,null,null,null,null,null,null,null,null,null,null,null,null,null,null,null,null,null,null,null,null,null,null,null,null,null,null,null,null,null,null,null,null,null,null,null,null,null,null,null,null,null,null,null,null,"Z462 ZZP 6vg incl.bh excl.db","Z462",240.23]
[null,null,null,null,null,null,null,null,null,null,null,null,null,null,null,null,null,null,null,null,null,null,null,null,null,null,null,null,null,null,null,null,null,null,null,null,null,null,null,null,null,null,null,null,null,null,null,null,null,null,"Z472 ZZP 7vg incl.bh excl.db","Z472",341.88]
[null,null,null,null,null,null,null,null,null,null,null,null,null,null,null,null,null,null,null,null,null,null,null,null,null,null,null,null,null,null,null,null,null,null,null,null,null,null,null,null,null,null,null,null,null,null,null,null,null,null,"Z482 ZZP 8vg incl.bh excl.db","Z482",327.39]
[null,null,null,null,null,null,null,null,null,null,null,null,null,null,null,null,null,null,null,null,null,null,null,null,null,null,null,null,null,null,null,null,null,null,null,null,null,null,null,null,null,null,null,null,null,null,null,null,null,null,"Z433 ZZP 3vg incl.bh incl.db","Z433",225.66]
[null,null,null,null,null,null,null,null,null,null,null,null,null,null,null,null,null,null,null,null,null,null,null,null,null,null,null,null,null,null,null,null,null,null,null,null,null,null,null,null,null,null,null,null,null,null,null,null,null,null,"Z443 ZZP 4vg incl.bh incl.db","Z443",266.67]
[null,null,null,null,null,null,null,null,null,null,null,null,null,null,null,null,null,null,null,null,null,null,null,null,null,null,null,null,null,null,null,null,null,null,null,null,null,null,null,null,null,null,null,null,null,null,null,null,null,null,"Z457 ZZP 5vg incl.bh incl.db","Z457",345.1]
[null,null,null,null,null,null,null,null,null,null,null,null,null,null,null,null,null,null,null,null,null,null,null,null,null,null,null,null,null,null,null,null,null,null,null,null,null,null,null,null,null,null,null,null,null,null,null,null,null,null,"Z463 ZZP 6vg incl.bh incl.db","Z463",308.73]
[null,null,null,null,null,null,null,null,null,null,null,null,null,null,null,null,null,null,null,null,null,null,null,null,null,null,null,null,null,null,null,null,null,null,null,null,null,null,null,null,null,null,null,null,null,null,null,null,null,null,"Z473 ZZP 7vg incl.bh incl.db","Z473",435.2]
[null,null,null,null,null,null,null,null,null,null,null,null,null,null,null,null,null,null,null,null,null,null,null,null,null,null,null,null,null,null,null,null,null,null,null,null,null,null,null,null,null,null,null,null,null,null,null,null,null,null,"Z483 ZZP 8vg incl.bh incl.db","Z483",422.19]
[null,null,null,null,null,null,null,null,null,null,null,null,null,null,null,null,null,null,null,null,null,null,null,null,null,null,null,null,null,null,null,null,null,null,null,null,null,null,null,null,null,null,null,null,null,null,null,null,null,null,"Z513 ZZP 1lvg incl.bh incl.db","Z513",264.35000000000002]
[null,null,null,null,null,null,null,null,null,null,null,null,null,null,null,null,null,null,null,null,null,null,null,null,null,null,null,null,null,null,null,null,null,null,null,null,null,null,null,null,null,null,null,null,null,null,null,null,null,null,"Z523 ZZP 2lvg incl.bh incl.db","Z523",317.67]
[null,null,null,null,null,null,null,null,null,null,null,null,null,null,null,null,null,null,null,null,null,null,null,null,null,null,null,null,null,null,null,null,null,null,null,null,null,null,null,null,null,null,null,null,null,null,null,null,null,null,"Z533 ZZP 3lvg incl.bh incl.db","Z533",414.68]
[null,null,null,null,null,null,null,null,null,null,null,null,null,null,null,null,null,null,null,null,null,null,null,null,null,null,null,null,null,null,null,null,null,null,null,null,null,null,null,null,null,null,null,null,null,null,null,null,null,null,"Z543 ZZP 4lvg incl.bh incl.db","Z543",477.32]
[null,null,null,null,null,null,null,null,null,null,null,null,null,null,null,null,null,null,null,null,null,null,null,null,null,null,null,null,null,null,null,null,null,null,null,null,null,null,null,null,null,null,null,null,null,null,null,null,null,null,"Z553 ZZP 5lvg incl.bh incl.db","Z553",455.6]
[null,null,null,null,null,null,null,null,null,null,null,null,null,null,null,null,null,null,null,null,null,null,null,null,null,null,null,null,null,null,null,null,null,null,null,null,null,null,null,null,null,null,null,null,null,null,null,null,null,null,"Z573 ZZP 1sglvg incl.bh incl.db","Z573",536.82000000000005]
[null,null,null,null,null,null,null,null,null,null,null,null,null,null,null,null,null,null,null,null,null,null,null,null,null,null,null,null,null,null,null,null,null,null,null,null,null,null,null,null,null,null,null,null,null,null,null,null,null,null,"Z614 ZZP 1lg excl.db","Z614",142.30000000000001]
[null,null,null,null,null,null,null,null,null,null,null,null,null,null,null,null,null,null,null,null,null,null,null,null,null,null,null,null,null,null,null,null,null,null,null,null,null,null,null,null,null,null,null,null,null,null,null,null,null,null,"Z624 ZZP 2lg excl.db","Z624",181.64]
[null,null,null,null,null,null,null,null,null,null,null,null,null,null,null,null,null,null,null,null,null,null,null,null,null,null,null,null,null,null,null,null,null,null,null,null,null,null,null,null,null,null,null,null,null,null,null,null,null,null,"Z615 ZZP 1lg incl.db","Z615",208.75]
[null,null,null,null,null,null,null,null,null,null,null,null,null,null,null,null,null,null,null,null,null,null,null,null,null,null,null,null,null,null,null,null,null,null,null,null,null,null,null,null,null,null,null,null,null,null,null,null,null,null,"Z625 ZZP 2lg incl.db","Z625",242.15]
[null,null,null,null,null,null,null,null,null,null,null,null,null,null,null,null,null,null,null,null,null,null,null,null,null,null,null,null,null,null,null,null,null,null,null,null,null,null,null,null,null,null,null,null,null,null,null,null,null,null,"Z630 ZZP 3lg excl.bh excl.db","Z630",150.1]
[null,null,null,null,null,null,null,null,null,null,null,null,null,null,null,null,null,null,null,null,null,null,null,null,null,null,null,null,null,null,null,null,null,null,null,null,null,null,null,null,null,null,null,null,null,null,null,null,null,null,"Z640 ZZP 4lg excl.bh excl.db","Z640",216.78]
[null,null,null,null,null,null,null,null,null,null,null,null,null,null,null,null,null,null,null,null,null,null,null,null,null,null,null,null,null,null,null,null,null,null,null,null,null,null,null,null,null,null,null,null,null,null,null,null,null,null,"Z650 ZZP 5lg excl.bh excl.db","Z650",215.97]
[null,null,null,null,null,null,null,null,null,null,null,null,null,null,null,null,null,null,null,null,null,null,null,null,null,null,null,null,null,null,null,null,null,null,null,null,null,null,null,null,null,null,null,null,null,null,null,null,null,null,"Z660 ZZP 6lg excl.bh excl.db","Z660",305.87]
[null,null,null,null,null,null,null,null,null,null,null,null,null,null,null,null,null,null,null,null,null,null,null,null,null,null,null,null,null,null,null,null,null,null,null,null,null,null,null,null,null,null,null,null,null,null,null,null,null,null,"Z670 ZZP 7lg excl.bh excl.db","Z670",330]
[null,null,null,null,null,null,null,null,null,null,null,null,null,null,null,null,null,null,null,null,null,null,null,null,null,null,null,null,null,null,null,null,null,null,null,null,null,null,null,null,null,null,null,null,null,null,null,null,null,null,"Z631 ZZP 3lg excl.bh incl.db","Z631",217.71]
[null,null,null,null,null,null,null,null,null,null,null,null,null,null,null,null,null,null,null,null,null,null,null,null,null,null,null,null,null,null,null,null,null,null,null,null,null,null,null,null,null,null,null,null,null,null,null,null,null,null,"Z641 ZZP 4lg excl.bh incl.db","Z641",275.3]
[null,null,null,null,null,null,null,null,null,null,null,null,null,null,null,null,null,null,null,null,null,null,null,null,null,null,null,null,null,null,null,null,null,null,null,null,null,null,null,null,null,null,null,null,null,null,null,null,null,null,"Z651 ZZP 5lg excl.bh incl.db","Z651",284.72000000000003]
[null,null,null,null,null,null,null,null,null,null,null,null,null,null,null,null,null,null,null,null,null,null,null,null,null,null,null,null,null,null,null,null,null,null,null,null,null,null,null,null,null,null,null,null,null,null,null,null,null,null,"Z661 ZZP 6lg excl.bh incl.db","Z661",361.98]
[null,null,null,null,null,null,null,null,null,null,null,null,null,null,null,null,null,null,null,null,null,null,null,null,null,null,null,null,null,null,null,null,null,null,null,null,null,null,null,null,null,null,null,null,null,null,null,null,null,null,"Z671 ZZP 7lg excl.bh incl.db","Z671",{"$f":"VLOOKUP(AZ339,Tarieven_ZZP0,9,FALSE)","v":385.12}]
[null,null,null,null,null,null,null,null,null,null,null,null,null,null,null,null,null,null,null,null,null,null,null,null,null,null,null,null,null,null,null,null,null,null,null,null,null,null,null,null,null,null,null,null,null,null,null,null,null,null,"Z632 ZZP 3lg incl.bh excl.db","Z632",173.12]
[null,null,null,null,null,null,null,null,null,null,null,null,null,null,null,null,null,null,null,null,null,null,null,null,null,null,null,null,null,null,null,null,null,null,null,null,null,null,null,null,null,null,null,null,null,null,null,null,null,null,"Z642 ZZP 4lg incl.bh excl.db","Z642",252.29]
[null,null,null,null,null,null,null,null,null,null,null,null,null,null,null,null,null,null,null,null,null,null,null,null,null,null,null,null,null,null,null,null,null,null,null,null,null,null,null,null,null,null,null,null,null,null,null,null,null,null,"Z652 ZZP 5lg incl.bh excl.db","Z652",265.72000000000003]
[null,null,null,null,null,null,null,null,null,null,null,null,null,null,null,null,null,null,null,null,null,null,null,null,null,null,null,null,null,null,null,null,null,null,null,null,null,null,null,null,null,null,null,null,null,null,null,null,null,null,"Z662 ZZP 6lg incl.bh excl.db","Z662",356.98]
[null,null,null,null,null,null,null,null,null,null,null,null,null,null,null,null,null,null,null,null,null,null,null,null,null,null,null,null,null,null,null,null,null,null,null,null,null,null,null,null,null,null,null,null,null,null,null,null,null,null,"Z672 ZZP 7lg incl.bh excl.db","Z672",393.64]
[null,null,null,null,null,null,null,null,null,null,null,null,null,null,null,null,null,null,null,null,null,null,null,null,null,null,null,null,null,null,null,null,null,null,null,null,null,null,null,null,null,null,null,null,null,null,null,null,null,null,"Z633 ZZP 3lg incl.bh incl.db","Z633",241.09]
[null,null,null,null,null,null,null,null,null,null,null,null,null,null,null,null,null,null,null,null,null,null,null,null,null,null,null,null,null,null,null,null,null,null,null,null,null,null,null,null,null,null,null,null,null,null,null,null,null,null,"Z643 ZZP 4lg incl.bh incl.db","Z643",309.73]
[null,null,null,null,null,null,null,null,null,null,null,null,null,null,null,null,null,null,null,null,null,null,null,null,null,null,null,null,null,null,null,null,null,null,null,null,null,null,null,null,null,null,null,null,null,null,null,null,null,null,"Z653 ZZP 5lg incl.bh incl.db","Z653",333.43]
[null,null,null,null,null,null,null,null,null,null,null,null,null,null,null,null,null,null,null,null,null,null,null,null,null,null,null,null,null,null,null,null,null,null,null,null,null,null,null,null,null,null,null,null,null,null,null,null,null,null,"Z663 ZZP 6lg incl.bh incl.db","Z663",413.5]
[null,null,null,null,null,null,null,null,null,null,null,null,null,null,null,null,null,null,null,null,null,null,null,null,null,null,null,null,null,null,null,null,null,null,null,null,null,null,null,null,null,null,null,null,null,null,null,null,null,null,"Z673 ZZP 7lg incl.bh incl.db","Z673",427.09]
[null,null,null,null,null,null,null,null,null,null,null,null,null,null,null,null,null,null,null,null,null,null,null,null,null,null,null,null,null,null,null,null,null,null,null,null,null,null,null,null,null,null,null,null,null,null,null,null,null,null,"Z212G ZZP 1 ggz wonen incl. BH excl. DB","Z212",205.31]
[null,null,null,null,null,null,null,null,null,null,null,null,null,null,null,null,null,null,null,null,null,null,null,null,null,null,null,null,null,null,null,null,null,null,null,null,null,null,null,null,null,null,null,null,null,null,null,null,null,null,"Z222G ZZP 2 ggz wonen incl. BH excl. DB","Z222",212.16]
[null,null,null,null,null,null,null,null,null,null,null,null,null,null,null,null,null,null,null,null,null,null,null,null,null,null,null,null,null,null,null,null,null,null,null,null,null,null,null,null,null,null,null,null,null,null,null,null,null,null,"Z232G ZZP 3 ggz wonen incl. BH excl. DB","Z232",232.36]
[null,null,null,null,null,null,null,null,null,null,null,null,null,null,null,null,null,null,null,null,null,null,null,null,null,null,null,null,null,null,null,null,null,null,null,null,null,null,null,null,null,null,null,null,null,null,null,null,null,null,"Z242G ZZP 4 ggz wonen incl. BH excl. DB","Z242",405.79]
[null,null,null,null,null,null,null,null,null,null,null,null,null,null,null,null,null,null,null,null,null,null,null,null,null,null,null,null,null,null,null,null,null,null,null,null,null,null,null,null,null,null,null,null,null,null,null,null,null,null,"Z252G ZZP 5 ggz beveiligd wonen  incl. BH excl. DB","Z252",451.92]
[null,null,null,null,null,null,null,null,null,null,null,null,null,null,null,null,null,null,null,null,null,null,null,null,null,null,null,null,null,null,null,null,null,null,null,null,null,null,null,null,null,null,null,null,null,null,null,null,null,null,"Z213G ZZP 1 ggz wonen incl. BH incl. DB","Z213",254.1]
[null,null,null,null,null,null,null,null,null,null,null,null,null,null,null,null,null,null,null,null,null,null,null,null,null,null,null,null,null,null,null,null,null,null,null,null,null,null,null,null,null,null,null,null,null,null,null,null,null,null,"Z223G ZZP 2 ggz wonen incl. BH incl. DB","Z223",269.11]
[null,null,null,null,null,null,null,null,null,null,null,null,null,null,null,null,null,null,null,null,null,null,null,null,null,null,null,null,null,null,null,null,null,null,null,null,null,null,null,null,null,null,null,null,null,null,null,null,null,null,"Z233G ZZP 3 ggz wonen incl. BH incl. DB","Z233",281.22000000000003]
[null,null,null,null,null,null,null,null,null,null,null,null,null,null,null,null,null,null,null,null,null,null,null,null,null,null,null,null,null,null,null,null,null,null,null,null,null,null,null,null,null,null,null,null,null,null,null,null,null,null,"Z243G ZZP 4 ggz wonen incl. BH incl. DB","Z243",444.89]
[null,null,null,null,null,null,null,null,null,null,null,null,null,null,null,null,null,null,null,null,null,null,null,null,null,null,null,null,null,null,null,null,null,null,null,null,null,null,null,null,null,null,null,null,null,null,null,null,null,null,"Z253G ZZP 5 ggz beveiligd wonen incl. BH incl. DB","Z253",521.49]
[null,null,null,null,null,null,null,null,null,null,null,null,null,null,null,null,null,null,null,null,null,null,null,null,null,null,null,null,null,null,null,null,null,null,null,null,null,null,null,null,null,null,null,null,null,null,null,null,null,null,"Z211G ZZP 1 ggz wonen excl. BH incl. DB","Z211",223.55]
[null,null,null,null,null,null,null,null,null,null,null,null,null,null,null,null,null,null,null,null,null,null,null,null,null,null,null,null,null,null,null,null,null,null,null,null,null,null,null,null,null,null,null,null,null,null,null,null,null,null,"Z221G ZZP 2 ggz wonen excl. BH incl. DB","Z221",259.2]
[null,null,null,null,null,null,null,null,null,null,null,null,null,null,null,null,null,null,null,null,null,null,null,null,null,null,null,null,null,null,null,null,null,null,null,null,null,null,null,null,null,null,null,null,null,null,null,null,null,null,"Z231G ZZP 3 ggz wonen excl. BH incl. DB","Z231",275.58999999999997]
[null,null,null,null,null,null,null,null,null,null,null,null,null,null,null,null,null,null,null,null,null,null,null,null,null,null,null,null,null,null,null,null,null,null,null,null,null,null,null,null,null,null,null,null,null,null,null,null,null,null,"Z241G ZZP 4 ggz wonen excl. BH incl. DB","Z241",329.02]
[null,null,null,null,null,null,null,null,null,null,null,null,null,null,null,null,null,null,null,null,null,null,null,null,null,null,null,null,null,null,null,null,null,null,null,null,null,null,null,null,null,null,null,null,null,null,null,null,null,null,"Z251G ZZP 5 ggz beveiligd wonen excl. BH incl. DB","Z251",441.06]
[null,null,null,null,null,null,null,null,null,null,null,null,null,null,null,null,null,null,null,null,null,null,null,null,null,null,null,null,null,null,null,null,null,null,null,null,null,null,null,null,null,null,null,null,null,null,null,null,null,null,"Z210G ZZP 1 ggz wonen excl. BH excl. DB","Z210",180.87]
[null,null,null,null,null,null,null,null,null,null,null,null,null,null,null,null,null,null,null,null,null,null,null,null,null,null,null,null,null,null,null,null,null,null,null,null,null,null,null,null,null,null,null,null,null,null,null,null,null,null,"Z220G ZZP 2 ggz wonen excl. BH excl. DB","Z220",212.97]
[null,null,null,null,null,null,null,null,null,null,null,null,null,null,null,null,null,null,null,null,null,null,null,null,null,null,null,null,null,null,null,null,null,null,null,null,null,null,null,null,null,null,null,null,null,null,null,null,null,null,"Z230G ZZP 3 ggz wonen excl. BH excl. DB","Z230",229.75]
[null,null,null,null,null,null,null,null,null,null,null,null,null,null,null,null,null,null,null,null,null,null,null,null,null,null,null,null,null,null,null,null,null,null,null,null,null,null,null,null,null,null,null,null,null,null,null,null,null,null,"Z240G ZZP 4 ggz wonen excl. BH excl. DB","Z240",281.24]
[null,null,null,null,null,null,null,null,null,null,null,null,null,null,null,null,null,null,null,null,null,null,null,null,null,null,null,null,null,null,null,null,null,null,null,null,null,null,null,null,null,null,null,null,null,null,null,null,null,null,"Z250G ZZP 5 ggz beveiligd wonen excl. BH excl. DB","Z250",367.46]
[null,null,null,null,null,null,null,null,null,null,null,null,null,null,null,null,null,null,null,null,null,null,null,null,null,null,null,null,null,null,null,null,null,null,null,null,null,null,null,null,null,null,null,null,null,null,null,null,null,null,"Z710 ZZP 1zg-auditief excl.bh excl.db","Z710",204.64]
[null,null,null,null,null,null,null,null,null,null,null,null,null,null,null,null,null,null,null,null,null,null,null,null,null,null,null,null,null,null,null,null,null,null,null,null,null,null,null,null,null,null,null,null,null,null,null,null,null,null,"Z720 ZZP 2zg-auditief excl.bh excl.db","Z720",{"$f":"VLOOKUP(AZ371,Tarieven_ZZP0,9,FALSE)","v":379.77}]
[null,null,null,null,null,null,null,null,null,null,null,null,null,null,null,null,null,null,null,null,null,null,null,null,null,null,null,null,null,null,null,null,null,null,null,null,null,null,null,null,null,null,null,null,null,null,null,null,null,null,"Z730 ZZP 3zg-auditief excl.bh excl.db","Z730",428.39]
[null,null,null,null,null,null,null,null,null,null,null,null,null,null,null,null,null,null,null,null,null,null,null,null,null,null,null,null,null,null,null,null,null,null,null,null,null,null,null,null,null,null,null,null,null,null,null,null,null,null,"Z740 ZZP 4zg-auditief excl.bh excl.db","Z740",246.52]
[null,null,null,null,null,null,null,null,null,null,null,null,null,null,null,null,null,null,null,null,null,null,null,null,null,null,null,null,null,null,null,null,null,null,null,null,null,null,null,null,null,null,null,null,null,null,null,null,null,null,"Z711 ZZP 1zg-auditief excl.bh incl.db","Z711",251.45]
[null,null,null,null,null,null,null,null,null,null,null,null,null,null,null,null,null,null,null,null,null,null,null,null,null,null,null,null,null,null,null,null,null,null,null,null,null,null,null,null,null,null,null,null,null,null,null,null,null,null,"Z721 ZZP 2zg-auditief excl.bh incl.db","Z721",440]
[null,null,null,null,null,null,null,null,null,null,null,null,null,null,null,null,null,null,null,null,null,null,null,null,null,null,null,null,null,null,null,null,null,null,null,null,null,null,null,null,null,null,null,null,null,null,null,null,null,null,"Z731 ZZP 3zg-auditief excl.bh incl.db","Z731",480.25]
[null,null,null,null,null,null,null,null,null,null,null,null,null,null,null,null,null,null,null,null,null,null,null,null,null,null,null,null,null,null,null,null,null,null,null,null,null,null,null,null,null,null,null,null,null,null,null,null,null,null,"Z741 ZZP 4zg-auditief excl.bh incl.db","Z741",322.22000000000003]
[null,null,null,null,null,null,null,null,null,null,null,null,null,null,null,null,null,null,null,null,null,null,null,null,null,null,null,null,null,null,null,null,null,null,null,null,null,null,null,null,null,null,null,null,null,null,null,null,null,null,"Z712 ZZP 1zg-auditief incl.bh excl.db","Z712",196]
[null,null,null,null,null,null,null,null,null,null,null,null,null,null,null,null,null,null,null,null,null,null,null,null,null,null,null,null,null,null,null,null,null,null,null,null,null,null,null,null,null,null,null,null,null,null,null,null,null,null,"Z722 ZZP 2zg-auditief incl.bh excl.db","Z722",385.31]
[null,null,null,null,null,null,null,null,null,null,null,null,null,null,null,null,null,null,null,null,null,null,null,null,null,null,null,null,null,null,null,null,null,null,null,null,null,null,null,null,null,null,null,null,null,null,null,null,null,null,"Z732 ZZP 3zg-auditief incl.bh excl.db","Z732",440.53]
[null,null,null,null,null,null,null,null,null,null,null,null,null,null,null,null,null,null,null,null,null,null,null,null,null,null,null,null,null,null,null,null,null,null,null,null,null,null,null,null,null,null,null,null,null,null,null,null,null,null,"Z742 ZZP 4zg-auditief incl.bh excl.db","Z742",286.79000000000002]
[null,null,null,null,null,null,null,null,null,null,null,null,null,null,null,null,null,null,null,null,null,null,null,null,null,null,null,null,null,null,null,null,null,null,null,null,null,null,null,null,null,null,null,null,null,null,null,null,null,null,"Z713 ZZP 1zg-auditief incl.bh incl.db","Z713",260.89999999999998]
[null,null,null,null,null,null,null,null,null,null,null,null,null,null,null,null,null,null,null,null,null,null,null,null,null,null,null,null,null,null,null,null,null,null,null,null,null,null,null,null,null,null,null,null,null,null,null,null,null,null,"Z723 ZZP 2zg-auditief incl.bh incl.db","Z723",479.71]
[null,null,null,null,null,null,null,null,null,null,null,null,null,null,null,null,null,null,null,null,null,null,null,null,null,null,null,null,null,null,null,null,null,null,null,null,null,null,null,null,null,null,null,null,null,null,null,null,null,null,"Z733 ZZP 3zg-auditief incl.bh incl.db","Z733",562.4]
[null,null,null,null,null,null,null,null,null,null,null,null,null,null,null,null,null,null,null,null,null,null,null,null,null,null,null,null,null,null,null,null,null,null,null,null,null,null,null,null,null,null,null,null,null,null,null,null,null,null,"Z743 ZZP 4zg-auditief incl.bh incl.db","Z743",362.49]
[null,null,null,null,null,null,null,null,null,null,null,null,null,null,null,null,null,null,null,null,null,null,null,null,null,null,null,null,null,null,null,null,null,null,null,null,null,null,null,null,null,null,null,null,null,null,null,null,null,null,"Z814 ZZP 1zg-visueel excl.db","Z814",126.16]
[null,null,null,null,null,null,null,null,null,null,null,null,null,null,null,null,null,null,null,null,null,null,null,null,null,null,null,null,null,null,null,null,null,null,null,null,null,null,null,null,null,null,null,null,null,null,null,null,null,null,"Z824 ZZP 2zg-visueel excl.db","Z824",180.88]
[null,null,null,null,null,null,null,null,null,null,null,null,null,null,null,null,null,null,null,null,null,null,null,null,null,null,null,null,null,null,null,null,null,null,null,null,null,null,null,null,null,null,null,null,null,null,null,null,null,null,"Z815 ZZP 1zg-visueel incl.db","Z815",192.44]
[null,null,null,null,null,null,null,null,null,null,null,null,null,null,null,null,null,null,null,null,null,null,null,null,null,null,null,null,null,null,null,null,null,null,null,null,null,null,null,null,null,null,null,null,null,null,null,null,null,null,"Z825 ZZP 2zg-visueel incl.db","Z825",238.25]
[null,null,null,null,null,null,null,null,null,null,null,null,null,null,null,null,null,null,null,null,null,null,null,null,null,null,null,null,null,null,null,null,null,null,null,null,null,null,null,null,null,null,null,null,null,null,null,null,null,null,"Z830 ZZP 3zg-visueel excl.bh excl.db","Z830",221.48]
[null,null,null,null,null,null,null,null,null,null,null,null,null,null,null,null,null,null,null,null,null,null,null,null,null,null,null,null,null,null,null,null,null,null,null,null,null,null,null,null,null,null,null,null,null,null,null,null,null,null,"Z840 ZZP 4zg-visueel excl.bh excl.db","Z840",278.70999999999998]
[null,null,null,null,null,null,null,null,null,null,null,null,null,null,null,null,null,null,null,null,null,null,null,null,null,null,null,null,null,null,null,null,null,null,null,null,null,null,null,null,null,null,null,null,null,null,null,null,null,null,"Z850 ZZP 5zg-visueel excl.bh excl.db","Z850",310.66000000000003]
[null,null,null,null,null,null,null,null,null,null,null,null,null,null,null,null,null,null,null,null,null,null,null,null,null,null,null,null,null,null,null,null,null,null,null,null,null,null,null,null,null,null,null,null,null,null,null,null,null,null,"Z831 ZZP 3zg-visueel excl.bh incl.db","Z831",277.26]
[null,null,null,null,null,null,null,null,null,null,null,null,null,null,null,null,null,null,null,null,null,null,null,null,null,null,null,null,null,null,null,null,null,null,null,null,null,null,null,null,null,null,null,null,null,null,null,null,null,null,"Z841 ZZP 4zg-visueel excl.bh incl.db","Z841",350.92]
[null,null,null,null,null,null,null,null,null,null,null,null,null,null,null,null,null,null,null,null,null,null,null,null,null,null,null,null,null,null,null,null,null,null,null,null,null,null,null,null,null,null,null,null,null,null,null,null,null,null,"Z851 ZZP 5zg-visueel excl.bh incl.db","Z851",382.48]
[null,null,null,null,null,null,null,null,null,null,null,null,null,null,null,null,null,null,null,null,null,null,null,null,null,null,null,null,null,null,null,null,null,null,null,null,null,null,null,null,null,null,null,null,null,null,null,null,null,null,"Z832 ZZP 3zg-visueel incl.bh excl.db","Z832",238.24]
[null,null,null,null,null,null,null,null,null,null,null,null,null,null,null,null,null,null,null,null,null,null,null,null,null,null,null,null,null,null,null,null,null,null,null,null,null,null,null,null,null,null,null,null,null,null,null,null,null,null,"Z842 ZZP 4zg-visueel incl.bh excl.db","Z842",307.23]
[null,null,null,null,null,null,null,null,null,null,null,null,null,null,null,null,null,null,null,null,null,null,null,null,null,null,null,null,null,null,null,null,null,null,null,null,null,null,null,null,null,null,null,null,null,null,null,null,null,null,"Z852 ZZP 5zg-visueel incl.bh excl.db","Z852",346.45]
[null,null,null,null,null,null,null,null,null,null,null,null,null,null,null,null,null,null,null,null,null,null,null,null,null,null,null,null,null,null,null,null,null,null,null,null,null,null,null,null,null,null,null,null,null,null,null,null,null,null,"Z833 ZZP 3zg-visueel incl.bh incl.db","Z833",294.55]
[null,null,null,null,null,null,null,null,null,null,null,null,null,null,null,null,null,null,null,null,null,null,null,null,null,null,null,null,null,null,null,null,null,null,null,null,null,null,null,null,null,null,null,null,null,null,null,null,null,null,"Z843 ZZP 4zg-visueel incl.bh incl.db","Z843",380.84]
[null,null,null,null,null,null,null,null,null,null,null,null,null,null,null,null,null,null,null,null,null,null,null,null,null,null,null,null,null,null,null,null,null,null,null,null,null,null,null,null,null,null,null,null,null,null,null,null,null,null,"Z853 ZZP 5zg-visueel incl.bh incl.db","Z853",420.43]
[]
[]
[]
[]
[]
[]
[]
[]
[]
[]
[]
[]
[]
[]
[]
[]
[]
[]
[]
[]
[]
[]
[]
[]
[]
[]
[]
[]
[]
[]
[]
[]
[]
[]
[]
[]
[]
[]
[]
[]
[]
[]
[]
[]
[]
[]
[]
[]
[]
[]
[]
[]
[]
[]
[]
[]
[]
[]
[]
[]
[]
[]
[]
[]
[]
[]
[]
[]
[]
[]
[]
[]
[]
[]
[]
[]
[]
[]
[]
[]
[]
[]
[]
[]
[]
[]
[]
[]
[]
[]
[]
[]
[]
[]
[]
[]
[]
[]
[]
[]
[]
[]
[]
[]
[]
[]
[]
[]
[]
[]
[]
[]
[]
[]
[]
[]
[]
[]
[]
[]
[]
[]
[]
[]
[]
[]
[]
[]
[]
[]
[]
[]
[]
[]
[]
[]
[]
[]
[]
[]
[]
[]
[]
[]
[]
[]
[]
[]
[]
[]
[]
[]
[]
[]
[]
[]
[]
[]
[]
[]
[]
[]
[]
[]
[]
[]
[]
[]
[]
[]
[]
[]
[]
[]
[]
[]
[]
[]
[]
[]
[]
[]
[null,null,null,null,null,null,null,null,null,null,null,null,null,null,null,null,null,null,null,null,null,null,null,null,null,null,null,null,null,null,null,null,null,null,null,null,null,null,null,null,null,null,null,null,null,null,null,null,null,null,null,null,null,0]
[null,null,null,null,null,null,null,null,null,null,null,null,null,null,null,null,null,null,null,null,null,null,null,null,null,null,null,null,null,null,null,null,null,null,null,null,null,null,null,null,null,null,null,null,null,null,null,null,null,null,null,null,null,0]
[]
[null,null,null,null,null,null,null,null,null,null,null,null,null,null,null,null,null,null,null,null,null,null,null,null,null,null,null,null,null,null,null,null,null,null,null,null,null,null,null,null,null,null,null,null,null,null,null,null,null,null,null,null,null,0]

{"sheet":"Deeltijd verblijf","index":2,"n_rows":109,"n_cols":24,"rows_kept":109,"cut":false,"hidden":true,"merged":[[17,5,17,6],[4,5,4,6],[6,5,6,6],[8,5,8,6],[13,5,13,6],[15,5,15,6]]}
[]
[null,null,null,null,null,null,null,null,null,null,null,null,"WEEK","DAG",null,{"$f":"VLOOKUP(F7,Tarieven_PGB0,15,FALSE)","v":{"$error":"#N/A"}},null,null,null,null,null,null,null,1]
["Aan te vragen deel verblijf",null,null,null,null,null,null,null,null,null,"Tarief MPT/PGB",null,{"$f":"VLOOKUP(F7,Tarieven_PGB0,15,0)","v":{"$error":"#N/A"}},{"$f":"M3/7","v":{"$error":"#N/A"}},null,null,null,null,null,null,null,null,null,2]
[null,null,null,null,null,null,null,null,null,null,"Tarief per week vbl",null,{"$f":"Rekenblad!FI7*Rekenblad!H1","v":0},{"$f":"M4/7","v":0},null,null,null,null,null,null,null,null,null,3]
["Wlz  sector (Som, PG, VG,LG of ZG)",null,null,null,null,{"$f":"Rekenblad!$G$8","v":0},null,null,null,null,"Dagbesteding","Per jaar",{"$f":"VLOOKUP(F7,Tarieven_PGB0,4,FALSE)","v":{"$error":"#N/A"}},{"$f":"M5/365","v":{"$error":"#N/A"}},"incl vervoer",null,null,null,null,null,null,null,null,3.5]
[null,null,null,null,null,null,null,null,null,null,"Dagbestedingdeel",7,{"$f":"N5*L6","v":{"$error":"#N/A"}},null,null,null,null,null,null,null,null,null,null,4]
["Geïndiceerd profiel",null,null,null,null,{"$f":"Rekenblad!$G$10","v":0},null,null,null,null,"MPT/PGB deel",{"$f":"7-F9","v":0},{"$f":"L7*N3","v":{"$error":"#N/A"}},null,null,null,null,null,null,null,null,null,null,4.5]
[null,null,null,null,null,null,null,null,null,null,"Verblijfdeel",{"$f":"F9","v":7},{"$f":"L8*N4","v":0}]
["Aantal etmalen verblijf",null,null,null,null,{"$f":"IF(Rekenblad!$I$6=\"\",7,Rekenblad!$I$6)","v":7},null,null,null,null,"Totaal week",{"$f":"SUM(L7:L8)","v":7},{"$f":"SUM(M6:M8)","v":{"$error":"#N/A"}}]
[]
[]
["Aan te vragen Logeren"]
[]
["Wlz  sector (Som, PG, VG,LG of ZG)",null,null,null,null,{"$f":"Rekenblad!$G$8","v":0},null,null,null,null,"Sector",{"$f":"RIGHT(F16,2)","v":"0"},{"$f":"VLOOKUP(L14,T20:W26,4,0)","v":{"$error":"#N/A"}}]
[null,null,null,null,null,null,null,null,null,null,"Bedrag logeren",null,{"$f":"F18*M14","v":{"$error":"#N/A"}}]
["Geïndiceerd profiel",null,null,null,null,{"$f":"Rekenblad!$G$10","v":0},null,null,null,null,"Bedrag MPT",null,{"$f":"M7","v":{"$error":"#N/A"}}]
[null,null,null,null,null,null,null,null,null,null,"Totaal week ",null,{"$f":"SUM(M15:M16)","v":{"$error":"#N/A"}}]
["Aantal etmalen verblijf",null,null,null,null,{"$f":"IF(Rekenblad!$I$6=\"\",7,Rekenblad!$I$6)","v":7}]
[]
[null,null,null,null,null,null,null,null,null,null,null,null,null,null,null,null,null,null,null,"LG","Z1000 Logeren GHZ-LG ","Z1000",0]
[null,null,null,null,null,null,null,null,null,null,null,null,null,null,null,null,null,null,null,"LVG","Z1001 Logeren GHZ-LVG ","Z1001",0]
[null,null,null,null,null,null,null,null,null,null,null,null,null,null,null,null,null,null,null,"IS","Z1002 Logeren GHZ-ZG ","Z1002",0]
[null,null,null,null,null,null,null,null,null,null,null,null,null,null,null,null,null,null,null,"VV","Z1003 Logeren VV ","Z1003",0]
[null,null,null,null,null,null,null,null,null,null,null,null,null,null,null,null,null,null,null,"VG","Z999 Logeren GHZ-VG ","Z999",0]
[null,null,null,null,null,null,null,null,null,null,null,null,null,null,null,null,null,null,null,"Vb","Z1003 Logeren VV ","Z1003",0]
[null,null,null,null,null,null,null,null,null,null,null,null,null,null,null,null,null,null,null,"UD","Z1002 Logeren GHZ-ZG ","Z1002",0]
[]
[]
[]
[]
[]
[]
[]
[]
[]
[]
[]
[]
[]
[]
[]
[]
[]
[null,null,null,null,null,null,null,null,null,null,null,null,null,null,null,null,9,"Dagdelen"]
[]
[null,null,null,null,"Z015 ZZP 1vv incl.db",null,{"$f":"VLOOKUP(E46,Tarieven_ZZP1,7,0)","v":120.27},null,null,null,"Z015 ZZP 1vv incl.db",null,{"$f":"VLOOKUP(K46,Tarieven_ZZP1,7,0)","v":120.27},{"$f":"M46*7","v":841.89},"H531",0,{"$f":"P46*$Q$44","v":0},{"$f":"Q46+N46","v":841.89},null,"Z015 ZZP 1vv incl.db"]
[null,null,null,null,"Z025 ZZP 2vv incl.db",null,154.76,null,null,null,"Z025 ZZP 2vv incl.db",null,154.76,{"$f":"M47*7","v":1083.32},"H531",0,{"$f":"P47*$Q$44","v":0},{"$f":"Q47+N47","v":1083.32},null,"Z025 ZZP 2vv incl.db"]
[null,null,null,null,"Z031 ZZP 3vv excl.bh incl.db",null,193.19,null,null,null,"Z031 ZZP 3vv excl.bh incl.db",null,193.19,1352.33,"H531",0,0,1352.33,null,"Z031 ZZP 3vv excl.bh incl.db"]
[null,null,null,null,"Z041 ZZP 4vv excl.bh incl.db",null,184.9,null,null,null,"Z041 ZZP 4vv excl.bh incl.db",null,184.9,1294.3,"H531",0,0,1294.3,null,"Z041 ZZP 4vv excl.bh incl.db"]
[null,null,null,null,"Z051 ZZP 5vv excl.bh incl.db",null,326.58,null,null,null,"Z051 ZZP 5vv excl.bh incl.db",null,326.58,2286.06,"H531",0,0,2286.06,null,"Z051 ZZP 5vv excl.bh incl.db"]
[null,null,null,null,"Z061 ZZP 6vv excl.bh incl.db",null,300.56,null,null,null,"Z061 ZZP 6vv excl.bh incl.db",null,300.56,2103.92,"H531",0,0,2103.92,null,"Z061 ZZP 6vv excl.bh incl.db"]
[null,null,null,null,"Z071 ZZP 7vv excl.bh incl.db",null,386.15,null,null,null,"Z071 ZZP 7vv excl.bh incl.db",null,386.15,2703.0499999999997,"H531",0,0,2703.0499999999997,null,"Z071 ZZP 7vv excl.bh incl.db"]
[null,null,null,null,"Z081 ZZP 8vv excl.bh incl.db",null,502.45,null,null,null,"Z081 ZZP 8vv excl.bh incl.db",null,502.45,3517.15,"H531",0,0,3517.15,null,"Z081 ZZP 8vv excl.bh incl.db"]
[null,null,null,null,"Z095 ZZP 9bvv excl.bh incl.db",null,284.70999999999998,null,null,null,"Z095 ZZP 9bvv excl.bh incl.db",null,284.70999999999998,1992.9699999999998,"H531",0,0,1992.9699999999998,null,"Z095 ZZP 9bvv excl.bh incl.db"]
[null,null,null,null,"Z101 ZZP 10vv excl.bh incl.db",null,586.23,null,null,null,"Z101 ZZP 10vv excl.bh incl.db",null,586.23,4103.6100000000006,"H531",0,0,4103.6100000000006,null,"Z101 ZZP 10vv excl.bh incl.db"]
[null,null,null,null,"Z414 ZZP 1vg excl.db",null,99.26,null,null,null,"Z414 ZZP 1vg excl.db",null,99.26,694.82,"H811",-8,{"$f":"P56*$Q$44","v":-72},622.82000000000005,null,"Z415 ZZP 1vg incl.db"]
[null,null,null,null,"Z415 ZZP 1vg incl.db",null,155.28,null,null,null,"Z424 ZZP 2vg excl.db",null,115.8,810.6,"H811",-7,-63,747.6,null,"Z425 ZZP 2vg incl.db"]
[null,null,null,null,"Z424 ZZP 2vg excl.db",null,115.8,null,null,null,"Z430 ZZP 3vg excl.bh excl.db",null,153.97999999999999,1077.8599999999999,"H811",-6,-54,1023.8599999999999,null,"Z431 ZZP 3vg excl.bh incl.db"]
[null,null,null,null,"Z425 ZZP 2vg incl.db",null,172.91,null,null,null,"Z440 ZZP 4vg excl.bh excl.db",null,187.65,1313.55,"H811",-5,-45,1268.55,null,"Z441 ZZP 4vg excl.bh incl.db"]
[null,null,null,null,"Z430 ZZP 3vg excl.bh excl.db",null,153.97999999999999,null,null,null,"Z454 ZZP 5vg excl.bh excl.db",null,227.47,1592.29,"H812",-4,-36,1556.29,null,"Z455 ZZP 5vg excl.bh incl.db"]
[null,null,null,null,"Z431 ZZP 3vg excl.bh incl.db",null,207.14,null,null,null,"Z460 ZZP 6vg excl.bh excl.db",null,198.55,1389.8500000000001,"H812",-3,-27,1362.8500000000001,null,"Z461 ZZP 6vg excl.bh incl.db"]
[null,null,null,null,"Z440 ZZP 4vg excl.bh excl.db",null,187.65,null,null,null,"Z470 ZZP 7vg excl.bh excl.db",null,247.4,1731.8,"H813",-2,-18,1713.8,null,"Z471 ZZP 7vg excl.bh incl.db"]
[null,null,null,null,"Z441 ZZP 4vg excl.bh incl.db",null,241.26,null,null,null,"Z480 ZZP 8vg excl.bh excl.db",null,269.39,1885.73,"H813",-1,-9,1876.73,null,"Z481 ZZP 8vg excl.bh incl.db"]
[null,null,null,null,"Z454 ZZP 5vg excl.bh excl.db",null,227.47,null,null,null,"Z513 ZZP 1lvg incl.bh incl.db",null,264.35000000000002,1850.4500000000003,"nvt",0,0,1850.4500000000003,null,"Z513 ZZP 1lvg incl.bh incl.db"]
[null,null,null,null,"Z455 ZZP 5vg excl.bh incl.db",null,297.77999999999997,null,null,null,"Z523 ZZP 2lvg incl.bh incl.db",null,317.67,2223.69,"nvt",0,0,2223.69,null,"Z523 ZZP 2lvg incl.bh incl.db"]
[null,null,null,null,"Z460 ZZP 6vg excl.bh excl.db",null,198.55,null,null,null,"Z533 ZZP 3lvg incl.bh incl.db",null,414.68,2902.76,"nvt",0,0,2902.76,null,"Z533 ZZP 3lvg incl.bh incl.db"]
[null,null,null,null,"Z461 ZZP 6vg excl.bh incl.db",null,267.52999999999997,null,null,null,"Z543 ZZP 4lvg incl.bh incl.db",null,477.32,3341.24,"nvt",0,0,3341.24,null,"Z543 ZZP 4lvg incl.bh incl.db"]
[null,null,null,null,"Z470 ZZP 7vg excl.bh excl.db",null,247.4,null,null,null,"Z553 ZZP 5lvg incl.bh incl.db",null,455.6,3189.2000000000003,"nvt",0,0,3189.2000000000003,null,"Z553 ZZP 5lvg incl.bh incl.db"]
[null,null,null,null,"Z471 ZZP 7vg excl.bh incl.db",null,326.08,null,null,null,"Z573 ZZP 1sglvg incl.bh incl.db",null,536.82000000000005,3757.7400000000002,"nvt",0,0,3757.7400000000002,null,"Z573 ZZP 1sglvg incl.bh incl.db"]
[null,null,null,null,"Z480 ZZP 8vg excl.bh excl.db",null,269.39,null,null,null,"Z614 ZZP 1lg excl.db",null,142.30000000000001,996.10000000000014,"H833",0,0,996.10000000000014,null,"Z615 ZZP 1lg incl.db"]
[null,null,null,null,"Z481 ZZP 8vg excl.bh incl.db",null,365.96,null,null,null,"Z624 ZZP 2lg excl.db",null,181.64,1271.48,"H832",0,0,1271.48,null,"Z625 ZZP 2lg incl.db"]
[null,null,null,null,"Z513 ZZP 1lvg incl.bh incl.db",null,264.35000000000002,null,null,null,"Z630 ZZP 3lg excl.bh excl.db",null,150.1,1050.7,"H833",0,0,1050.7,null,"Z631 ZZP 3lg excl.bh incl.db"]
[null,null,null,null,"Z523 ZZP 2lvg incl.bh incl.db",null,317.67,null,null,null,"Z640 ZZP 4lg excl.bh excl.db",null,216.78,1517.46,"H832",0,0,1517.46,null,"Z641 ZZP 4lg excl.bh incl.db"]
[null,null,null,null,"Z533 ZZP 3lvg incl.bh incl.db",null,414.68,null,null,null,"Z650 ZZP 5lg excl.bh excl.db",null,215.97,1511.79,"H832",0,0,1511.79,null,"Z651 ZZP 5lg excl.bh incl.db"]
[null,null,null,null,"Z543 ZZP 4lvg incl.bh incl.db",null,477.32,null,null,null,"Z660 ZZP 6lg excl.bh excl.db",null,305.87,2141.09,"H832",0,0,2141.09,null,"Z661 ZZP 6lg excl.bh incl.db"]
[null,null,null,null,"Z553 ZZP 5lvg incl.bh incl.db",null,455.6,null,null,null,"Z670 ZZP 7lg excl.bh excl.db",null,330,2310,"H831",0,0,2310,null,"Z671 ZZP 7lg excl.bh incl.db"]
[null,null,null,null,"Z573 ZZP 1sglvg incl.bh incl.db",null,536.82000000000005,null,null,null,"Z710 ZZP 1zg-auditief excl.bh excl.db",null,204.64,1432.48,"H851",0,0,1432.48,null,"Z711 ZZP 1zg-auditief excl.bh incl.db"]
[null,null,null,null,"Z614 ZZP 1lg excl.db",null,{"$f":"VLOOKUP(E78,Tarieven_ZZP1,7,0)","v":142.30000000000001},null,null,null,"Z740 ZZP 4zg-auditief excl.bh excl.db",null,246.52,1725.64,"H851",0,0,1725.64,null,"Z741 ZZP 4zg-auditief excl.bh incl.db"]
[null,null,null,null,"Z615 ZZP 1lg incl.db",null,208.75,null,null,null,"Z720 ZZP 2zg-auditief excl.bh excl.db",null,379.77,2658.39,"H852",0,0,2658.39,null,"Z721 ZZP 2zg-auditief excl.bh incl.db"]
[null,null,null,null,"Z624 ZZP 2lg excl.db",null,181.64,null,null,null,"Z730 ZZP 3zg-auditief excl.bh excl.db",null,428.39,2998.73,"H853",0,0,2998.73,null,"Z731 ZZP 3zg-auditief excl.bh incl.db"]
[null,null,null,null,"Z625 ZZP 2lg incl.db",null,242.15,null,null,null,"Z814 ZZP 1zg-visueel excl.db",null,126.16,883.12,"H872",0,0,883.12,null,"Z815 ZZP 1zg-visueel incl.db"]
[null,null,null,null,"Z630 ZZP 3lg excl.bh excl.db",null,150.1,null,null,null,"Z824 ZZP 2zg-visueel excl.db",null,180.88,1266.1599999999999,"H871",0,0,1266.1599999999999,null,"Z825 ZZP 2zg-visueel incl.db"]
[null,null,null,null,"Z631 ZZP 3lg excl.bh incl.db",null,217.71,null,null,null,"Z830 ZZP 3zg-visueel excl.bh excl.db",null,221.48,1550.36,"H871",0,0,1550.36,null,"Z831 ZZP 3zg-visueel excl.bh incl.db"]
[null,null,null,null,"Z640 ZZP 4lg excl.bh excl.db",null,216.78,null,null,null,"Z840 ZZP 4zg-visueel excl.bh excl.db",null,278.70999999999998,1950.9699999999998,"H873",0,0,1950.9699999999998,null,"Z841 ZZP 4zg-visueel excl.bh incl.db"]
[null,null,null,null,"Z641 ZZP 4lg excl.bh incl.db",null,275.3,null,null,null,"Z850 ZZP 5zg-visueel excl.bh excl.db",null,310.66000000000003,2174.6200000000003,"H873",0,0,2174.6200000000003,null,"Z851 ZZP 5zg-visueel excl.bh incl.db"]
[null,null,null,null,"Z650 ZZP 5lg excl.bh excl.db",null,215.97]
[null,null,null,null,"Z651 ZZP 5lg excl.bh incl.db",null,284.72000000000003]
[null,null,null,null,"Z660 ZZP 6lg excl.bh excl.db",null,305.87]
[null,null,null,null,"Z661 ZZP 6lg excl.bh incl.db",null,361.98]
[null,null,null,null,"Z670 ZZP 7lg excl.bh excl.db",null,330]
[null,null,null,null,"Z671 ZZP 7lg excl.bh incl.db",null,385.12]
[null,null,null,null,"Z710 ZZP 1zg-auditief excl.bh excl.db",null,204.64]
[null,null,null,null,"Z711 ZZP 1zg-auditief excl.bh incl.db",null,251.45]
[null,null,null,null,"Z740 ZZP 4zg-auditief excl.bh excl.db",null,246.52]
[null,null,null,null,"Z741 ZZP 4zg-auditief excl.bh incl.db",null,322.22000000000003]
[null,null,null,null,"Z720 ZZP 2zg-auditief excl.bh excl.db",null,379.77]
[null,null,null,null,"Z721 ZZP 2zg-auditief excl.bh incl.db",null,440]
[null,null,null,null,"Z730 ZZP 3zg-auditief excl.bh excl.db",null,428.39]
[null,null,null,null,"Z731 ZZP 3zg-auditief excl.bh incl.db",null,480.25]
[null,null,null,null,"Z814 ZZP 1zg-visueel excl.db",null,126.16]
[null,null,null,null,"Z815 ZZP 1zg-visueel incl.db",null,192.44]
[null,null,null,null,"Z824 ZZP 2zg-visueel excl.db",null,180.88]
[null,null,null,null,"Z825 ZZP 2zg-visueel incl.db",null,238.25]
[null,null,null,null,"Z830 ZZP 3zg-visueel excl.bh excl.db",null,221.48]
[null,null,null,null,"Z831 ZZP 3zg-visueel excl.bh incl.db",null,277.26]
[null,null,null,null,"Z840 ZZP 4zg-visueel excl.bh excl.db",null,278.70999999999998]
[null,null,null,null,"Z841 ZZP 4zg-visueel excl.bh incl.db",null,350.92]
[null,null,null,null,"Z850 ZZP 5zg-visueel excl.bh excl.db",null,310.66000000000003]
[null,null,null,null,"Z851 ZZP 5zg-visueel excl.bh incl.db",null,382.48]

{"sheet":"Werkwijze rekenmodule","index":3,"n_rows":32,"n_cols":1,"rows_kept":32,"cut":false,"hidden":false,"merged":[]}
["A. Werkwijze inclusief veranderingen ten opzichte van huidige versie i.v.m DTV"]
["1. In de rekenmodule iWlz  is bij Aan te vragen zorg  nu \"Deeltijd verblijf icm zorg thuis\" toegevoegd "]
["2. Als voor deeltijdverblijf gekozen wordt, dan wordt het totale doelmatigheidsbedrag weergegeven voor het totaal aan DTV en zorg thuis. De doelmatigheid DTV wordt getoetst tegen deze totale ruimte. Deze ruimte is afhankelijk van de verdeling van het aantal etmalen DTV en zorg thuis (3 ½, 4, 4 ½). "]
["3. De rekenmodule toont het 100% basisbudget voor zorg thuis. Dit wordt voor DTV gebruikt om de aan te vragen percentages te berekenen. Zowel DTV als de zorg thuis wordt uitgedrukt als percentage van het reguliere basisbudget voor zorg thuis (MPT/pgb budget)."]
["4. De rekenmodule toont de verdeling van percentages over de betrokken AGB codes en over de zorgtoewijzing Opname Ja en Opname Nee."]
["5. De aanbieder die de zorg thuis levert krijgt het percentage toegewezen voor de zorg thuis (DTV opname Nee). De aanbieder die het verblijf levert, krijgt de toewijzing voor verblijf (DTV opname Ja). Als 1 aanbieder zowel de zorg thuis als het verblijf levert (bijv. week op week af bij zelfde aanbieder) dan krijgt de verblijfsaanbieder het totale percentage toegewezen via DTV opname Ja.  Vanuit de toewijzing DTV opname Ja levert de verblijfsaanbieder ook de zorg thuis."]
["6. De rekenmodule toont of de kosten van BH, BHGRP en/of BGGRP het basisbudget voor BH en BGGRP overschrijdt. Hiermee kan gecontroleerd worden of de overschrijding van EKT aangevraagd kan worden als maatwerktoeslag \"Overig - Extra Behandeling\" of dat meerzorg aangevraagd moet worden. Het basisbudget BGGRP komt uit de PGB tarieventabel."]
["7. Het gebruik van de Rekenmodule (jaar t of jaar t-1) wordt bepaald door het jaartal in de ingangsdatum van de zorgtoewijzing.\nVB. Is de ingangsdatum van de zorgtoewijzing 12 december 2023, dan wordt de Rekenmodule 2023 gebruikt. Is de ingangsdatum van de zorgtoewijzing 3 januari 2024 dan is de Rekenmodule 2024 van toepassing."]
[]
["B. Rekenregels alle leveringsvormen"]
["1.       Per leveringsvorm Verblijf, VPT, MPT /PGB toont de rekenmodule of er sprake is van (on)doelmatige zorg. "]
["a.       Verblijf: percentages worden berekend op basis van het ZZP tarief incl. BG incl. BH (tarieven uit NZa beleidsregel ZZP). Toeslagen worden niet via iWlz aangevraagd, en niet in percentage berekend. Percentages worden alleen gebruikt om aan te geven dat er verdeling is over verblijf en dagbesteding. Voor verblijf is er geen toetsing op doelmatigheid. "]
["b.      VPT : het VPT tarief incl. BGG incl. BH (tarieven uit NZa beleidsregel VPT). Toeslagen worden niet via iWlz aangevraagd, en niet in percentage berekend."]
["c.       DTV: de totale ruimte voor DTV wordt als volgt berekend. Het DTV tarief maal het aantal etmalen DTV, plus  het pgb tarief (incl vervoer) maal het aantal etmalen thuis. Het DTV tarief is altijd exclusief BH. Voor de V&V zijn de DTV prestaties inclusief BGGRP. Alle BH (V&V en GZ) en de BGGRP (GZ), ook tijdens het verblijf, wordt als zorg thuis gedeclareerd. En wordt niet gecorrigeerd voor het aantal etmalen thuis. De ruimte voor BH is hetzelfde als voor MPT en VPT. Het basisbudget voor BGGRP (GZ) komt uit de ZZPtabel voor pgb en is gelijk aan de pgb ruimte voor BGGRP. Zie ook punt 6. hierboven."]
["d.       MPT/pgb: het pgb tarief incl. vervoer (PGB tarieven per ZZP uit ZINL tabel). Dus zonder BH."]
["2.       Het extra budget dat bovenop de 100% berekend wordt, betreft alleen vormen van extra budget of bijzondere situaties die deelbaar zijn over meerdere aanbieders en/of over MPT en pgb."]
["a. Verblijf en VPT:  geen extra budget van toepassing. 100% is maximum percentage."]
["b. DTV: extra budget wordt alleen berekend over het zorg thuis deel en niet over het DTV deel. Voor zorg thuis gelden dezelfde bijzondere situaties (extra budget) als voor MPT"]
["c. MPT: EKT, PTZ, invasieve en noninvasieve beademing, meerzorg, (extra) BH, GVP, Overig. BH mag niet gedeeld worden met pgb. Zie verder het Voorschrift voor de werkwijze rondom toeslagen thuis inclusief de 2 nieuwe maatwerktoeslagen ivm dure BGGRP, BH en BHGRP"]
["d. MPT/Pgb combinatie:  EKT, PTZ, invasieve en noninvasieve beademing, meerzorg,  GVP, Overig.  Zie verder het Voorschrift voor de werkwijze rondom toeslagen thuis inclusief de 2 nieuwe maatwerktoeslagen ivm dure BGGRP, BH en BHGRP. De toeslagen Woontoeslag, Persoonlijk assistentiebudget, kleinschalige woonvoorziening worden niet meegenomen in de pgb ruimte"]
["3.       De volgende bedragen worden überhaupt niet in de berekening van het percentage meegenomen: dit betreft de bedragen die niet deelbaar zijn over meerdere aanbieders of over ZIN en pgb, of toeslagen die via een andere aparte prestatie (bijv. meerzorg intramuraal) gedeclareerd worden."]
["a.       Verblijf en VPT: de aparte toeslagprestaties die bovenop het standaardtarief gedeclareerd kunnen worden. Bijv. vervoer, meerzorg"]
["b.      DTV: de aparte toeslagprestaties die bovenop het standaardtarief DTV gedeclareerd kunnen worden. Bijv. vervoer, meerzorg"]
["c.      MPT:  geen uitzondering. BH en ademhalingsondersteuning zijn meegenomen in percentage omdat ze deelbaar zijn over meerdere aanbieders."]
["d.       Pgb: de aparte toeslagen die niet voor MPT van toepassing zijn. Dit betreft budgetgarantie, toeslag wooninitiatief, persoonlijke assistentiebudget en de herberekening op basis van het aanvaarbaarheidspercentage."]
["4. Voor alle in de rekenmodule gebruikte NZa tarieven rekent de rekenmodule met 96,4% van het landelijk tarief."]
["5. Voor DTV toont de rekenmodule alle NZa prestaties die als DTV gedeclareerd mogen worden (NZa beleidsregel ZZP). Deze prestaties zijn altijd excl BGG en excl BH. De zorg thuis en alle BGGRP en BH wordt altijd gedeclareerd als extramurale prestaties (beleidsregel modulaire zorg), ook de BGGRP en BH die tijdens het verblijf gedeclareerd.  Deze zijn onderdeel van MPT (BGGRP, BH en BHGRP) en pgb (alleen BGGRP) percentage."]
["6. Voor alle leveringsvormen wordt voor de berekening van het percentage uitgegaan van 100% van het basisbudget behorend bij het geïndiceerde ZZP, en dus niet van het sectorvreemde ZZP.  "]
["7. Het budget dat extra beschikbaar is voor BH naast zorg thuis en DTV is gemaximeerd op het verschil tussen het tarief voor het VPT inclusief BH minus het tarief voor het VPT exclusief BH. Betreft de VPT tarieven excl dagbesteding (NZa beleidsregel VPT)."]
["8. De EKT wordt berekend over het basisbudget voor zorg thuis (exclusief BH). Indien er BH (altijd natura) wordt geleverd, dan wordt EKT ook over het BH budget berekend. Het maximale percentage EKT  over het basisbudget is 125% (excl BH). Voor DTV wordt de EKT berekend over het basisbudget voor het zorg thuis deel, dus inclusief het weekbudget voor BH en BGGRP."]
["8. De hoogte van de toeslagen invasieve en non-invasieve ademhalingsondersteuning voor zorg thuis zijn gemaximeerd op de intramurale toeslag invasieve of noninvasieve ademhalingsondersteuning (NZa beleidsregels ZZP)."]
["9. Er zijn 3 afwijkingen tussen berekenen van doelmatigheid in de rekenmodule en bij de monitoring achteraf van de totale gedeclareerde kosten van zorg thuis. Vervoer wordt (nog) niet meegenomen in het percentage in de rekenmodule. Dit geldt ook voor het extra etmaal logeren dat op vertrekdatum mag worden gedeclareerd, en ook voor  de dagbesteding die in specifieke gevallen bovenop het logeren mag worden gedeclareerd. Hierdoor kunnen percentages afwijken van werkelijke kosten. "]

{"sheet":"Meerzorg onderbouwing","index":4,"n_rows":108,"n_cols":22,"rows_kept":108,"cut":false,"hidden":false,"merged":[[18,1,32,10],[35,1,47,10],[54,1,67,10],[1,8,3,11]]}
["Onderbouwing extreme zorgzwaarte"]
[null,"Uren zorg (PV, VP en Bgind)",null,null,null,{"$f":"P5","v":0},"per week",null,null,null,null,null,null,null,"PV",{"$f":"SUMIF(Rekenblad!$B$17:$B$31,\"PV\",Rekenblad!$F$17:$F$31)","v":0},null,"BGgrp",{"$f":"SUMIF(Rekenblad!$B$17:$B$31,\"BGgrp\",Rekenblad!$F$17:$F$31)","v":0},null,null,{"$f":"F5-K5","v":0}]
[null,"Uren dagbesteding",null,null,null,{"$f":"S2","v":0},"per week",null,null,null,null,null,null,null,"VP",{"$f":"SUMIF(Rekenblad!$B$17:$B$31,\"VP\",Rekenblad!$F$17:$F$31)","v":0},null,"BHgrp",{"$f":"SUMIF(Rekenblad!$B$17:$B$31,\"BHgrp\",Rekenblad!$F$17:$F$31)","v":0}]
[null,"Uren behandeling",null,null,null,{"$f":"S5","v":0},"per week",null,null,null,null,null,null,null,"Bgind",{"$f":"SUMIF(Rekenblad!$B$17:$B$31,\"BGind\",Rekenblad!$F$17:$F$31)","v":0},null,"Bhind",{"$f":"SUMIF(Rekenblad!$B$17:$B$31,\"BHind\",Rekenblad!$F$17:$F$31)","v":0},{"$f":"S4/60","v":0},null,{"$f":"IF(V2<=0,1,2)","v":1}]
[null,"Totale inzet uren",null,null,null,{"$f":"SUM(F2:F4)","v":0},null,"Gemiddeld uren uit het ZZP",null,null,{"$f":"Rekenblad!EC6/7*(7-Rekenblad!I6)","v":0},"(uren *25%)",null,null,null,{"$f":"SUM(P2:P4)/60","v":0},null,null,{"$f":"T4+S3","v":0},null,null,{"$f":"IF(Rekenblad!Q24=\"meerzorg\",5,6)","v":6}]
[null,null,null,null,null,null,null,null,null,null,null,null,null,null,null,null,null,null,null,null,null,{"$f":"SUM(V4:V5)","v":7}]
["Reden extreme zorgzwaarte"]
[null,null,null,"Gedragsproblematiek",null,null,"CCE advies moet worden aangevraagd door zorgaanbieder",null,null,null,null,null,null,{"$f":"IF(B8=\"X\",1,0)","v":0}]
[null,null,null,"Somatische problematiek",null,null,null,null,null,null,null,null,null,{"$f":"IF(B9=\"X\",1,0)","v":0},null,null,{"$f":"SUM(N8:N9)","v":0},{"$f":"IF(Q9=0,\"X\",\"\")","v":"X"}]
[]
[]
["Is er sprake van een kortdurende of langdurige noodzaak tot meerzorg ",null,null,null,null,null,null,null,null,null,null,null,null,{"$f":"IF(B13=\"X\",1,0)","v":0}]
[null,null,null,"Kortdurend (max 6 maanden) ( alleen mogelijk bij VG)",null,null,null,null,null,null,null,null,null,{"$f":"IF(B14=\"X\",1,0)","v":0},null,null,{"$f":"SUM(N12:N14)","v":0},{"$f":"IF(Q13=0,\"X\",\"\")","v":"X"}]
[null,null,null,"Regulier VV en GGZ ",null,null,null,null,null,null,null,null,null,{"$f":"IF(B15=\"X\",1,0)","v":0}]
[null,null,null,"Regulier VG"]
[]
[]
["Omschrijving extreme zorgzwaarte",null,null,null,null,null,null,null,null,null,null,null,null,null,null,null,null,null,0]
[null,null,null,null,null,null,null,null,null,null,null,null,null,null,null,null,null,null,1]
[null,null,null,null,null,null,null,null,null,null,null,null,null,null,null,null,null,null,{"$f":"Q9","v":0}]
[null,null,null,null,null,null,null,null,null,null,null,null,null,null,null,null,null,null,{"$f":"SUM(S18:S20)","v":1}]
[]
[]
[]
[]
[]
[]
[]
[]
[]
[]
[]
[]
[]
["Professionele blik: omschrijving problematiek/beperkingen vanuit oogpunt van de professional"]
[]
[]
[]
[]
[]
[]
[]
[]
[]
[]
[]
[]
[]
[]
[]
[]
[]
[]
["Gestelde doelen waaraan gewerkt wordt"]
[]
[]
[]
[]
[]
[]
[]
[]
[]
[]
[]
[]
[]
[]
[]
[]
[]
[]
[]
[]
[]
[]
[]
[]
[]
[]
[]
[]
[]
[]
[]
[]
[]
[]
[]
[]
[]
[]
[]
[]
[]
[]
[]
[]
[]
[]
[]
[]
[]
[]
[]
[]
[]
[null,null,null,null,null,"(Overig, vul hier tekst in)"]

{"sheet":"PGB tarieven","index":5,"n_rows":51,"n_cols":15,"rows_kept":51,"cut":false,"hidden":false,"merged":[]}
["Bijlage H. Tarieventabel persoonsgebonden budget-Wlz 2024"]
[]
["ZZP","ZZP",null,null,null,null,null,null,null,null,null,null," Totaal jaarbasis",null,"Totaal weekbasis"]
[null,"code"]
[]
["VV",null,"BEG IND","BEG GR","HH","VP","PV",null,"Totaal jaarbasis"]
["1VV",750,7953,0,4480,5132,1998,null,19563,null,null,null,{"$f":"I7","v":19563},null,{"$f":"M7/365*7","v":375.1808219178082}]
["2VV",751,2652,0,4480,10263,10971,null,28366,null,null,null,28366,null,544.00547945205471]
["3VV",752,7953,0,4480,5132,16965,null,34530,null,null,null,34530,null,662.21917808219177]
["4VV",753,14557,0,4480,10263,16965,null,46265,null,null,null,46265,null,887.27397260273983]
["5VV",754,22510,0,4480,18817,16965,null,62772,null,null,null,62772,null,1203.8465753424657]
["6VV",755,22510,0,4480,18817,16965,null,62772,null,null,null,62772,null,1203.8465753424657]
["7VV",756,38369,0,4480,18817,16965,null,78631,null,null,null,78631,null,1507.9917808219179]
["8VV",757,47623,0,4480,18817,22924,null,93844,null,null,null,93844,null,1799.7479452054793]
["9VVb",191,null,null,null,null,null,null,60178,null,null,null,60178,null,1154.0986301369862]
["10VV",759,null,null,null,null,null,null,102230,null,null,null,102230,null,1960.5753424657535]
["1GGZ-W",880,30414,14646,4480,1709,1997,null,53246,null,null,null,53246,null,1021.1561643835616]
["2GGZ-W",882,22510,14646,4480,5132,10971,null,57739,null,null,null,57739,null,1107.3232876712329]
["3GGZ-W",884,30414,18313,4480,5132,5994,null,64333,null,null,null,64333,null,1233.7835616438356]
["4GGZ-W",886,30414,14646,4480,10263,16965,null,76768,null,null,null,76768,null,1472.2630136986302]
["5GGZ-W",888,47623,18313,4480,10263,10971,null,91650,null,null,null,91650,null,1757.6712328767123]
["1LVG",780,22510,3663,4480,0,5994,null,36647,null,null,null,36647,null,702.81917808219168]
["2LVG",781,38369,3663,4480,0,5994,null,52506,null,null,null,52506,null,1006.9643835616438]
["3LVG",782,null,3225,null,null,null,null,62341,null,null,null,62341,null,1195.5808219178082]
["4LVG",783,null,6452,null,null,null,null,80878,null,null,null,80878,null,1551.0849315068494]
["5LVG",784,null,6452,null,null,null,null,80878,null,null,null,80878,null,1551.0849315068494]
["1SGLVG",790,null,9679,null,null,null,null,72737,null,null,null,72737,null,1394.9561643835616]
["1VG",800,14557,18313,4480,0,5994,null,43344,null,null,null,43344,null,831.25479452054799]
["2VG",802,22510,18313,4480,0,5994,null,51297,null,null,null,51297,null,983.77808219178075]
["3VG",804,30414,21581,4480,0,1998,null,58473,null,null,null,58473,null,1121.3999999999999]
["4VG",806,30414,21581,4480,1709,5994,null,64178,null,null,null,64178,null,1230.8109589041096]
["5VG",808,30414,24853,4480,5132,16965,null,81844,null,null,null,81844,null,1569.6109589041096]
["6VG",810,38369,28125,4480,0,5994,null,76968,null,null,null,76968,null,1476.0986301369862]
["7VG",812,47623,31395,4480,1709,16965,null,102172,null,null,null,102172,null,1959.46301369863]
["8VG",814,14557,24853,4480,10263,35895,null,90048,null,null,null,90048,null,1726.9479452054795]
["1LG",820,22510,21581,4480,1709,5994,null,56274,null,null,null,56274,null,1079.2273972602741]
["2LG",822,22510,21581,4480,1709,16965,null,67245,null,null,null,67245,null,1289.6301369863013]
["3LG",824,14557,24853,4480,1709,16965,null,62564,null,null,null,62564,null,1199.8575342465754]
["4LG",826,22510,21581,4480,1709,16965,null,67245,null,null,null,67245,null,1289.6301369863013]
["5LG",828,22510,24853,4480,5132,22924,null,79899,null,null,null,79899,null,1532.3095890410959]
["6LG",830,22510,21581,4480,10263,28919,null,87753,null,null,null,87753,null,1682.9342465753425]
["7LG",832,30414,18313,4480,10263,28919,null,92389,null,null,null,92389,null,1771.8438356164384]
["1ZGvis",840,14557,21581,4480,0,5994,null,46612,null,null,null,46612,null,893.92876712328768]
["2ZGvis",842,30414,18313,4480,0,5994,null,59201,null,null,null,59201,null,1135.3616438356166]
["3ZGvis",844,30414,18313,4480,5132,10971,null,69310,null,null,null,69310,null,1329.2328767123288]
["4ZGvis",846,30414,24853,4480,5132,28919,null,93798,null,null,null,93798,null,1798.8657534246574]
["5ZGvis",848,38369,24853,4480,5132,28919,null,101753,null,null,null,101753,null,1951.4273972602737]
["1ZGaud",850,30414,28125,4480,0,1998,null,65017,null,null,null,65017,null,1246.9013698630138]
["2ZGaud",852,47623,31395,4480,10263,22924,null,116685,null,null,null,116685,null,2237.794520547945]
["3ZGaud",854,47623,31395,4480,18817,35895,null,138210,null,null,null,138210,null,2650.6027397260273]
["4ZGaud",856,47623,24853,4480,0,10971,null,87927,null,null,null,87927,null,1686.2712328767125]

{"sheet":"Tarieven ZIN prestaties","index":6,"n_rows":116,"n_cols":13,"rows_kept":116,"cut":false,"hidden":false,"merged":[]}
["F125 Dagbesteding lza","F125",14.76,null,null,null,null,null,"Komt het profiel voor in PGB range met DB?",null,null,null,{"$f":"IFERROR(VLOOKUP(Rekenblad!G10,I2:J45,2,0),\"\")","v":""}]
["H001G Dagbesteding ggz wonen-1","H001",63.81,null,null,null,null,null,"1vg","ja"]
["H002G Dagbesteding ggz wonen-2","H002",72.83,null,null,null,null,null,"2vg","ja"]
["H003G Dagbesteding ggz wonen-3","H003",62.32,null,null,null,null,null,"3vg","ja"]
["H004G Dagbesteding ggz wonen-4","H004",78.88,null,null,null,null,null,"4vg","ja"]
["H005G Dagbesteding ggz wonen-5","H005",101.37,null,null,null,null,null,"5vg","ja"]
["H104 Verpleging","H104",87.74,null,null,null,null,null,"6vg","ja"]
["H106 Verpleging speciaal","H106",110.05,null,null,null,null,null,"7vg","ja"]
["H117 Huishoudelijke hulp","H117",39.74,null,null,null,null,null,"8vg","ja"]
["H118 Verpleging speciaal aan kinderen tot 18 jaar incl. beschikbaarheid","H118",142.94999999999999,null,null,null,null,null,"1lg","ja"]
["H119 Verpleging speciaal aan kinderen tot 18 jaar exclusief beschikbaarheid","H119",110.07,null,null,null,null,null,"2lg","ja"]
["H120 Pv Speciaal","H120",87.74,null,null,null,null,null,"3lg","ja"]
["H126 Persoonlijke verzorging","H126",67.47,null,null,null,null,null,"4lg","ja"]
["H127 Pv incl. beschikbaarheid","H127",72.260000000000005,null,null,null,null,null,"5lg","ja"]
["H128 Verpleging incl. beschikbaarheid","H128",93.99,null,null,null,null,null,"6lg","ja"]
["H132 Nachtverzorging","H132",63.92,null,null,null,null,null,"7lg","ja"]
["H138 Thuiszorgtechnologie ten behoeve van persoonlijke verzorging ","H138",67.209999999999994,null,null,null,null,null,"1zgvis","ja"]
["H139 Thuizorgtechnologie ten behoeve van verpleging","H139",87.4,null,null,null,null,null,"2zgvis","ja"]
["H150 Begeleiding incl. beschikbaarheid","H150",80.930000000000007,null,null,null,null,null,"3zgvis","ja"]
["H152 Begeleiding speciaal 1 (nah)","H152",121.29,null,null,null,null,null,"4zgvis","ja"]
["H153 Begeleiding speciaal 2 (psy)","H153",129.36000000000001,null,null,null,null,null,"5zgvis","ja"]
["H180 Nachtverpleging","H180",119.21,null,null,null,null,null,"1zgaud","ja"]
["H300 Begeleiding","H300",75.569999999999993,null,null,null,null,null,"2zgaud","ja"]
["H301 Begeleiding zg visueel","H301",134.94,null,null,null,null,null,"3zgaud","ja"]
["H302 Begeleiding speciaal 2 (visueel)","H302",165.84,null,null,null,null,null,"4zgaud","ja"]
["H303 Begeleiding zg auditief","H303",112.67,null,null,null,null,null,"1vv","nee"]
["H304 Begeleiding speciaal 2 (auditief)","H304",143.62,null,null,null,null,null,"2vv","nee"]
["H306 Thuiszorgtechnologie ten behoeve van begeleiding","H306",75.260000000000005,null,null,null,null,null,"3vv","nee"]
["H325 Behandeling lvg","H325",157.22999999999999,null,null,null,null,null,"4vv","nee"]
["H329 Behandeling gedragswetenschapper","H329",154.74,null,null,null,null,null,"5vv","nee"]
["H330 Behandeling paramedisch","H330",109.92,null,null,null,null,null,"6vv","nee"]
["H331 Behandeling Families First lvg","H331",163.89,null,null,null,null,null,"7vv","nee"]
["H332 Behandeling zg visueel","H332",178.35,null,null,null,null,null,"8vv","nee"]
["H333 Behandeling zg auditief","H333",158.27000000000001,null,null,null,null,null,"9vv","nee"]
["H334 Behandeling IOG (j)lvg","H334",142.44,null,null,null,null,null,"10vv","nee"]
["H335 Behandeling som, pg, vg, lg, zg (SO)","H335",193.03,null,null,null,null,null,"1LVG","nee"]
["H336 Behandeling som, pg, vg, lg, zg (AVG)","H336",193.03,null,null,null,null,null,"2LVG","nee"]
["H337 Reiskosten prestatie behandeling (H332 en H333)","H337",29.84,null,null,null,null,null,"3LVG","nee"]
["H338 Behandeling sglvg","H338",358.37,null,null,null,null,null,"4LVG","nee"]
["H531 Dagbesteding basis","H531",48.7,null,null,null,null,null,"1SGLVG","nee"]
["H533 Dagbesteding psychogeriatrisch","H533",70.040000000000006,null,null,null,null,null,"1GGZ-W","ja"]
["H800 Dagbesteding somatisch  ondersteunend","H800",67.55,null,null,null,null,null,"2GGZ-W","ja"]
["H802 Dagbehandeling ouderen som en pg","H802",80.77,null,null,null,null,null,"3GGZ-W","ja"]
["H804 Gespecialiseerde dagbehandeling Huntington lg of som","H804",101.62,null,null,null,null,null,"4GGZ-W","ja"]
["H811 Dagbesteding vg licht","H811",46.45,null,null,null,null,null,"5GGZ-W","nee"]
["H812 Dagbesteding vg midden","H812",65.34]
["H813 Dagbesteding vg zwaar","H813",111.44]
["H814 Dagbesteding vg kind licht","H814",86.97]
["H815 Dagbesteding vg kind midden","H815",107.01]
["H816 Dagbesteding vg kind zwaar","H816",159.26]
["H817 Dagbehandeling vg kind emg ","H817",184.19]
["H818 Dagbesteding vg kind gedrag","H818",159.26]
["H819 Dagbehandeling vg emg volwassenen","H819",134.47]
["H820 Dagbehandeling vg kind midden","H820",131.29]
["H821 Dagbehandeling vg kind zwaar","H821",184.19]
["H822 Dagbehandeling vg kind gedrag","H822",219.08]
["H831 Dagbesteding lg licht","H831",66.38]
["H832 Dagbesteding lg midden","H832",77.72]
["H833 Dagbesteding lg zwaar","H833",85.14]
["H834 Dagbesteding lg kind licht","H834",94.9]
["H835 Dagbesteding lg kind midden","H835",109.85]
["H836 Dagbesteding lg kind zwaar","H836",132.13]
["H840 Dagbehandeling LG/NAH","H840",119.11]
["H851 Dagbesteding zg auditief licht","H851",66.47]
["H852 Dagbesteding zg auditief midden","H852",79.81]
["H853 Dagbesteding zg auditief zwaar","H853",95.05]
["H854 Dagbesteding zg kind auditief licht","H854",101.63]
["H855 Dagbesteding zg kind auditief midden","H855",122.54]
["H856 Dagbesteding zg kind auditief zwaar","H856",149.31]
["H871 Dagbesteding zg visueel licht","H871",64.7]
["H872 Dagbesteding zg visueel midden","H872",69.930000000000007]
["H873 Dagbesteding zg visueel zwaar","H873",80.19]
["H874 Dagbesteding zg kind visueel licht","H874",85.73]
["H875 Dagbesteding zg kind visueel midden","H875",99.21]
["H876 Dagbesteding zg kind visueel zwaar","H876",121.56]
["H891 Dagbehandeling lvg","H891",171.74]
["H307 Begeleiding ZIO (zorg in onderwijstijd","H307",65]
["H308 Dagbesteding vg kind licht ZIO (zorg in onderwijstijd)","H308",75.53]
["H309 Dagbesteding lg kind licht ZIO (zorg in onderwijstijd)","H309",80.209999999999994]
["H310 Dagbesteding zg kind auditief licht ZIO (zorg in onderwijstijd)","H310",85.89]
["H311 Dagbesteding zg kind visueel licht ZIO (zorg in onderwijstijd)","H311",72.48]
["D041 DTV 4VV","D041",189.42]
["D051 DTV 5VV","D051",331.14]
["D061 DTV 6VV","D061",305.14]
["D071 DTV 7VV","D071",390.8]
["D081 DTV 8VV","D081",507.31]
["D430 DTV 3VG","D430",157.62]
["D440 DTV 4VG","D440",191.2]
["D454 DTV 5VG","D454",231.41]
["D460 DTV 6VG","D460",202.06]
["D470 DTV 7VG","D470",250.88]
["D480 DTV 8VG","D480",274.48]
["D624 DTV 2LG","D624",185.51]
["D640 DTV 4LG","D640",220.61]
["D650 DTV 5LG","D650",220.61]
["D660 DTV 6LG","D660",311.11]
["D670 DTV 7LG","D670",335.25]
["H401 DTV 1ggz-w","H401",185.13]
["H402 DTV 2ggz-w","H402",217.43]
["H403 DTV 3ggz-w","H403",234.29]
["H404 DTV 4ggz-w","H404",285.81]
["H405 DTV 5ggz-w","H405",372.55]
["D720 DTV ZGaud2","D720",383.87]
["D730 DTV ZGaud3","D730",432.16]
["D740 DTV ZGaud4","D740",250.83]
["D824 DTV ZGvis2","D824",185.26]
["D830 DTV ZGvis3","D830",225.76]
["D840 DTV ZGvis4","D840",282.91000000000003]
["D850 DTV ZGvis5","D850",315.49]
["Z1000 Logeren ghz-lg","Z1000",388.66]
["Z1001 Logeren ghz-lvg","Z1001",378.13]
["Z1002 Logeren ghz-zg","Z1002",530.30999999999995]
["Z1003 Logeren vv","Z1003",312.42]
["Z1004 Logeren ggz wonen","Z1004",246.5]
["Z1006 Logeren ghz-zevmb","Z1006",566.63]
["Z999 Logeren GHZ-VG","Z999",346.32]

{"sheet":"Tarieven VPT","index":7,"n_rows":168,"n_cols":10,"rows_kept":168,"cut":false,"hidden":false,"merged":[]}
["Bijlage 4 bij BR/REG-24123a Beleidsregel prestatiebeschrijvingen en tarieven zorgzwaartepakketten en volledig pakket thuis 2024"]
["Onderbouwing beleidsregelwaarde per prestatie",null,null,null,"( a )","( b )"," ( c )","( d )","( e )","(a+b+c+d+e)"]
[null,null,null,null,null,null,null,null,"kapitaallasten dagbesteding kind ghz/ "]
[null,"Code","Prestatie",null,"loon","materieel","NHC"," NIC","dagbehandeling vg emg","BRW totaal"]
[]
["VPT 1vv excl.bh incl.db","V015","ZZP 1vv excl.bh incl.db","V015 VPT 1vv excl.bh incl.db",53.300359564694972,29.64668844883828,3.3468984073334349,0.88006773567170071,0,87.17]
["VPT 2vv excl.bh incl.db","V025","ZZP 2vv excl.bh incl.db","V025 VPT 2vv excl.bh incl.db",78.101575079168342,33.075041430359533,3.3468984073334345,0.88006773567170071,0,115.4]
["VPT 3vv excl.bh incl.db","V031","ZZP 3vv excl.bh incl.db","V031 VPT 3vv excl.bh incl.db",110.06925565375079,38.441731600419402,3.4052741123782053,0.88006773567170071,0,152.80000000000001]
["VPT 4vv excl.bh incl.db","V041","ZZP 4vv excl.bh incl.db","V041 VPT 4vv excl.bh incl.db",99.978517635959335,39.494571254303175,3.4052741123782053,0.88006773567170071,0,143.76]
["VPT 5vv excl.bh incl.db","V051","ZZP 5vv excl.bh incl.db","V051 VPT 5vv excl.bh incl.db",222.5602849127454,56.714491662530691,4.5098302191588608,0.73061420017895251,0,284.52]
["VPT 6vv excl.bh incl.db","V061","ZZP 6vv excl.bh incl.db","V061 VPT 6vv excl.bh incl.db",193.34069852287152,52.692377534616057,4.9282680745447358,0.73061420017895251,0,251.69]
["VPT 7vv excl.bh incl.db","V071","ZZP 7vv excl.bh incl.db","V071 VPT 7vv excl.bh incl.db",279.07480497134736,62.49089341766912,4.9282680745447358,0.73061420017895251,0,347.22]
["VPT 8vv excl.bh incl.db","V081","ZZP 8vv excl.bh incl.db","V081 VPT 8vv excl.bh incl.db",373.57600403828275,79.990232813284024,4.9282680745447358,0.45352261099005925,0,458.95]
["VPT 9bvv excl.bh incl.db","V095","ZZP 9bvv excl.bh incl.db","V095 VPT 9bvv excl.bh incl.db",187.80835689393302,55.87625499247855,4.0448992687301129,0.44515834004831606,0,248.17]
["VPT 10vv excl.bh incl.db","V101","ZZP 10vv excl.bh incl.db","V101 VPT 10vv excl.bh incl.db",447.48277411252894,97.394196771487699,4.9282680745447358,0.73061420017895251,0,550.54]
[null,null,null," ","","","","",null,""]
["VPT 3vv incl.bh incl.db","V033","ZZP 3vv incl.bh incl.db","V033 VPT 3vv incl.bh incl.db",127.52491652672859,47.90623426496073,3.4052741123782053,0.96683497721679812,0,179.8]
["VPT 4vv incl.bh incl.db","V043","ZZP 4vv incl.bh incl.db","V043 VPT 4vv incl.bh incl.db",116.76861974045431,35.937957554405607,3.4052741123782053,0.96683497721679812,0,157.08000000000001]
["VPT 5vv incl.bh incl.db","V053","ZZP 5vv incl.bh incl.db","V053 VPT 5vv incl.bh incl.db",236.51033371389144,59.277423281430401,4.5098302191588608,0.85396464955981466,0,301.14999999999998]
["VPT 6vv incl.bh incl.db","V063","ZZP 6vv incl.bh incl.db","V063 VPT 6vv incl.bh incl.db",210.47716763443316,53.406598244735243,4.9282680745447358,0.85396464955981466,0,269.67]
["VPT 7vv incl.bh incl.db","V073","ZZP 7vv incl.bh incl.db","V073 VPT 7vv incl.bh incl.db",298.71194306221616,65.035262848301429,4.9282680745447358,0.85396464955981466,0,369.53]
["VPT 8vv incl.bh incl.db","V083","ZZP 8vv incl.bh incl.db","V083 VPT 8vv incl.bh incl.db",387.23668799003184,83.24110238734616,4.9282680745447358,0.53768144601914247,0,475.94]
["VPT 9bvv incl.bhincl.db","V097","ZZP 9bvv incl.bhincl.db","V097 VPT 9bvv incl.bhincl.db",252.27154133635059,62.007620766118102,4.0448992687301129,0.53353536344026109,0,318.86]
["VPT 10vv incl.bhincl.db","V103","ZZP 10vv incl.bhincl.db","V103 VPT 10vv incl.bhincl.db",440.15619878460529,97.88207520518138,4.9282680745447358,0.85396464955981466,0,543.82000000000005]
[null,null,null," ","","","","",null,""]
["VPT 1 ggz wonen met intensieve begeleiding excl. BH excl. DB - modulair bekostigingsmodel","V210",null,"V210G VPT 1 ggz wonen excl. BH excl. DB",102.36679114923565,36.048159201639493,0,0,0,138.41]
["VPT 2 ggz wonen met intensieve begeleiding en verzorging excl. BH excl. DB - modulair bekostigingsmodel","V220",null,"V220G VPT 2 ggz wonen excl. BH excl. DB",123.04005359227058,43.32818671248878,0,0,0,166.37]
["VPT 3 ggz wonen met intensieve begeleiding en gedragsregulering excl. BH excl. DB - modulair bekostigingsmodel","V230",null,"V230G VPT 3 ggz wonen excl. BH excl. DB",134.01499282124411,47.192978722796028,0,0,0,181.21]
["VPT 4 ggz wonen met intensieve begeleiding en intensieve verpleging en verzorging excl. BH excl. DB - modulair bekostigingsmodel","V240",null,"V240G VPT 4 ggz wonen excl. BH excl. DB",168.60238020200379,59.372823696667815,0,0,0,227.98]
["VPT 5 ggz beveiligd wonen vanwege extreme gedragsproblematiek met zeer intensieve begeleiding excl. BH excl. DB - modulair bekostigingsmodel","V250",null,"V250G VPT 5 ggz beveiligd wonen excl. BH excl. DB",224.88316922209512,79.191935146907753,0,0,0,304.08]
[null,null,null," ","","","","",null,""]
["VPT 1 ggz wonen met intensieve begeleiding excl. BH incl. DB - modulair bekostigingsmodel","V211",null,"V211G VPT 1 ggz wonen excl. BH incl. DB",127.65170524303855,44.98929761621951,8.1576040163053634,0.65856941992898355,0,181.46]
["VPT 2 ggz wonen met intensieve begeleiding en verzorging excl. BH incl. DB - modulair bekostigingsmodel","V221",null,"V221G VPT 2 ggz wonen excl. BH incl. DB",149.68075368640649,52.754049741057997,9.8727133807856511,0.65856941992898355,0,212.97]
["VPT 3 ggz wonen met intensieve begeleiding en gedragsregulering excl. BH incl. DB - modulair bekostigingsmodel","V231",null,"V231G VPT 3 ggz wonen excl. BH incl. DB",161.17029782061601,56.79559064955108,8.821410464132633,0.65856941992898355,0,227.45]
["VPT 4 ggz wonen met intensieve begeleiding en intensieve verpleging en verzorging excl. BH incl. DB - modulair bekostigingsmodel","V241",null,"V241G VPT 4 ggz wonen excl. BH incl. DB",196.38114883656533,69.199479282981102,9.8786259858212162,0.65856941992898355,0,276.12]
["VPT 5 ggz beveiligd wonen vanwege extreme gedragsproblematiek met zeer intensieve begeleiding excl. BH incl. DB - modulair bekostigingsmodel","V251",null,"V251G VPT 5 ggz beveiligd wonen excl. BH incl. DB",267.17435320331089,94.139881105968229,12.416884051622501,0.65856941992898355,0,374.39]
[null,null,null," ","","","","",null,""]
["VPT 1vg excl.bh excl.db","V414","ZZP 1vg excl.bh excl.db","V414 VPT 1vg excl.bh excl.db",42.046768105636048,25.948121872306015,0,0,0,67.989999999999995]
["VPT 2vg excl.bh excl.db","V424","ZZP 2vg excl.bh excl.db","V424 VPT 2vg excl.bh excl.db",58.381891665661968,24.959633157100551,0,0,0,83.34]
["VPT 1vg excl.bh incl.db","V415","ZZP 1vg excl.bh incl.db","V415 VPT 1vg excl.bh incl.db",85.044945840704273,23.247434986592168,8.1592885675557287,1.2769934342954634,0,117.73]
["VPT 2vg excl.bh incl.db","V425","ZZP 2vg excl.bh incl.db","V425 VPT 2vg excl.bh incl.db",90.398245679925736,31.960774487669408,8.1592885675557287,1.2769934342954634,0,131.80000000000001]
["VPT 3vg excl.bh excl.db","V430","ZZP 3vg excl.bh excl.db","V430 VPT 3vg excl.bh excl.db",88.327860537767876,27.315556268025421,0,0,0,115.64]
["VPT 4vg excl.bh excl.db","V440","ZZP 4vg excl.bh excl.db","V440 VPT 4vg excl.bh excl.db",111.9951342074841,29.927529194004158,0,0,0,141.91999999999999]
["VPT 5vg excl.bh excl.db","V454","ZZP 5vg excl.bh excl.db","V454 VPT 5vg excl.bh excl.db",153.78056022818274,38.556306343274741,0,0,0,192.34]
["VPT 6vg excl.bh excl.db","V460","ZZP 6vg excl.bh excl.db","V460 VPT 6vg excl.bh excl.db",117.60370476000426,32.999220370894193,0,0,0,150.6]
["VPT 7vg excl.bh excl.db","V470","ZZP 7vg excl.bh excl.db","V470 VPT 7vg excl.bh excl.db",172.64035548556762,39.714731222781907,0,0,0,212.36]
["VPT 8vg excl.bh excl.db","V480","ZZP 8vg excl.bh excl.db","V480 VPT 8vg excl.bh excl.db",181.83364871014714,42.891117348366997,0,0,0,224.72]
[null,null,null," ","","","","",null,""]
["VPT 3vg excl.bh incl.db","V431","ZZP 3vg excl.bh incl.db","V431 VPT 3vg excl.bh incl.db",118.69097305958373,33.571016637809564,8.1592885675557287,1.2769934342954634,0,161.69999999999999]
["VPT 4vg excl.bh incl.db","V441","ZZP 4vg excl.bh incl.db","V441 VPT 4vg excl.bh incl.db",143.44723924169548,34.018978341511996,8.1592885675557287,1.2769934342954634,0,186.9]
["VPT 5vg excl.bh incl.db","V455","ZZP 5vg excl.bh incl.db","V455 VPT 5vg excl.bh incl.db",200.78002720174604,51.241141954108066,9.7130543537914882,0.92750049438302129,0,262.66000000000003]
["VPT 6vg excl.bh incl.db","V461","ZZP 6vg excl.bh incl.db","V461 VPT 6vg excl.bh incl.db",166.76939733451667,41.499080383273032,9.7130543537914882,1.0081527112858921,0,218.99]
["VPT 7vg excl.bh incl.db","V471","ZZP 7vg excl.bh incl.db","V471 VPT 7vg excl.bh incl.db",225.1858964809791,55.228790872307776,9.7130543537914882,0.91405845823254184,0,291.04000000000002]
["VPT 8vg excl.bh incl.db","V481","ZZP 8vg excl.bh incl.db","V481 VPT 8vg excl.bh incl.db",251.73384871966485,56.869081627715182,11.774787589266101,0.92750049438302129,0,321.31]
[null,null,null," ","","","","",null,""]
["VPT 3vg incl.bh excl.db","V432","ZZP 3vg incl.bh excl.db","V432 VPT 3vg incl.bh excl.db",105.97443568703515,37.039404610201075,0,0,0,143.01]
["VPT 4vg incl.bh excl.db","V442","ZZP 4vg incl.bh excl.db","V442 VPT 4vg incl.bh excl.db",146.88662152818452,41.773542678357799,0,0,0,188.66]
["VPT 5vg incl.bh excl.db","V456","ZZP 5vg incl.bh excl.db","V456 VPT 5vg incl.bh excl.db",171.65905368178878,59.995597893917349,0,0,0,231.65]
["VPT 6vg incl.bh excl.db","V462","ZZP 6vg incl.bh excl.db","V462 VPT 6vg incl.bh excl.db",157.23816674168424,45.266138505054997,0,0,0,202.5]
["VPT 7vg incl.bh excl.db","V472","ZZP 7vg incl.bh excl.db","V472 VPT 7vg incl.bh excl.db",240.88006233920729,61.865364315334425,0,0,0,302.75]
["VPT 8vg incl.bh excl.db","V482","ZZP 8vg incl.bh excl.db","V482 VPT 8vg incl.bh excl.db",224.79365209408718,53.741058356519481,0,0,0,278.52999999999997]
[null,null,null," ","","","","",null,""]
["VPT 3vg incl.bh incl.db","V433","ZZP 3vg incl.bh incl.db","V433 VPT 3vg incl.bh incl.db",136.45462723034672,44.468019359047403,8.1592885675557287,1.2769934342954634,0,190.36]
["VPT 4vg incl.bh incl.db","V443","ZZP 4vg incl.bh incl.db","V443 VPT 4vg incl.bh incl.db",162.63592978752806,49.22279042303505,8.1592885675557287,1.2769934342954634,0,221.3]
["VPT 5vg incl.bh incl.db","V457","ZZP 5vg incl.bh incl.db","V457 VPT 5vg incl.bh incl.db",233.22482601609335,60.914925319463769,9.7130543537914882,0.92750049438302129,0,304.77999999999997]
["VPT 6vg incl.bh incl.db","V463","ZZP 6vg incl.bh incl.db","V463 VPT 6vg incl.bh incl.db",193.75388489550843,55.415179212811779,9.7130543537914882,1.0081527112858921,0,259.89]
["VPT 7vg incl.bh incl.db","V473","ZZP 7vg incl.bh incl.db","V473 VPT 7vg incl.bh incl.db",217.55760757339772,72.393904550873799,9.7130543537914882,0.91405845823254184,0,300.58]
["VPT 8vg incl.bh incl.db","V483","ZZP 8vg incl.bh incl.db","V483 VPT 8vg incl.bh incl.db",290.02612885099438,70.596609865522709,11.774787589266101,0.92750049438302129,0,373.33]
[null,null,null," ","","","","",null,""]
["VPT 1lvg incl.bh incl.db","V513","ZZP 1lvg incl.bh incl.db","V513 VPT 1lvg incl.bh incl.db",175.3719652527802,48.257138312784157,0,0,0,223.63]
["VPT 2lvg incl.bh incl.db","V523","ZZP 2lvg incl.bh incl.db","V523 VPT 2lvg incl.bh incl.db",221.1713510718871,55.789484651757803,0,0,0,276.95999999999998]
["VPT 3lvg incl.bh incl.db","V533","ZZP 3lvg incl.bh incl.db","V533 VPT 3lvg incl.bh incl.db",292.89325971449597,66.707169772605852,0,0,0,359.6]
["VPT 4lvg incl.bh incl.db","V543","ZZP 4lvg incl.bh incl.db","V543 VPT 4lvg incl.bh incl.db",351.99890379449278,70.243227110076305,0,0,0,422.24]
["VPT 5lvg incl.bh incl.db","V553","ZZP 5lvg incl.bh incl.db","V553 VPT 5lvg incl.bh incl.db",329.86245474740423,69.785104284021187,0,0,0,399.65]
[null,null,null," ","","","","",null,""]
["VPT 1sglvg incl.bh incl.db","V573","ZZP 1sglvg incl.bh incl.db","V573 VPT 1sglvg incl.bh incl.db",340.47028563451789,110.55077325789593,0,0,0,451.02]
[null,null,null," ","","","","",null,""]
["VPT 1lg excl.bh excl.db","V614","ZZP 1lg excl.bh excl.db","V614 VPT 1lg excl.bh excl.db",76.41310094363925,22.291903172300241,0,0,0,98.71]
["VPT 2lg excl.bh excl.db","V624","ZZP 2lg excl.bh excl.db","V624 VPT 2lg excl.bh excl.db",113.0441306831115,30.894243962021903,0,0,0,143.94]
["VPT 1lg excl.bh incl.db","V615","ZZP 1lg excl.bh incl.db","V615 VPT 1lg excl.bh incl.db",123.20137242935064,35.064800898199081,8.1592885675557287,1.760906735712692,0,168.19]
["VPT 2lg excl.bh incl.db","V625","ZZP 2lg excl.bh incl.db","V625 VPT 2lg excl.bh incl.db",154.40003309020287,36.184102947929084,8.1592885675557287,1.760906735712692,0,200.5]
["VPT 3lg excl.bh excl.db","V630","ZZP 3lg excl.bh excl.db","V630 VPT 3lg excl.bh excl.db",82.901265614082078,29.181447254682528,0,0,0,112.08]
["VPT 4lg excl.bh excl.db","V640","ZZP 4lg excl.bh excl.db","V640 VPT 4lg excl.bh excl.db",138.57490600884682,36.495619612905486,0,0,0,175.07]
["VPT 5lg excl.bh excl.db","V650","ZZP 5lg excl.bh excl.db","V650 VPT 5lg excl.bh excl.db",135.0383633969318,42.302947328697947,0,0,0,177.34]
["VPT 6lg excl.bh excl.db","V660","ZZP 6lg excl.bh excl.db","V660 VPT 6lg excl.bh excl.db",200.35940534382527,45.936246065251481,0,0,0,246.3]
["VPT 7lg excl.bh excl.db","V670","ZZP 7lg excl.bh excl.db","V670 VPT 7lg excl.bh excl.db",230.67376170648615,48.021455688238269,0,0,0,278.7]
[null,null,null," ","","","","",null,""]
["VPT 3lg excl.bh incl.db","V631","ZZP 3lg excl.bh incl.db","V631 VPT 3lg excl.bh incl.db",136.83163678656786,37.795226325150267,8.1592885675557287,1.760906735712692,0,184.55]
["VPT 4lg excl.bh incl.db","V641","ZZP 4lg excl.bh incl.db","V641 VPT 4lg excl.bh incl.db",186.05175266535963,37.398626753470722,8.1592885675557287,1.760906735712692,0,233.37]
["VPT 5lg excl.bh incl.db","V651","ZZP 5lg excl.bh incl.db","V651 VPT 5lg excl.bh incl.db",186.92026045138377,48.545499678001718,9.7130543537914882,0.92750049438302129,0,246.11]
["VPT 6lg excl.bh incl.db","V661","ZZP 6lg excl.bh incl.db","V661 VPT 6lg excl.bh incl.db",246.64260678233987,41.690295142815295,11.774787589266101,0.92750049438302129,0,301.04000000000002]
["VPT 7lg excl.bh incl.db","V671","ZZP 7lg excl.bh incl.db","V671 VPT 7lg excl.bh incl.db",268.67326543953521,54.296496471190046,11.774787589266101,0.92750049438302129,0,335.67]
[null,null,null," ","","","","",null,""]
["VPT 3lg incl.bh excl.db","V632","ZZP 3lg incl.bh excl.db","V632 VPT 3lg incl.bh excl.db",103.30570623610082,37.526996373808387,0,0,0,140.83000000000001]
["VPT 4lg incl.bh excl.db","V642","ZZP 4lg incl.bh excl.db","V642 VPT 4lg incl.bh excl.db",172.55539366086978,47.468237652414992,0,0,0,220.02]
["VPT 5lg incl.bh excl.db","V652","ZZP 5lg incl.bh excl.db","V652 VPT 5lg incl.bh excl.db",174.62680762009765,48.624467969477529,0,0,0,223.25]
["VPT 6lg incl.bh excl.db","V662","ZZP 6lg incl.bh excl.db","V662 VPT 6lg incl.bh excl.db",249.68431030107209,59.187252953042517,0,0,0,308.87]
["VPT 7lg incl.bh excl.db","V672","ZZP 7lg incl.bh excl.db","V672 VPT 7lg incl.bh excl.db",281.55258324968764,64.024844332257942,0,0,0,345.58]
[null,null,null," ","","","","",null,""]
["VPT 3lg incl.bh incl.db","V633","ZZP 3lg incl.bh incl.db","V633 VPT 3lg incl.bh incl.db",147.51791071270102,51.34341082808794,8.1592885675557287,1.760906735712692,0,208.78]
["VPT 4lg incl.bh incl.db","V643","ZZP 4lg incl.bh incl.db","V643 VPT 4lg incl.bh incl.db",198.3007834875331,52.31284512424746,8.1592885675557287,1.760906735712692,0,260.52999999999997]
["VPT 5lg incl.bh incl.db","V653","ZZP 5lg incl.bh incl.db","V653 VPT 5lg incl.bh incl.db",217.18409246379207,63.120269987045525,9.7130543537914882,0.92750049438302129,0,290.94]
["VPT 6lg incl.bh incl.db","V663","ZZP 6lg incl.bh incl.db","V663 VPT 6lg incl.bh incl.db",282.61179087388666,70.062574902674726,11.774787589266101,0.92750049438302129,0,365.38]
["VPT 7lg incl.bh incl.db","V673","ZZP 7lg incl.bh incl.db","V673 VPT 7lg incl.bh incl.db",297.98575467194036,68.330278268327575,11.774787589266101,0.92750049438302129,0,379.02]
[null,null,null," ","","","","",null,""]
["VPT 1zg-auditief excl.bh excl.db","V710","ZZP 1zg-auditief excl.bh excl.db","V710 VPT 1zg-auditief excl.bh excl.db",133.30784483435636,34.586651235196335,0,0,0,167.89]
["VPT 2zg-auditief excl.bh excl.db","V720","ZZP 2zg-auditief excl.bh excl.db","V720 VPT 2zg-auditief excl.bh excl.db",277.7770047645385,65.228778455568985,0,0,0,343.01]
["VPT 3zg-auditief excl.bh excl.db","V730","ZZP 3zg-auditief excl.bh excl.db","V730 VPT 3zg-auditief excl.bh excl.db",316.54687111605693,76.48974963032579,0,0,0,393.04]
["VPT 4zg-auditief excl.bh excl.db","V740","ZZP 4zg-auditief excl.bh excl.db","V740 VPT 4zg-auditief excl.bh excl.db",151.42166800667161,51.520481154668978,0,0,0,202.94]
[null,null,null," ","","","","",null,""]
["VPT 1zg-auditief excl.bh incl.db","V711","ZZP 1zg-auditief excl.bh incl.db","V711 VPT 1zg-auditief excl.bh incl.db",153.09543806599524,52.009444496055892,8.1592885675557287,1.3845297234992919,0,214.65]
["VPT 2zg-auditief excl.bh incl.db","V721","ZZP 2zg-auditief excl.bh incl.db","V721 VPT 2zg-auditief excl.bh incl.db",311.32761966655971,82.364101886111243,8.1592885675557287,1.3845297234992919,0,403.24]
["VPT 3zg-auditief excl.bh incl.db","V731","ZZP 3zg-auditief excl.bh incl.db","V731 VPT 3zg-auditief excl.bh incl.db",334.57917120767905,99.223305777458947,9.7130543537914882,1.3845297234992919,0,444.9]
["VPT 4zg-auditief excl.bh incl.db","V741","ZZP 4zg-auditief excl.bh incl.db","V741 VPT 4zg-auditief excl.bh incl.db",201.18389073567494,68.780773209123083,8.1592885675557287,1.3845297234992919,0,279.51]
[null,null,null," ","","","","",null,""]
["VPT 1zg-auditief incl.bh excl.db","V712","ZZP 1zg-auditief incl.bh excl.db","V712 VPT 1zg-auditief incl.bh excl.db",136.63533575909432,21.711380057189935,0,0,0,158.35]
["VPT 2zg-auditief incl.bh excl.db","V722","ZZP 2zg-auditief incl.bh excl.db","V722 VPT 2zg-auditief incl.bh excl.db",313.24420283174521,34.4825969982506,0,0,0,347.73]
["VPT 3zg-auditief incl.bh excl.db","V732","ZZP 3zg-auditief incl.bh excl.db","V732 VPT 3zg-auditief incl.bh excl.db",357.40016616653475,42.689256318834715,0,0,0,400.09]
["VPT 4zg-auditief incl.bh excl.db","V742","ZZP 4zg-auditief incl.bh excl.db","V742 VPT 4zg-auditief incl.bh excl.db",172.76140750722988,58.902084866236656,0,0,0,231.66]
[null,null,null," ","","","","",null,""]
["VPT 1zg-auditief incl.bh incl.db","V713","ZZP 1zg-auditief incl.bh incl.db","V713 VPT 1zg-auditief incl.bh incl.db",187.25555476047859,26.455580623186371,8.1592885675557287,1.3845297234992919,0,223.25]
["VPT 2zg-auditief incl.bh incl.db","V723","ZZP 2zg-auditief incl.bh incl.db","V723 VPT 2zg-auditief incl.bh incl.db",370.8737966857712,61.711875610346361,8.1592885675557287,1.3845297234992919,0,442.13]
["VPT 3zg-auditief incl.bh incl.db","V733","ZZP 3zg-auditief incl.bh incl.db","V733 VPT 3zg-auditief incl.bh incl.db",440.66066564656387,70.210015134455901,9.7130543537914882,1.3845297234992919,0,521.97]
["VPT 4zg-auditief incl.bh incl.db","V743","ZZP 4zg-auditief incl.bh incl.db","V743 VPT 4zg-auditief incl.bh incl.db",222.3657610784737,76.14985378627108,8.1592885675557287,1.3845297234992919,0,308.06]
[null,null,null," ","","","","",null,""]
["VPT 1zg-visueel excl.bh excl.db","V814","ZZP 1zg-visueel excl.bh excl.db","V814 VPT 1zg-visueel excl.bh excl.db",59.019335679288815,30.170807719371386,0,0,0,89.19]
["VPT 2zg-visueel excl.bh excl.db","V824","ZZP 2zg-visueel excl.bh excl.db","V824 VPT 2zg-visueel excl.bh excl.db",104.78260193032635,39.221580402784838,0,0,0,144]
["VPT 1zg-visueel excl.bh incl.db","V815","ZZP 1zg-visueel excl.bh incl.db","V815 VPT 1zg-visueel excl.bh incl.db",108.51344687519401,37.507719929706809,8.1592885675557287,1.3845297234992919,0,155.56]
["VPT 2zg-visueel excl.bh incl.db","V825","ZZP 2zg-visueel excl.bh incl.db","V825 VPT 2zg-visueel excl.bh incl.db",148.22333255886679,43.606630493369771,8.1592885675557287,1.3845297234992919,0,201.37]
["VPT 3zg-visueel excl.bh excl.db","V830","ZZP 3zg-visueel excl.bh excl.db","V830 VPT 3zg-visueel excl.bh excl.db",141.57734474392521,43.024440442584414,0,0,0,184.6]
["VPT 4zg-visueel excl.bh excl.db","V840","ZZP 4zg-visueel excl.bh excl.db","V840 VPT 4zg-visueel excl.bh excl.db",190.51057404996243,50.337435604278397,0,0,0,240.85]
["VPT 5zg-visueel excl.bh excl.db","V850","ZZP 5zg-visueel excl.bh excl.db","V850 VPT 5zg-visueel excl.bh excl.db",213.37429674653336,53.968061477200173,0,0,0,267.33999999999997]
[null,null,null," ","","","","",null,""]
["VPT 3zg-visueel excl.bh incl.db","V831","ZZP 3zg-visueel excl.bh incl.db","V831 VPT 3zg-visueel excl.bh incl.db",183.67584014897994,47.172451940139823,8.1592885675557287,1.3845297234992919,0,240.39]
["VPT 4zg-visueel excl.bh incl.db","V841","ZZP 4zg-visueel excl.bh incl.db","V841 VPT 4zg-visueel excl.bh incl.db",245.86774079213694,56.091620337189418,9.7130543537914882,1.3845297234992919,0,313.06]
["VPT 5zg-visueel excl.bh incl.db","V851","ZZP 5zg-visueel excl.bh incl.db","V851 VPT 5zg-visueel excl.bh incl.db",265.6746848015232,60.333284985416441,11.774787589266101,1.3845297234992919,0,339.17]
[null,null,null," ","","","","",null,""]
["VPT 3zg-visueel incl.bh excl.db","V832","ZZP 3zg-visueel incl.bh excl.db","V832 VPT 3zg-visueel incl.bh excl.db",152.83051871603607,47.8186521975571,0,0,0,200.65]
["VPT 4zg-visueel incl.bh excl.db","V842","ZZP 4zg-visueel incl.bh excl.db","V842 VPT 4zg-visueel incl.bh excl.db",211.09409057992664,53.555397841170787,0,0,0,264.64999999999998]
["VPT 5zg-visueel incl.bh excl.db","V852","ZZP 5zg-visueel incl.bh excl.db","V852 VPT 5zg-visueel incl.bh excl.db",242.31775089585665,55.462515247431568,0,0,0,297.77999999999997]
[null,null,null," ","","","","",null,""]
["VPT 3zg-visueel incl.bh incl.db","V833","ZZP 3zg-visueel incl.bh incl.db","V833 VPT 3zg-visueel incl.bh incl.db",195.58752990876795,51.835804801460448,8.1592885675557287,1.3845297234992919,0,256.97000000000003]
["VPT 4zg-visueel incl.bh incl.db","V843","ZZP 4zg-visueel incl.bh incl.db","V843 VPT 4zg-visueel incl.bh incl.db",267.20435259368173,59.972616506780604,9.7130543537914882,1.3845297234992919,0,338.27]
["VPT 5zg-visueel incl.bh incl.db","V853","ZZP 5zg-visueel incl.bh incl.db","V853 VPT 5zg-visueel incl.bh incl.db",296.33426147166296,62.642480239996878,11.774787589266101,1.3845297234992919,0,372.14]
[null,null,null," ","","","","",null,""]
["Dagbesteding ggz wonen-1","H001G",null,"H001G Dagbesteding ggz wonen-1",40.643866754086318,14.349787922539987,8.1576027839454905,0.65861703577707886,0,63.81]
["Dagbesteding ggz wonen-2","H002G",null,"H002G Dagbesteding ggz wonen-2",46.037337825205611,16.258457326134465,9.8727623678681802,0.65861703577707886,0,72.83]
["Dagbesteding ggz wonen-3","H003G",null,"H003G Dagbesteding ggz wonen-3",39.050642194057801,13.791519326122041,8.8213684031449571,0.65861703577707886,0,62.32]
["Dagbesteding ggz wonen-4","H004G",null,"H004G Dagbesteding ggz wonen-4",50.510343127744655,17.831551998274843,9.8786684934214719,0.65861703577707886,0,78.88]
["Dagbesteding ggz wonen-5","H005G",null,"H005G Dagbesteding ggz wonen-5",62.791703420723408,22.181281985960474,15.734598584386072,0.65861703577707886,0,101.37]
[null,null,null," ","","","","",null,""]
["Dagbesteding vg licht (vg1 en vg4)","H900","Dagbesteding vg licht (vg1 en vg4)","H900 Dagbesteding vg licht (vg1 en vg4)",25.043810942203123,6.267614297912659,6.3635477076022209,0.9959457340124872,0,38.67]
["Dagbesteding vg midden (vg5)","H903","Dagbesteding vg midden (vg5)","H903 Dagbesteding vg midden (vg5)",39.482064957727111,10.572769216714445,7.5753522203715695,0.93004857266429308,0,58.56]
["Dagbesteding vg midden (vg6)","H904","Dagbesteding vg midden (vg6)","H904 Dagbesteding vg midden (vg6)",39.482064957727111,10.573071867058976,7.5753522203715695,1.0109223615916225,0,58.64]
["Dagbesteding vg midden (vg8)","H906","Dagbesteding vg midden (vg8)","H906 Dagbesteding vg midden (vg8)",70.266953487312918,25.461346317204352,9.1833279275259105,0.72337111207222815,0,105.63]
["Dagbesteding vg zwaar (vg7)","H902","Dagbesteding vg zwaar (vg7)","H902 Dagbesteding vg zwaar (vg7)",70.266953487312918,25.455243145581793,7.5753522203715695,0.91656960784307062,0,104.21]
["Dagbesteding lg licht (lg7)","H910","Dagbesteding lg licht (lg7)","H910 Dagbesteding lg licht (lg7)",36.865315175301447,7.8200394510506888,11.807135906819035,0.93004857266429308,0,57.42]
["Dagbesteding lg midden (lg2 en lg4)","H913","Dagbesteding lg midden (lg2 en lg4)","H913 Dagbesteding lg midden (lg2 en lg4)",46.476768210379696,9.4148128717073973,8.181704195488571,1.7657443915800342,0,65.84]
["Dagbesteding lg midden (lg6)","H914","Dagbesteding lg midden (lg6)","H914 Dagbesteding lg midden (lg6)",46.476768210379696,9.4271008745935827,11.807135906819035,0.93004857266429308,0,68.64]
["Dagbesteding lg zwaar (lg1 en lg3)","H915","Dagbesteding lg zwaar (lg1 en lg3)","H915 Dagbesteding lg zwaar (lg1 en lg3)",53.320207764021397,9.8990503286419091,8.181704195488571,1.7657443915800342,0,73.17]
["Dagbesteding lg zwaar (lg5)","H916","Dagbesteding lg zwaar (lg5)","H916 Dagbesteding lg zwaar (lg5)",53.320207764021397,9.9026134921513247,9.7397385690491607,0.93004857266429308,0,73.89]
["Dagbesteding zg aud licht (zg aud1 en zg aud4)","H920","Dagbesteding zg aud licht (zg aud1 en zg aud4)","H920 Dagbesteding zg aud licht (zg aud1 en zg aud4)",36.435547350844324,13.60408499209149,6.3635477076022209,1.0798148484556447,0,57.48]
["Dagbesteding zg aud midden (zg aud2)","H921","Dagbesteding zg aud midden (zg aud2)","H921 Dagbesteding zg aud midden (zg aud2)",51.124940342310239,12.362036032029076,6.3635477076022209,1.0798148484556447,0,70.930000000000007]
["Dagbesteding zg aud zwaar (zg aud3)","H922","Dagbesteding zg aud zwaar (zg aud3)","H922 Dagbesteding zg aud zwaar (zg aud3)",64.017067711152748,14.422835948851723,7.5753522203715695,1.0798148484556447,0,87.1]
["Dagbesteding zg vis licht (zg vis2 en zg vis3)","H930","Dagbesteding zg vis licht (zg vis2 en zg vis3)","H930 Dagbesteding zg vis licht (zg vis2 en zg vis3)",39.185501596652266,9.3777135521590971,6.3635477076022209,1.0798148484556447,0,56.01]
["Dagbesteding zg vis midden (zg vis1)","H931","Dagbesteding zg vis midden (zg vis1)","H931 Dagbesteding zg vis midden (zg vis1)",42.023388494110804,11.728150837334322,6.3635477076022209,1.0798148484556447,0,61.19]
["Dagbesteding zg vis zwaar (zg vis4)","H933","Dagbesteding zg vis zwaar (zg vis4)","H933 Dagbesteding zg vis zwaar (zg vis4)",53.055765036541175,10.937717242652349,7.5753522203715669,1.0798148484556447,0,72.650000000000006]
["Dagbesteding zg vis zwaar (zg vis5)","H934","Dagbesteding zg vis zwaar (zg vis5)","H934 Dagbesteding zg vis zwaar (zg vis5)",53.055765036541175,10.944543412320181,9.1833279275259052,1.0798148484556447,0,74.260000000000005]

{"sheet":"Tarieven ZZP","index":8,"n_rows":175,"n_cols":10,"rows_kept":175,"cut":false,"hidden":false,"merged":[]}
["Bijlage 4 bij BR/REG-24123a Beleidsregel prestatiebeschrijvingen en tarieven zorgzwaartepakketten en volledig pakket thuis 2024"]
["Onderbouwing beleidsregelwaarde per prestatie",null,null,null,"( a )","( b )"," ( c )","( d )","( e )","(a+b+c+d+e)"]
[null,null,null,null,null,null,null,null,"kapitaallasten dagbesteding kind ghz/ "]
[null,"Code","Prestatie",null,"Loon","Materieel","NHC"," NIC","dagbehandeling vg emg","BRW totaal"]
[]
[null,"Z015","ZZP 1vv incl.db","Z015 ZZP 1vv incl.db",56.909464165716258,31.757685372767313,28.760990297346495,2.8436672411865556,0,120.27]
[null,"Z025","ZZP 2vv incl.db","Z025 ZZP 2vv incl.db",85.280946163628883,36.438008065458206,30.199556113388422,2.8436672411865556,0,154.76]
[null,"Z031","ZZP 3vv excl.bh incl.db","Z031 ZZP 3vv excl.bh incl.db",116.45480854899296,40.915529664373956,32.972575445789225,2.8436672411865556,0,193.19]
[null,"Z041","ZZP 4vv excl.bh incl.db","Z041 ZZP 4vv excl.bh incl.db",105.97388355791949,42.623102199628093,33.459130688461244,2.8436672411865556,0,184.9]
[null,"Z051","ZZP 5vv excl.bh incl.db","Z051 ZZP 5vv excl.bh incl.db",228.50496430280768,61.000625621130112,32.929981895996391,4.1412629726017798,0,326.58]
[null,"Z061","ZZP 6vv excl.bh incl.db","Z061 ZZP 6vv excl.bh incl.db",206.00512667866897,57.577995791056544,32.836995705910645,4.1412629726017798,0,300.56]
[null,"Z071","ZZP 7vv excl.bh incl.db","Z071 ZZP 7vv excl.bh incl.db",280.10524383471812,67.993124474566656,33.906336891896764,4.1412629726017798,0,386.15]
[null,"Z081","ZZP 8vv excl.bh incl.db","Z081 ZZP 8vv excl.bh incl.db",380.61860262845886,81.671205174640718,34.92918498284002,5.2317955553869142,0,502.45]
[null,"Z095","ZZP 9bvv excl.bh incl.db","Z095 ZZP 9bvv excl.bh incl.db",189.45058020543291,57.816095425365631,31.953626900096022,5.494075543651693,0,284.70999999999998]
[null,"Z101","ZZP 10vv excl.bh incl.db","Z101 ZZP 10vv excl.bh incl.db",448.38604782171052,98.768747167562964,34.92918498284002,4.1412629726017798,0,586.23]
[null,"Z033","ZZP 3vv incl.bh incl.db","Z033 ZZP 3vv incl.bh incl.db",136.46651877478308,48.550535992612033,33.473910557873253,3.1611640690860243,0,221.65]
[null,"Z043","ZZP 4vv incl.bh incl.db","Z043 ZZP 4vv incl.bh incl.db",128.4794404273575,48.694838690669798,33.960465800545272,3.1611640690860243,0,214.3]
[null,"Z053","ZZP 5vv incl.bh incl.db","Z053 ZZP 5vv incl.bh incl.db",250.20184978024545,65.793487171756055,33.952829986939641,4.8314734680354103,0,354.78]
[null,"Z063","ZZP 6vv incl.bh incl.db","Z063 ZZP 6vv incl.bh incl.db",227.10871198658199,63.563242883279933,34.696719507625644,4.8314734680354103,0,330.2]
[null,"Z073","ZZP 7vv incl.bh incl.db","Z073 ZZP 7vv incl.bh incl.db",313.67874463614692,75.928292689322191,35.766060693611756,4.8314734680354103,0,430.2]
[null,"Z083","ZZP 8vv incl.bh incl.db","Z083 ZZP 8vv incl.bh incl.db",400.94031068237166,90.721369682427692,36.788908784555012,6.1980902489939966,0,534.65]
[null,"Z097","ZZP 9bvv incl.bh incl.db","Z097 ZZP 9bvv incl.bh incl.db",262.0193661956892,68.291601570883358,43.48391447072899,6.5846081264368284,0,380.38]
[null,"Z103","ZZP 10vv incl.bh incl.db","Z103 ZZP 10vv incl.bh incl.db",454.89334257080731,99.423450489154988,36.788908784555012,4.8314734680354103,0,595.94000000000005]
[null,"Z212","ZZP 1 ggz wonen met intensieve begeleiding incl. BH excl. DB (integraal bekostigingsmodel)","Z212G ZZP 1 ggz wonen incl. BH excl. DB",128.98884373542899,43.090730891724611,26.511832073817583,6.7210180752392823,0,205.31]
[null,"Z222","ZZP 2 ggz wonen met intensieve begeleiding en verzorging incl. BH excl. DB  (integraal bekostigingsmodel)","Z222G ZZP 2 ggz wonen incl. BH excl. DB",130.9580810127635,47.965063033142563,26.511832073817583,6.7210180752392823,0,212.16]
[null,"Z232","ZZP 3 ggz wonen met intensieve begeleiding en gedragsregulering incl. BH excl. DB  (integraal bekostigingsmodel)","Z232G ZZP 3 ggz wonen incl. BH excl. DB",135.97354245172824,53.607970429694483,36.059000358399039,6.7210180752392823,0,232.36]
[null,"Z242","ZZP 4 ggz wonen met intensieve begeleiding en intensieve verpleging en verzorging incl. BH excl. DB  (integraal bekostigingsmodel)","Z242G ZZP 4 ggz wonen incl. BH excl. DB",292.10327377887455,74.258692359088855,32.707324047864518,6.7210180752392823,0,405.79]
[null,"Z252","ZZP 5 ggz beveiligd wonen vanwege extreme gedragsproblematiek met zeer intensieve begeleiding incl. BH excl. DB  (integraal bekostigingsmodel)","Z252G ZZP 5 ggz beveiligd wonen incl. BH excl. DB",330.59382234759283,77.200478551435424,37.403843176213968,6.7210180752392823,0,451.92]
[null,"Z213","ZZP 1 ggz wonen met intensieve begeleiding incl. BH incl. DB  (integraal bekostigingsmodel)","Z213G ZZP 1 ggz wonen incl. BH incl. DB",159.07479336327131,50.029668559938969,37.612708062449116,7.3796778466127302,0,254.1]
[null,"Z223","ZZP 2 ggz wonen met intensieve begeleiding en verzorging incl. BH incl. DB  (integraal bekostigingsmodel)","Z223G ZZP 2 ggz wonen incl. BH incl. DB",171.1991409343596,52.921878608464503,37.612708062449116,7.3796778466127302,0,269.11]
[null,"Z233","ZZP 3 ggz wonen met intensieve begeleiding en gedragsregulering incl. BH incl. DB  (integraal bekostigingsmodel)","Z233G ZZP 3 ggz wonen incl. BH incl. DB",168.14366380792106,57.335817941531445,48.363570399937608,7.3796778466127302,0,281.22000000000003]
[null,"Z243","ZZP 4 ggz wonen met intensieve begeleiding en intensieve verpleging en verzorging incl. BH incl. DB  (integraal bekostigingsmodel)","Z243G ZZP 4 ggz wonen incl. BH incl. DB",315.74033002308227,78.871105691583864,42.895050718636391,7.3796778466127302,0,444.89]
[null,"Z253","ZZP 5 ggz beveiligd wonen vanwege extreme gedragsproblematiek met zeer intensieve begeleiding incl. BH incl. DB  (integraal bekostigingsmodel)","Z253G ZZP 5 ggz beveiligd wonen incl. BH incl. DB",374.57932336628079,85.619465280101522,53.907114344969749,7.3796778466127302,0,521.49]
[null,"Z211","ZZP 1 ggz wonen met intensieve begeleiding excl. BH incl. DB - modulair bekostigingsmodel","Z211G ZZP 1 ggz wonen excl. BH incl. DB",134.75721143456511,47.626146992448604,34.957618885675217,6.2102207015210986,0,223.55]
[null,"Z221","ZZP 2 ggz wonen met intensieve begeleiding en verzorging excl. BH incl. DB - modulair bekostigingsmodel","Z221G ZZP 2 ggz wonen excl. BH incl. DB",158.6887023324808,56.063280576753783,38.242603598152073,6.2102207015210986,0,259.2]
[null,"Z231","ZZP 3 ggz wonen met intensieve begeleiding en gedragsregulering excl. BH incl. DB - modulair bekostigingsmodel","Z231G ZZP 3 ggz wonen excl. BH incl. DB",171.15280439698796,60.442073852500926,37.785112092030438,6.2102207015210986,0,275.58999999999997]
[null,"Z241","ZZP 4 ggz wonen met intensieve begeleiding en intensieve verpleging en verzorging excl. BH incl. DB - modulair bekostigingsmodel","Z241G ZZP 4 ggz wonen excl. BH incl. DB",209.73653723040934,73.974781234217403,39.101915657952389,6.2102207015210986,0,329.02]
[null,"Z251","ZZP 5 ggz beveiligd wonen vanwege extreme gedragsproblematiek met zeer intensieve begeleiding excl. BH incl. DB - modulair bekostigingsmodel","Z251G ZZP 5 ggz beveiligd wonen excl. BH incl. DB",285.09974831798598,100.60065942634181,49.148935653398489,6.2102207015210986,0,441.06]
[null,"Z210","ZZP 1 ggz wonen met intensieve begeleiding excl. BH excl. DB - modulair bekostigingsmodel","Z210G ZZP 1 ggz wonen excl. BH excl. DB",109.72959979338019,38.775666832067905,26.800014869369857,5.5650029662981257,0,180.87]
[null,"Z220","ZZP 2 ggz wonen met intensieve begeleiding en verzorging excl. BH excl. DB - modulair bekostigingsmodel","Z220G ZZP 2 ggz wonen excl. BH excl. DB",132.30530469096271,46.728075802383884,28.369890217366418,5.5650029662981257,0,212.97]
[null,"Z230","ZZP 3 ggz wonen met intensieve begeleiding en gedragsregulering excl. BH excl. DB - modulair bekostigingsmodel","Z230G ZZP 3 ggz wonen excl. BH excl. DB",144.28449059476694,50.940574982497871,28.963701627897805,5.5650029662981257,0,229.75]
[null,"Z240","ZZP 4 ggz wonen met intensieve begeleiding en intensieve verpleging en verzorging excl. BH excl. DB - modulair bekostigingsmodel","Z240G ZZP 4 ggz wonen excl. BH excl. DB",182.2150710484658,64.238783902103478,29.223289672131166,5.5650029662981257,0,281.24]
[null,"Z250","ZZP 5 ggz beveiligd wonen vanwege extreme gedragsproblematiek met zeer intensieve begeleiding excl. BH excl. DB - modulair bekostigingsmodel","Z250G ZZP 5 ggz beveiligd wonen excl. BH excl. DB",242.83101530314804,85.646570316345276,33.414337069012412,5.5650029662981257,0,367.46]
[null,"Z414","ZZP 1vg excl.db","Z414 ZZP 1vg excl.db",42.476103032713304,27.747682582645318,26.801656449561715,2.2362820052049606,0,99.26]
[null,"Z424","ZZP 2vg excl.db","Z424 ZZP 2vg excl.db",58.007909052626886,28.755395351759528,26.801656449561715,2.2362820052049606,0,115.8]
[null,"Z415","ZZP 1vg incl.db","Z415 ZZP 1vg incl.db",78.94126722175335,37.843832748007642,34.960945017117439,3.5338777366201852,0,155.28]
[null,"Z425","ZZP 2vg incl.db","Z425 ZZP 2vg incl.db",96.360500525876759,38.055856785619063,34.960945017117439,3.5338777366201852,0,172.91]
[null,"Z430","ZZP 3vg excl.bh excl.db","Z430 ZZP 3vg excl.bh excl.db",91.857935384038186,33.083888776480187,26.801656449561715,2.2362820052049606,0,153.97999999999999]
[null,"Z440","ZZP 4vg excl.bh excl.db","Z440 ZZP 4vg excl.bh excl.db",121.72545756069022,36.884561756938176,26.801656449561715,2.2362820052049606,0,187.65]
[null,"Z454","ZZP 5vg excl.bh excl.db","Z454 ZZP 5vg excl.bh excl.db",153.92151851401175,40.428032601660554,24.47017911566428,8.6552396127377182,0,227.47]
[null,"Z460","ZZP 6vg excl.bh excl.db","Z460 ZZP 6vg excl.bh excl.db",129.55023571790267,38.786558278955297,24.47017911566428,5.7425513220078006,0,198.55]
[null,"Z470","ZZP 7vg excl.bh excl.db","Z470 ZZP 7vg excl.bh excl.db",172.69931872996369,41.573772065182695,24.47017911566428,8.6552396127377182,0,247.4]
[null,"Z480","ZZP 8vg excl.bh excl.db","Z480 ZZP 8vg excl.bh excl.db",182.90281300298469,44.870938822560127,32.965825892821528,8.6552396127377182,0,269.39]
[null,"Z431","ZZP 3vg excl.bh incl.db","Z431 ZZP 3vg excl.bh incl.db",127.1131184023578,41.530230770844661,34.960945017117439,3.5338777366201852,0,207.14]
[null,"Z441","ZZP 4vg excl.bh incl.db","Z441 ZZP 4vg excl.bh incl.db",157.30089605443234,45.46234329112562,34.960945017117439,3.5338777366201852,0,241.26]
[null,"Z455","ZZP 5vg excl.bh incl.db","Z455 ZZP 5vg excl.bh incl.db",200.92098548757511,53.112868212493886,34.183233469455779,9.5663174667101121,0,297.77999999999997]
[null,"Z461","ZZP 6vg excl.bh incl.db","Z461 ZZP 6vg excl.bh incl.db",176.14709454732221,50.451119309116493,34.183233469455779,6.7502586453409004,0,267.52999999999997]
[null,"Z471","ZZP 7vg excl.bh incl.db","Z471 ZZP 7vg excl.bh incl.db",225.24485972537522,57.087831714708543,34.183233469455779,9.5663174667101121,0,326.08]
[null,"Z481","ZZP 8vg excl.bh incl.db","Z481 ZZP 8vg excl.bh incl.db",252.80301301250239,58.848903101908341,44.740613482087632,9.5663174667101121,0,365.96]
[null,"Z432","ZZP 3vg incl.bh excl.db","Z432 ZZP 3vg incl.bh excl.db",105.98643199023498,38.578076352370758,26.801656449561715,2.8436672411865556,0,174.21]
[null,"Z442","ZZP 4vg incl.bh excl.db","Z442 ZZP 4vg incl.bh excl.db",144.3401805303555,44.469094205322186,26.801656449561715,2.8436672411865556,0,218.45]
[null,"Z456","ZZP 5vg incl.bh excl.db","Z456 ZZP 5vg incl.bh excl.db",189.28228084894778,50.008760664126456,28.960175939586762,9.7595764054315293,0,278.01]
[null,"Z462","ZZP 6vg incl.bh excl.db","Z462 ZZP 6vg incl.bh excl.db",157.24767448357255,47.087828550115354,28.960175939586762,6.9297133741536427,0,240.23]
[null,"Z472","ZZP 7vg incl.bh excl.db","Z472 ZZP 7vg incl.bh excl.db",244.38577522920187,58.77273337808537,28.960175939586762,9.7595764054315293,0,341.88]
[null,"Z482","ZZP 8vg incl.bh excl.db","Z482 ZZP 8vg incl.bh excl.db",224.80315983597549,55.366898155730169,37.455822716744009,9.7595764054315293,0,327.39]
[null,"Z433","ZZP 3vg incl.bh incl.db","Z433 ZZP 3vg incl.bh incl.db",139.20571271911751,47.349805209549466,34.960945017117439,4.1412629726017798,0,225.66]
[null,"Z443","ZZP 4vg incl.bh incl.db","Z443 ZZP 4vg incl.bh incl.db",174.4676582162023,53.102882073469274,34.960945017117439,4.1412629726017798,0,266.67]
[null,"Z457","ZZP 5vg incl.bh incl.db","Z457 ZZP 5vg incl.bh incl.db",233.23433375798172,62.49821235227472,38.673230293378246,10.698262679221264,0,345.1]
[null,"Z463","ZZP 6vg incl.bh incl.db","Z463 ZZP 6vg incl.bh incl.db",203.34607042346852,58.776754809806761,38.673230293378246,7.9374206974867434,0,308.73]
[null,"Z473","ZZP 7vg incl.bh incl.db","Z473 ZZP 7vg incl.bh incl.db",309.01987126025233,76.810951578813288,38.673230293378246,10.698262679221264,0,435.2]
[null,"Z483","ZZP 8vg incl.bh incl.db","Z483 ZZP 8vg incl.bh incl.db",290.03563659288261,72.222442192943362,49.230610306010107,10.698262679221264,0,422.19]
[null,"Z513","ZZP 1lvg incl.bh incl.db","Z513 ZZP 1lvg incl.bh incl.db",175.38924564336244,49.857358404946183,34.960945017117439,4.1412629726017798,0,264.35000000000002]
[null,"Z523","ZZP 2lvg incl.bh incl.db","Z523 ZZP 2lvg incl.bh incl.db",221.18085881377547,57.388534079657461,34.960945017117439,4.1412629726017798,0,317.67]
[null,"Z533","ZZP 3lvg incl.bh incl.db","Z533 ZZP 3lvg incl.bh incl.db",292.90276745638431,68.375867851099883,45.466780586067685,7.9374206974867434,0,414.68]
[null,"Z543","ZZP 4lvg incl.bh incl.db","Z543 ZZP 4lvg incl.bh incl.db",352.008411536381,71.911932660360321,45.466780586067685,7.9374206974867434,0,477.32]
[null,"Z553","ZZP 5lvg incl.bh incl.db","Z553 ZZP 5lvg incl.bh incl.db",330.69157600644292,71.505376397554656,45.466780586067685,7.9374206974867434,0,455.6]
[null,"Z573","ZZP 1sglvg incl.bh incl.db","Z573 ZZP 1sglvg incl.bh incl.db",362.79333422074825,117.8660324345346,45.466780586067685,10.698262679221264,0,536.82000000000005]
[null,"Z614","ZZP 1lg excl.db","Z614 ZZP 1lg excl.db",77.832084332096741,34.460541199069006,26.801656449561715,3.2025766988120421,0,142.30000000000001]
[null,"Z624","ZZP 2lg excl.db","Z624 ZZP 2lg excl.db",113.72153301741137,37.914183432251249,26.801656449561715,3.2025766988120421,0,181.64]
[null,"Z615","ZZP 1lg incl.db","Z615 ZZP 1lg incl.db",126.88040185072825,41.936095066626145,34.960945017117439,4.9695155671221354,0,208.75]
[null,"Z625","ZZP 2lg incl.db","Z625 ZZP 2lg incl.db",156.69025423960969,45.526947731753658,34.960945017117439,4.9695155671221354,0,242.15]
[null,"Z630","ZZP 3lg excl.bh excl.db","Z630 ZZP 3lg excl.bh excl.db",84.054884515330414,36.043670423664246,26.801656449561715,3.2025766988120421,0,150.1]
[null,"Z640","ZZP 4lg excl.bh excl.db","Z640 ZZP 4lg excl.bh excl.db",143.82101231076763,42.953194394371067,26.801656449561715,3.2025766988120421,0,216.78]
[null,"Z650","ZZP 5lg excl.bh excl.db","Z650 ZZP 5lg excl.bh excl.db",136.5004949122081,44.279874178296112,26.531912351138885,8.6552396127377165,0,215.97]
[null,"Z660","ZZP 6lg excl.bh excl.db","Z660 ZZP 6lg excl.bh excl.db",211.83446302526502,53.246239793087668,32.133902549955735,8.6552396127377182,0,305.87]
[null,"Z670","ZZP 7lg excl.bh excl.db","Z670 ZZP 7lg excl.bh excl.db",233.72969386208871,55.485304108332308,32.133902549955735,8.6552396127377182,0,330]
[null,"Z631","ZZP 3lg excl.bh incl.db","Z631 ZZP 3lg excl.bh incl.db",132.87282114613049,44.903569700178103,34.960945017117439,4.9695155671221354,0,217.71]
[null,"Z641","ZZP 4lg excl.bh incl.db","Z641 ZZP 4lg excl.bh incl.db",187.80506454006158,47.562629296374176,34.960945017117439,4.9695155671221354,0,275.3]
[null,"Z651","ZZP 5lg excl.bh incl.db","Z651 ZZP 5lg excl.bh incl.db",188.38239196666012,50.522419055809884,36.244966704930384,9.5663174667101103,0,284.72000000000003]
[null,"Z661","ZZP 6lg excl.bh incl.db","Z661 ZZP 6lg excl.bh incl.db",251.7604316591412,56.741382162709357,43.908690139221846,9.5663174667101103,0,361.98]
[null,"Z671","ZZP 7lg excl.bh incl.db","Z671 ZZP 7lg excl.bh incl.db",273.15227166904225,58.497050576167489,43.908690139221846,9.5663174667101103,0,385.12]
[null,"Z632","ZZP 3lg incl.bh excl.db","Z632 ZZP 3lg incl.bh excl.db",103.38176817120733,39.086985949497929,26.801656449561715,3.8513745645196544,0,173.12]
[null,"Z642","ZZP 4lg incl.bh excl.db","Z642 ZZP 4lg incl.bh excl.db",172.61244011219961,49.021652677836414,26.801656449561715,3.8513745645196544,0,252.29]
[null,"Z652","ZZP 5lg incl.bh excl.db","Z652 ZZP 5lg incl.bh excl.db",174.70797086631242,50.231954602177005,31.021909175061367,9.7595764054315293,0,265.72000000000003]
[null,"Z662","ZZP 6lg incl.bh excl.db","Z662 ZZP 6lg incl.bh excl.db",249.76987997806688,60.831549897077288,36.623899373878217,9.7595764054315293,0,356.98]
[null,"Z672","ZZP 7lg incl.bh excl.db","Z672 ZZP 7lg incl.bh excl.db",281.60388200788759,65.651823337612768,36.623899373878217,9.7595764054315293,0,393.64]
[null,"Z633","ZZP 3lg incl.bh incl.db","Z633 ZZP 3lg incl.bh incl.db",147.5939726478075,52.903465650885074,34.960945017117439,5.632117642738419,0,241.09]
[null,"Z643","ZZP 4lg incl.bh incl.db","Z643 ZZP 4lg incl.bh incl.db",208.85270720300349,60.285417737202955,34.960945017117439,5.632117642738419,0,309.73]
[null,"Z653","ZZP 5lg incl.bh incl.db","Z653 ZZP 5lg incl.bh incl.db",217.26525571000678,64.727696469743378,40.734963528852852,10.698262679221264,0,333.43]
[null,"Z663","ZZP 6lg incl.bh incl.db","Z663 ZZP 6lg incl.bh incl.db",282.69736055088151,71.706871846709475,48.398686963144321,10.698262679221264,0,413.5]
[null,"Z673","ZZP 7lg incl.bh incl.db","Z673 ZZP 7lg incl.bh incl.db",298.03705343014013,69.957264745472344,48.398686963144321,10.698262679221264,0,427.09]
[null,"Z710","ZZP 1zg-auditief excl.bh excl.db","Z710 ZZP 1zg-auditief excl.bh excl.db",133.30784483435636,36.410274972285045,26.801656449561715,8.1168754262994867,0,204.64]
[null,"Z720","ZZP 2zg-auditief excl.bh excl.db","Z720 ZZP 2zg-auditief excl.bh excl.db",277.80049781217667,67.052514410890623,26.801656449561715,8.1168754262994867,0,379.77]
[null,"Z730","ZZP 3zg-auditief excl.bh excl.db","Z730 ZZP 3zg-auditief excl.bh excl.db",316.80529464007691,78.318700620588686,25.151970596986413,8.1168754262994884,0,428.39]
[null,"Z740","ZZP 4zg-auditief excl.bh excl.db","Z740 ZZP 4zg-auditief excl.bh excl.db",157.7265910409275,53.872034040788456,26.801656449561715,8.1168754262994867,0,246.52]
[null,"Z711","ZZP 1zg-auditief excl.bh incl.db","Z711 ZZP 1zg-auditief excl.bh incl.db",153.15622745194159,53.836892783231427,34.960945017117439,9.4972964171667495,0,251.45]
[null,"Z721","ZZP 2zg-auditief excl.bh incl.db","Z721 ZZP 2zg-auditief excl.bh incl.db",311.35111271419794,84.187837841432909,34.960945017117439,9.4972964171667495,0,440]
[null,"Z731","ZZP 3zg-auditief excl.bh incl.db","Z731 ZZP 3zg-auditief excl.bh incl.db",334.83759473169903,101.05225676772187,34.865024950777908,9.4972964171667478,0,480.25]
[null,"Z741","ZZP 4zg-auditief excl.bh incl.db","Z741 ZZP 4zg-auditief excl.bh incl.db",206.8482555516465,70.910753061492699,34.960945017117439,9.4972964171667495,0,322.22000000000003]
[null,"Z712","ZZP 1zg-auditief incl.bh excl.db","Z712 ZZP 1zg-auditief incl.bh excl.db",136.70563288692898,23.25293714784776,26.801656449561715,9.2350164289019681,0,196]
[null,"Z722","ZZP 2zg-auditief incl.bh excl.db","Z722 ZZP 2zg-auditief incl.bh excl.db",313.25371057363333,36.020329538821599,26.801656449561715,9.2350164289019681,0,385.31]
[null,"Z732","ZZP 3zg-auditief incl.bh excl.db","Z732 ZZP 3zg-auditief incl.bh excl.db",357.40967390842314,44.24127847129558,29.641967420908895,9.2350164289019681,0,440.53]
[null,"Z742","ZZP 4zg-auditief incl.bh excl.db","Z742 ZZP 4zg-auditief incl.bh excl.db",186.81708498272619,63.939690218609606,26.801656449561715,9.2350164289019681,0,286.79000000000002]
[null,"Z713","ZZP 1zg-auditief incl.bh incl.db","Z713 ZZP 1zg-auditief incl.bh incl.db",187.3258518883132,27.997202960951757,34.960945017117439,10.615437419769227,0,260.89999999999998]
[null,"Z723","ZZP 2zg-auditief incl.bh incl.db","Z723 ZZP 2zg-auditief incl.bh incl.db",370.88330442765948,63.249673398024946,34.960945017117439,10.615437419769227,0,479.71]
[null,"Z733","ZZP 3zg-auditief incl.bh incl.db","Z733 ZZP 3zg-auditief incl.bh incl.db",440.67017338845199,71.762049855812705,39.35502177470039,10.615437419769227,0,562.4]
[null,"Z743","ZZP 4zg-auditief incl.bh incl.db","Z743 ZZP 4zg-auditief incl.bh incl.db",235.93874949344516,80.978467014631462,34.960945017117439,10.615437419769227,0,362.49]
[null,"Z814","ZZP 1zg-visueel excl.db","Z814 ZZP 1zg-visueel excl.db",59.223609666644514,32.015805005327742,26.801656449561715,8.1168754262994867,0,126.16]
[null,"Z824","ZZP 2zg-visueel excl.db","Z824 ZZP 2zg-visueel excl.db",104.90006716851723,41.061120381552847,26.801656449561715,8.1168754262994867,0,180.88]
[null,"Z815","ZZP 1zg-visueel incl.db","Z815 ZZP 1zg-visueel incl.db",108.63183777764641,39.347317463771098,34.960945017117439,9.4972964171667495,0,192.44]
[null,"Z825","ZZP 2zg-visueel incl.db","Z825 ZZP 2zg-visueel incl.db",148.34079779705763,45.446170472137808,34.960945017117439,9.4972964171667495,0,238.25]
[null,"Z830","ZZP 3zg-visueel excl.bh excl.db","Z830 ZZP 3zg-visueel excl.bh excl.db",141.694809982116,44.863980421352409,26.801656449561715,8.1168754262994867,0,221.48]
[null,"Z840","ZZP 4zg-visueel excl.bh excl.db","Z840 ZZP 4zg-visueel excl.bh excl.db",191.10790999278811,52.211683665288014,27.275684876217589,8.1168754262994884,0,278.70999999999998]
[null,"Z850","ZZP 5zg-visueel excl.bh excl.db","Z850 ZZP 5zg-visueel excl.bh excl.db",213.72786609438177,55.848201421308801,32.965825892821535,8.1168754262994867,0,310.66000000000003]
[null,"Z831","ZZP 3zg-visueel excl.bh incl.db","Z831 ZZP 3zg-visueel excl.bh incl.db",183.79330538717076,49.011991918907817,34.960945017117439,9.4972964171667495,0,277.26]
[null,"Z841","ZZP 4zg-visueel excl.bh incl.db","Z841 ZZP 4zg-visueel excl.bh incl.db",246.46507673496274,57.965868398199063,36.988739230009081,9.4972964171667478,0,350.92]
[null,"Z851","ZZP 5zg-visueel excl.bh incl.db","Z851 ZZP 5zg-visueel excl.bh incl.db",266.02825414937155,62.213424929525075,44.740613482087632,9.4972964171667495,0,382.48]
[null,"Z832","ZZP 3zg-visueel incl.bh excl.db","Z832 ZZP 3zg-visueel incl.bh excl.db",152.84002645792432,49.359728495974757,26.801656449561715,9.2350164289019681,0,238.24]
[null,"Z842","ZZP 4zg-visueel incl.bh excl.db","Z842 ZZP 4zg-visueel incl.bh excl.db",211.10359832181493,55.121373736024957,31.765681700140071,9.2350164289019681,0,307.23]
[null,"Z852","ZZP 5zg-visueel incl.bh excl.db","Z852 ZZP 5zg-visueel incl.bh excl.db",242.6808279855934,57.079263184775101,37.455822716744009,9.2350164289019681,0,346.45]
[null,"Z833","ZZP 3zg-visueel incl.bh incl.db","Z833 ZZP 3zg-visueel incl.bh incl.db",195.59703765065632,53.376938875195719,34.960945017117439,10.615437419769227,0,294.55]
[null,"Z843","ZZP 4zg-visueel incl.bh incl.db","Z843 ZZP 4zg-visueel incl.bh incl.db",267.20909357559066,61.538346320939418,41.478736053931563,10.615437419769227,0,380.84]
[null,"Z853","ZZP 5zg-visueel incl.bh incl.db","Z853 ZZP 5zg-visueel incl.bh incl.db",296.34376921355135,64.237040455736718,49.230610306010107,10.615437419769227,0,420.43]
[null,"Z995","Verblijfscomponent niet-geïndiceerde partner vv","Z995 Verblijfscomponent niet-geïndiceerde partner vv",5.0772647890834604,23.146719792888646,28.760990297346495,2.8436672411865556,0,59.83]
[null,"Z997","Verblijfscomponent niet-geïndiceerde partner ghz: vg en lg","Z997 Verblijfscomponent niet-geïndiceerde partner ghz: vg en lg",4.4896341248720066,16.07952526575372,46.098114544554818,6.7526364280425426,0,73.42]
[null,"Z998","Verblijfscomponent niet-geïndiceerde partner ghz: zg","Z998 Verblijfscomponent niet-geïndiceerde partner ghz: zg",28.78851649603611,9.7852221150569623,47.553686963555435,9.8459030736934707,0,95.97]
[null,"Z916","Mutatiedag (vv), niet toegelaten voor behandeling","Z916 Mutatiedag (vv), niet toegelaten voor behandeling",54.177937392161944,30.448197760877317,28.760990297346495,2.8436672411865556,0,116.23]
[null,"Z917","Mutatiedag (vv), toegelaten voor behandeling","Z917 Mutatiedag (vv), toegelaten voor behandeling",53.566947466942253,31.659076901083886,28.760990297346495,2.8436672411865556,0,116.83]
[null,"Z110","Crisiszorg vv met behandeling","Z110 Crisiszorg vv met behandeling",276.00217091752234,68.85730044873057,35.766060693611756,4.8314734680354094,0,385.46]
[null,"Z492","Crisiszorg ghz - categorie licht","Z492 Crisiszorg ghz - categorie licht",203.9199466250214,70.805964855955139,38.678522434161778,7.9151618736993337,0,321.32]
[null,"Z493","Crisiszorg ghz - categorie midden","Z493 Crisiszorg ghz - categorie midden",409.14899564882791,106.84292785942677,38.678522434161778,7.9151618736993337,0,562.59]
[null,"Z494","Crisiszorg ghz - categorie zwaar","Z494 Crisiszorg ghz - categorie zwaar",443.44196900840149,115.89119241487454,64.432291084630876,7.9151618736993337,0,631.67999999999995]
[null,"Z560","Crisisopvang/spoedzorg lvg ","Z560 Crisisopvang/spoedzorg lvg ",361.20689472210796,80.420875458651338,45.475985535214946,7.917359292631871,0,495.02]
[null,"Z280","Klinisch Intensieve Behandeling","Z280 Klinisch Intensieve Behandeling",537.78522757646112,185.82740756340675,64.278288552872098,10.45790412507232,0,798.35]
[null,"Z999","Logeren ghz-vg","Z999 Logeren ghz-vg",218.04601750398871,75.438543120942541,46.098114544554818,6.738768423649006,0,346.32]
[null,"Z1000","Logeren ghz-lg","Z1000 Logeren ghz-lg",249.51572768512929,86.294376388300734,46.098114544554818,6.7526364280425426,0,388.66]
[null,"Z1001","Logeren ghz-lvg","Z1001 Logeren ghz-lvg",241.68261575868081,83.592255633180471,46.098114544554818,6.7526364280425426,0,378.13]
[null,"Z1002","Logeren ghz-zg","Z1002 Logeren ghz-zg",351.43769104585721,121.47132126342044,47.553686963555435,9.8459030736934707,0,530.30999999999995]
[null,"Z1003","Logeren vv","Z1003 Logeren vv",197.0814621027113,68.183786645598559,43.061015866783549,4.0929567594056966,0,312.42]
[null,"Z1004","Logeren ggz wonen","Z1004 Logeren ggz wonen",155.84465465027759,55.029513160260485,31.478613036652817,4.1448155947680005,0,246.5]
[null,"Z1006","Logeren ghz-zevmb","Z1006 Logeren ghz-zevmb",437.53504831025231,76.274529232032094,46.088502563209914,6.7367847836088348,0,566.63]
[null,"Z1007","Beveiligde zorg LZ niveau 2","Z1007 Beveiligde zorg LZ niveau 2",0,0,0,0,0,788.46]
[null,"Z1008","Beveiligde zorg LZ niveau 3","Z1008 Beveiligde zorg LZ niveau 3",0,0,0,0,0,776.71]
[null,"H001G","Dagbesteding ggz wonen-1","H001G Dagbesteding ggz wonen-1",40.643866754086318,14.349787922539987,8.1576027839454905,0.65861703577707886,0,63.81]
[null,"H002G","Dagbesteding ggz wonen-2","H002G Dagbesteding ggz wonen-2",46.037337825205611,16.258457326134465,9.8727623678681802,0.65861703577707886,0,72.83]
[null,"H003G","Dagbesteding ggz wonen-3","H003G Dagbesteding ggz wonen-3",39.050642194057801,13.791519326122041,8.8213684031449571,0.65861703577707886,0,62.32]
[null,"H004G","Dagbesteding ggz wonen-4","H004G Dagbesteding ggz wonen-4",50.510343127744655,17.831551998274843,9.8786684934214719,0.65861703577707886,0,78.88]
[null,"H005G","Dagbesteding ggz wonen-5","H005G Dagbesteding ggz wonen-5",62.791703420723408,22.181281985960474,15.734598584386072,0.65861703577707886,0,101.37]
[null,"H900","Dagbesteding vg licht (vg1-vg4)","H900 Dagbesteding vg licht (vg1-vg4)",25.043810942203123,6.267614297912659,6.3635477076022209,0.9959457340124872,0,38.67]
[null,"H903","Dagbesteding vg midden (vg5)","H903 Dagbesteding vg midden (vg5)",39.482064957727111,10.572769216714445,7.5753522203715695,0.93004857266429308,0,58.56]
[null,"H904","Dagbesteding vg midden (vg6)","H904 Dagbesteding vg midden (vg6)",39.482064957727111,10.573071867058976,7.5753522203715695,1.0109223615916225,0,58.64]
[null,"H906","Dagbesteding vg zwaar (vg8)","H906 Dagbesteding vg zwaar (vg8)",70.266953487312918,25.461346317204352,9.1833279275259105,0.72337111207222815,0,105.63]
[null,"H902","Dagbesteding vg zwaar (vg7)","H902 Dagbesteding vg zwaar (vg7)",70.266953487312918,25.455243145581793,7.5753522203715695,0.91656960784307062,0,104.21]
[null,"H910","Dagbesteding lg licht (lg7)","H910 Dagbesteding lg licht (lg7)",36.865315175301447,7.8200394510506888,11.807135906819035,0.93004857266429308,0,57.42]
[null,"H913","Dagbesteding lg midden (lg2 en lg4)","H913 Dagbesteding lg midden (lg2 en lg4)",46.476768210379696,9.4148128717073973,8.181704195488571,1.7657443915800342,0,65.84]
[null,"H914","Dagbesteding lg midden (lg6)","H914 Dagbesteding lg midden (lg6)",46.476768210379696,9.4271008745935827,11.807135906819035,0.93004857266429308,0,68.64]
[null,"H915","Dagbesteding lg zwaar (lg1 en lg3)","H915 Dagbesteding lg zwaar (lg1 en lg3)",53.320207764021397,9.8990503286419091,8.181704195488571,1.7657443915800342,0,73.17]
[null,"H916","Dagbesteding lg zwaar (lg5)","H916 Dagbesteding lg zwaar (lg5)",53.320207764021397,9.9026134921513247,9.7397385690491607,0.93004857266429308,0,73.89]
[null,"H920","Dagbesteding zg aud licht (zg aud1 en zg aud4)","H920 Dagbesteding zg aud licht (zg aud1 en zg aud4)",36.435547350844324,13.60408499209149,6.3635477076022209,1.0798148484556447,0,57.48]
[null,"H921","Dagbesteding zg aud midden (zg aud2)","H921 Dagbesteding zg aud midden (zg aud2)",51.124940342310239,12.362036032029076,6.3635477076022209,1.0798148484556447,0,70.930000000000007]
[null,"H922","Dagbesteding zg aud zwaar (zg aud3)","H922 Dagbesteding zg aud zwaar (zg aud3)",64.017067711152748,14.422835948851723,7.5753522203715695,1.0798148484556447,0,87.1]
[null,"H930","Dagbesteding zg vis licht (zg vis2 en zg vis3)","H930 Dagbesteding zg vis licht (zg vis2 en zg vis3)",39.185501596652266,9.3777135521590971,6.3635477076022209,1.0798148484556447,0,56.01]
[null,"H931","Dagbesteding zg vis midden (zg vis1)","H931 Dagbesteding zg vis midden (zg vis1)",42.023388494110804,11.728150837334322,6.3635477076022209,1.0798148484556447,0,61.19]
[null,"H933","Dagbesteding zg vis zwaar (zg vis4)","H933 Dagbesteding zg vis zwaar (zg vis4)",53.055765036541175,10.937717242652349,7.5753522203715669,1.0798148484556447,0,72.650000000000006]
[null,"H934","Dagbesteding zg vis zwaar (zg vis5)","H934 Dagbesteding zg vis zwaar (zg vis5)",53.055765036541175,10.944543412320181,9.1833279275259052,1.0798148484556447,0,74.260000000000005]

{"sheet":"Ruimte behandeling basis MPT","index":9,"n_rows":46,"n_cols":8,"rows_kept":46,"cut":false,"hidden":false,"merged":[]}
["Profiel","VPT EX behandeling","Bedrag","VPT incl behandeling","Bedrag",null,"Per dag","Per week"]
["1VV","V015",{"$f":"VLOOKUP(B2,Tarieven_VPT0,9,FALSE)","v":87.17},"nvt",{"$f":"IFERROR(VLOOKUP(D2,Tarieven_VPT0,9,FALSE),0)","v":0},{"$f":"E2-C2","v":-87.17},{"$f":"IF(F2>0,F2,0)","v":0},{"$f":"G2*7","v":0}]
["2VV","V025",115.4,"nvt",0,{"$f":"E3-C3","v":-115.4},{"$f":"IF(F3>0,F3,0)","v":0},{"$f":"G3*7","v":0}]
["3VV","V031",152.80000000000001,"V033",179.8,27,27,189]
["4VV","V041",143.76,"V043",157.08000000000001,13.320000000000022,13.320000000000022,93.240000000000151]
["5VV","V051",284.52,"V053",301.14999999999998,16.629999999999995,16.629999999999995,116.40999999999997]
["6VV","V061",251.69,"V063",269.67,17.980000000000018,17.980000000000018,125.86000000000013]
["7VV","V071",347.22,"V073",369.53,22.309999999999945,22.309999999999945,156.16999999999962]
["8VV","V081",458.95,"V083",475.94,16.990000000000009,16.990000000000009,118.93000000000006]
["9VV","V095",248.17,"V097",318.86,70.690000000000026,70.690000000000026,494.83000000000015]
["10VV","V101",550.54,"V103",543.82000000000005,-6.7199999999999136,0,0]
["1VG","V414",67.989999999999995,"nvt",0,-67.989999999999995,0,0]
["2VG","V424",83.34,"nvt",0,-83.34,0,0]
["3VG","V430",115.64,"V432",143.01,27.36999999999999,27.36999999999999,191.58999999999992]
["4VG","V440",141.91999999999999,"V442",188.66,46.740000000000009,46.740000000000009,327.18000000000006]
["5VG","V454",192.34,"V456",231.65,39.31,39.31,275.17]
["6VG","V460",150.6,"V462",202.5,51.900000000000006,51.900000000000006,363.30000000000007]
["7VG","V470",212.36,"V472",302.75,90.389999999999986,90.389999999999986,632.7299999999999]
["8VG","V480",224.72,"V482",278.52999999999997,53.809999999999974,53.809999999999974,376.66999999999985]
["1LVG","V513",223.63,"V513",223.63,0,0,0]
["2LVG","V523",276.95999999999998,"V523",276.95999999999998,0,0,0]
["3LVG","V533",359.6,"V533",359.6,0,0,0]
["4LVG","V543",422.24,"V543",422.24,0,0,0]
["5LVG","V553",399.65,"V553",399.65,0,0,0]
["1SGLVG","V573",451.02,"V573",451.02,0,0,0]
["1LG","V614",98.71,"nvt",0,-98.71,0,0]
["2LG","V624",143.94,"nvt",0,-143.94,0,0]
["3LG","V630",112.08,"V632",140.83000000000001,28.750000000000014,28.750000000000014,201.25000000000011]
["4LG","V640",175.07,"V642",220.02,44.950000000000017,44.950000000000017,314.65000000000009]
["5LG","V650",177.34,"V652",223.25,45.91,45.91,321.37]
["6LG","V660",246.3,"V662",308.87,62.569999999999993,62.569999999999993,437.98999999999995]
["7LG","V670",278.7,"V672",345.58,66.88,66.88,468.15999999999997]
["1GGZW","V210",{"$f":"VLOOKUP(B33,Tarieven_VPT0,9,FALSE)","v":138.41},"nvt",{"$f":"IFERROR(VLOOKUP(D33,Tarieven_VPT0,9,FALSE),0)","v":0},{"$f":"E33-C33","v":-138.41},{"$f":"IF(F33>0,F33,0)","v":0},0]
["2GGZW","V220",166.37,"nvt",0,-166.37,0,0]
["3GGZW","V230",181.21,"nvt",0,-181.21,0,0]
["4GGZW","V240",227.98,"nvt",0,-227.98,0,0]
["5GGZW","V250",304.08,"nvt",0,-304.08,0,0]
["1ZGAUD","V710",{"$f":"VLOOKUP(B38,Tarieven_VPT0,9,FALSE)","v":167.89},"V712",{"$f":"IFERROR(VLOOKUP(D38,Tarieven_VPT0,9,FALSE),0)","v":158.35},-9.539999999999992,0,0]
["2ZGAUD","V720",343.01,"V722",347.73,4.7200000000000273,4.7200000000000273,33.040000000000191]
["3ZGAUD","V730",393.04,"V732",400.09,7.0499999999999545,7.0499999999999545,49.349999999999682]
["4ZGAUD","V740",202.94,"V742",231.66,28.72,28.72,201.04]
["1ZGVIS","V814",89.19,"nvt",0,-89.19,0,0]
["2ZGVIS","V824",144,"nvt",0,-144,0,0]
["3ZGVIS","V830",184.6,"V832",200.65,16.050000000000011,16.050000000000011,112.35000000000008]
["4ZGVIS","V840",240.85,"V842",264.64999999999998,23.799999999999983,23.799999999999983,166.59999999999988]
["5ZGVIS","V850",267.33999999999997,"V852",297.77999999999997,30.439999999999998,30.439999999999998,213.07999999999998]